{"text_format":"1","workbook":"xlsx","n_sheets":14,"sheets":["Index","General Info","Introductory sub-table (I)(a)","Table (I)(a)","Promoter & Promoter Group(I)(b)","Public (I)(c)(i)","Public (I)(c)(ii)","Locked-in shares (I)(d)","DRs(II)(a)","DRs(II)(b)","Voting (III) (a)","TextBlock","Sheet1","Sheet2"],"not_rendered":{"charts":0,"images":1,"macros":1,"external_links":0,"defined_names":0,"comments":0,"pivot_tables":0},"unopened":[],"bounds":{"document_bytes":16777216,"sheet_cells":100000,"rows_first":2000,"rows_last":500,"rows_between":2000,"halvings":0,"cell_chars":16384,"cell_head_chars":4096},"cells_cut":0,"cells_raw":0,"read":"whole","date_system":"1900"}

{"sheet":"Index","index":0,"n_rows":58,"n_cols":10,"rows_kept":58,"cut":false,"hidden":false,"merged":[[20,3,20,9],[5,4,5,8],[6,5,6,8],[7,5,7,8],[8,5,8,8],[9,5,9,8],[12,3,12,9],[13,3,13,9],[14,3,14,9],[17,3,17,9],[18,3,18,9],[19,3,19,9],[34,4,34,8],[21,3,21,9],[22,3,22,9],[25,3,25,9],[26,4,26,8],[27,4,27,8],[28,4,28,8],[29,4,29,8],[30,4,30,8],[31,4,31,8],[32,4,32,8],[33,4,33,8],[50,3,50,9],[35,4,35,8],[38,3,38,9],[39,3,39,9],[40,3,40,9],[41,3,41,9],[42,3,42,9],[43,3,43,9],[44,3,44,9],[45,3,45,9],[48,3,48,9],[49,3,49,9],[57,3,57,9],[51,3,51,9],[52,3,52,9],[53,3,53,9],[54,3,54,9],[55,3,55,9],[56,3,56,9]]}
[]
[]
[]
[]
[]
[null,null,null,null,"                                      XBRL Excel Utility"]
[null,null,null,null,"1.","Overview"]
[null,null,null,null,"2.","Before you begin"]
[null,null,null,null,"3.","Index"]
[null,null,null,null,"4.","Steps for Filing Shareholding Pattern"]
[]
[]
[null,null,null,"1. Overview"]
[null,null,null,"The excel utility can be used for creating the XBRL/XML file for efiling of shareholding pattern. "]
[null,null,null,"Shareholding pattern XBRL filling consists of two processes. Firstly generation of XBRL/XML file of the Shareholding pattern, and upload of generated XBRL/XML file to BSE Listing Center."]
[]
[]
[null,null,null," 2.  Before you begin"]
[null,null,null,"1. The version of Microsoft Excel in your system should be Microsoft Office Excel 2007 and above."]
[null,null,null,"2. The system should have a file compression software to unzip excel utility file."]
[null,null,null,"3. Make sure that you have downloaded the latest Excel Utility from BSE Website to your local system."]
[null,null,null,"4. Make sure that you have downloaded the Chrome Browser to view report generated from Excel utility"]
[null,null,null,"5. Please enable the Macros (if disabled) as per instructions given in manual, so that all the functionalities of  Excel Utility works fine. Please first go through Enable Macro - Manual attached with zip file."]
[]
[]
[null,null,null,"3. Index "]
[null,null,null,1,"Details of general information about company",null,null,null,null,"General Info"]
[null,null,null,2,"Statement showing shareholding pattern",null,null,null,null,"Introductory sub-table (I)(a)"]
[null,null,null,3,"Statement showing shareholding pattern",null,null,null,null,"Table (I)(a)"]
[null,null,null,4,"Statement showing holding of securities by “Promoter and Promoter Group”",null,null,null,null,"Promoter & Promoter Group(I)(b)"]
[null,null,null,5,"Statement showing holding of securities by \"Public\" having more than one percentage of total number of shares",null,null,null,null,"Public (I)(c)(i)"]
[null,null,null,6,"Statement showing holding of securities by \"Public\" having more than five percentage of total number of shares",null,null,null,null,"Public (I)(c)(ii)"]
[null,null,null,7,"Statement showing details of locked-in-shares",null,null,null,null,"Locked-in shares (I)(d)"]
[null,null,null,8,"Statement showing details of depository receipts (DRs)",null,null,null,null,"DRs(II)(a)"]
[null,null,null,9," Statement showing holding of depository receipts (DRs) where underlying shares held by ‘Promoter or Promoter group’ are in excess of one percentage of the total number of shares",null,null,null,null,"DRs(II)(b)"]
[null,null,null,10,"Statement showing the voting pattern of shareholders",null,null,null,null,"Voting (III) (a)"]
[]
[]
[null,null,null,"4. Steps for Filing Shareholding Pattern"]
[null,null,null,"I.  Fill up the data: Navigate to each field of every section in the sheet to provide applicable data in correct format.  (Formats will get reflected while filling data.)  \n   - Use paste special command to paste data from other sheet.\n   - Use \"Home\" button (cntrl + H) to toggle between the sheets."]
[null,null,null,"II. Validating Sheets:  Click on the ''Validate \"  button to ensure that the sheet has been properly filled and also data has been furnished in proper format. If there are some errors on the sheet, excel utility will prompt you about the same."]
[null,null,null,"III. Validate All Sheets:  Click on the ''Home\"  button. And then click on \"Validate All Sheet\" button to ensure that all sheets has been properly filled and validated successfully. If there are some errors on the sheet, excel utility will prompt you about the same and stop validation at the same time. After correction, once again follow the same procedure to validate all sheets."]
[null,null,null,"Excel Utility will not allow you to generate XBRL/XML until you rectify all errors. "]
[null,null,null,"IV. Generate XML :   Excel Utility will not allow you to generate XBRL/XML unless successful validation of all sheet is completed. Now click on 'Generate XML'' to generate XBRL/XML file. \n    - Save the XBRL/XML file in your desired folder in local system. "]
[null,null,null,"V. Generate Report :   Excel Utility will allow you to generate Report. Now click on 'Generate Report'' to generate html report.   \n     - Save the HTML Report file in your desired folder in local system.     \n     - To view HTML Report open \"Chrome Web Browser\" . \n     - To print report in PDF Format, Click on print button and save as PDF. "]
[null,null,null,"VI. Upload XML file to BSE Listing Center: For uploading the XBRL/XML file generated through  Utility, login to BSE Listing Center and upload generated xml file. On Upload screen provide the required information and browse to select XML file and submit the XML.\n"]
[]
[]
[null,null,null,"5. Fill up the Shareholding Pattern"]
[null,null,null,"1. Cells with red fonts indicate mandatory fields. "]
[null,null,null,"2. If mandatory field is left empty, then Utility will not allow you to proceed further for generating XML."]
[null,null,null,"3. You are not allowed to enter data in the Grey Cells."]
[null,null,null,"4. If fields are not applicable to your company then leave it blank. Do not insert Zero unless it is a mandatory field."]
[null,null,null,"5. Data provided must be in correct format, otherwise Utility will not allow you to proceed further for generating XML."]
[null,null,null,"6. Adding new rows: Sections such as Promoters details allow you to enter as much data in a tabular form. You can Click on  \"Add\" to add more rows.\n\nTo add more than one row you must fill data in the mandatory fields of the previous row."]
[null,null,null,"7. Deleting rows: Rows that has been added can be removed by clicking the button \"Delete\". A popup will ask you to provide the range of rows you want to delete. "]
[null,null,null,"8. Select data from \"Dropdown list\" wherever applicable. "]
[null,null,null,"9. Adding Notes:  Click on \"Add Notes\" button to add notes "]

{"sheet":"General Info","index":1,"n_rows":32,"n_cols":21,"rows_kept":32,"cut":false,"hidden":false,"merged":[[5,3,5,4]]}
[]
[null,null,null,null,null,null,null,null,null,null,"Pre-listing",null,1,1,2000,null,"Actual",null,null,null,"Equity shares"]
[null,null,null,null,null,null,null,null,null,null,"Quarterly",null,2,{"$f":"+N2+1","v":2},{"$f":"+O2+1","v":2001},null,"Thousands",null,null,null,"Preference shares"]
[null,null,null,"Protect Formulae ",null,null,null,null,null,null,"Additional",null,3,{"$f":"+N3+1","v":3},2002,null,"Lakhs",null,null,null,"Differential voting rights shares"]
[null,null,null,null,null,null,null,null,null,null,null,null,{"$f":"+M4+1","v":4},4,2003,null,"Millions"]
[null,null,null,"General information [Abstract]",null,null,null,null,null,null,null,null,5,5,2004,null,"Billions"]
[null,null,null,"Scrip code",523586,null,null,null,null,null,null,null,6,6,2005]
[null,null,null,"Name of the company","Indian Toners & Developers Limited",null,null,null,null,null,"Yes",null,7,7,2006]
[null,null,null,"Class of security","Equity shares",null,null,null,null,null,"No",null,8,8,2007]
[null,null,null,"Type of report","Quarterly",null,null,null,null,null,null,null,{"$f":"+M9+1","v":9},9,2008]
[null,null,null,"Reason for additional filling",null,null,null,null,null,null,null,null,{"$f":"+M10+1","v":10},10,2009]
[null,null,null,"Whether company has more than one class of shares or securities having voting rights","No",null,null,null,null,null,null,null,11,11,2010]
[null,null,null,"Whether company is SME","No",null,null,null,null,null,null,null,12,{"$f":"+N12+1","v":12},{"$f":"+O12+1","v":2011}]
[null,null,null,null,"Date","Month","Year",null,null,null,null,null,null,13,2012]
[null,null,null,"Date of report",31,12,2015,null,null,null,null,null,null,14,2013]
[null,null,null,null,null,null,null,null,null,null,null,null,null,15,2014]
[null,null,null,null,null,null,null,null,null,null,null,null,null,16,2015]
[null,null,null,null,null,null,null,null,null,null,null,null,null,17]
[null,null,null,null,null,null,null,null,null,null,null,null,null,18]
[null,null,null,null,null,null,null,null,null,null,null,null,null,{"$f":"+N19+1","v":19}]
[null,null,null,null,null,null,null,null,null,null,null,null,null,20]
[null,null,null,null,null,null,null,null,null,null,null,null,null,21]
[null,null,null,null,null,null,null,null,null,null,null,null,null,22]
[null,null,null,null,null,null,null,null,null,null,null,null,null,23]
[null,null,null,null,null,null,null,null,null,null,null,null,null,24]
[null,null,null,null,null,null,null,null,null,null,null,null,null,25]
[null,null,null,null,null,null,null,null,null,null,null,null,null,26]
[null,null,null,null,null,null,null,null,null,null,null,null,null,27]
[null,null,null,null,null,null,null,null,null,null,null,null,null,{"$f":"+N28+1","v":28}]
[null,null,null,null,null,null,null,null,null,null,null,null,null,{"$f":"+N29+1","v":29}]
[null,null,null,null,null,null,null,null,null,null,null,null,null,30]
[null,null,null,null,null,null,null,null,null,null,null,null,null,31]

{"sheet":"Introductory sub-table (I)(a)","index":2,"n_rows":60,"n_cols":8,"rows_kept":60,"cut":false,"hidden":false,"merged":[[22,3,22,4],[21,3,21,4],[23,3,23,7],[25,3,25,7],[31,3,31,4],[57,3,57,4],[56,3,56,4],[49,3,49,7],[55,3,55,4],[57,6,57,7],[5,3,5,6],[6,3,6,7],[8,3,8,7],[14,3,14,4],[15,3,15,7],[32,3,32,7],[38,3,38,4],[40,3,40,7],[42,3,42,7],[48,3,48,4],[39,3,39,4]]}
[]
[]
[]
[]
[]
[null,null,null,"Disclosure of notes on shareholding pattern"]
[null,null,null,"Partly paid-up shares "]
[null,null,null,"ID","Description partly paid-up shares","Number of partly paid-up shares","As a percentage of total number of partly paid-up shares","As a percentage of total number of shares of the company"]
[null,null,null,"Shares held by promoter or promoter group"]
[null,null,null,1,null,null,{"$f":"+IF(F10=\"\",\"\",IF(COUNT(F10,F$23),IFERROR(ROUND((+F10*100)/$F$23,2),0),\"\"))","v":""},{"$f":"+IF(F10=\"\",\"\",IF(COUNT(F10,F$58),IFERROR(ROUND((+F10*100)/$F$58,2),0),\"\"))","v":""}]
[null,null,null,2,null,null,{"$f":"+IF(F11=\"\",\"\",IF(COUNT(F11,F$23),IFERROR(ROUND((+F11*100)/$F$23,2),0),\"\"))","v":""},{"$f":"+IF(F11=\"\",\"\",IF(COUNT(F11,F$58),IFERROR(ROUND((+F11*100)/$F$58,2),0),\"\"))","v":""}]
[null,null,null,3,null,null,"",""]
[null,null,null,4,null,null,"",""]
[null,null,null,5,null,null,"",""]
[null,null,null,"Total Shares held by promoter or promoter group",null,{"$f":"+IF(COUNT(F10:F14),ROUND(SUM(F10:F14),0),\"\")","v":""},{"$f":"+IF(F15=\"\",\"\",IF(COUNT(F15,F$23),IFERROR(ROUND((+F15*100)/$F$23,2),0),\"\"))","v":""},{"$f":"+IF(F15=\"\",\"\",IF(COUNT(F15,F$58),IFERROR(ROUND((+F15*100)/$F$58,2),0),\"\"))","v":""}]
[null,null,null,"Shares  held by public"]
[null,null,null,1,null,null,{"$f":"+IF(F17=\"\",\"\",IF(COUNT(F17,F$23),IFERROR(ROUND((+F17*100)/$F$23,2),0),\"\"))","v":""},{"$f":"+IF(F17=\"\",\"\",IF(COUNT(F17,F$58),IFERROR(ROUND((+F17*100)/$F$58,2),0),\"\"))","v":""}]
[null,null,null,2,null,null,{"$f":"+IF(F18=\"\",\"\",IF(COUNT(F18,F$23),IFERROR(ROUND((+F18*100)/$F$23,2),0),\"\"))","v":""},{"$f":"+IF(F18=\"\",\"\",IF(COUNT(F18,F$58),IFERROR(ROUND((+F18*100)/$F$58,2),0),\"\"))","v":""}]
[null,null,null,3,null,null,"",""]
[null,null,null,4,null,null,"",""]
[null,null,null,5,null,null,"",""]
[null,null,null,"Total Shares held by public",null,{"$f":"+IF(COUNT(F17:F21),ROUND(SUM(F17:F21),0),\"\")","v":""},"",{"$f":"+IF(F22=\"\",\"\",IF(COUNT(F22,F$58),IFERROR(ROUND((+F22*100)/$F$58,2),0),\"\"))","v":""}]
[null,null,null,"Total",null,{"$f":"+IF(COUNT(F15,F22),ROUND(SUM(F15,F22),0),\"\")","v":""},{"$f":"+IF(ISBLANK(F23)=TRUE,\"\",IF(COUNT(F23,F$22),IFERROR(ROUND((+F23*100)/$F$23,2),0),\"\"))","v":""},{"$f":"+IF(F23=\"\",\"\",IF(COUNT(F23,F$57),IFERROR(ROUND((+F23*100)/$F$58,2),0),\"\"))","v":""}]
[null,null,null,"Outstanding convertible securities"]
[null,null,null,"ID","Description of outstanding convertible securities","Number of outstanding securities","As a percentage of total number of outstanding convertible securities","As a percentage of total number of shares of the company, assuming full conversion of the convertible securities"]
[null,null,null,"Shares held by promoter or promoter group"]
[null,null,null,1,null,null,{"$f":"+IF(F27=\"\",\"\",IF(COUNT(F27,F$40),IFERROR(ROUND((+F27*100)/$F$40,2),0),\"\"))","v":""},{"$f":"+IF(F27=\"\",\"\",IF(COUNT(F27,F$58),IFERROR(ROUND((+F27*100)/$F$58,2),0),\"\"))","v":""}]
[null,null,null,2,null,null,{"$f":"+IF(F28=\"\",\"\",IF(COUNT(F28,F$40),IFERROR(ROUND((+F28*100)/$F$40,2),0),\"\"))","v":""},{"$f":"+IF(F28=\"\",\"\",IF(COUNT(F28,F$58),IFERROR(ROUND((+F28*100)/$F$58,2),0),\"\"))","v":""}]
[null,null,null,3,null,null,"",""]
[null,null,null,4,null,null,"",""]
[null,null,null,5,null,null,"",""]
[null,null,null,"Total shares  held by promoter or promoter group",null,{"$f":"+IF(COUNT(F27:F31),ROUND(SUM(F27:F31),0),\"\")","v":""},"",{"$f":"+IF(F32=\"\",\"\",IF(COUNT(F32,F$58),IFERROR(ROUND((+F32*100)/$F$58,2),0),\"\"))","v":""}]
[null,null,null,"Shares  held by public"]
[null,null,null,1,null,null,{"$f":"+IF(F34=\"\",\"\",IF(COUNT(F34,F$40),IFERROR(ROUND((+F34*100)/$F$40,2),0),\"\"))","v":""},{"$f":"+IF(F34=\"\",\"\",IF(COUNT(F34,F$58),IFERROR(ROUND((+F34*100)/$F$58,2),0),\"\"))","v":""}]
[null,null,null,2,null,null,{"$f":"+IF(F35=\"\",\"\",IF(COUNT(F35,F$40),IFERROR(ROUND((+F35*100)/$F$40,2),0),\"\"))","v":""},{"$f":"+IF(F35=\"\",\"\",IF(COUNT(F35,F$58),IFERROR(ROUND((+F35*100)/$F$58,2),0),\"\"))","v":""}]
[null,null,null,3,null,null,"",""]
[null,null,null,4,null,null,"",""]
[null,null,null,5,null,null,"",""]
[null,null,null,"Total Shares  held by public",null,{"$f":"+IF(COUNT(F34:F38),ROUND(SUM(F34:F38),0),\"\")","v":""},{"$f":"+IF(F39=\"\",\"\",IF(COUNT(F39,F$40),IFERROR(ROUND((+F39*100)/$F$40,2),0),\"\"))","v":""},{"$f":"+IF(F39=\"\",\"\",IF(COUNT(F39,F$58),IFERROR(ROUND((+F39*100)/$F$58,2),0),\"\"))","v":""}]
[null,null,null,"Total",null,{"$f":"+IF(COUNT(F32,F39),ROUND(SUM(F32,F39),0),\"\")","v":""},{"$f":"+IF(ISBLANK(F40)=TRUE,\"\",IF(COUNT(F40,F$40),IFERROR(ROUND((+F40*100)/$F$40,2),0),\"\"))","v":""},{"$f":"+IF(F40=\"\",\"\",IF(COUNT(F40,F$58),IFERROR(ROUND((+F40*100)/$F$58,2),0),\"\"))","v":""}]
[null,null,null,"Warrants"]
[null,null,null,"ID","Description of warrants","Number of warrants","As a percentage of total number of warrants","As a percentage of total number of shares of the company, assuming full conversion of warrants"]
[null,null,null,"Shares held by promoter or promoter group"]
[null,null,null,1,null,null,{"$f":"+IF(F44=\"\",\"\",IF(COUNT(F44,F$57),IFERROR(ROUND((+F44*100)/$F$57,2),0),\"\"))","v":""},{"$f":"+IF(F44=\"\",\"\",IF(COUNT(F44,F$58),IFERROR(ROUND((+F44*100)/$F$58,2),0),\"\"))","v":""}]
[null,null,null,2,null,null,{"$f":"+IF(F45=\"\",\"\",IF(COUNT(F45,F$57),IFERROR(ROUND((+F45*100)/$F$57,2),0),\"\"))","v":""},{"$f":"+IF(F45=\"\",\"\",IF(COUNT(F45,F$58),IFERROR(ROUND((+F45*100)/$F$58,2),0),\"\"))","v":""}]
[null,null,null,3,null,null,"",""]
[null,null,null,4,null,null,"",""]
[null,null,null,5,null,null,"",""]
[null,null,null,"Total Shares held by promoter or  promoter group",null,{"$f":"+IF(COUNT(F44:F48),ROUND(SUM(F44:F48),0),\"\")","v":""},{"$f":"+IF(F49=\"\",\"\",IF(COUNT(F49,F$57),IFERROR(ROUND((+F49*100)/$F$57,2),0),\"\"))","v":""},{"$f":"+IF(F49=\"\",\"\",IF(COUNT(F49,F$58),IFERROR(ROUND((+F49*100)/$F$58,2),0),\"\"))","v":""}]
[null,null,null,"Shares  held by public"]
[null,null,null,1,null,null,{"$f":"+IF(F51=\"\",\"\",IF(COUNT(F51,F$57),IFERROR(ROUND((+F51*100)/$F$57,2),0),\"\"))","v":""},{"$f":"+IF(F51=\"\",\"\",IF(COUNT(F51,F$58),IFERROR(ROUND((+F51*100)/$F$58,2),0),\"\"))","v":""}]
[null,null,null,2,null,null,"",""]
[null,null,null,3,null,null,"",""]
[null,null,null,4,null,null,"",""]
[null,null,null,5,null,null,"",""]
[null,null,null,"Total Shares  held  by  public",null,{"$f":"+IF(COUNT(F51:F55),ROUND(SUM(F51:F55),0),\"\")","v":""},{"$f":"+IF(F56=\"\",\"\",IF(COUNT(F56,F$57),IFERROR(ROUND((+F56*100)/$F$57,2),0),\"\"))","v":""},{"$f":"+IF(F56=\"\",\"\",IF(COUNT(F56,F$58),IFERROR(ROUND((+F56*100)/$F$58,2),0),\"\"))","v":""}]
[null,null,null,"Total",null,{"$f":"+IF(COUNT(F49,F56),ROUND(SUM(F49,F56),0),\"\")","v":""},{"$f":"+IF(F57=\"\",\"\",IF(COUNT(F57,F$57),IFERROR(ROUND((+F57*100)/$F$57,2),0),\"\"))","v":""},{"$f":"+IF(F57=\"\",\"\",IF(COUNT(F57,F$57),IFERROR(ROUND((+F57*100)/$F$58,2),0),\"\"))","v":""}]
[null,null,null,"Total paid-up capital of the company assuming full conversion of warrants and convertible securities",null,8058900,"(To be in shares only)"]
[]
[null,null,null,null,null," "]

{"sheet":"Table (I)(a)","index":3,"n_rows":137,"n_cols":29,"rows_kept":137,"cut":false,"hidden":false,"merged":[[37,4,37,12],[4,3,4,10],[4,11,4,12],[5,3,6,3],[5,4,6,5],[5,9,5,10],[5,11,5,12],[7,4,7,5],[8,4,8,12],[9,4,9,12],[35,3,35,5],[36,3,36,5],[136,3,136,5],[63,3,63,5],[64,3,64,5],[65,3,65,5],[99,3,99,5],[100,3,100,5],[128,3,128,5],[129,3,129,5],[130,3,130,5],[131,3,131,5],[132,4,132,5],[135,3,135,5]]}
[]
[]
[]
[]
[null,null,null,"Disclosure of notes on fully paid-up shares"]
[null,null,null,"Category code       ","Category of shareholder                                                                        ",null,null,null,null,"Total Shareholding as a percentage of total number of shares",null,"Shares pledged or otherwise encumbered"]
[null,null,null,null,null,null,"Number of shareholders              ","Total number of shares","Number of shares held in dematerialised form","As a percentage of (A+B)             ","As a percentage of (A+B+C)","Number            of                 shares","As   a  percentage "]
[null,null,null,"(I)","(II)",null,"(III)","(IV)","(V)","(VI)","(VII)","(VIII)","(IX)= (VIII)/(IV)*100 ",null,null,null,null,null,null,null,"Angel Investors",null,null,"Angel Investors",null,"Foreign individuals",null,null,"Clearing Members"]
[null,null,null,"(A)","Shareholding of Promoter and Promoter Group",null,null,null,null,null,null,null,null,null,null,null,null,null,null,null,"Directors and their friends or relatives",null,null,"Directors and their friends or relatives",null,"NRI",null,null,"Custodian"]
[null,null,null,"(1)","Indian",null,null,null,null,null,null,null,null,null,null,null,null,null,null,null,"Employee welfare fund",null,null,"Employee welfare fund",null,"Trusts",null,null,"Directors and their friends or relatives"]
[null,null,null,"(a)","Individuals or Hindu undivided family",null,8,1178406,1178406,{"$f":"+IFERROR(IF(H11=\"\",\"\",IF(COUNT(H11,$H$132),ROUND((+H11*100/$H$132),2),\"\")),0)","v":14.62},{"$f":"+IFERROR(IF(H11=\"\",\"\",IF(COUNT(H11,$H$137),ROUND((+H11*100/$H$137),2),\"\")),0)","v":14.62},null,{"$f":"IFERROR(+IF(OR(L11=\"\",H11=\"\"),\"\",IF(COUNT(H11,L11),ROUND((+L11*100/H11),2),\"\")),0)","v":""},null,null,null,null,null,null,null,"ESOP or ESOS or ESPS",null,null,"ESOP or ESOS or ESPS",null,"Market Maker",null,null,"Employees"]
[null,null,null,"(b)","Central government or State government(s)",null,null,null,null,"","",null,"",null,null,null,null,null,null,null,"Group associate companies",null,null,"Overseas corporate bodies",null,"HUF",null,null,"Escrow Account"]
[null,null,null,"(c)","Bodies corporate",null,4,2828924,2828924,35.1,{"$f":"+IFERROR(IF(H13=\"\",\"\",IF(COUNT(H13,$H$137),ROUND((+H13*100/$H$137),2),\"\")),0)","v":35.1},null,"",null,null,null,null,null,null,null,"Group companies",null,null,"Private Equity Fund",null,"Clearing Members",null,null,"ESOP or ESOS or ESPS"]
[null,null,null,"(d)","Financial institutions or banks",null,null,null,null,{"$f":"+IFERROR(IF(H14=\"\",\"\",IF(COUNT(H14,$H$132),ROUND((+H14*100/$H$132),2),\"\")),0)","v":""},{"$f":"+IFERROR(IF(H14=\"\",\"\",IF(COUNT(H14,$H$137),ROUND((+H14*100/$H$137),2),\"\")),0)","v":""},null,"",null,null,null,null,null,null,null,"HUF",null,null,"Societies",null,"NSDL or CDSL transit",null,null,"Foreign individuals"]
[null,null,null,"(e)","Any other (specify)","Description of Shareholder",null,null,null,null,null,null,null,null,null,null,null,null,null,null,"LLP or Parternship firm",null,null,"Trusts",null,"Employee welfare fund",null,null,"Foreign portfolio investors"]
[null,null,null,1,"Indian shareholders 1",null,null,null,null,{"$f":"+IFERROR(IF(H16=\"\",\"\",IF(COUNT(H16,$H$132),ROUND((+H16*100/$H$132),2),\"\")),0)","v":""},{"$f":"+IFERROR(IF(H16=\"\",\"\",IF(COUNT(H16,$H$137),ROUND((+H16*100/$H$137),2),\"\")),0)","v":""},null,"",null,null,null,null,null,null,null,"Person acting in concert",null,null,"Venture capital funds",null,"Overseas corporate bodies",null,null,"HUF"]
[null,null,null,2,"Indian shareholders 2",null,null,null,null,"","",null,"",null,null,null,null,null,null,null,"Private Equity Fund",null,null,"Other",null,"Private equity fund",null,null,"LLP or Parternship firm"]
[null,null,null,3,"Indian shareholders 3",null,null,null,null,"","",null,"",null,null,null,null,null,null,null,"Societies",null,null,null,null,"Foreign portfolio investors",null,null,"Market Maker"]
[null,null,null,4,"Indian shareholders 4",null,null,null,null,"","",null,"",null,null,null,null,null,null,null,"Trusts",null,null,null,null,"Foreign bank",null,null,"NRI"]
[null,null,null,5,"Indian shareholders 5",null,null,null,null,"","",null,"",null,null,null,null,null,null,null,"Venture capital funds",null,null,null,null,"Asset reconstuction companies",null,null,"NSDL or CDSL transit"]
[null,null,null,6,"Indian shareholders 6",null,null,null,null,"","",null,"",null,null,null,null,null,null,null,"Other",null,null,null,null,"Other",null,null,"Overseas corporate bodies"]
[null,null,null,7,"Indian shareholders 7",null,null,null,null,"","",null,"",null,null,null,null,null,null,null,null,null,null,null,null,null,null,null,"Person acting in concert"]
[null,null,null,8,"Indian shareholders 8",null,null,null,null,"","",null,"",null,null,null,null,null,null,null,null,null,null,null,null,null,null,null,"Private equity fund"]
[null,null,null,9,"Indian shareholders 9",null,null,null,null,"","",null,"",null,null,null,null,null,null,null,null,null,null,null,null,null,null,null,"Societies"]
[null,null,null,10,"Indian shareholders 10",null,null,null,null,"","",null,"",null,null,null,null,null,null,null,null,null,null,null,null,null,null,null,"Trusts"]
[null,null,null,11,"Indian shareholders 11",null,null,null,null,"","",null,"",null,null,null,null,null,null,null,null,null,null,null,null,null,null,null,"Unclaimed suspense a/c"]
[null,null,null,12,"Indian shareholders 12",null,null,null,null,"","",null,"",null,null,null,null,null,null,null,null,null,null,null,null,null,null,null,"Other"]
[null,null,null,13,"Indian shareholders 13",null,null,null,null,"","",null,""]
[null,null,null,14,"Indian shareholders 14",null,null,null,null,"","",null,""]
[null,null,null,15,"Indian shareholders 15",null,null,null,null,"","",null,""]
[null,null,null,16,"Indian shareholders 16",null,null,null,null,"","",null,""]
[null,null,null,17,"Indian shareholders 17",null,null,null,null,"","",null,""]
[null,null,null,18,"Indian shareholders 18",null,null,null,null,"","",null,""]
[null,null,null,19,"Indian shareholders 19",null,null,null,null,"","",null,""]
[null,null,null,20,"Indian shareholders 20",null,null,null,null,"","",null,""]
[null,null,null,"Total  Others",null,null,{"$f":"+IF(COUNT(G16:G35),ROUND(SUM(G16:G35),0),\"\")","v":""},"",{"$f":"+IF(COUNT(I16:I35),ROUND(SUM(I16:I35),0),\"\")","v":""},{"$f":"+IFERROR(IF(H36=\"\",\"\",IF(COUNT(H36,$H$132),ROUND((+H36*100/$H$132),2),\"\")),0)","v":""},{"$f":"+IFERROR(IF(H36=\"\",\"\",IF(COUNT(H36,$H$137),ROUND((+H36*100/$H$137),2),\"\")),0)","v":""},{"$f":"+IF(COUNT(L16:L35),ROUND(SUM(L16:L35),0),\"\")","v":""},""]
[null,null,null,"Sub Total (A) (1)",null,null,{"$f":"+IF(COUNT(G11:G14,G36),ROUND(SUM(G11:G14,G36),0),\"\")","v":12},4007330,{"$f":"+IF(COUNT(I11:I14,I36),ROUND(SUM(I11:I14,I36),0),\"\")","v":4007330},{"$f":"+IFERROR(IF(H37=\"\",\"\",IF(COUNT(H37,$H$132),ROUND((+H37*100/$H$132),2),\"\")),0)","v":49.73},{"$f":"+IFERROR(IF(H37=\"\",\"\",IF(COUNT(H37,$H$137),ROUND((+H37*100/$H$137),2),\"\")),0)","v":49.73},{"$f":"+IF(COUNT(L11:L14,L36),ROUND(SUM(L11:L14,L36),0),\"\")","v":""},""]
[null,null,null,"(2)","Foreign"]
[null,null,null,"(a)","Non-resident individuals or foreign individuals ",null,null,null,null,{"$f":"+IFERROR(IF(H39=\"\",\"\",IF(COUNT(H39,$H$132),ROUND((+H39*100/$H$132),2),\"\")),0)","v":""},{"$f":"+IFERROR(IF(H39=\"\",\"\",IF(COUNT(H39,$H$137),ROUND((+H39*100/$H$137),2),\"\")),0)","v":""},null,{"$f":"IFERROR(+IF(OR(L39=\"\",H39=\"\"),\"\",IF(COUNT(H39,L39),ROUND((+L39*100/H39),2),\"\")),0)","v":""}]
[null,null,null,"(b)","Bodies  corporate",null,null,null,null,{"$f":"+IFERROR(IF(H40=\"\",\"\",IF(COUNT(H40,$H$132),ROUND((+H40*100/$H$132),2),\"\")),0)","v":""},{"$f":"+IFERROR(IF(H40=\"\",\"\",IF(COUNT(H40,$H$137),ROUND((+H40*100/$H$137),2),\"\")),0)","v":""},null,{"$f":"IFERROR(+IF(OR(L40=\"\",H40=\"\"),\"\",IF(COUNT(H40,L40),ROUND((+L40*100/H40),2),\"\")),0)","v":""}]
[null,null,null,"(c)","Institutions ",null,null,null,null,{"$f":"+IFERROR(IF(H41=\"\",\"\",IF(COUNT(H41,$H$132),ROUND((+H41*100/$H$132),2),\"\")),0)","v":""},{"$f":"+IFERROR(IF(H41=\"\",\"\",IF(COUNT(H41,$H$137),ROUND((+H41*100/$H$137),2),\"\")),0)","v":""},null,{"$f":"IFERROR(+IF(OR(L41=\"\",H41=\"\"),\"\",IF(COUNT(H41,L41),ROUND((+L41*100/H41),2),\"\")),0)","v":""}]
[null,null,null,"(d)","Qualified foreign investor",null,null,null,null,{"$f":"+IFERROR(IF(H42=\"\",\"\",IF(COUNT(H42,$H$132),ROUND((+H42*100/$H$132),2),\"\")),0)","v":""},{"$f":"+IFERROR(IF(H42=\"\",\"\",IF(COUNT(H42,$H$137),ROUND((+H42*100/$H$137),2),\"\")),0)","v":""},null,{"$f":"IFERROR(+IF(OR(L42=\"\",H42=\"\"),\"\",IF(COUNT(H42,L42),ROUND((+L42*100/H42),2),\"\")),0)","v":""}]
[null,null,null,"(e)","Any other (specify)","Description of Shareholder"]
[null,null,null,1,"Foreign shareholders 1",null,null,null,null,{"$f":"+IFERROR(IF(H44=\"\",\"\",IF(COUNT(H44,$H$132),ROUND((+H44*100/$H$132),2),\"\")),0)","v":""},{"$f":"+IFERROR(IF(H44=\"\",\"\",IF(COUNT(H44,$H$137),ROUND((+H44*100/$H$137),2),\"\")),0)","v":""},null,{"$f":"IFERROR(+IF(OR(L44=\"\",H44=\"\"),\"\",IF(COUNT(H44,L44),ROUND((+L44*100/H44),2),\"\")),0)","v":""}]
[null,null,null,2,"Foreign shareholders 2",null,null,null,null,"","",null,{"$f":"IFERROR(+IF(OR(L45=\"\",H45=\"\"),\"\",IF(COUNT(H45,L45),ROUND((+L45*100/H45),2),\"\")),0)","v":""}]
[null,null,null,3,"Foreign shareholders 3",null,null,null,null,"","",null,{"$f":"IFERROR(+IF(OR(L46=\"\",H46=\"\"),\"\",IF(COUNT(H46,L46),ROUND((+L46*100/H46),2),\"\")),0)","v":""}]
[null,null,null,4,"Foreign shareholders 4",null,null,null,null,"","",null,{"$f":"IFERROR(+IF(OR(L47=\"\",H47=\"\"),\"\",IF(COUNT(H47,L47),ROUND((+L47*100/H47),2),\"\")),0)","v":""}]
[null,null,null,5,"Foreign shareholders 5",null,null,null,null,"","",null,{"$f":"IFERROR(+IF(OR(L48=\"\",H48=\"\"),\"\",IF(COUNT(H48,L48),ROUND((+L48*100/H48),2),\"\")),0)","v":""}]
[null,null,null,6,"Foreign shareholders 6",null,null,null,null,"","",null,{"$f":"IFERROR(+IF(OR(L49=\"\",H49=\"\"),\"\",IF(COUNT(H49,L49),ROUND((+L49*100/H49),2),\"\")),0)","v":""}]
[null,null,null,7,"Foreign shareholders 7",null,null,null,null,"","",null,""]
[null,null,null,8,"Foreign shareholders 8",null,null,null,null,"","",null,""]
[null,null,null,9,"Foreign shareholders 9",null,null,null,null,"","",null,""]
[null,null,null,10,"Foreign shareholders 10",null,null,null,null,"","",null,""]
[null,null,null,11,"Foreign shareholders 11",null,null,null,null,"","",null,""]
[null,null,null,12,"Foreign shareholders 12",null,null,null,null,"","",null,""]
[null,null,null,13,"Foreign shareholders 13",null,null,null,null,"","",null,""]
[null,null,null,14,"Foreign shareholders 14",null,null,null,null,"","",null,""]
[null,null,null,15,"Foreign shareholders 15",null,null,null,null,"","",null,""]
[null,null,null,16,"Foreign shareholders 16",null,null,null,null,"","",null,""]
[null,null,null,17,"Foreign shareholders 17",null,null,null,null,"","",null,""]
[null,null,null,18,"Foreign shareholders 18",null,null,null,null,"","",null,""]
[null,null,null,19,"Foreign shareholders 19",null,null,null,null,"","",null,""]
[null,null,null,20,"Foreign shareholders 20",null,null,null,null,"","",null,""]
[null,null,null,"Total Others",null,null,{"$f":"+IF(COUNT(G44:G63),ROUND(SUM(G44:G63),0),\"\")","v":""},"",{"$f":"+IF(COUNT(I44:I63),ROUND(SUM(I44:I63),0),\"\")","v":""},{"$f":"+IFERROR(IF(H64=\"\",\"\",IF(COUNT(H64,$H$132),ROUND((+H64*100/$H$132),2),\"\")),0)","v":""},{"$f":"+IFERROR(IF(H64=\"\",\"\",IF(COUNT(H64,$H$137),ROUND((+H64*100/$H$137),2),\"\")),0)","v":""},"",{"$f":"IFERROR(+IF(OR(L64=\"\",H64=\"\"),\"\",IF(COUNT(H64,L64),ROUND((+L64*100/H64),2),\"\")),0)","v":""}]
[null,null,null,"Sub-Total (A) (2)",null,null,{"$f":"+IF(COUNT(G39:G42,G64),ROUND(SUM(G39:G42,G64),0),\"\")","v":""},"","",{"$f":"+IFERROR(IF(H65=\"\",\"\",IF(COUNT(H65,$H$132),ROUND((+H65*100/$H$132),2),\"\")),0)","v":""},{"$f":"+IFERROR(IF(H65=\"\",\"\",IF(COUNT(H65,$H$137),ROUND((+H65*100/$H$137),2),\"\")),0)","v":""},{"$f":"+IF(COUNT(L39:L42,L64),ROUND(SUM(L39:L42,L64),0),\"\")","v":""},{"$f":"IFERROR(+IF(OR(L65=\"\",H65=\"\"),\"\",IF(COUNT(H65,L65),ROUND((+L65*100/H65),2),\"\")),0)","v":""}]
[null,null,null,"Total Shareholding of Promoter and Promoter Group                                         (A) = (A)(1)+(A)(2)",null,null,{"$f":"+IF(COUNT(G37,G65),ROUND(SUM(G37,G65),0),\"\")","v":12},4007330,4007330,49.73,49.73,{"$f":"+IF(COUNT(L37,L65),ROUND(SUM(L37,L65),0),\"\")","v":""},{"$f":"IFERROR(+IF(OR(L66=\"\",H66=\"\"),\"\",IF(COUNT(H66,L66),ROUND((+L66*100/H66),2),\"\")),0)","v":""}]
[null,null,null,"(B)","Public Shareholding"]
[null,null,null,"(1)","Institutions"]
[null,null,null,"(a)","Mutual funds or UTI",null,2,3200,0,{"$f":"+IFERROR(IF(H69=\"\",\"\",IF(COUNT(H69,$H$132),ROUND((+H69*100/$H$132),2),\"\")),0)","v":0.04},{"$f":"+IFERROR(IF(H69=\"\",\"\",IF(COUNT(H69,$H$137),ROUND((+H69*100/$H$137),2),\"\")),0)","v":0.04}]
[null,null,null,"(b)","Financial  institutions or banks",null,0,0,0,0,0]
[null,null,null,"(c)","Central  government or State government(s)",null,0,0,0,0,0]
[null,null,null,"(d)","Venture capital funds",null,0,0,0,0,0]
[null,null,null,"(e)","Insurance companies",null,0,0,0,0,0]
[null,null,null,"(f)","Foreign institutional investors",null,1,10000,10000,0.12,0.12]
[null,null,null,"(g)","Foreign venture capital investors",null,0,0,0,0,0]
[null,null,null,"(h)","Qualified  foreign  investor",null,0,0,0,0,0]
[null,null,null,"(i)","Nominated investors"]
[null,null,null,"(j)","Market makers"]
[null,null,null,"(k)","Any other (specify)","Description of Shareholder"]
[null,null,null,1,"Institutions Shareholders 1",null,null,null,null,"",""]
[null,null,null,2,"Institutions Shareholders 2",null,null,null,null,"",""]
[null,null,null,3,"Institutions Shareholders 3",null,null,null,null,"",""]
[null,null,null,4,"Institutions Shareholders 4",null,null,null,null,"",""]
[null,null,null,5,"Institutions Shareholders 5",null,null,null,null,"",""]
[null,null,null,6,"Institutions Shareholders 6",null,null,null,null,"",""]
[null,null,null,7,"Institutions Shareholders 7",null,null,null,null,"",""]
[null,null,null,8,"Institutions Shareholders 8",null,null,null,null,"",""]
[null,null,null,9,"Institutions Shareholders 9",null,null,null,null,"",""]
[null,null,null,10,"Institutions Shareholders 10",null,null,null,null,"",""]
[null,null,null,11,"Institutions Shareholders 11",null,null,null,null,"",""]
[null,null,null,12,"Institutions Shareholders 12",null,null,null,null,"",""]
[null,null,null,13,"Institutions Shareholders 13",null,null,null,null,"",""]
[null,null,null,14,"Institutions Shareholders 14",null,null,null,null,"",""]
[null,null,null,15,"Institutions Shareholders 15",null,null,null,null,"",""]
[null,null,null,16,"Institutions Shareholders 16",null,null,null,null,"",""]
[null,null,null,17,"Institutions Shareholders 17",null,null,null,null,"",""]
[null,null,null,18,"Institutions Shareholders 18",null,null,null,null,"",""]
[null,null,null,19,"Institutions Shareholders 19",null,null,null,null,"",""]
[null,null,null,20,"Institutions Shareholders 20",null,null,null,null,"",""]
[null,null,null,"Total Others",null,null,{"$f":"+IF(COUNT(G80:G99),ROUND(SUM(G80:G99),0),\"\")","v":""},"",{"$f":"+IF(COUNT(I80:I99),ROUND(SUM(I80:I99),0),\"\")","v":""},{"$f":"+IFERROR(IF(H100=\"\",\"\",IF(COUNT(H100,$H$132),ROUND((+H100*100/$H$132),2),\"\")),0)","v":""},{"$f":"+IFERROR(IF(H100=\"\",\"\",IF(COUNT(H100,$H$137),ROUND((+H100*100/$H$137),2),\"\")),0)","v":""}]
[null,null,null,"Sub Total (B) (1)",null,null,{"$f":"+IF(COUNT(G69:G78,G100),ROUND(SUM(G69:G78,G100),0),\"\")","v":3},13200,{"$f":"+IF(COUNT(I69:I78,I100),ROUND(SUM(I69:I78,I100),0),\"\")","v":10000},{"$f":"+IFERROR(IF(H101=\"\",\"\",IF(COUNT(H101,$H$132),ROUND((+H101*100/$H$132),2),\"\")),0)","v":0.16},{"$f":"+IFERROR(IF(H101=\"\",\"\",IF(COUNT(H101,$H$137),ROUND((+H101*100/$H$137),2),\"\")),0)","v":0.16}]
[null,null,null,"(2)","Non-Institutions"]
[null,null,null,"(a)","Bodies   corporate",null,187,676107,663307,{"$f":"+IFERROR(IF(H103=\"\",\"\",IF(COUNT(H103,$H$132),ROUND((+H103*100/$H$132),2),\"\")),0)","v":8.39},{"$f":"+IFERROR(IF(H103=\"\",\"\",IF(COUNT(H103,$H$137),ROUND((+H103*100/$H$137),2),\"\")),0)","v":8.39}]
[null,null,null,"(b)","Individuals"]
[null,null,null,"i","Individual shareholders holding nominal share capital up to Rs one lakh",null,13200,2636244,1566713,{"$f":"+IFERROR(IF(H105=\"\",\"\",IF(COUNT(H105,$H$132),ROUND((+H105*100/$H$132),2),\"\")),0)","v":32.71},{"$f":"+IFERROR(IF(H105=\"\",\"\",IF(COUNT(H105,$H$137),ROUND((+H105*100/$H$137),2),\"\")),0)","v":32.71}]
[null,null,null,"ii","Individual shareholders holding nominal share capital in excess of Rs one lakh",null,22,556711,556711,{"$f":"+IFERROR(IF(H106=\"\",\"\",IF(COUNT(H106,$H$132),ROUND((+H106*100/$H$132),2),\"\")),0)","v":6.91},{"$f":"+IFERROR(IF(H106=\"\",\"\",IF(COUNT(H106,$H$137),ROUND((+H106*100/$H$137),2),\"\")),0)","v":6.91}]
[null,null,null,"(c)","Qualified  foreign investor",null,null,null,null,{"$f":"+IFERROR(IF(H107=\"\",\"\",IF(COUNT(H107,$H$132),ROUND((+H107*100/$H$132),2),\"\")),0)","v":""},{"$f":"+IFERROR(IF(H107=\"\",\"\",IF(COUNT(H107,$H$137),ROUND((+H107*100/$H$137),2),\"\")),0)","v":""}]
[null,null,null,"(d)","Any other (specify)","Description of Shareholder"]
[null,null,null,1,"Non-Institutions Shareholders  1","Directors and their friends or relatives",2,2520,2520,{"$f":"+IFERROR(IF(H109=\"\",\"\",IF(COUNT(H109,$H$132),ROUND((+H109*100/$H$132),2),\"\")),0)","v":0.03},{"$f":"+IFERROR(IF(H109=\"\",\"\",IF(COUNT(H109,$H$137),ROUND((+H109*100/$H$137),2),\"\")),0)","v":0.03}]
[null,null,null,2,"Non-Institutions Shareholders  2","NRI",34,23286,23286,{"$f":"+IFERROR(IF(H110=\"\",\"\",IF(COUNT(H110,$H$132),ROUND((+H110*100/$H$132),2),\"\")),0)","v":0.28999999999999998},{"$f":"+IFERROR(IF(H110=\"\",\"\",IF(COUNT(H110,$H$137),ROUND((+H110*100/$H$137),2),\"\")),0)","v":0.28999999999999998}]
[null,null,null,3,"Non-Institutions Shareholders  3","Clearing Members",27,10760,10760,{"$f":"+IFERROR(IF(H111=\"\",\"\",IF(COUNT(H111,$H$132),ROUND((+H111*100/$H$132),2),\"\")),0)","v":0.13},{"$f":"+IFERROR(IF(H111=\"\",\"\",IF(COUNT(H111,$H$137),ROUND((+H111*100/$H$137),2),\"\")),0)","v":0.13}]
[null,null,null,4,"Non-Institutions Shareholders  4","HUF",143,132742,132742,{"$f":"+IFERROR(IF(H112=\"\",\"\",IF(COUNT(H112,$H$132),ROUND((+H112*100/$H$132),2),\"\")),0)","v":1.65},{"$f":"+IFERROR(IF(H112=\"\",\"\",IF(COUNT(H112,$H$137),ROUND((+H112*100/$H$137),2),\"\")),0)","v":1.65}]
[null,null,null,5,"Non-Institutions Shareholders  5",null,null,null,null,{"$f":"+IFERROR(IF(H113=\"\",\"\",IF(COUNT(H113,$H$132),ROUND((+H113*100/$H$132),2),\"\")),0)","v":""},{"$f":"+IFERROR(IF(H113=\"\",\"\",IF(COUNT(H113,$H$137),ROUND((+H113*100/$H$137),2),\"\")),0)","v":""}]
[null,null,null,6,"Non-Institutions Shareholders  6",null,null,null,null,{"$f":"+IFERROR(IF(H114=\"\",\"\",IF(COUNT(H114,$H$132),ROUND((+H114*100/$H$132),2),\"\")),0)","v":""},{"$f":"+IFERROR(IF(H114=\"\",\"\",IF(COUNT(H114,$H$137),ROUND((+H114*100/$H$137),2),\"\")),0)","v":""}]
[null,null,null,7,"Non-Institutions Shareholders  7",null,null,null,null,"",""]
[null,null,null,8,"Non-Institutions Shareholders  8",null,null,null,null,"",""]
[null,null,null,9,"Non-Institutions Shareholders  9",null,null,null,null,"",""]
[null,null,null,10,"Non-Institutions Shareholders  10",null,null,null,null,"",""]
[null,null,null,11,"Non-Institutions Shareholders  11",null,null,null,null,"",""]
[null,null,null,12,"Non-Institutions Shareholders  12",null,null,null,null,"",""]
[null,null,null,13,"Non-Institutions Shareholders  13",null,null,null,null,"",""]
[null,null,null,14,"Non-Institutions Shareholders  14",null,null,null,null,"",""]
[null,null,null,15,"Non-Institutions Shareholders  15",null,null,null,null,"",""]
[null,null,null,16,"Non-Institutions Shareholders  16",null,null,null,null,"",""]
[null,null,null,17,"Non-Institutions Shareholders  17",null,null,null,null,"",""]
[null,null,null,18,"Non-Institutions Shareholders  18",null,null,null,null,"",""]
[null,null,null,19,"Non-Institutions Shareholders  19",null,null,null,null,"",""]
[null,null,null,20,"Non-Institutions Shareholders  20",null,null,null,null,"",""]
[null,null,null,"Total Others",null,null,{"$f":"+IF(COUNT(G109:G128),ROUND(SUM(G109:G128),0),\"\")","v":206},169308,{"$f":"+IF(COUNT(I109:I128),ROUND(SUM(I109:I128),0),\"\")","v":169308},{"$f":"+IFERROR(IF(H129=\"\",\"\",IF(COUNT(H129,$H$132),ROUND((+H129*100/$H$132),2),\"\")),0)","v":2.1},{"$f":"+IFERROR(IF(H129=\"\",\"\",IF(COUNT(H129,$H$137),ROUND((+H129*100/$H$137),2),\"\")),0)","v":2.1}]
[null,null,null,"Sub-total (B) (2)",null,null,{"$f":"+IF(COUNT(G103:G107,G129),ROUND(SUM(G103:G107,G129),0),\"\")","v":13615},4038370,2956039,{"$f":"+IFERROR(IF(H130=\"\",\"\",IF(COUNT(H130,$H$132),ROUND((+H130*100/$H$132),2),\"\")),0)","v":50.11},{"$f":"+IFERROR(IF(H130=\"\",\"\",IF(COUNT(H130,$H$137),ROUND((+H130*100/$H$137),2),\"\")),0)","v":50.11}]
[null,null,null,"Total Public Shareholding (B) = (B)(1)+(B)(2)",null,null,{"$f":"+IF(COUNT(G101,G130),ROUND(SUM(G101,G130),0),\"\")","v":13618},{"$f":"+IF(COUNT(H101,H130),ROUND(SUM(H101,H130),0),\"\")","v":4051570},2966039,50.27,50.27]
[null,null,null,"TOTAL (A)+(B)",null,null,{"$f":"+IF(COUNT(G66,G131),ROUND(SUM(G66,G131),0),\"\")","v":13630},{"$f":"+IF(COUNT(H66,H131),ROUND(SUM(H66,H131),0),\"\")","v":8058900},{"$f":"+IF(COUNT(I66,I131),ROUND(SUM(I66,I131),0),\"\")","v":6973369},100,100,{"$f":"+IF(COUNT(L66),ROUND(SUM(L66),2),\"\")","v":""},{"$f":"IFERROR(+IF(OR(L132=\"\",H132=\"\"),\"\",IF(COUNT(H132,L132),ROUND((+L132*100/H132),2),\"\")),0)","v":""}]
[null,null,null,"(C)","Shares held by custodians and against which depository receipts have been issued"]
[null,null,null,"(1)","Promoter and promoter group",null,null,null,null,null,{"$f":"+IFERROR(IF(H134=\"\",\"\",IF(COUNT(H134,$H$137),ROUND((+H134*100/$H$137),2),\"\")),0)","v":""}]
[null,null,null,"(2)","Public ",null,null,null,null,null,{"$f":"+IFERROR(IF(H135=\"\",\"\",IF(COUNT(H135,$H$137),ROUND((+H135*100/$H$137),2),\"\")),0)","v":""}]
[null,null,null,"Total Shares held by Custodians (C)",null,null,{"$f":"+IF(COUNT(G134:G135),ROUND(SUM(G134:G135),0),\"\")","v":""},"","",null,{"$f":"+IFERROR(IF(H136=\"\",\"\",IF(COUNT(H136,$H$137),ROUND((+H136*100/$H$137),2),\"\")),0)","v":""}]
[null,null,null,"GRAND TOTAL (A)+(B)+(C)",null,null,{"$f":"+IF(COUNT(G132,G136),ROUND(SUM(G132,G136),0),\"\")","v":13630},{"$f":"+IF(COUNT(H132,H136),ROUND(SUM(H132,H136),0),\"\")","v":8058900},6973369,null,{"$f":"+IFERROR(IF(H137=\"\",\"\",IF(COUNT(H137,$H$137),ROUND((+H137*100/$H$137),2),\"\")),0)","v":100},{"$f":"+IF(COUNT(L66),ROUND(SUM(L66),2),\"\")","v":""},{"$f":"IFERROR(+IF(OR(L137=\"\",H137=\"\"),\"\",IF(COUNT(H137,L137),ROUND((+L137*100/H137),2),\"\")),0)","v":""}]

{"sheet":"Promoter & Promoter Group(I)(b)","index":4,"n_rows":25,"n_cols":16,"rows_kept":25,"cut":false,"hidden":false,"merged":[[24,3,24,5],[10,3,10,15],[4,3,4,15],[5,3,5,13],[5,14,5,15],[6,3,7,3],[6,6,6,7],[6,8,6,10],[6,11,6,12],[6,13,6,14]]}
[null,null,null,null,null,null,null,null,12]
[]
[]
[]
[null,null,null,"(I) (b) Statement showing holding of securities (including shares,warrants,convertible securities) of persons belonging to the category \"Promoter and Promoter Group\""]
[null,null,null,"Disclosure of notes on securities belonging to the category \"Promoter and Promoter Group\""]
[null,null,null,"Sr. No. ",null,null,"Details of Shares held",null,"Encumbered Share",null,null,"Details of warrants",null,"Details of convertible securities"]
[null,null,null,null,"Name of the shareholder","PAN of Promoter","Number of the shares held","As a percentage of grand total                 (A) + (B) + (C)","Encumbered  - number of shares","As  a  percentage","As a percentage of grand total (A) + (B) + (C) of clause (I)(a)","Number of  warrants held","Warrants held as a percentage of total numbers of warrants of the same class ","Number of convertible securities held","Convertible securities as percentage of total numbers of convertible securities of same class ","Total shares (including underlying shares assuming full conversion of warrants and convertible securities) as a percentage of diluted share capital"]
[null,null,null,"(I)"," (II)"," (II) (a)","(III)","(IV)","(V)","(VI)=(V)/(III)*100","(I)(a) (VII)","(VIII)","(IX)","(X)","(XI)","(XII)"]
[null,null,null,null,null,null,null,{"$f":"+IFERROR(IF(G10=\"\",\"\",IF(COUNT(G10,'Table (I)(a)'!$H$137),ROUND(SUM('Promoter & Promoter Group(I)(b)'!G10)/SUM('Table (I)(a)'!$H$137)*100,2),\"\")),\"\")","v":""},null,{"$f":"+IFERROR(IF(I10=\"\",\"\",IF(COUNT(G10,I10),ROUND(SUM(I10)/SUM(G10)*100,2),\"\")),\"\")","v":""},{"$f":"+IFERROR(IF(I10=\"\",\"\",IF(COUNT(G10,'Table (I)(a)'!$H$137),ROUND(SUM(I10)/SUM('Table (I)(a)'!$H$137)*100,2),\"\")),\"\")","v":""},null,{"$f":"+IFERROR(IF(L10=\"\",\"\",IF(COUNT(L10,'Introductory sub-table (I)(a)'!$F$49),ROUND(SUM('Promoter & Promoter Group(I)(b)'!L10)/SUM('Introductory sub-table (I)(a)'!$F$49)*100,2),\"\")),\"\")","v":""},null,{"$f":"+IFERROR(IF(N10=\"\",\"\",IF(COUNT(N10,'Introductory sub-table (I)(a)'!$F$32),ROUND(SUM('Promoter & Promoter Group(I)(b)'!N10)/SUM('Introductory sub-table (I)(a)'!$F$32)*100,2),\"\")),\"\")","v":""},{"$f":"+IFERROR(IF(OR(G10,L10,N10)=0,\"\",IF(COUNT(G10,L10,N10,+'Introductory sub-table (I)(a)'!$F$58),ROUND(SUM(G10,L10,N10)*100/(+'Introductory sub-table (I)(a)'!$F$58),2),\"\")),\"\")","v":""}]
[]
[null,null,null,1,"Sushil Jain","AAGPJ1994C",6300,{"$f":"+IFERROR(IF(G12=\"\",\"\",IF(COUNT(G12,'Table (I)(a)'!$H$137),ROUND(SUM('Promoter & Promoter Group(I)(b)'!G12)/SUM('Table (I)(a)'!$H$137)*100,2),\"\")),\"\")","v":0.08},null,{"$f":"+IFERROR(IF(I12=\"\",\"\",IF(COUNT(G12,I12),ROUND(SUM(I12)/SUM(G12)*100,2),\"\")),\"\")","v":""},{"$f":"+IFERROR(IF(I12=\"\",\"\",IF(COUNT(G12,'Table (I)(a)'!$H$137),ROUND(SUM(I12)/SUM('Table (I)(a)'!$H$137)*100,2),\"\")),\"\")","v":""},null,{"$f":"+IFERROR(IF(L12=\"\",\"\",IF(COUNT(L12,'Introductory sub-table (I)(a)'!$F$49),ROUND(SUM('Promoter & Promoter Group(I)(b)'!L12)/SUM('Introductory sub-table (I)(a)'!$F$49)*100,2),\"\")),\"\")","v":""},null,{"$f":"+IFERROR(IF(N12=\"\",\"\",IF(COUNT(N12,'Introductory sub-table (I)(a)'!$F$32),ROUND(SUM('Promoter & Promoter Group(I)(b)'!N12)/SUM('Introductory sub-table (I)(a)'!$F$32)*100,2),\"\")),\"\")","v":""},{"$f":"+IFERROR(IF(OR(G12,L12,N12)=0,\"\",IF(COUNT(G12,L12,N12,+'Introductory sub-table (I)(a)'!$F$58),ROUND(SUM(G12,L12,N12)*100/(+'Introductory sub-table (I)(a)'!$F$58),2),\"\")),\"\")","v":0.08}]
[null,null,null,2,"Sushil Jain","AAGPJ1994C",682806,{"$f":"+IFERROR(IF(G13=\"\",\"\",IF(COUNT(G13,'Table (I)(a)'!$H$137),ROUND(SUM('Promoter & Promoter Group(I)(b)'!G13)/SUM('Table (I)(a)'!$H$137)*100,2),\"\")),\"\")","v":8.4700000000000006},null,"",{"$f":"+IFERROR(IF(I13=\"\",\"\",IF(COUNT(G13,'Table (I)(a)'!$H$137),ROUND(SUM(I13)/SUM('Table (I)(a)'!$H$137)*100,2),\"\")),\"\")","v":""},null,{"$f":"+IFERROR(IF(L13=\"\",\"\",IF(COUNT(L13,'Introductory sub-table (I)(a)'!$F$49),ROUND(SUM('Promoter & Promoter Group(I)(b)'!L13)/SUM('Introductory sub-table (I)(a)'!$F$49)*100,2),\"\")),\"\")","v":""},null,{"$f":"+IFERROR(IF(N13=\"\",\"\",IF(COUNT(N13,'Introductory sub-table (I)(a)'!$F$32),ROUND(SUM('Promoter & Promoter Group(I)(b)'!N13)/SUM('Introductory sub-table (I)(a)'!$F$32)*100,2),\"\")),\"\")","v":""},{"$f":"+IFERROR(IF(OR(G13,L13,N13)=0,\"\",IF(COUNT(G13,L13,N13,+'Introductory sub-table (I)(a)'!$F$58),ROUND(SUM(G13,L13,N13)*100/(+'Introductory sub-table (I)(a)'!$F$58),2),\"\")),\"\")","v":8.4700000000000006}]
[null,null,null,3,"Akshat Jain","ADVPJ9045J",100,{"$f":"+IFERROR(IF(G14=\"\",\"\",IF(COUNT(G14,'Table (I)(a)'!$H$137),ROUND(SUM('Promoter & Promoter Group(I)(b)'!G14)/SUM('Table (I)(a)'!$H$137)*100,2),\"\")),\"\")","v":0},null,"",{"$f":"+IFERROR(IF(I14=\"\",\"\",IF(COUNT(G14,'Table (I)(a)'!$H$137),ROUND(SUM(I14)/SUM('Table (I)(a)'!$H$137)*100,2),\"\")),\"\")","v":""},null,{"$f":"+IFERROR(IF(L14=\"\",\"\",IF(COUNT(L14,'Introductory sub-table (I)(a)'!$F$49),ROUND(SUM('Promoter & Promoter Group(I)(b)'!L14)/SUM('Introductory sub-table (I)(a)'!$F$49)*100,2),\"\")),\"\")","v":""},null,{"$f":"+IFERROR(IF(N14=\"\",\"\",IF(COUNT(N14,'Introductory sub-table (I)(a)'!$F$32),ROUND(SUM('Promoter & Promoter Group(I)(b)'!N14)/SUM('Introductory sub-table (I)(a)'!$F$32)*100,2),\"\")),\"\")","v":""},{"$f":"+IFERROR(IF(OR(G14,L14,N14)=0,\"\",IF(COUNT(G14,L14,N14,+'Introductory sub-table (I)(a)'!$F$58),ROUND(SUM(G14,L14,N14)*100/(+'Introductory sub-table (I)(a)'!$F$58),2),\"\")),\"\")","v":0}]
[null,null,null,4,"Sushil Jain HUF","AAAHS7757Q",182600,{"$f":"+IFERROR(IF(G15=\"\",\"\",IF(COUNT(G15,'Table (I)(a)'!$H$137),ROUND(SUM('Promoter & Promoter Group(I)(b)'!G15)/SUM('Table (I)(a)'!$H$137)*100,2),\"\")),\"\")","v":2.27},null,"",{"$f":"+IFERROR(IF(I15=\"\",\"\",IF(COUNT(G15,'Table (I)(a)'!$H$137),ROUND(SUM(I15)/SUM('Table (I)(a)'!$H$137)*100,2),\"\")),\"\")","v":""},null,{"$f":"+IFERROR(IF(L15=\"\",\"\",IF(COUNT(L15,'Introductory sub-table (I)(a)'!$F$49),ROUND(SUM('Promoter & Promoter Group(I)(b)'!L15)/SUM('Introductory sub-table (I)(a)'!$F$49)*100,2),\"\")),\"\")","v":""},null,{"$f":"+IFERROR(IF(N15=\"\",\"\",IF(COUNT(N15,'Introductory sub-table (I)(a)'!$F$32),ROUND(SUM('Promoter & Promoter Group(I)(b)'!N15)/SUM('Introductory sub-table (I)(a)'!$F$32)*100,2),\"\")),\"\")","v":""},{"$f":"+IFERROR(IF(OR(G15,L15,N15)=0,\"\",IF(COUNT(G15,L15,N15,+'Introductory sub-table (I)(a)'!$F$58),ROUND(SUM(G15,L15,N15)*100/(+'Introductory sub-table (I)(a)'!$F$58),2),\"\")),\"\")","v":2.27}]
[null,null,null,5,"Aashima Jain","AIVPJ0936N",40000,{"$f":"+IFERROR(IF(G16=\"\",\"\",IF(COUNT(G16,'Table (I)(a)'!$H$137),ROUND(SUM('Promoter & Promoter Group(I)(b)'!G16)/SUM('Table (I)(a)'!$H$137)*100,2),\"\")),\"\")","v":0.5},null,"",{"$f":"+IFERROR(IF(I16=\"\",\"\",IF(COUNT(G16,'Table (I)(a)'!$H$137),ROUND(SUM(I16)/SUM('Table (I)(a)'!$H$137)*100,2),\"\")),\"\")","v":""},null,{"$f":"+IFERROR(IF(L16=\"\",\"\",IF(COUNT(L16,'Introductory sub-table (I)(a)'!$F$49),ROUND(SUM('Promoter & Promoter Group(I)(b)'!L16)/SUM('Introductory sub-table (I)(a)'!$F$49)*100,2),\"\")),\"\")","v":""},null,{"$f":"+IFERROR(IF(N16=\"\",\"\",IF(COUNT(N16,'Introductory sub-table (I)(a)'!$F$32),ROUND(SUM('Promoter & Promoter Group(I)(b)'!N16)/SUM('Introductory sub-table (I)(a)'!$F$32)*100,2),\"\")),\"\")","v":""},{"$f":"+IFERROR(IF(OR(G16,L16,N16)=0,\"\",IF(COUNT(G16,L16,N16,+'Introductory sub-table (I)(a)'!$F$58),ROUND(SUM(G16,L16,N16)*100/(+'Introductory sub-table (I)(a)'!$F$58),2),\"\")),\"\")","v":0.5}]
[null,null,null,6,"Devanshi Jain","AJUPB9880G",100,{"$f":"+IFERROR(IF(G17=\"\",\"\",IF(COUNT(G17,'Table (I)(a)'!$H$137),ROUND(SUM('Promoter & Promoter Group(I)(b)'!G17)/SUM('Table (I)(a)'!$H$137)*100,2),\"\")),\"\")","v":0},null,"",{"$f":"+IFERROR(IF(I17=\"\",\"\",IF(COUNT(G17,'Table (I)(a)'!$H$137),ROUND(SUM(I17)/SUM('Table (I)(a)'!$H$137)*100,2),\"\")),\"\")","v":""},null,{"$f":"+IFERROR(IF(L17=\"\",\"\",IF(COUNT(L17,'Introductory sub-table (I)(a)'!$F$49),ROUND(SUM('Promoter & Promoter Group(I)(b)'!L17)/SUM('Introductory sub-table (I)(a)'!$F$49)*100,2),\"\")),\"\")","v":""},null,{"$f":"+IFERROR(IF(N17=\"\",\"\",IF(COUNT(N17,'Introductory sub-table (I)(a)'!$F$32),ROUND(SUM('Promoter & Promoter Group(I)(b)'!N17)/SUM('Introductory sub-table (I)(a)'!$F$32)*100,2),\"\")),\"\")","v":""},{"$f":"+IFERROR(IF(OR(G17,L17,N17)=0,\"\",IF(COUNT(G17,L17,N17,+'Introductory sub-table (I)(a)'!$F$58),ROUND(SUM(G17,L17,N17)*100/(+'Introductory sub-table (I)(a)'!$F$58),2),\"\")),\"\")","v":0}]
[null,null,null,7,"Nandita Jain","ACVPJ9513A",134000,{"$f":"+IFERROR(IF(G18=\"\",\"\",IF(COUNT(G18,'Table (I)(a)'!$H$137),ROUND(SUM('Promoter & Promoter Group(I)(b)'!G18)/SUM('Table (I)(a)'!$H$137)*100,2),\"\")),\"\")","v":1.66},null,"",{"$f":"+IFERROR(IF(I18=\"\",\"\",IF(COUNT(G18,'Table (I)(a)'!$H$137),ROUND(SUM(I18)/SUM('Table (I)(a)'!$H$137)*100,2),\"\")),\"\")","v":""},null,{"$f":"+IFERROR(IF(L18=\"\",\"\",IF(COUNT(L18,'Introductory sub-table (I)(a)'!$F$49),ROUND(SUM('Promoter & Promoter Group(I)(b)'!L18)/SUM('Introductory sub-table (I)(a)'!$F$49)*100,2),\"\")),\"\")","v":""},null,{"$f":"+IFERROR(IF(N18=\"\",\"\",IF(COUNT(N18,'Introductory sub-table (I)(a)'!$F$32),ROUND(SUM('Promoter & Promoter Group(I)(b)'!N18)/SUM('Introductory sub-table (I)(a)'!$F$32)*100,2),\"\")),\"\")","v":""},{"$f":"+IFERROR(IF(OR(G18,L18,N18)=0,\"\",IF(COUNT(G18,L18,N18,+'Introductory sub-table (I)(a)'!$F$58),ROUND(SUM(G18,L18,N18)*100/(+'Introductory sub-table (I)(a)'!$F$58),2),\"\")),\"\")","v":1.66}]
[null,null,null,8,"Akshat Jain","ADVPJ9045J",132500,{"$f":"+IFERROR(IF(G19=\"\",\"\",IF(COUNT(G19,'Table (I)(a)'!$H$137),ROUND(SUM('Promoter & Promoter Group(I)(b)'!G19)/SUM('Table (I)(a)'!$H$137)*100,2),\"\")),\"\")","v":1.64},null,"",{"$f":"+IFERROR(IF(I19=\"\",\"\",IF(COUNT(G19,'Table (I)(a)'!$H$137),ROUND(SUM(I19)/SUM('Table (I)(a)'!$H$137)*100,2),\"\")),\"\")","v":""},null,{"$f":"+IFERROR(IF(L19=\"\",\"\",IF(COUNT(L19,'Introductory sub-table (I)(a)'!$F$49),ROUND(SUM('Promoter & Promoter Group(I)(b)'!L19)/SUM('Introductory sub-table (I)(a)'!$F$49)*100,2),\"\")),\"\")","v":""},null,{"$f":"+IFERROR(IF(N19=\"\",\"\",IF(COUNT(N19,'Introductory sub-table (I)(a)'!$F$32),ROUND(SUM('Promoter & Promoter Group(I)(b)'!N19)/SUM('Introductory sub-table (I)(a)'!$F$32)*100,2),\"\")),\"\")","v":""},{"$f":"+IFERROR(IF(OR(G19,L19,N19)=0,\"\",IF(COUNT(G19,L19,N19,+'Introductory sub-table (I)(a)'!$F$58),ROUND(SUM(G19,L19,N19)*100/(+'Introductory sub-table (I)(a)'!$F$58),2),\"\")),\"\")","v":1.64}]
[null,null,null,9,"Mahavir Phototech Pvt. Ltd.","AAACM2293C",915561,{"$f":"+IFERROR(IF(G20=\"\",\"\",IF(COUNT(G20,'Table (I)(a)'!$H$137),ROUND(SUM('Promoter & Promoter Group(I)(b)'!G20)/SUM('Table (I)(a)'!$H$137)*100,2),\"\")),\"\")","v":11.36},null,"",{"$f":"+IFERROR(IF(I20=\"\",\"\",IF(COUNT(G20,'Table (I)(a)'!$H$137),ROUND(SUM(I20)/SUM('Table (I)(a)'!$H$137)*100,2),\"\")),\"\")","v":""},null,{"$f":"+IFERROR(IF(L20=\"\",\"\",IF(COUNT(L20,'Introductory sub-table (I)(a)'!$F$49),ROUND(SUM('Promoter & Promoter Group(I)(b)'!L20)/SUM('Introductory sub-table (I)(a)'!$F$49)*100,2),\"\")),\"\")","v":""},null,{"$f":"+IFERROR(IF(N20=\"\",\"\",IF(COUNT(N20,'Introductory sub-table (I)(a)'!$F$32),ROUND(SUM('Promoter & Promoter Group(I)(b)'!N20)/SUM('Introductory sub-table (I)(a)'!$F$32)*100,2),\"\")),\"\")","v":""},{"$f":"+IFERROR(IF(OR(G20,L20,N20)=0,\"\",IF(COUNT(G20,L20,N20,+'Introductory sub-table (I)(a)'!$F$58),ROUND(SUM(G20,L20,N20)*100/(+'Introductory sub-table (I)(a)'!$F$58),2),\"\")),\"\")","v":11.36}]
[null,null,null,10,"Triveni Securities Pvt. Ltd.","AAACT0367J",631509,{"$f":"+IFERROR(IF(G21=\"\",\"\",IF(COUNT(G21,'Table (I)(a)'!$H$137),ROUND(SUM('Promoter & Promoter Group(I)(b)'!G21)/SUM('Table (I)(a)'!$H$137)*100,2),\"\")),\"\")","v":7.84},null,"",{"$f":"+IFERROR(IF(I21=\"\",\"\",IF(COUNT(G21,'Table (I)(a)'!$H$137),ROUND(SUM(I21)/SUM('Table (I)(a)'!$H$137)*100,2),\"\")),\"\")","v":""},null,{"$f":"+IFERROR(IF(L21=\"\",\"\",IF(COUNT(L21,'Introductory sub-table (I)(a)'!$F$49),ROUND(SUM('Promoter & Promoter Group(I)(b)'!L21)/SUM('Introductory sub-table (I)(a)'!$F$49)*100,2),\"\")),\"\")","v":""},null,{"$f":"+IFERROR(IF(N21=\"\",\"\",IF(COUNT(N21,'Introductory sub-table (I)(a)'!$F$32),ROUND(SUM('Promoter & Promoter Group(I)(b)'!N21)/SUM('Introductory sub-table (I)(a)'!$F$32)*100,2),\"\")),\"\")","v":""},{"$f":"+IFERROR(IF(OR(G21,L21,N21)=0,\"\",IF(COUNT(G21,L21,N21,+'Introductory sub-table (I)(a)'!$F$58),ROUND(SUM(G21,L21,N21)*100/(+'Introductory sub-table (I)(a)'!$F$58),2),\"\")),\"\")","v":7.84}]
[null,null,null,11,"Alankar Securities Pvt. Ltd.","AAACA0772C",807854,{"$f":"+IFERROR(IF(G22=\"\",\"\",IF(COUNT(G22,'Table (I)(a)'!$H$137),ROUND(SUM('Promoter & Promoter Group(I)(b)'!G22)/SUM('Table (I)(a)'!$H$137)*100,2),\"\")),\"\")","v":10.02},null,"",{"$f":"+IFERROR(IF(I22=\"\",\"\",IF(COUNT(G22,'Table (I)(a)'!$H$137),ROUND(SUM(I22)/SUM('Table (I)(a)'!$H$137)*100,2),\"\")),\"\")","v":""},null,{"$f":"+IFERROR(IF(L22=\"\",\"\",IF(COUNT(L22,'Introductory sub-table (I)(a)'!$F$49),ROUND(SUM('Promoter & Promoter Group(I)(b)'!L22)/SUM('Introductory sub-table (I)(a)'!$F$49)*100,2),\"\")),\"\")","v":""},null,{"$f":"+IFERROR(IF(N22=\"\",\"\",IF(COUNT(N22,'Introductory sub-table (I)(a)'!$F$32),ROUND(SUM('Promoter & Promoter Group(I)(b)'!N22)/SUM('Introductory sub-table (I)(a)'!$F$32)*100,2),\"\")),\"\")","v":""},{"$f":"+IFERROR(IF(OR(G22,L22,N22)=0,\"\",IF(COUNT(G22,L22,N22,+'Introductory sub-table (I)(a)'!$F$58),ROUND(SUM(G22,L22,N22)*100/(+'Introductory sub-table (I)(a)'!$F$58),2),\"\")),\"\")","v":10.02}]
[null,null,null,12,"ABC Commercial Company Ltd.","AAECA9197M",474000,{"$f":"+IFERROR(IF(G23=\"\",\"\",IF(COUNT(G23,'Table (I)(a)'!$H$137),ROUND(SUM('Promoter & Promoter Group(I)(b)'!G23)/SUM('Table (I)(a)'!$H$137)*100,2),\"\")),\"\")","v":5.88},null,"",{"$f":"+IFERROR(IF(I23=\"\",\"\",IF(COUNT(G23,'Table (I)(a)'!$H$137),ROUND(SUM(I23)/SUM('Table (I)(a)'!$H$137)*100,2),\"\")),\"\")","v":""},null,{"$f":"+IFERROR(IF(L23=\"\",\"\",IF(COUNT(L23,'Introductory sub-table (I)(a)'!$F$49),ROUND(SUM('Promoter & Promoter Group(I)(b)'!L23)/SUM('Introductory sub-table (I)(a)'!$F$49)*100,2),\"\")),\"\")","v":""},null,{"$f":"+IFERROR(IF(N23=\"\",\"\",IF(COUNT(N23,'Introductory sub-table (I)(a)'!$F$32),ROUND(SUM('Promoter & Promoter Group(I)(b)'!N23)/SUM('Introductory sub-table (I)(a)'!$F$32)*100,2),\"\")),\"\")","v":""},{"$f":"+IFERROR(IF(OR(G23,L23,N23)=0,\"\",IF(COUNT(G23,L23,N23,+'Introductory sub-table (I)(a)'!$F$58),ROUND(SUM(G23,L23,N23)*100/(+'Introductory sub-table (I)(a)'!$F$58),2),\"\")),\"\")","v":5.88}]
[]
[null,null,null,"Total",null,null,{"$f":"+IFERROR(IF(COUNT(G11:G24),ROUND(SUM(G11:G24),0),\"\"),\"\")","v":4007330},{"$f":"+IFERROR(IF(G25=\"\",\"\",IF(COUNT(G25,'Table (I)(a)'!$H$137),ROUND(SUM('Promoter & Promoter Group(I)(b)'!G25)/SUM('Table (I)(a)'!$H$137)*100,2),\"\")),\"\")","v":49.73},{"$f":"+IFERROR(IF(COUNT(I11:I24),ROUND(SUM(I11:I24),0),\"\"),\"\")","v":""},{"$f":"+IFERROR(IF(I25=\"\",\"\",IF(COUNT(G25,I25),ROUND(SUM(I25)/SUM(G25)*100,2),\"\")),\"\")","v":""},{"$f":"+IFERROR(IF(I25=\"\",\"\",IF(COUNT(G25,'Table (I)(a)'!$H$137),ROUND(SUM(I25)/SUM('Table (I)(a)'!$H$137)*100,2),\"\")),\"\")","v":""},{"$f":"+IFERROR(IF(COUNT(L11:L24),ROUND(SUM(L11:L24),0),\"\"),\"\")","v":""},{"$f":"+IFERROR(IF(L25=\"\",\"\",IF(COUNT(L25,'Introductory sub-table (I)(a)'!$F$49),ROUND(SUM('Promoter & Promoter Group(I)(b)'!L25)/SUM('Introductory sub-table (I)(a)'!$F$49)*100,2),\"\")),\"\")","v":""},{"$f":"+IFERROR(IF(COUNT(N11:N24),ROUND(SUM(N11:N24),0),\"\"),\"\")","v":""},{"$f":"+IFERROR(IF(N25=\"\",\"\",IF(COUNT(N25,'Introductory sub-table (I)(a)'!$F$15),ROUND(SUM('Promoter & Promoter Group(I)(b)'!N25)/SUM('Introductory sub-table (I)(a)'!$F$15)*100,2),\"\")),\"\")","v":""},{"$f":"+IFERROR(IF(OR(G25,L25,N25)=0,\"\",IF(COUNT(G25,L25,N25,+'Introductory sub-table (I)(a)'!$F$58),ROUND(SUM(G25,L25,N25)*100/(+'Introductory sub-table (I)(a)'!$F$58),2),\"\")),\"\")","v":49.73}]

{"sheet":"Public (I)(c)(i)","index":5,"n_rows":15,"n_cols":18,"rows_kept":15,"cut":false,"hidden":false,"merged":[[10,3,10,12],[14,3,14,5],[3,3,3,12],[4,3,4,9],[4,11,4,12],[5,3,5,11],[6,3,7,3],[6,6,6,7],[6,8,6,9],[6,10,6,11]]}
[null,null,null,null,null,null,null,null,2,null,null,null,null,null,null,null,null,"Yes"]
[null,null,null,null,null,null,null,null,null,null,null,null,null,null,null,null,null,"No"]
[]
[null,null,null,"(I) (c) (i) Statement showing holding of securities (including shares,warrants,convertible securities) of persons belonging to the category \"Public\" and holding more than one percentage of the total number of shares"]
[null,null,null,"Whether any security held by public having more than one percentage of total number of shares",null,null,null,null,null,null,"Yes"]
[null,null,null,"Disclosure of notes on holding of securities of persons belonging to the category \"Public\" and holding more than one percentage of the total number of shares"]
[null,null,null,"Sr. No. ",null,null,"Details of Shares held",null,"Details of warrants",null,"Details of convertible securities"]
[null,null,null,null,"Name  of  the  shareholder ","PAN  of   Shareholder","Number of the   shares  held ","Shares as percentage of total number of shares {i.e, Grand Total (A) + (B) + (C) indicated in statement at para (I) (a) above}","Number  of   warrants held","Warrants  held  as a percentage  of total numbers of warrants of  the same class ","Number  of     convertible      securities  held","Convertible  securities  as  percentage of  total numbers of  convertible  securities of  same class ","Total shares (including  underlying shares assuming full  conversion of warrants and convertible  securities) as a percentage of diluted  share capital "]
[null,null,null,"(I)"," (II)"," (II) (a)","(III)","(IV)","(V)","(VI)","(I)(a) (VII)","(VIII)","(IX)"]
[null,null,null,null,null,null,null,{"$f":"+IFERROR(IF(G10=\"\",\"\",IF(COUNT(G10,'Table (I)(a)'!$H$137),ROUND((SUM(G10)/SUM('Table (I)(a)'!$H$137))*100,2),\"\")),\"\")","v":""},null,{"$f":"+IFERROR(IF(I10=\"\",\"\",IF(COUNT(I10,'Introductory sub-table (I)(a)'!$F$56),ROUND(SUM(+I10)/SUM('Introductory sub-table (I)(a)'!$F$56)*100,2),\"\")),\"\")","v":""},null,{"$f":"+IFERROR(IF(K10=\"\",\"\",IF(COUNT(K10,'Introductory sub-table (I)(a)'!$F$39),ROUND(SUM(+K10)/SUM('Introductory sub-table (I)(a)'!$F$39)*100,2),\"\")),\"\")","v":""},{"$f":"+IFERROR(IF(OR(G10,I10,K10)=0,\"\",IF(COUNT(G10,I10,K10,+'Introductory sub-table (I)(a)'!$F$58),ROUND(SUM(G10,I10,K10)*100/(+'Introductory sub-table (I)(a)'!$F$58),2),\"\")),\"\")","v":""}]
[]
[null,null,null,1,"Dinero Wealth Advisors Pvt. Ltd.","AADCV5809Q",245539,{"$f":"+IFERROR(IF(G12=\"\",\"\",IF(COUNT(G12,'Table (I)(a)'!$H$137),ROUND((SUM(G12)/SUM('Table (I)(a)'!$H$137))*100,2),\"\")),\"\")","v":3.05},null,{"$f":"+IFERROR(IF(I12=\"\",\"\",IF(COUNT(I12,'Introductory sub-table (I)(a)'!$F$56),ROUND(SUM(+I12)/SUM('Introductory sub-table (I)(a)'!$F$56)*100,2),\"\")),\"\")","v":""},null,{"$f":"+IFERROR(IF(K12=\"\",\"\",IF(COUNT(K12,'Introductory sub-table (I)(a)'!$F$39),ROUND(SUM(+K12)/SUM('Introductory sub-table (I)(a)'!$F$39)*100,2),\"\")),\"\")","v":""},{"$f":"+IFERROR(IF(OR(G12,I12,K12)=0,\"\",IF(COUNT(G12,I12,K12,+'Introductory sub-table (I)(a)'!$F$58),ROUND(SUM(G12,I12,K12)*100/(+'Introductory sub-table (I)(a)'!$F$58),2),\"\")),\"\")","v":3.05}]
[null,null,null,2,"Sangeetha S","AIJPS3739F",141460,{"$f":"+IFERROR(IF(G13=\"\",\"\",IF(COUNT(G13,'Table (I)(a)'!$H$137),ROUND((SUM(G13)/SUM('Table (I)(a)'!$H$137))*100,2),\"\")),\"\")","v":1.76},null,{"$f":"+IFERROR(IF(I13=\"\",\"\",IF(COUNT(I13,'Introductory sub-table (I)(a)'!$F$56),ROUND(SUM(+I13)/SUM('Introductory sub-table (I)(a)'!$F$56)*100,2),\"\")),\"\")","v":""},null,{"$f":"+IFERROR(IF(K13=\"\",\"\",IF(COUNT(K13,'Introductory sub-table (I)(a)'!$F$39),ROUND(SUM(+K13)/SUM('Introductory sub-table (I)(a)'!$F$39)*100,2),\"\")),\"\")","v":""},{"$f":"+IFERROR(IF(OR(G13,I13,K13)=0,\"\",IF(COUNT(G13,I13,K13,+'Introductory sub-table (I)(a)'!$F$58),ROUND(SUM(G13,I13,K13)*100/(+'Introductory sub-table (I)(a)'!$F$58),2),\"\")),\"\")","v":1.76}]
[]
[null,null,null,"Total",null,null,{"$f":"+IFERROR(IF(COUNT(G11:G14),ROUND(SUM(G11:G14),0),\"\"),\"\")","v":386999},{"$f":"+IFERROR(IF(G15=\"\",\"\",IF(COUNT(G15,'Table (I)(a)'!$H$137),ROUND(SUM(G15)/SUM('Table (I)(a)'!$H$137)*100,2),\"\")),\"\")","v":4.8},{"$f":"+IFERROR(IF(COUNT(I11:I14),ROUND(SUM(I11:I14),0),\"\"),\"\")","v":""},{"$f":"+IFERROR(IF(I15=\"\",\"\",IF(COUNT(I15,'Introductory sub-table (I)(a)'!$F$56),ROUND(SUM(+I15)/SUM('Introductory sub-table (I)(a)'!$F$56)*100,2),\"\")),\"\")","v":""},{"$f":"+IFERROR(IF(COUNT(K11:K14),ROUND(SUM(K11:K14),0),\"\"),\"\")","v":""},{"$f":"+IFERROR(IF(K15=\"\",\"\",IF(COUNT(K15,'Introductory sub-table (I)(a)'!$F$39),ROUND(SUM(+K15)/SUM('Introductory sub-table (I)(a)'!$F$39)*100,2),\"\")),\"\")","v":""},{"$f":"+IFERROR(IF(OR(G15,I15,K15)=0,\"\",IF(COUNT(G15,I15,K15,+'Introductory sub-table (I)(a)'!$F$58),ROUND(SUM(G15,I15,K15)*100/(+'Introductory sub-table (I)(a)'!$F$58),2),\"\")),\"\")","v":4.8}]

{"sheet":"Public (I)(c)(ii)","index":6,"n_rows":13,"n_cols":18,"rows_kept":13,"cut":false,"hidden":false,"merged":[[12,3,12,5],[3,3,3,12],[4,3,4,9],[4,11,4,12],[5,3,5,11],[6,3,7,3],[6,6,6,7],[6,8,6,9],[6,10,6,11]]}
[null,null,null,null,null,null,null,null,0,null,null,null,null,null,null,null,null,"Yes"]
[null,null,null,null,null,null,null,null,null,null,null,null,null,null,null,null,null,"No"]
[]
[null,null,null,"(I) (c) (ii) Statement showing holding of securities (including shares,warrants,convertible securities) of persons (together with PAC) belonging to the category \"Public\" and holding more than five percentage of the total number of shares of the company"]
[null,null,null,"Whether any person together with PAC belonging to category Public holding more than five percentage of total number of shares ",null,null,null,null,null,null,"No"]
[null,null,null,"Disclosure of notes on holding of securities of persons (together with PAC) belonging to the category \"Public\" and holding more than five percentage of the total number of shares of the company"]
[null,null,null,"Sr. No. ",null,null,"Details of Shares held",null,"Details of warrants",null,"Details of convertible securities"]
[null,null,null,null,"Name  of  the shareholder","PAN  of  Shareholder ","  Number  of  the shares held","Shares as percentage of total number of shares {i.e, Grand Total (A)  +  (B)  +  (C) indicated in statement at para (I) (a) above}","  Number of warrants          held","  Warrants held as a percentage  of  total numbers of warrants of the same class ","  Number                    of convertible securities held","  Convertible securities as percentage  of  total numbers of convertible securities of same class ","  Total shares  (including underlying shares assuming full conversion of warrants and convertible securities) as a percentage of diluted share capital"]
[null,null,null,"(I)"," (II)"," (II) (a)","(III)","(IV)","(V)","(VI)","(I)(a) (VII)","(VIII)","(IX)"]
[null,null,null,null,null,null,null,{"$f":"+IFERROR(IF(G10=\"\",\"\",IF(COUNT(G10,'Table (I)(a)'!$H$137),ROUND(SUM(G10)/SUM('Table (I)(a)'!$H$137)*100,2),\"\")),\"\")","v":""},null,{"$f":"+IFERROR(IF(I10=\"\",\"\",IF(COUNT(I10,'Introductory sub-table (I)(a)'!$F$56),ROUND(SUM(+I10)/SUM('Introductory sub-table (I)(a)'!$F$56)*100,2),\"\")),\"\")","v":""},null,{"$f":"+IFERROR(IF(K10=\"\",\"\",IF(COUNT(K10,'Introductory sub-table (I)(a)'!$F$39),ROUND(SUM(K10)/SUM('Introductory sub-table (I)(a)'!$F$39)*100,2),\"\")),\"\")","v":""},{"$f":"+IFERROR(IF(OR(G10,I10,K10)=0,\"\",IF(COUNT(G10,I10,K10,+'Introductory sub-table (I)(a)'!$F$58),ROUND(SUM(G10,I10,K10)*100/(+'Introductory sub-table (I)(a)'!$F$58),2),\"\")),\"\")","v":""}]
[]
[]
[null,null,null,"Total",null,null,{"$f":"+IFERROR(IF(COUNT(G11:G12),ROUND(SUM(G11:G12),0),\"\"),\"\")","v":""},{"$f":"+IFERROR(IF(G13=\"\",\"\",IF(COUNT(G13,'Table (I)(a)'!$H$137),ROUND(SUM(G13)/SUM('Table (I)(a)'!$H$137)*100,2),\"\")),\"\")","v":""},{"$f":"+IFERROR(IF(COUNT(I11:I12),ROUND(SUM(I11:I12),0),\"\"),\"\")","v":""},{"$f":"+IFERROR(IF(I13=\"\",\"\",IF(COUNT(I13,'Introductory sub-table (I)(a)'!$F$56),ROUND(SUM(+I13)/SUM('Introductory sub-table (I)(a)'!$F$56)*100,2),\"\")),\"\")","v":""},{"$f":"+IFERROR(IF(COUNT(K11:K12),ROUND(SUM(K11:K12),0),\"\"),\"\")","v":""},{"$f":"+IFERROR(IF(K13=\"\",\"\",IF(COUNT(K13,'Introductory sub-table (I)(a)'!$F$39),ROUND(SUM(K13)/SUM('Introductory sub-table (I)(a)'!$F$39)*100,2),\"\")),\"\")","v":""},{"$f":"+IFERROR(IF(OR(G13,I13,K13)=0,\"\",IF(COUNT(G13,I13,K13,+'Introductory sub-table (I)(a)'!$F$58),ROUND(SUM(G13,I13,K13)*100/(+'Introductory sub-table (I)(a)'!$F$58),2),\"\")),\"\")","v":""}]

{"sheet":"Locked-in shares (I)(d)","index":7,"n_rows":12,"n_cols":15,"rows_kept":12,"cut":false,"hidden":false,"merged":[[11,3,11,5],[3,3,3,8],[4,3,4,7],[5,3,5,7],[9,3,9,8],[10,3,10,5]]}
[null,null,null,null,null,null,0]
[]
[null,null,null,null,null,null,null,null,null,null,null,null,null,"Promoter","Yes"]
[null,null,null,"(I) (d) Statement showing details of locked-in shares",null,null,null,null,null,null,null,null,null,"Promoter Group","No"]
[null,null,null,"Whether company has shares locked in",null,null,null,null,"No",null,null,null,null,"Public"]
[null,null,null,"Disclosure of notes on locked-in shares"]
[null,null,null,"Sr. No.","Name  of the Shareholder","PAN of Shareholder","Number of locked-in shares","Locked-in-shares as a percentage of total number of shares held by {i.e., Grand Total (A) + (B) + (C) indicated in Statement at para (I)(a) above}","Promoter / Promoter Group / Public"]
[null,null,null,"(I)"," (II)"," (II)(a)","(III)","(IV)","(V)"]
[null,null,null,null,null,null,null,{"$f":"+IFERROR(IF(G9=\"\",\"\",IF(COUNT(G9,'Table (I)(a)'!$H$137),ROUND(SUM(G9)/SUM('Table (I)(a)'!$H$137)*100,2),\"\")),\"\")","v":""}]
[]
[null,null,null,null,null,null,null,null,"Public"]
[null,null,null,"Total",null,null,{"$f":"+IFERROR(IF(COUNT(G9:G11),ROUND(SUM(G9:G11),0),\"\"),\"\")","v":""},{"$f":"+IFERROR(IF(G12=\"\",\"\",IF(COUNT(G12,'Table (I)(a)'!$H$137),ROUND(SUM(G12)/SUM('Table (I)(a)'!$H$137)*100,2),\"\")),\"\")","v":""}]

{"sheet":"DRs(II)(a)","index":8,"n_rows":12,"n_cols":8,"rows_kept":12,"cut":false,"hidden":false,"merged":[[4,3,4,7],[5,3,5,6],[10,3,10,4],[11,3,11,4]]}
[null,null,null,null,null,null,0]
[]
[]
[]
[null,null,null,"(II) (a) Statement showing details of Depository Receipts (DRs)"]
[null,null,null,"Disclosure of notes on depository receipts (DRs)"]
[null,null,null,"Sr. No.","Type of outstanding  DRs","Number of outstanding DRs","Number of shares underlying outstanding DRs","Shares underlying outstanding DRs as a percentage of total number of shares {i.e., Grand Total (A) + (B) + (C) indicated in Statement at para (I)(a) above}"]
[null,null,null,"(I)"," (II)","(IV)","(IV)","(V)"]
[null,null,null,null,null,null,null,{"$f":"+IFERROR(IF(G9=\"\",\"\",IF(COUNT(G9,'Table (I)(a)'!$H$137),ROUND(SUM(G9)/SUM('Table (I)(a)'!$H$137)*100,2),\"\")),\"\")","v":""}]
[]
[]
[null,null,null,"Total",null,{"$f":"+IFERROR(IF(COUNT(F10:F11),ROUND(SUM(F10:F11),0),\"\"),\"\")","v":""},{"$f":"+IFERROR(IF(COUNT(G10:G11),ROUND(SUM(G10:G11),0),\"\"),\"\")","v":""},{"$f":"+IFERROR(IF(G12=\"\",\"\",IF(COUNT(G12,'Table (I)(a)'!$H$137),ROUND(SUM(G12)/SUM('Table (I)(a)'!$H$137)*100,2),\"\")),\"\")","v":""}]

{"sheet":"DRs(II)(b)","index":9,"n_rows":12,"n_cols":8,"rows_kept":12,"cut":false,"hidden":false,"merged":[[4,3,4,7],[5,3,5,6],[11,3,11,5]]}
[null,null,null,null,null,null,0]
[]
[]
[]
[null,null,null,"(II) (b) Statement showing holding of Depository Receipts (DRs), where underlying shares held by 'Promoter or Promoter Group' are in excess of one percentage of the total number of shares"]
[null,null,null,"Disclosure of notes of depository receipts (DRs), where underlying shares held by \"Promoter / Promoter Group\" are in excess of one percentage of the total number of shares"]
[null,null,null,"Sr. No.","Name of the DR holder","Type of outstanding DR","Number of shares underlying outstanding   DRs","Shares underlying outstanding  DRs  as  a percentage of total number  of  shares {i.e., Grand Total (A) + (B) + (C) indicated in Statement at para (I)(a) above}"]
[null,null,null,"(I)"," (II)","(IV)","(IV)","(V)"]
[null,null,null,null,null,null,null,{"$f":"+IFERROR(IF(G9=\"\",\"\",IF(COUNT(G9,'Table (I)(a)'!$H$137),ROUND(SUM(G9)/SUM('Table (I)(a)'!$H$137)*100,2),\"\")),\"\")","v":""}]
[]
[]
[null,null,null,"Total",null,null,{"$f":"+IFERROR(IF(COUNT(G9:G11),ROUND(SUM(G9:G11),0),\"\"),\"\")","v":""},{"$f":"+IFERROR(IF(G12=\"\",\"\",IF(COUNT(G12,'Table (I)(a)'!$H$137),ROUND(SUM(G12)/SUM('Table (I)(a)'!$H$137)*100,2),\"\")),\"\")","v":""}]

{"sheet":"Voting (III) (a)","index":10,"n_rows":138,"n_cols":12,"rows_kept":138,"cut":false,"hidden":false,"merged":[[10,4,10,5],[1,3,1,11],[2,3,2,10],[3,3,4,3],[3,4,4,5],[3,6,3,8],[3,10,3,11],[4,9,6,9],[4,10,6,10],[4,11,6,11],[5,4,5,5],[6,4,6,5],[7,4,7,5],[8,4,8,5],[8,9,8,11],[9,4,9,5],[64,3,64,5],[11,4,11,5],[12,4,12,5],[13,4,13,5],[14,4,14,5],[36,3,36,5],[37,3,37,5],[38,4,38,5],[39,4,39,5],[40,4,40,5],[41,4,41,5],[42,4,42,5],[76,4,76,5],[65,3,65,5],[66,3,66,5],[67,4,67,5],[68,4,68,5],[69,4,69,5],[70,4,70,5],[71,4,71,5],[72,4,72,5],[73,4,73,5],[74,4,74,5],[75,4,75,5],[131,3,131,5],[132,3,132,5],[136,3,136,5],[137,3,137,5],[77,4,77,5],[78,4,78,5],[100,3,100,5],[101,3,101,5],[129,3,129,5],[130,3,130,5]]}
[]
[null,null,null,"(III) (a) Statement showing the voting pattern of Shareholders, if more than one class of shares / securities is issued by the issuer."]
[null,null,null,"Disclosure of notes on voting pattern of Shareholders, if more than one class of shares or securities is issued by the issuer"]
[null,null,null,"No","Category of Shareholders ",null,"Number of Voting Rights held",null,null,null,"Total Voting Rights i.e. (VI)"]
[null,null,null,null,null,null,"Class X","Class Y","Class Z","Total Voting Rights (III+IV+V)","As  a \npercentage  of \n(A+B)","As  a \npercentage  of \n(A+B+C)"]
[null,null,null,"(I)","(II)",null,"(III)","(IV)","(V)"]
[null,null,null,1,"Scrip  code"]
[null,null,null,2,"Type of security",null,null,null,null,"(VI)","(VII)","(VIII)"]
[null,null,null,3,"Number of shares per voting rights"]
[null,null,null,"(A)","Shareholding of Promoter and Promoter Group"]
[null,null,null,"(1)","Indian"]
[null,null,null,"(a)","Individuals or Hindu undivided family",null,null,null,null,{"$f":"+IF(COUNT(G12,H12,I12),SUM(G12:I12),\"\")","v":""},{"$f":"+IFERROR(IF(OR(J12=\"\",$J$133=\"\"),\"\",IF(COUNT(J12,$J$133),ROUND((+J12*100/$J$133),2),\"\")),0)","v":""},{"$f":"+IFERROR(IF(OR(J12=\"\",$J$138=\"\"),\"\",IF(COUNT(J12,$J$138),ROUND((+J12*100/$J$138),2),\"\")),0)","v":""}]
[null,null,null,"(b)","Central government or State government(s)",null,null,null,null,"","",""]
[null,null,null,"(c)","Bodies corporate",null,null,null,null,"","",""]
[null,null,null,"(d)","Financial institutions or banks",null,null,null,null,"","",""]
[null,null,null,"(e)","Anyother (specify)","Description of Shareholders"]
[null,null,null,1,"Indian shareholders 1",{"$f":"+IFERROR(IF('General Info'!$E$12=\"Yes\",IF(VLOOKUP(E17,'Table (I)(a)'!$E$16:$F$35,2,0)=0,\"\",VLOOKUP(E17,'Table (I)(a)'!$E$16:$F$35,2,0)),\"\"),\"\")","v":""},null,null,null,"","",""]
[null,null,null,2,"Indian shareholders 2",{"$f":"+IFERROR(IF('General Info'!$E$12=\"Yes\",IF(VLOOKUP(E18,'Table (I)(a)'!$E$16:$F$35,2,0)=0,\"\",VLOOKUP(E18,'Table (I)(a)'!$E$16:$F$35,2,0)),\"\"),\"\")","v":""},null,null,null,"","",""]
[null,null,null,3,"Indian shareholders 3",{"$f":"+IFERROR(IF('General Info'!$E$12=\"Yes\",IF(VLOOKUP(E19,'Table (I)(a)'!$E$16:$F$35,2,0)=0,\"\",VLOOKUP(E19,'Table (I)(a)'!$E$16:$F$35,2,0)),\"\"),\"\")","v":""},null,null,null,"","",""]
[null,null,null,4,"Indian shareholders 4",{"$f":"+IFERROR(IF('General Info'!$E$12=\"Yes\",IF(VLOOKUP(E20,'Table (I)(a)'!$E$16:$F$35,2,0)=0,\"\",VLOOKUP(E20,'Table (I)(a)'!$E$16:$F$35,2,0)),\"\"),\"\")","v":""},null,null,null,"","",""]
[null,null,null,5,"Indian shareholders 5",{"$f":"+IFERROR(IF('General Info'!$E$12=\"Yes\",IF(VLOOKUP(E21,'Table (I)(a)'!$E$16:$F$35,2,0)=0,\"\",VLOOKUP(E21,'Table (I)(a)'!$E$16:$F$35,2,0)),\"\"),\"\")","v":""},null,null,null,"","",""]
[null,null,null,6,"Indian shareholders 6",{"$f":"+IFERROR(IF('General Info'!$E$12=\"Yes\",IF(VLOOKUP(E22,'Table (I)(a)'!$E$16:$F$35,2,0)=0,\"\",VLOOKUP(E22,'Table (I)(a)'!$E$16:$F$35,2,0)),\"\"),\"\")","v":""},null,null,null,{"$f":"+IF(COUNT(G22,H22,I22),SUM(G22:I22),\"\")","v":""},"",""]
[null,null,null,7,"Indian shareholders 7",{"$f":"+IFERROR(IF('General Info'!$E$12=\"Yes\",IF(VLOOKUP(E23,'Table (I)(a)'!$E$16:$F$35,2,0)=0,\"\",VLOOKUP(E23,'Table (I)(a)'!$E$16:$F$35,2,0)),\"\"),\"\")","v":""},null,null,null,"","",""]
[null,null,null,8,"Indian shareholders 8",{"$f":"+IFERROR(IF('General Info'!$E$12=\"Yes\",IF(VLOOKUP(E24,'Table (I)(a)'!$E$16:$F$35,2,0)=0,\"\",VLOOKUP(E24,'Table (I)(a)'!$E$16:$F$35,2,0)),\"\"),\"\")","v":""},null,null,null,"","",""]
[null,null,null,9,"Indian shareholders 9",{"$f":"+IFERROR(IF('General Info'!$E$12=\"Yes\",IF(VLOOKUP(E25,'Table (I)(a)'!$E$16:$F$35,2,0)=0,\"\",VLOOKUP(E25,'Table (I)(a)'!$E$16:$F$35,2,0)),\"\"),\"\")","v":""},null,null,null,"","",""]
[null,null,null,10,"Indian shareholders 10",{"$f":"+IFERROR(IF('General Info'!$E$12=\"Yes\",IF(VLOOKUP(E26,'Table (I)(a)'!$E$16:$F$35,2,0)=0,\"\",VLOOKUP(E26,'Table (I)(a)'!$E$16:$F$35,2,0)),\"\"),\"\")","v":""},null,null,null,"","",""]
[null,null,null,11,"Indian shareholders 11",{"$f":"+IFERROR(IF('General Info'!$E$12=\"Yes\",IF(VLOOKUP(E27,'Table (I)(a)'!$E$16:$F$35,2,0)=0,\"\",VLOOKUP(E27,'Table (I)(a)'!$E$16:$F$35,2,0)),\"\"),\"\")","v":""},null,null,null,"","",""]
[null,null,null,12,"Indian shareholders 12",{"$f":"+IFERROR(IF('General Info'!$E$12=\"Yes\",IF(VLOOKUP(E28,'Table (I)(a)'!$E$16:$F$35,2,0)=0,\"\",VLOOKUP(E28,'Table (I)(a)'!$E$16:$F$35,2,0)),\"\"),\"\")","v":""},null,null,null,"","",""]
[null,null,null,13,"Indian shareholders 13",{"$f":"+IFERROR(IF('General Info'!$E$12=\"Yes\",IF(VLOOKUP(E29,'Table (I)(a)'!$E$16:$F$35,2,0)=0,\"\",VLOOKUP(E29,'Table (I)(a)'!$E$16:$F$35,2,0)),\"\"),\"\")","v":""},null,null,null,"","",""]
[null,null,null,14,"Indian shareholders 14",{"$f":"+IFERROR(IF('General Info'!$E$12=\"Yes\",IF(VLOOKUP(E30,'Table (I)(a)'!$E$16:$F$35,2,0)=0,\"\",VLOOKUP(E30,'Table (I)(a)'!$E$16:$F$35,2,0)),\"\"),\"\")","v":""},null,null,null,"","",""]
[null,null,null,15,"Indian shareholders 15",{"$f":"+IFERROR(IF('General Info'!$E$12=\"Yes\",IF(VLOOKUP(E31,'Table (I)(a)'!$E$16:$F$35,2,0)=0,\"\",VLOOKUP(E31,'Table (I)(a)'!$E$16:$F$35,2,0)),\"\"),\"\")","v":""},null,null,null,"","",""]
[null,null,null,16,"Indian shareholders 16",{"$f":"+IFERROR(IF('General Info'!$E$12=\"Yes\",IF(VLOOKUP(E32,'Table (I)(a)'!$E$16:$F$35,2,0)=0,\"\",VLOOKUP(E32,'Table (I)(a)'!$E$16:$F$35,2,0)),\"\"),\"\")","v":""},null,null,null,"","",""]
[null,null,null,17,"Indian shareholders 17",{"$f":"+IFERROR(IF('General Info'!$E$12=\"Yes\",IF(VLOOKUP(E33,'Table (I)(a)'!$E$16:$F$35,2,0)=0,\"\",VLOOKUP(E33,'Table (I)(a)'!$E$16:$F$35,2,0)),\"\"),\"\")","v":""},null,null,null,"","",""]
[null,null,null,18,"Indian shareholders 18",{"$f":"+IFERROR(IF('General Info'!$E$12=\"Yes\",IF(VLOOKUP(E34,'Table (I)(a)'!$E$16:$F$35,2,0)=0,\"\",VLOOKUP(E34,'Table (I)(a)'!$E$16:$F$35,2,0)),\"\"),\"\")","v":""},null,null,null,"","",""]
[null,null,null,19,"Indian shareholders 19",{"$f":"+IFERROR(IF('General Info'!$E$12=\"Yes\",IF(VLOOKUP(E35,'Table (I)(a)'!$E$16:$F$35,2,0)=0,\"\",VLOOKUP(E35,'Table (I)(a)'!$E$16:$F$35,2,0)),\"\"),\"\")","v":""},null,null,null,"","",""]
[null,null,null,20,"Indian shareholders 20",{"$f":"+IFERROR(IF('General Info'!$E$12=\"Yes\",IF(VLOOKUP(E36,'Table (I)(a)'!$E$16:$F$35,2,0)=0,\"\",VLOOKUP(E36,'Table (I)(a)'!$E$16:$F$35,2,0)),\"\"),\"\")","v":""},null,null,null,"","",""]
[null,null,null,"Total  Others",null,null,{"$f":"+IF(COUNT(G17:G21),ROUND(SUM(G17:G36),0),\"\")","v":""},{"$f":"+IF(COUNT(H17:H21),ROUND(SUM(H17:H36),0),\"\")","v":""},{"$f":"+IF(COUNT(I17:I21),ROUND(SUM(I17:I36),0),\"\")","v":""},{"$f":"+IF(COUNT(J17:J21),ROUND(SUM(J17:J36),0),\"\")","v":""},"",""]
[null,null,null,"Sub Total (A) (1)",null,null,{"$f":"+IF(COUNT(G12:G15,G37),ROUND(SUM(G12:G15,G37),0),\"\")","v":""},"","","","",""]
[null,null,null,"(2)","Foreign"]
[null,null,null,"(a)","Non-resident individuals or foreign individuals ",null,null,null,null,{"$f":"+IF(COUNT(G40,H40,I40),SUM(G40:I40),\"\")","v":""},{"$f":"+IFERROR(IF(OR(J40=\"\",$J$133=\"\"),\"\",IF(COUNT(J40,$J$133),ROUND((+J40*100/$J$133),2),\"\")),0)","v":""},{"$f":"+IFERROR(IF(OR(J40=\"\",$J$138=\"\"),\"\",IF(COUNT(J40,$J$138),ROUND((+J40*100/$J$138),2),\"\")),0)","v":""}]
[null,null,null,"(b)","Bodies  corporate",null,null,null,null,"","",""]
[null,null,null,"(c)","Institutions ",null,null,null,null,"","",""]
[null,null,null,"(d)","Qualified foreign investor",null,null,null,null,"","",""]
[null,null,null,"(e)","Anyother (specify)","Description of Shareholders"]
[null,null,null,1,"Foreign Shareholders 1",{"$f":"+IFERROR(IF('General Info'!$E$12=\"Yes\",IF(VLOOKUP(E45,'Table (I)(a)'!$E$44:$F$63,2,0)=0,\"\",VLOOKUP(E45,'Table (I)(a)'!$E$44:$F$63,2,0)),\"\"),\"\")","v":""},null,null,null,{"$f":"+IF(COUNT(G45,H45,I45),SUM(G45:I45),\"\")","v":""},"",""]
[null,null,null,2,"Foreign Shareholders 2",{"$f":"+IFERROR(IF('General Info'!$E$12=\"Yes\",IF(VLOOKUP(E46,'Table (I)(a)'!$E$44:$F$63,2,0)=0,\"\",VLOOKUP(E46,'Table (I)(a)'!$E$44:$F$63,2,0)),\"\"),\"\")","v":""},null,null,null,"","",""]
[null,null,null,3,"Foreign Shareholders 3",{"$f":"+IFERROR(IF('General Info'!$E$12=\"Yes\",IF(VLOOKUP(E47,'Table (I)(a)'!$E$44:$F$63,2,0)=0,\"\",VLOOKUP(E47,'Table (I)(a)'!$E$44:$F$63,2,0)),\"\"),\"\")","v":""},null,null,null,"","",""]
[null,null,null,4,"Foreign Shareholders 4",{"$f":"+IFERROR(IF('General Info'!$E$12=\"Yes\",IF(VLOOKUP(E48,'Table (I)(a)'!$E$44:$F$63,2,0)=0,\"\",VLOOKUP(E48,'Table (I)(a)'!$E$44:$F$63,2,0)),\"\"),\"\")","v":""},null,null,null,"","",""]
[null,null,null,5,"Foreign Shareholders 5",{"$f":"+IFERROR(IF('General Info'!$E$12=\"Yes\",IF(VLOOKUP(E49,'Table (I)(a)'!$E$44:$F$63,2,0)=0,\"\",VLOOKUP(E49,'Table (I)(a)'!$E$44:$F$63,2,0)),\"\"),\"\")","v":""},null,null,null,"","",""]
[null,null,null,6,"Foreign Shareholders 6",{"$f":"+IFERROR(IF('General Info'!$E$12=\"Yes\",IF(VLOOKUP(E50,'Table (I)(a)'!$E$44:$F$63,2,0)=0,\"\",VLOOKUP(E50,'Table (I)(a)'!$E$44:$F$63,2,0)),\"\"),\"\")","v":""},null,null,null,"",{"$f":"+IFERROR(IF(OR(J50=\"\",$J$133=\"\"),\"\",IF(COUNT(J50,$J$133),ROUND((+J50*100/$J$133),2),\"\")),0)","v":""},{"$f":"+IFERROR(IF(OR(J50=\"\",$J$138=\"\"),\"\",IF(COUNT(J50,$J$138),ROUND((+J50*100/$J$138),2),\"\")),0)","v":""}]
[null,null,null,7,"Foreign Shareholders 7",{"$f":"+IFERROR(IF('General Info'!$E$12=\"Yes\",IF(VLOOKUP(E51,'Table (I)(a)'!$E$44:$F$63,2,0)=0,\"\",VLOOKUP(E51,'Table (I)(a)'!$E$44:$F$63,2,0)),\"\"),\"\")","v":""},null,null,null,"",{"$f":"+IFERROR(IF(OR(J51=\"\",$J$133=\"\"),\"\",IF(COUNT(J51,$J$133),ROUND((+J51*100/$J$133),2),\"\")),0)","v":""},{"$f":"+IFERROR(IF(OR(J51=\"\",$J$138=\"\"),\"\",IF(COUNT(J51,$J$138),ROUND((+J51*100/$J$138),2),\"\")),0)","v":""}]
[null,null,null,8,"Foreign Shareholders 8",{"$f":"+IFERROR(IF('General Info'!$E$12=\"Yes\",IF(VLOOKUP(E52,'Table (I)(a)'!$E$44:$F$63,2,0)=0,\"\",VLOOKUP(E52,'Table (I)(a)'!$E$44:$F$63,2,0)),\"\"),\"\")","v":""},null,null,null,"",{"$f":"+IFERROR(IF(OR(J52=\"\",$J$133=\"\"),\"\",IF(COUNT(J52,$J$133),ROUND((+J52*100/$J$133),2),\"\")),0)","v":""},{"$f":"+IFERROR(IF(OR(J52=\"\",$J$138=\"\"),\"\",IF(COUNT(J52,$J$138),ROUND((+J52*100/$J$138),2),\"\")),0)","v":""}]
[null,null,null,9,"Foreign Shareholders 9",{"$f":"+IFERROR(IF('General Info'!$E$12=\"Yes\",IF(VLOOKUP(E53,'Table (I)(a)'!$E$44:$F$63,2,0)=0,\"\",VLOOKUP(E53,'Table (I)(a)'!$E$44:$F$63,2,0)),\"\"),\"\")","v":""},null,null,null,"",{"$f":"+IFERROR(IF(OR(J53=\"\",$J$133=\"\"),\"\",IF(COUNT(J53,$J$133),ROUND((+J53*100/$J$133),2),\"\")),0)","v":""},{"$f":"+IFERROR(IF(OR(J53=\"\",$J$138=\"\"),\"\",IF(COUNT(J53,$J$138),ROUND((+J53*100/$J$138),2),\"\")),0)","v":""}]
[null,null,null,10,"Foreign Shareholders 10",{"$f":"+IFERROR(IF('General Info'!$E$12=\"Yes\",IF(VLOOKUP(E54,'Table (I)(a)'!$E$44:$F$63,2,0)=0,\"\",VLOOKUP(E54,'Table (I)(a)'!$E$44:$F$63,2,0)),\"\"),\"\")","v":""},null,null,null,"",{"$f":"+IFERROR(IF(OR(J54=\"\",$J$133=\"\"),\"\",IF(COUNT(J54,$J$133),ROUND((+J54*100/$J$133),2),\"\")),0)","v":""},{"$f":"+IFERROR(IF(OR(J54=\"\",$J$138=\"\"),\"\",IF(COUNT(J54,$J$138),ROUND((+J54*100/$J$138),2),\"\")),0)","v":""}]
[null,null,null,11,"Foreign Shareholders 11",{"$f":"+IFERROR(IF('General Info'!$E$12=\"Yes\",IF(VLOOKUP(E55,'Table (I)(a)'!$E$44:$F$63,2,0)=0,\"\",VLOOKUP(E55,'Table (I)(a)'!$E$44:$F$63,2,0)),\"\"),\"\")","v":""},null,null,null,"",{"$f":"+IFERROR(IF(OR(J55=\"\",$J$133=\"\"),\"\",IF(COUNT(J55,$J$133),ROUND((+J55*100/$J$133),2),\"\")),0)","v":""},{"$f":"+IFERROR(IF(OR(J55=\"\",$J$138=\"\"),\"\",IF(COUNT(J55,$J$138),ROUND((+J55*100/$J$138),2),\"\")),0)","v":""}]
[null,null,null,12,"Foreign Shareholders 12",{"$f":"+IFERROR(IF('General Info'!$E$12=\"Yes\",IF(VLOOKUP(E56,'Table (I)(a)'!$E$44:$F$63,2,0)=0,\"\",VLOOKUP(E56,'Table (I)(a)'!$E$44:$F$63,2,0)),\"\"),\"\")","v":""},null,null,null,"","",""]
[null,null,null,13,"Foreign Shareholders 13",{"$f":"+IFERROR(IF('General Info'!$E$12=\"Yes\",IF(VLOOKUP(E57,'Table (I)(a)'!$E$44:$F$63,2,0)=0,\"\",VLOOKUP(E57,'Table (I)(a)'!$E$44:$F$63,2,0)),\"\"),\"\")","v":""},null,null,null,"","",""]
[null,null,null,14,"Foreign Shareholders 14",{"$f":"+IFERROR(IF('General Info'!$E$12=\"Yes\",IF(VLOOKUP(E58,'Table (I)(a)'!$E$44:$F$63,2,0)=0,\"\",VLOOKUP(E58,'Table (I)(a)'!$E$44:$F$63,2,0)),\"\"),\"\")","v":""},null,null,null,"","",""]
[null,null,null,15,"Foreign Shareholders 15",{"$f":"+IFERROR(IF('General Info'!$E$12=\"Yes\",IF(VLOOKUP(E59,'Table (I)(a)'!$E$44:$F$63,2,0)=0,\"\",VLOOKUP(E59,'Table (I)(a)'!$E$44:$F$63,2,0)),\"\"),\"\")","v":""},null,null,null,"","",""]
[null,null,null,16,"Foreign Shareholders 16",{"$f":"+IFERROR(IF('General Info'!$E$12=\"Yes\",IF(VLOOKUP(E60,'Table (I)(a)'!$E$44:$F$63,2,0)=0,\"\",VLOOKUP(E60,'Table (I)(a)'!$E$44:$F$63,2,0)),\"\"),\"\")","v":""},null,null,null,"","",""]
[null,null,null,17,"Foreign Shareholders 17",{"$f":"+IFERROR(IF('General Info'!$E$12=\"Yes\",IF(VLOOKUP(E61,'Table (I)(a)'!$E$44:$F$63,2,0)=0,\"\",VLOOKUP(E61,'Table (I)(a)'!$E$44:$F$63,2,0)),\"\"),\"\")","v":""},null,null,null,"","",""]
[null,null,null,18,"Foreign Shareholders 18",{"$f":"+IFERROR(IF('General Info'!$E$12=\"Yes\",IF(VLOOKUP(E62,'Table (I)(a)'!$E$44:$F$63,2,0)=0,\"\",VLOOKUP(E62,'Table (I)(a)'!$E$44:$F$63,2,0)),\"\"),\"\")","v":""},null,null,null,"","",""]
[null,null,null,19,"Foreign Shareholders 19",{"$f":"+IFERROR(IF('General Info'!$E$12=\"Yes\",IF(VLOOKUP(E63,'Table (I)(a)'!$E$44:$F$63,2,0)=0,\"\",VLOOKUP(E63,'Table (I)(a)'!$E$44:$F$63,2,0)),\"\"),\"\")","v":""},null,null,null,"","",""]
[null,null,null,20,"Foreign Shareholders 20",{"$f":"+IFERROR(IF('General Info'!$E$12=\"Yes\",IF(VLOOKUP(E64,'Table (I)(a)'!$E$44:$F$63,2,0)=0,\"\",VLOOKUP(E64,'Table (I)(a)'!$E$44:$F$63,2,0)),\"\"),\"\")","v":""},null,null,null,"","",""]
[null,null,null,"Total Others",null,null,{"$f":"+IF(COUNT(G45:G64),ROUND(SUM(G45:G64),0),\"\")","v":""},{"$f":"+IF(COUNT(H45:H64),ROUND(SUM(H45:H64),0),\"\")","v":""},{"$f":"+IF(COUNT(I45:I64),ROUND(SUM(I45:I64),0),\"\")","v":""},{"$f":"+IF(COUNT(J45:J64),ROUND(SUM(J45:J64),0),\"\")","v":""},"",""]
[null,null,null,"Sub-Total (A) (2)",null,null,{"$f":"+IF(COUNT(G40:G43,G65),ROUND(SUM(G40:G43,G65),0),\"\")","v":""},"","","","",""]
[null,null,null,"Total Shareholding of Promoter and Promoter Group    (A) = (A)(1)+(A)(2)",null,null,{"$f":"+IF(COUNT(G38,G66),ROUND(SUM(G38,G66),0),\"\")","v":""},{"$f":"+IF(COUNT(H38,H66),ROUND(SUM(H38,H66),0),\"\")","v":""},{"$f":"+IF(COUNT(I38,I66),ROUND(SUM(I38,I66),0),\"\")","v":""},{"$f":"+IF(COUNT(J38,J66),ROUND(SUM(J38,J66),0),\"\")","v":""},"",""]
[null,null,null,"(B)","Public Shareholding"]
[null,null,null,"(1)","Institutions"]
[null,null,null,"(a)","Mutual funds or UTI",null,null,null,null,{"$f":"+IF(COUNT(G70,H70,I70),SUM(G70:I70),\"\")","v":""},{"$f":"+IFERROR(IF(OR(J70=\"\",$J$133=\"\"),\"\",IF(COUNT(J70,$J$133),ROUND((+J70*100/$J$133),2),\"\")),0)","v":""},{"$f":"+IFERROR(IF(OR(J70=\"\",$J$138=\"\"),\"\",IF(COUNT(J70,$J$138),ROUND((+J70*100/$J$138),2),\"\")),0)","v":""}]
[null,null,null,"(b)","Financial  institutions or banks",null,null,null,null,"","",""]
[null,null,null,"(c)","Central  government or State government(s)",null,null,null,null,"","",""]
[null,null,null,"(d)","Venture capital funds",null,null,null,null,"","",""]
[null,null,null,"(e)","Insurance companies",null,null,null,null,"","",""]
[null,null,null,"(f)","Foreign institutional investors",null,null,null,null,"","",""]
[null,null,null,"(g)","Foreign venture capital investors",null,null,null,null,"","",""]
[null,null,null,"(h)","Qualified  foreign  investor",null,null,null,null,"","",""]
[null,null,null,"(i)","Nominated investors",null,null,null,null,{"$f":"+IF(COUNT(G78,H78,I78),SUM(G78:I78),\"\")","v":""},"",""]
[null,null,null,"(j)","Market makers",null,null,null,null,"","",""]
[null,null,null,"(k)","Anyother (specify)","Description of Shareholders"]
[null,null,null,1,"Institutions Shareholders 1",{"$f":"+IFERROR(IF('General Info'!$E$12=\"Yes\",IF(VLOOKUP(E81,'Table (I)(a)'!$E$80:$F$99,2,0)=0,\"\",VLOOKUP(E81,'Table (I)(a)'!$E$80:$F$99,2,0)),\"\"),\"\")","v":""},null,null,null,{"$f":"+IF(COUNT(G81,H81,I81),SUM(G81:I81),\"\")","v":""},"",""]
[null,null,null,2,"Institutions Shareholders 2",{"$f":"+IFERROR(IF('General Info'!$E$12=\"Yes\",IF(VLOOKUP(E82,'Table (I)(a)'!$E$80:$F$99,2,0)=0,\"\",VLOOKUP(E82,'Table (I)(a)'!$E$80:$F$99,2,0)),\"\"),\"\")","v":""},null,null,null,"","",""]
[null,null,null,3,"Institutions Shareholders 3",{"$f":"+IFERROR(IF('General Info'!$E$12=\"Yes\",IF(VLOOKUP(E83,'Table (I)(a)'!$E$80:$F$99,2,0)=0,\"\",VLOOKUP(E83,'Table (I)(a)'!$E$80:$F$99,2,0)),\"\"),\"\")","v":""},null,null,null,"","",""]
[null,null,null,4,"Institutions Shareholders 4",{"$f":"+IFERROR(IF('General Info'!$E$12=\"Yes\",IF(VLOOKUP(E84,'Table (I)(a)'!$E$80:$F$99,2,0)=0,\"\",VLOOKUP(E84,'Table (I)(a)'!$E$80:$F$99,2,0)),\"\"),\"\")","v":""},null,null,null,"","",""]
[null,null,null,5,"Institutions Shareholders 5",{"$f":"+IFERROR(IF('General Info'!$E$12=\"Yes\",IF(VLOOKUP(E85,'Table (I)(a)'!$E$80:$F$99,2,0)=0,\"\",VLOOKUP(E85,'Table (I)(a)'!$E$80:$F$99,2,0)),\"\"),\"\")","v":""},null,null,null,"","",""]
[null,null,null,6,"Institutions Shareholders 6",{"$f":"+IFERROR(IF('General Info'!$E$12=\"Yes\",IF(VLOOKUP(E86,'Table (I)(a)'!$E$80:$F$99,2,0)=0,\"\",VLOOKUP(E86,'Table (I)(a)'!$E$80:$F$99,2,0)),\"\"),\"\")","v":""},null,null,null,"","",""]
[null,null,null,7,"Institutions Shareholders 7",{"$f":"+IFERROR(IF('General Info'!$E$12=\"Yes\",IF(VLOOKUP(E87,'Table (I)(a)'!$E$80:$F$99,2,0)=0,\"\",VLOOKUP(E87,'Table (I)(a)'!$E$80:$F$99,2,0)),\"\"),\"\")","v":""},null,null,null,"","",""]
[null,null,null,8,"Institutions Shareholders 8",{"$f":"+IFERROR(IF('General Info'!$E$12=\"Yes\",IF(VLOOKUP(E88,'Table (I)(a)'!$E$80:$F$99,2,0)=0,\"\",VLOOKUP(E88,'Table (I)(a)'!$E$80:$F$99,2,0)),\"\"),\"\")","v":""},null,null,null,"","",""]
[null,null,null,9,"Institutions Shareholders 9",{"$f":"+IFERROR(IF('General Info'!$E$12=\"Yes\",IF(VLOOKUP(E89,'Table (I)(a)'!$E$80:$F$99,2,0)=0,\"\",VLOOKUP(E89,'Table (I)(a)'!$E$80:$F$99,2,0)),\"\"),\"\")","v":""},null,null,null,"","",""]
[null,null,null,10,"Institutions Shareholders 10",{"$f":"+IFERROR(IF('General Info'!$E$12=\"Yes\",IF(VLOOKUP(E90,'Table (I)(a)'!$E$80:$F$99,2,0)=0,\"\",VLOOKUP(E90,'Table (I)(a)'!$E$80:$F$99,2,0)),\"\"),\"\")","v":""},null,null,null,"","",""]
[null,null,null,11,"Institutions Shareholders 11",{"$f":"+IFERROR(IF('General Info'!$E$12=\"Yes\",IF(VLOOKUP(E91,'Table (I)(a)'!$E$80:$F$99,2,0)=0,\"\",VLOOKUP(E91,'Table (I)(a)'!$E$80:$F$99,2,0)),\"\"),\"\")","v":""},null,null,null,"","",""]
[null,null,null,12,"Institutions Shareholders 12",{"$f":"+IFERROR(IF('General Info'!$E$12=\"Yes\",IF(VLOOKUP(E92,'Table (I)(a)'!$E$80:$F$99,2,0)=0,\"\",VLOOKUP(E92,'Table (I)(a)'!$E$80:$F$99,2,0)),\"\"),\"\")","v":""},null,null,null,"","",""]
[null,null,null,13,"Institutions Shareholders 13",{"$f":"+IFERROR(IF('General Info'!$E$12=\"Yes\",IF(VLOOKUP(E93,'Table (I)(a)'!$E$80:$F$99,2,0)=0,\"\",VLOOKUP(E93,'Table (I)(a)'!$E$80:$F$99,2,0)),\"\"),\"\")","v":""},null,null,null,"","",""]
[null,null,null,14,"Institutions Shareholders 14",{"$f":"+IFERROR(IF('General Info'!$E$12=\"Yes\",IF(VLOOKUP(E94,'Table (I)(a)'!$E$80:$F$99,2,0)=0,\"\",VLOOKUP(E94,'Table (I)(a)'!$E$80:$F$99,2,0)),\"\"),\"\")","v":""},null,null,null,"","",""]
[null,null,null,15,"Institutions Shareholders 15",{"$f":"+IFERROR(IF('General Info'!$E$12=\"Yes\",IF(VLOOKUP(E95,'Table (I)(a)'!$E$80:$F$99,2,0)=0,\"\",VLOOKUP(E95,'Table (I)(a)'!$E$80:$F$99,2,0)),\"\"),\"\")","v":""},null,null,null,"","",""]
[null,null,null,16,"Institutions Shareholders 16",{"$f":"+IFERROR(IF('General Info'!$E$12=\"Yes\",IF(VLOOKUP(E96,'Table (I)(a)'!$E$80:$F$99,2,0)=0,\"\",VLOOKUP(E96,'Table (I)(a)'!$E$80:$F$99,2,0)),\"\"),\"\")","v":""},null,null,null,"","",""]
[null,null,null,17,"Institutions Shareholders 17",{"$f":"+IFERROR(IF('General Info'!$E$12=\"Yes\",IF(VLOOKUP(E97,'Table (I)(a)'!$E$80:$F$99,2,0)=0,\"\",VLOOKUP(E97,'Table (I)(a)'!$E$80:$F$99,2,0)),\"\"),\"\")","v":""},null,null,null,"","",""]
[null,null,null,18,"Institutions Shareholders 18",{"$f":"+IFERROR(IF('General Info'!$E$12=\"Yes\",IF(VLOOKUP(E98,'Table (I)(a)'!$E$80:$F$99,2,0)=0,\"\",VLOOKUP(E98,'Table (I)(a)'!$E$80:$F$99,2,0)),\"\"),\"\")","v":""},null,null,null,"","",""]
[null,null,null,19,"Institutions Shareholders 19",{"$f":"+IFERROR(IF('General Info'!$E$12=\"Yes\",IF(VLOOKUP(E99,'Table (I)(a)'!$E$80:$F$99,2,0)=0,\"\",VLOOKUP(E99,'Table (I)(a)'!$E$80:$F$99,2,0)),\"\"),\"\")","v":""},null,null,null,"","",""]
[null,null,null,20,"Institutions Shareholders 20",{"$f":"+IFERROR(IF('General Info'!$E$12=\"Yes\",IF(VLOOKUP(E100,'Table (I)(a)'!$E$80:$F$99,2,0)=0,\"\",VLOOKUP(E100,'Table (I)(a)'!$E$80:$F$99,2,0)),\"\"),\"\")","v":""},null,null,null,"","",""]
[null,null,null,"Total Others",null,null,{"$f":"+IF(COUNT(G81:G100),ROUND(SUM(G81:G100),0),\"\")","v":""},{"$f":"+IF(COUNT(H81:H100),ROUND(SUM(H81:H100),0),\"\")","v":""},"","","",""]
[null,null,null,"Sub Total (B) (1)",null,null,{"$f":"+IF(COUNT(G70:G79,G101),ROUND(SUM(G70:G79,G101),0),\"\")","v":""},{"$f":"+IF(COUNT(H70:H79,H101),ROUND(SUM(H70:H79,H101),0),\"\")","v":""},"","","",""]
[null,null,null,"(2)","Non-Institutions"]
[null,null,null,"(a)","Bodies   corporate",null,null,null,null,{"$f":"+IF(COUNT(G104,H104,I104),SUM(G104:I104),\"\")","v":""},{"$f":"+IFERROR(IF(OR(J104=\"\",$J$133=\"\"),\"\",IF(COUNT(J104,$J$133),ROUND((+J104*100/$J$133),2),\"\")),0)","v":""},{"$f":"+IFERROR(IF(OR(J104=\"\",$J$138=\"\"),\"\",IF(COUNT(J104,$J$138),ROUND((+J104*100/$J$138),2),\"\")),0)","v":""}]
[null,null,null,"(b)","Individuals"]
[null,null,null,"i","Individual Shareholders holding nominal share capital up to Rs one lakh",null,null,null,null,"","",""]
[null,null,null,"ii","Individual Shareholders holding nominal share capital in excess of Rs one lakh",null,null,null,null,"","",""]
[null,null,null,"(c)","Qualified  foreign investor",null,null,null,null,"","",""]
[null,null,null,"(d)","Anyother (specify)","Description of Shareholders"]
[null,null,null,1,"Non-Institutions Shareholders  1",{"$f":"+IFERROR(IF('General Info'!$E$12=\"Yes\",IF(VLOOKUP(E110,'Table (I)(a)'!$E$109:$F$128,2,0)=0,\"\",VLOOKUP(E110,'Table (I)(a)'!$E$109:$F$128,2,0)),\"\"),\"\")","v":""},null,null,null,"","",""]
[null,null,null,2,"Non-Institutions Shareholders  2",{"$f":"+IFERROR(IF('General Info'!$E$12=\"Yes\",IF(VLOOKUP(E111,'Table (I)(a)'!$E$109:$F$128,2,0)=0,\"\",VLOOKUP(E111,'Table (I)(a)'!$E$109:$F$128,2,0)),\"\"),\"\")","v":""},null,null,null,"","",""]
[null,null,null,3,"Non-Institutions Shareholders  3",{"$f":"+IFERROR(IF('General Info'!$E$12=\"Yes\",IF(VLOOKUP(E112,'Table (I)(a)'!$E$109:$F$128,2,0)=0,\"\",VLOOKUP(E112,'Table (I)(a)'!$E$109:$F$128,2,0)),\"\"),\"\")","v":""},null,null,null,"","",""]
[null,null,null,4,"Non-Institutions Shareholders  4",{"$f":"+IFERROR(IF('General Info'!$E$12=\"Yes\",IF(VLOOKUP(E113,'Table (I)(a)'!$E$109:$F$128,2,0)=0,\"\",VLOOKUP(E113,'Table (I)(a)'!$E$109:$F$128,2,0)),\"\"),\"\")","v":""},null,null,null,"","",""]
[null,null,null,5,"Non-Institutions Shareholders  5",{"$f":"+IFERROR(IF('General Info'!$E$12=\"Yes\",IF(VLOOKUP(E114,'Table (I)(a)'!$E$109:$F$128,2,0)=0,\"\",VLOOKUP(E114,'Table (I)(a)'!$E$109:$F$128,2,0)),\"\"),\"\")","v":""},null,null,null,"","",""]
[null,null,null,6,"Non-Institutions Shareholders  6",{"$f":"+IFERROR(IF('General Info'!$E$12=\"Yes\",IF(VLOOKUP(E115,'Table (I)(a)'!$E$109:$F$128,2,0)=0,\"\",VLOOKUP(E115,'Table (I)(a)'!$E$109:$F$128,2,0)),\"\"),\"\")","v":""},null,null,null,{"$f":"+IF(COUNT(G115,H115,I115),SUM(G115:I115),\"\")","v":""},"",""]
[null,null,null,7,"Non-Institutions Shareholders  7",{"$f":"+IFERROR(IF('General Info'!$E$12=\"Yes\",IF(VLOOKUP(E116,'Table (I)(a)'!$E$109:$F$128,2,0)=0,\"\",VLOOKUP(E116,'Table (I)(a)'!$E$109:$F$128,2,0)),\"\"),\"\")","v":""},null,null,null,"","",""]
[null,null,null,8,"Non-Institutions Shareholders  8",{"$f":"+IFERROR(IF('General Info'!$E$12=\"Yes\",IF(VLOOKUP(E117,'Table (I)(a)'!$E$109:$F$128,2,0)=0,\"\",VLOOKUP(E117,'Table (I)(a)'!$E$109:$F$128,2,0)),\"\"),\"\")","v":""},null,null,null,"","",""]
[null,null,null,9,"Non-Institutions Shareholders  9",{"$f":"+IFERROR(IF('General Info'!$E$12=\"Yes\",IF(VLOOKUP(E118,'Table (I)(a)'!$E$109:$F$128,2,0)=0,\"\",VLOOKUP(E118,'Table (I)(a)'!$E$109:$F$128,2,0)),\"\"),\"\")","v":""},null,null,null,"","",""]
[null,null,null,10,"Non-Institutions Shareholders  10",{"$f":"+IFERROR(IF('General Info'!$E$12=\"Yes\",IF(VLOOKUP(E119,'Table (I)(a)'!$E$109:$F$128,2,0)=0,\"\",VLOOKUP(E119,'Table (I)(a)'!$E$109:$F$128,2,0)),\"\"),\"\")","v":""},null,null,null,"","",""]
[null,null,null,11,"Non-Institutions Shareholders  11",{"$f":"+IFERROR(IF('General Info'!$E$12=\"Yes\",IF(VLOOKUP(E120,'Table (I)(a)'!$E$109:$F$128,2,0)=0,\"\",VLOOKUP(E120,'Table (I)(a)'!$E$109:$F$128,2,0)),\"\"),\"\")","v":""},null,null,null,"","",""]
[null,null,null,12,"Non-Institutions Shareholders  12",{"$f":"+IFERROR(IF('General Info'!$E$12=\"Yes\",IF(VLOOKUP(E121,'Table (I)(a)'!$E$109:$F$128,2,0)=0,\"\",VLOOKUP(E121,'Table (I)(a)'!$E$109:$F$128,2,0)),\"\"),\"\")","v":""},null,null,null,"","",""]
[null,null,null,13,"Non-Institutions Shareholders  13",{"$f":"+IFERROR(IF('General Info'!$E$12=\"Yes\",IF(VLOOKUP(E122,'Table (I)(a)'!$E$109:$F$128,2,0)=0,\"\",VLOOKUP(E122,'Table (I)(a)'!$E$109:$F$128,2,0)),\"\"),\"\")","v":""},null,null,null,"","",""]
[null,null,null,14,"Non-Institutions Shareholders  14",{"$f":"+IFERROR(IF('General Info'!$E$12=\"Yes\",IF(VLOOKUP(E123,'Table (I)(a)'!$E$109:$F$128,2,0)=0,\"\",VLOOKUP(E123,'Table (I)(a)'!$E$109:$F$128,2,0)),\"\"),\"\")","v":""},null,null,null,"","",""]
[null,null,null,15,"Non-Institutions Shareholders  15",{"$f":"+IFERROR(IF('General Info'!$E$12=\"Yes\",IF(VLOOKUP(E124,'Table (I)(a)'!$E$109:$F$128,2,0)=0,\"\",VLOOKUP(E124,'Table (I)(a)'!$E$109:$F$128,2,0)),\"\"),\"\")","v":""},null,null,null,"","",""]
[null,null,null,16,"Non-Institutions Shareholders  16",{"$f":"+IFERROR(IF('General Info'!$E$12=\"Yes\",IF(VLOOKUP(E125,'Table (I)(a)'!$E$109:$F$128,2,0)=0,\"\",VLOOKUP(E125,'Table (I)(a)'!$E$109:$F$128,2,0)),\"\"),\"\")","v":""},null,null,null,"","",""]
[null,null,null,17,"Non-Institutions Shareholders  17",{"$f":"+IFERROR(IF('General Info'!$E$12=\"Yes\",IF(VLOOKUP(E126,'Table (I)(a)'!$E$109:$F$128,2,0)=0,\"\",VLOOKUP(E126,'Table (I)(a)'!$E$109:$F$128,2,0)),\"\"),\"\")","v":""},null,null,null,"","",""]
[null,null,null,18,"Non-Institutions Shareholders  18",{"$f":"+IFERROR(IF('General Info'!$E$12=\"Yes\",IF(VLOOKUP(E127,'Table (I)(a)'!$E$109:$F$128,2,0)=0,\"\",VLOOKUP(E127,'Table (I)(a)'!$E$109:$F$128,2,0)),\"\"),\"\")","v":""},null,null,null,"","",""]
[null,null,null,19,"Non-Institutions Shareholders  19",{"$f":"+IFERROR(IF('General Info'!$E$12=\"Yes\",IF(VLOOKUP(E128,'Table (I)(a)'!$E$109:$F$128,2,0)=0,\"\",VLOOKUP(E128,'Table (I)(a)'!$E$109:$F$128,2,0)),\"\"),\"\")","v":""},null,null,null,"","",""]
[null,null,null,20,"Non-Institutions Shareholders  20",{"$f":"+IFERROR(IF('General Info'!$E$12=\"Yes\",IF(VLOOKUP(E129,'Table (I)(a)'!$E$109:$F$128,2,0)=0,\"\",VLOOKUP(E129,'Table (I)(a)'!$E$109:$F$128,2,0)),\"\"),\"\")","v":""},null,null,null,"",{"$f":"+IFERROR(IF(OR(J129=\"\",$J$133=\"\"),\"\",IF(COUNT(J129,$J$133),ROUND((+J129*100/$J$133),2),\"\")),0)","v":""},""]
[null,null,null,"Total Others",null,null,{"$f":"+IF(COUNT(G110:G129),ROUND(SUM(G110:G129),0),\"\")","v":""},{"$f":"+IF(COUNT(H110:H129),ROUND(SUM(H110:H129),0),\"\")","v":""},"","",{"$f":"+IFERROR(IF(OR(J130=\"\",$J$133=\"\"),\"\",IF(COUNT(J130,$J$133),ROUND((+J130*100/$J$133),2),\"\")),0)","v":""},""]
[null,null,null,"Sub-total (B) (2)",null,null,{"$f":"+IF(COUNT(G104:G108,G130),ROUND(SUM(G104:G108,G130),0),\"\")","v":""},"","","","",""]
[null,null,null,"Total Public Shareholding (B) = (B)(1)+(B)(2)",null,null,{"$f":"+IF(COUNT(G102,G131),ROUND(SUM(G102,G131),0),\"\")","v":""},"","","","",""]
[null,null,null,"TOTAL (A)+(B)",null,null,{"$f":"+IF(COUNT(G67,G132),ROUND(SUM(G67,G132),0),\"\")","v":""},"","","","",""]
[null,null,null,"(C)","Shares held by Custodians and against which Depository Receips have been issued"]
[null,null,null,"(1)","Promoter and promoter group",null,null,null,null,{"$f":"+IF(COUNT(G135,H135,I135),SUM(G135:I135),\"\")","v":""},null,{"$f":"+IFERROR(IF(OR(J135=\"\",$J$138=\"\"),\"\",IF(COUNT(J135,$J$138),ROUND((+J135*100/$J$138),2),\"\")),0)","v":""}]
[null,null,null,"(2)","Public ",null,null,null,null,"",null,""]
[null,null,null,"Total Shares held bt Custodians (C)",null,null,{"$f":"+IF(COUNT(G135:G136),ROUND(SUM(G135:G136),0),\"\")","v":""},{"$f":"+IF(COUNT(H135:H136),ROUND(SUM(H135:H136),0),\"\")","v":""},"","",null,""]
[null,null,null,"GRAND TOTAL (A)+(B)+(C)",null,null,{"$f":"+IF(COUNT(G133,G137),ROUND(SUM(G133,G137),0),\"\")","v":""},{"$f":"+IF(COUNT(H133,H137),ROUND(SUM(H133,H137),0),\"\")","v":""},"","",null,""]

{"sheet":"TextBlock","index":11,"n_rows":41,"n_cols":5,"rows_kept":41,"cut":false,"hidden":true,"merged":[]}
[null,null,null,null,47]
[]
[]
[null,"115097100102115102"]
[null,"108111099107101100032105110032115104097114101115032104111108100101114115"]
[]
[null,"068082032100101116097105108115032116111032098101032115101110116"]
[null,"076111099107101100032105110032115104097114101115032100101116097105108115"]
[null,"080117098108105099032049032099032049"]
[null,"080117098108105099032049099049"]
[null,"080114111109111116101114115032100101116097105108115"]
[]
[]
[]
[]
[]
[]
[]
[]
[]
[]
[null,"049013010"]
[]
[]
[]
[]
[]
[]
[]
[]
[null,"068082049049"]
[null,"068082050098"]
[null,"076111099107101100105110049"]
[null,"080066049"]
[null,"080098117108099105049"]
[null,"080114111109111116101114049"]
[null,"084097098108101049"]
[null,"073110116111114032100117099116111114117049013010"]
[]
[]
[null,"080114111109111116101114049077079085032119105116104032073067065073032150032088066082076013010013010077105099114111118105115116097032084101099104110111108111103105101115032112097114116110101114115032119105116104032073110115116105116117116101032111102032099111115116032097099099111117110116097110116115032116111032105109112116101109101110116032088066082076032105110032073110100105097046013010013010082111108101013010013010013010077105099114111118105115116097032084101099104110111108111103105101115032097100118105115111114032105110032100101118101108111112109101110116032111102032088066082076032084097120111110111109121032013010067111110118101114116050120098114108032067111115116032065117100105116032115111102116119097114101032119097115032112114111118105100101100032102114101101032116111032097108108032116104101032112114111102101115115105111110097108115032111102032073110115116105116117116101013010077105099114111118105115116097032104097115032104097110100108101100032116111108108032102114101101032108105110101032102111114032072101108112032100101115107032115117112112111114116013010"]

{"sheet":"Sheet1","index":12,"n_rows":1159,"n_cols":19,"rows_kept":1159,"cut":false,"hidden":true,"merged":[]}
["in-bse-shp","Element","label","Name","depth","order","_Element","From ","To","ScheduleName",null,"type","enumerations","substitutionGroup","balance","periodType","abstract","nillable","BusinessRules"]
["in-bse-shp","GeneralInformationAbstract","General information [Abstract]",null,0,null,"in-bse-shp_GeneralInformationAbstract",null,null,"Detailsofgeneralinformationaboutcompany","xbrli:stringItemType",null,"xbrli:item",null,"duration","true","true",0]
["in-bse-shp","NameOfTheCompany","Name of the company","Name of the company",1,1,"in-bse-shp_NameOfTheCompany","GeneralInformationAbstract","NameOfTheCompany","Detailsofgeneralinformationaboutcompany","xbrli:stringItemType",null,"xbrli:item",null,"duration","false","true",0,"This is a mandatory field. Name should be based on CIN."]
["in-bse-shp","ScripCode","Scrip code","Scrip code",1,2,"in-bse-shp_ScripCode","GeneralInformationAbstract","ScripCode","Detailsofgeneralinformationaboutcompany","in-bse-shp-types:ScripCode",null,"xbrli:item",null,"duration","false","true",0,"This is a mandatory field. Should be valid SCRIP CODE  as per BSE Scrip Code Format. "]
["in-bse-shp","CorporateIdentityNumber","Corporate identity number","Corporate identity number",1,3,"in-bse-shp_CorporateIdentityNumber","GeneralInformationAbstract","CorporateIdentityNumber","Detailsofgeneralinformationaboutcompany","in-bse-shp-types:CINNumber",null,"xbrli:item",null,"duration","false","true",0,"This is a mandatory field."]
["in-bse-shp","AddressOfRegisteredOfficeOfCompany","Address of registered office of company","Address of registered office of company",1,4,"in-bse-shp_AddressOfRegisteredOfficeOfCompany","GeneralInformationAbstract","AddressOfRegisteredOfficeOfCompany","Detailsofgeneralinformationaboutcompany","xbrli:stringItemType",null,"xbrli:item",null,"duration","false","true",0,"This is a mandatory field. "]
["in-bse-shp","PermanentAccountNumberOfEntity","Permanent account number of entity","Permanent account number of entity",1,5,"in-bse-shp_PermanentAccountNumberOfEntity","GeneralInformationAbstract","PermanentAccountNumberOfEntity","Detailsofgeneralinformationaboutcompany","in-bse-shp-types:PANNumber",null,"xbrli:item",null,"duration","false","true",0,"This is a mandatory field. Should be valid PAN as per Income_tax_PAN  format."]
["in-bse-shp","NameOfTheScrip","Name of the scrip","Name of the scrip",1,6,"in-bse-shp_NameOfTheScrip","GeneralInformationAbstract","NameOfTheScrip","Detailsofgeneralinformationaboutcompany","xbrli:stringItemType",null,"xbrli:item",null,"duration","false","true",0,"This is a mandatory field. Should be based on Scip Code."]
["in-bse-shp","ClassOfSecurity","Class of security","Class of security",1,7,"in-bse-shp_ClassOfSecurity","GeneralInformationAbstract","ClassOfSecurity","Detailsofgeneralinformationaboutcompany","in-bse-shp-types:ClassSecurity",null,"xbrli:item",null,"duration","false","true",0,"This is a mandatory field."]
["in-bse-shp","TypeOfReport","Type of report","Type of report",1,10,"in-bse-shp_TypeOfReport","GeneralInformationAbstract","TypeOfReport","Detailsofgeneralinformationaboutcompany","in-bse-shp-types:ReportType","(Quarterly) (Additional) ","xbrli:item",null,"duration","false","true",0,"This is a mandatory field. Select from drop down list"]
["in-bse-shp","ReasonForAdditionalFilling","Reason for additional filling","Reason for additional filling",1,11,"in-bse-shp_ReasonForAdditionalFilling","GeneralInformationAbstract","ReasonForAdditionalFilling","Detailsofgeneralinformationaboutcompany","xbrli:stringItemType",null,"xbrli:item",null,"duration","false","true",0,"This is a field mandatory if \"Additional\" is selected in Type of Report."]
["in-bse-shp","WhetherCompanyHasMoreThanOneClassOfSharesOrSecuritiesHavingVotingRights","Whether company has more than one class of shares or securities","Whether company has more than one class of shares or securities having voting rights",1,12,"in-bse-shp_LevelOfRoundingUsedInReport","GeneralInformationAbstract","LevelOfRoundingUsedInReport","Detailsofgeneralinformationaboutcompany","xbrli:booleanItemType","(Actual) (Thousands) (Lakhs) (Millions) (Crores) (Billions) ","xbrli:item",null,"duration","false","true",0,"This is a mandatory field. Value must be \"Yes\" or \"No\", Select from drop down list."]
["in-bse-shp","WhetherCompanyIsSME","Whether company is SME","Whether company is SME",1,13,"in-bse-shpWhetherCompanyIsSME","GeneralInformationAbstract","WhetherCompanyIsSME","DetailsOfGeneralInformationAboutCompany","xbrli:booleanItemType",null,null,null,"duration","false","true",0,"This is a mandatory field. Value must be \"Yes\" or \"No\", Select from drop down list."]
["in-bse-shp","DateOfReport","Date Of Report","Date Of Report",1,14,"in-bse-shp_DateOfReport","GeneralInformationAbstract","DateOfReport","Detailsofgeneralinformationaboutcompany","xbrli:dateItemType",null,"xbrli:item",null,"instant","false","true",0,"This is a mandatory field."]
["in-bse-shp","ShareholdingPatternAbstract","Shareholding pattern [Abstract]","Date of end of reporting period",0,null,"in-bse-shp_ShareholdingPatternAbstract",null,null,"StatementshowingShareholdingPattern","xbrli:stringItemType",null,"xbrli:item",null,"duration","true","true",0]
["in-bse-shp","DetailsOfPartlyPaidUpSharesAbstract","Details of partly paid-up shares [Abstract]",null,1,1,"in-bse-shp_DetailsOfPartlyPaidUpSharesAbstract","ShareholdingPatternAbstract","DetailsOfPartlyPaidUpSharesAbstract","StatementshowingShareholdingPattern","xbrli:stringItemType",null,"xbrli:item",null,"duration","true","true",0]
["in-bse-shp","DetailsOfPartlyPaidUpSharesTable","Details of partly paid-up shares [Table]",null,2,1,"in-bse-shp_DetailsOfPartlyPaidUpSharesTable","DetailsOfPartlyPaidUpSharesAbstract","DetailsOfPartlyPaidUpSharesTable","StatementshowingShareholdingPattern","xbrli:stringItemType",null,"xbrldt:hypercubeItem",null,"duration","true","true",0]
["in-bse-shp","TypeOfShareholdersAxis","Type of shareholders [Axis]",null,3,1,"in-bse-shp_TypeOfShareholdersAxis","DetailsOfPartlyPaidUpSharesTable","TypeOfShareholdersAxis","StatementshowingShareholdingPattern","xbrli:stringItemType",null,"xbrldt:dimensionItem",null,"duration","true","true",0]
["in-bse-shp","SharesHeldByPromotersAndPublicMember","Shares held by promoters and public [Member]","Total",4,1,"in-bse-shp_SharesHeldByPromotersAndPublicMember","TypeOfShareholdersAxis","SharesHeldByPromotersAndPublicMember","StatementshowingShareholdingPattern","nonnum:domainItemType",null,"xbrli:item",null,"duration","false","true",0]
["in-bse-shp","SharesHeldByPromoterAndPromoterGroupMember","Shares held by promoter and promoter group [Member]","Total Shares held by promoter or promoter group ",null,1,"in-bse-shp_SharesHeldByPromoterAndPromoterGroupMember","SharesHeldByPromotersAndPublicMember","SharesHeldByPromoterAndPromoterGroupMember","StatementshowingShareholdingPattern","nonnum:domainItemType",null,"xbrli:item",null,"duration","false","true",0]
["in-bse-shp","SharesHeldByPromoterAndPromoterGroup1Member","Shares held by promoter and promoter group 1 [Member]",null,null,null,"in-bse-shp_SharesHeldByPromoterAndPromoterGroup1Member","SharesHeldByPromoterAndPromoterGroupMember","SharesHeldByPromoterAndPromoterGroup1Member","StatementshowingShareholdingPattern"]
["in-bse-shp","SharesHeldByPromoterAndPromoterGroup2Member","Shares held by promoter and promoter group 2 [Member]",null,null,null,"in-bse-shp_SharesHeldByPromoterAndPromoterGroup2Member","SharesHeldByPromoterAndPromoterGroupMember","SharesHeldByPromoterAndPromoterGroup2Member","StatementshowingShareholdingPattern"]
["in-bse-shp","SharesHeldByPromoterAndPromoterGroup3Member","Shares held by promoter and promoter group 3 [Member]",null,null,null,"in-bse-shp_SharesHeldByPromoterAndPromoterGroup3Member","SharesHeldByPromoterAndPromoterGroupMember","SharesHeldByPromoterAndPromoterGroup3Member","StatementshowingShareholdingPattern"]
["in-bse-shp","SharesHeldByPromoterAndPromoterGroup4Member","Shares held by promoter and promoter group 4 [Member]",null,null,null,"in-bse-shp_SharesHeldByPromoterAndPromoterGroup4Member","SharesHeldByPromoterAndPromoterGroupMember","SharesHeldByPromoterAndPromoterGroup4Member","StatementshowingShareholdingPattern"]
["in-bse-shp","SharesHeldByPromoterAndPromoterGroup5Member","Shares held by promoter and promoter group 5 [Member]",null,null,null,"in-bse-shp_SharesHeldByPromoterAndPromoterGroup5Member","SharesHeldByPromoterAndPromoterGroupMember","SharesHeldByPromoterAndPromoterGroup5Member","StatementshowingShareholdingPattern"]
["in-bse-shp","SharesHeldByPublicMember","Shares held by public [Member]","Total Shares held by public ",null,2,"in-bse-shp_SharesHeldByPublicMember","SharesHeldByPromotersAndPublicMember","SharesHeldByPublicMember","StatementshowingShareholdingPattern","nonnum:domainItemType",null,"xbrli:item",null,"duration","false","true",0]
["in-bse-shp","SharesHeldByPublic1Member","Shares held by public 1 [Member]",null,null,null,"in-bse-shp_SharesHeldByPublic1Member","SharesHeldByPublicMember","SharesHeldByPublic1Member","StatementshowingShareholdingPattern"]
["in-bse-shp","SharesHeldByPublic2Member","Shares held by public 2 [Member]",null,null,null,"in-bse-shp_SharesHeldByPublic2Member","SharesHeldByPublicMember","SharesHeldByPublic2Member","StatementshowingShareholdingPattern"]
["in-bse-shp","SharesHeldByPublic3Member","Shares held by public 3 [Member]",null,null,null,"in-bse-shp_SharesHeldByPublic3Member","SharesHeldByPublicMember","SharesHeldByPublic3Member","StatementshowingShareholdingPattern"]
["in-bse-shp","SharesHeldByPublic4Member","Shares held by public 4 [Member]",null,null,null,"in-bse-shp_SharesHeldByPublic4Member","SharesHeldByPublicMember","SharesHeldByPublic4Member","StatementshowingShareholdingPattern"]
["in-bse-shp","SharesHeldByPublic5Member","Shares held by public 5 [Member]",null,null,null,"in-bse-shp_SharesHeldByPublic5Member","SharesHeldByPublicMember","SharesHeldByPublic5Member","StatementshowingShareholdingPattern"]
["in-bse-shp","DetailsOfPartlyPaidUpSharesLineItems","Details of partly paid-up shares [Line items]",null,2,2,"in-bse-shp_DetailsOfPartlyPaidUpSharesLineItems","DetailsOfPartlyPaidUpSharesAbstract","DetailsOfPartlyPaidUpSharesLineItems","StatementshowingShareholdingPattern","xbrli:stringItemType",null,"xbrli:item",null,"duration","true","true",0]
["in-bse-shp","DescriptionOfPartlyPaidUpShares","Description of partly paid-up shares","Description partly paid-up shares",3,1,"in-bse-shp_DescriptionOfPartlyPaidUpShares","DetailsOfPartlyPaidUpSharesLineItems","DescriptionOfPartlyPaidUpShares","StatementshowingShareholdingPattern","xbrli:stringItemType",null,"xbrli:item",null,"instant",false,"true",null,"This is a mandatory field"]
["in-bse-shp","NumberOfPartlyPaidUpShares","Number of partly paid-up shares","Number of partly paid-up shares",3,2,"in-bse-shp_NumberOfPartlyPaidUpShares","DetailsOfPartlyPaidUpSharesLineItems","NumberOfPartlyPaidUpShares","StatementshowingShareholdingPattern","xbrli:sharesItemType",null,"xbrli:item",null,"instant","false","true",0,"This is a mandatory field"]
["in-bse-shp","AsAPercentageOfTotalNumberOfPartlyPaidUpShares","As a percentage of total number of partly paid-up shares","As a percentage of total number of partly paid-up shares",3,3,"in-bse-shp_AsAPercentageOfTotalNumberOfPartlyPaidUpShares","DetailsOfPartlyPaidUpSharesLineItems","AsAPercentageOfTotalNumberOfPartlyPaidUpShares","StatementshowingShareholdingPattern","num:percentItemType",null,"xbrli:item",null,"instant","false","true",0,"Enter valid percentage"]
["in-bse-shp","AsAPercentageOfTotalNumberOfSharesOfTheCompany","As a percentage of total number of shares of the company","As a percentage of total number of shares of the company",3,4,"in-bse-shp_AsAPercentageOfTotalNumberOfSharesOfTheCompany","DetailsOfPartlyPaidUpSharesLineItems","AsAPercentageOfTotalNumberOfSharesOfTheCompany","StatementshowingShareholdingPattern","num:percentItemType",null,"xbrli:item",null,"instant","false","true",0,"Enter valid percentage"]
["in-bse-shp","DetailsOfOutstandingConvertibleSecuritiesAbstract","Details of outstanding convertible securities [Abstract]",null,1,2,"in-bse-shp_DetailsOfOutstandingConvertibleSecuritiesAbstract","ShareholdingPatternAbstract","DetailsOfOutstandingConvertibleSecuritiesAbstract","StatementshowingShareholdingPattern","xbrli:stringItemType",null,"xbrli:item",null,"duration","true","true",0,"This is a mandatory field"]
["in-bse-shp","DetailsOfOutstandingConvertibleSecuritiesTable","Details of outstanding convertible securities [Table]",null,2,1,"in-bse-shp_DetailsOfOutstandingConvertibleSecuritiesTable","DetailsOfOutstandingConvertibleSecuritiesAbstract","DetailsOfOutstandingConvertibleSecuritiesTable","StatementshowingShareholdingPattern","xbrli:stringItemType",null,"xbrldt:hypercubeItem",null,"duration","true","true",0,"This is a mandatory field"]
["in-bse-shp","TypeOfShareholdersAxis_2","Type of shareholders [Axis]",null,3,1,"in-bse-shp_TypeOfShareholdersAxis","DetailsOfOutstandingConvertibleSecuritiesTable","TypeOfShareholdersAxis_2","StatementshowingShareholdingPattern","xbrli:stringItemType",null,"xbrldt:dimensionItem",null,"duration","true","true",null,"This is a mandatory field"]
["in-bse-shp","SharesHeldByPromotersAndPublicMember_2","Shares held by promoters and public [Member]","Total",4,1,"in-bse-shp_SharesHeldByPromotersAndPublicMember","TypeOfShareholdersAxis_2","SharesHeldByPromotersAndPublicMember_2","StatementshowingShareholdingPattern","nonnum:domainItemType",null,"xbrli:item",null,"duration","false","true",null,"This is a mandatory field"]
["in-bse-shp","SharesHeldByPromoterAndPromoterGroupMember_2","Shares held by promoter and promoter group [Member]","Total shares  held by promoter or promoter group",null,1,"in-bse-shp_SharesHeldByPromoterAndPromoterGroupMember","SharesHeldByPromotersAndPublicMember_2","SharesHeldByPromoterAndPromoterGroupMember_2","StatementshowingShareholdingPattern","nonnum:domainItemType",null,"xbrli:item",null,"duration","false","true",null,"\"Number of outstanding securities\"   should be equal to value entered in   \"Number of outstanding securities\" shown in  Promoter &  Promoter Group (I)(b)"]
["in-bse-shp","SharesHeldByPublicMember_2","Shares held by public [Member]","Total Shares  held by public",5,2,"in-bse-shp_SharesHeldByPublicMember","SharesHeldByPromotersAndPublicMember_2","SharesHeldByPublicMember_2","StatementshowingShareholdingPattern","nonnum:domainItemType",null,"xbrli:item",null,"duration","false","true",null,"\"Number of outstanding securities\"   should be equal to value entered in   \"Number of outstanding securities\" shown in present in Public (I)(c)(i) or Public (I)(c)(ii)"]
["in-bse-shp","DetailsOfOutstandingConvertibleSecuritiesLineItems","Details of outstanding convertible securities [Line items]",null,2,2,"in-bse-shp_DetailsOfOutstandingConvertibleSecuritiesLineItems","DetailsOfOutstandingConvertibleSecuritiesAbstract","DetailsOfOutstandingConvertibleSecuritiesLineItems","StatementshowingShareholdingPattern","xbrli:stringItemType",null,"xbrli:item",null,"duration","true","true","Test","This is a mandatory field"]
["in-bse-shp","DescriptionOfOutstandingSecurities","Description of outstanding securities","Description of outstanding convertible securities",3,1,"in-bse-shp_DescriptionOfOutstandingSecurities","DetailsOfOutstandingConvertibleSecuritiesLineItems","DescriptionOfOutstandingSecurities","StatementshowingShareholdingPattern",null,null,"xbrli:item",null,"instant","false","true",null,"This is a mandatory field"]
["in-bse-shp","NumberOfOutstandingSecurities","Number of outstanding securities","Number of outstanding securities",3,2,"in-bse-shp_NumberOfOutstandingSecurities","DetailsOfOutstandingConvertibleSecuritiesLineItems","NumberOfOutstandingSecurities","StatementshowingShareholdingPattern","xbrli:sharesItemType",null,"xbrli:item",null,"instant","false","true",0,"This is a mandatory field"]
["in-bse-shp","AsAPercentageOfTotalNumberOfOutstandingConvertibleSecurities","As a percentage of total number of outstanding convertible securities","As a percentage of total number of outstanding convertible securities",3,3,"in-bse-shp_AsAPercentageOfTotalNumberOfOutstandingConvertibleSecurities","DetailsOfOutstandingConvertibleSecuritiesLineItems","AsAPercentageOfTotalNumberOfOutstandingConvertibleSecurities","StatementshowingShareholdingPattern","num:percentItemType",null,"xbrli:item",null,"instant","false","true",0,"Enter valid percentage"]
["in-bse-shp","AsAPercentageOfTotalNumberOfSharesOfTheCompanyAssumingFullConversionOfTheConvertibleSecurities","As a percentage of total number of shares of the company assuming full conversion of the convertible securities","As a percentage of total number of shares of the company, assuming full conversion of the convertible securities",3,4,"in-bse-shp_AsAPercentageOfTotalNumberOfSharesOfTheCompanyAssumingFullConversionOfTheConvertibleSecurities","DetailsOfOutstandingConvertibleSecuritiesLineItems","AsAPercentageOfTotalNumberOfSharesOfTheCompanyAssumingFullConversionOfTheConvertibleSecurities","StatementshowingShareholdingPattern","num:percentItemType",null,"xbrli:item",null,"instant","false","true",0,"Enter valid percentage"]
["in-bse-shp","DetailsOfWarrantsAbstract","Details of warrants [Abstract]",null,1,3,"in-bse-shp_DetailsOfWarrantsAbstract","ShareholdingPatternAbstract","DetailsOfWarrantsAbstract","StatementshowingShareholdingPattern","xbrli:stringItemType",null,"xbrli:item",null,"duration","true","true",0,"This is a mandatory field"]
["in-bse-shp","DetailsOfWarrantsTable","Details of warrants [Table]",null,2,1,"in-bse-shp_DetailsOfWarrantsTable","DetailsOfWarrantsAbstract","DetailsOfWarrantsTable","StatementshowingShareholdingPattern","xbrli:stringItemType",null,"xbrldt:hypercubeItem",null,"duration","true","true",0,"This is a mandatory field"]
["in-bse-shp","TypeOfShareholdersAxis_3","Type of shareholders [Axis]",null,3,1,"in-bse-shp_TypeOfShareholdersAxis","DetailsOfWarrantsTable","TypeOfShareholdersAxis_3","StatementshowingShareholdingPattern","xbrli:stringItemType",null,"xbrldt:dimensionItem",null,"duration","true","true",{"$error":"#N/A"},"This is a mandatory field"]
["in-bse-shp","SharesHeldByPromotersAndPublicMember_3","Shares held by promoters and public [Member]","Total",4,1,"in-bse-shp_SharesHeldByPromotersAndPublicMember","TypeOfShareholdersAxis_3","SharesHeldByPromotersAndPublicMember_3","StatementshowingShareholdingPattern","nonnum:domainItemType",null,"xbrli:item",null,"duration","false","true",{"$error":"#N/A"},"This is a mandatory field"]
["in-bse-shp","SharesHeldByPromoterAndPromoterGroupMember_3","Shares held by promoter and promoter group [Member]","Total Shares held by promoter or  promoter group",5,1,"in-bse-shp_SharesHeldByPromoterAndPromoterGroupMember","SharesHeldByPromotersAndPublicMember_3","SharesHeldByPromoterAndPromoterGroupMember_3","StatementshowingShareholdingPattern","nonnum:domainItemType",null,"xbrli:item",null,"duration","false","true",{"$error":"#N/A"},"\"Number of warrants\"   should be equal to value entered in   \"Number of warrants\" shown in  Promoter &  Promoter Group (I)(b)"]
["in-bse-shp","SharesHeldByPublicMember_3","Shares held by public [Member]","Total Shares  held  by  public",null,2,"in-bse-shp_SharesHeldByPublicMember","SharesHeldByPromotersAndPublicMember_3","SharesHeldByPublicMember_3","StatementshowingShareholdingPattern","nonnum:domainItemType",null,"xbrli:item",null,"duration","false","true",{"$error":"#N/A"},"\"Number of warrants\"   should be equal to value entered in   \"Number of warrants\" shown in present in Public (I)(c)(i) or Public (I)(c)(ii)"]
["in-bse-shp","DetailsOfWarrantsLineItems","Details of warrants [Line items]",null,2,2,"in-bse-shp_DetailsOfWarrantsLineItems","DetailsOfWarrantsAbstract","DetailsOfWarrantsLineItems","StatementshowingShareholdingPattern","xbrli:stringItemType",null,"xbrli:item",null,"duration","true","true",0,"This is a mandatory field"]
["in-bse-shp","Descriptionofwarrants","Description of warrants","Description of warrants",3,1,"in-bse-shp_Descriptionofwarrants","DetailsOfWarrantsLineItems","Descriptionofwarrants","StatementshowingShareholdingPattern",null,null,null,null,null,null,null,null,"This is a mandatory field"]
["in-bse-shp","NumberOfWarrants","Number of warrants","Number of warrants",3,1,"in-bse-shp_NumberOfWarrants","DetailsOfWarrantsLineItems","NumberOfWarrants","StatementshowingShareholdingPattern","xbrli:sharesItemType",null,"xbrli:item",null,"instant","false","true",0,"This is a mandatory field"]
["in-bse-shp","AsAPercentageOfTotalNumberOfWarrants","As a percentage of total number of warrants","As a percentage of total number of warrants",3,2,"in-bse-shp_AsAPercentageOfTotalNumberOfWarrants","DetailsOfWarrantsLineItems","AsAPercentageOfTotalNumberOfWarrants","StatementshowingShareholdingPattern","num:percentItemType",null,"xbrli:item",null,"instant","false","true",0,"Enter valid percentage"]
["in-bse-shp","AsAPercentageOfTotalNumberOfSharesOfTheCompanyAssumingFullConversionOfWarrants","As a percentage of total number of shares of the company assuming full conversion of warrants","As a percentage of total number of shares of the company, assuming full conversion of warrants",3,3,"in-bse-shp_AsAPercentageOfTotalNumberOfSharesOfTheCompanyAssumingFullConversionOfWarrants","DetailsOfWarrantsLineItems","AsAPercentageOfTotalNumberOfSharesOfTheCompanyAssumingFullConversionOfWarrants","StatementshowingShareholdingPattern","num:percentItemType",null,"xbrli:item",null,"instant","false","true",0,"Enter valid percentage"]
["in-bse-shp","TotalPaidUpCapitalOfTheCompanyAssumingFullConversionOfWarrantsAndConvertibleSecurities","Total paid-up capital of the company assuming full conversion of warrants and convertible securities","Total paid-up capital of the company assuming full conversion of warrants and convertible securities",null,4,"in-bse-shp_TotalPaidUpCapitalOfTheCompanyAssumingFullConversionOfWarrantsAndConvertibleSecurities","ShareholdingPatternAbstract","TotalPaidUpCapitalOfTheCompanyAssumingFullConversionOfWarrantsAndConvertibleSecurities","StatementshowingShareholdingPattern","xbrli:sharesItemType",null,"xbrli:item","Credit","instant","false","true",0,"This is a mandatory field"]
["in-bse-shp","DisclosureOfNotesOnShareholdingPattern","Disclosure of notes on shareholding pattern","Disclosure of notes on shareholding pattern   ",1,5,"in-bse-shp_Disclosure of notes on shareholding pattern [Text Block]","ShareholdingPatternAbstract","DisclosureOfNotesOnShareholdingPatternTextBlock","StatementshowingShareholdingPattern",null,null,"xbrli:item",null,"duration","false","true"]
["in-bse-shp","DetailsOfFullyPaidupSharesAbstract","Details of fully paid-up shares [Abstract]",null,1,5,"in-bse-shp_DetailsOfFullyPaidupSharesAbstract","ShareholdingPatternAbstract","DetailsOfFullyPaidupSharesAbstract","StatementshowingShareholdingPattern","xbrli:stringItemType",null,"xbrli:item",null,"duration","true","true",0,"This is a mandatory field"]
["in-bse-shp","DetailsOfFullyPaidupSharesTable","Details of fully paid-up shares [Table]",null,1,1,"in-bse-shp_DetailsOfFullyPaidupSharesTable","DetailsOfFullyPaidupSharesAbstract","DetailsOfFullyPaidupSharesTable","StatementshowingShareholdingPattern","xbrli:stringItemType",null,"xbrldt:hypercubeItem",null,"duration","true","true",0,"This is a mandatory field"]
["in-bse-shp","CategoryOfShareholdersAxis","Category of shareholders [Axis]",null,2,1,"in-bse-shp_CategoryOfShareholdersAxis","DetailsOfFullyPaidupSharesTable","CategoryOfShareholdersAxis","StatementshowingShareholdingPattern","xbrli:stringItemType",null,"xbrldt:dimensionItem",null,"duration","true","true",0,"This is a mandatory field"]
["in-bse-shp","ShareholdingPatternMember","Shareholding pattern [Member]",null,3,1,"in-bse-shp_ShareholdingPatternMember","CategoryOfShareholdersAxis","ShareholdingPatternMember","StatementshowingShareholdingPattern","nonnum:domainItemType",null,"xbrli:item",null,"duration","false","true",0,"This is a mandatory field"]
["in-bse-shp","ShareholdingOfPromotersAndPublicMember","Shareholding of promoter(s) and public [Member]","TOTAL (A)+(B)",4,1,"in-bse-shp_ShareholdingOfPromotersAndPublicMember","ShareholdingPatternMember","ShareholdingOfPromotersAndPublicMember","StatementshowingShareholdingPattern","nonnum:domainItemType",null,"xbrli:item",null,"duration","false","true",0,"This is a mandatory field"]
["in-bse-shp","ShareholdingOfPromoterAndPromoterGroupMember","Shareholding of promoter and promoter group [Member]","Total Shareholding of Promoter and Promoter Group  (A) = (A)(1)+(A)(2)",5,1,"in-bse-shp_ShareholdingOfPromoterAndPromoterGroupMember","ShareholdingOfPromotersAndPublicMember","ShareholdingOfPromoterAndPromoterGroupMember","StatementshowingShareholdingPattern","nonnum:domainItemType",null,"xbrli:item",null,"duration","false","true",0]
["in-bse-shp","IndianMember","Indian [Member]","Sub Total (A) (1)",6,1,"in-bse-shp_IndianMember","ShareholdingOfPromoterAndPromoterGroupMember","IndianMember","StatementshowingShareholdingPattern","nonnum:domainItemType",null,"xbrli:item",null,"duration","false","true",0]
["in-bse-shp","IndividualsOrHinduUndividedFamilyMember","Individuals or Hindu undivided family [Member]","Individuals or Hindu undivided family",7,1,"in-bse-shp_IndividualsOrHinduUndividedFamilyMember","IndianMember","IndividualsOrHinduUndividedFamilyMember","StatementshowingShareholdingPattern","nonnum:domainItemType",null,"xbrli:item",null,"duration","false","true",0]
["in-bse-shp","CentralGovernmentOrStateGovernmentSMember","Central government or state government(s) [Member]","Central government or State government(s)",7,2,"in-bse-shp_CentralGovernmentOrStateGovernmentSMember","IndianMember","CentralGovernmentOrStateGovernmentSMember","StatementshowingShareholdingPattern","nonnum:domainItemType",null,"xbrli:item",null,"duration","false","true",0]
["in-bse-shp","IndianBodiesCorporateMember","Indian - bodies corporate [Member]","Bodies corporate",7,3,"in-bse-shp_BodiesCorporateMember","IndianMember","BodiesCorporateMember","StatementshowingShareholdingPattern","nonnum:domainItemType",null,"xbrli:item",null,"duration","false","true",0]
["in-bse-shp","IndianFinancialInstitutionsOrBanksMember","Indian - financial institutions or banks [Member]","Financial institutions or banks",7,4,"in-bse-shp_FinancialInstitutionsOrBanksMember","IndianMember","FinancialInstitutionsOrBanksMember","StatementshowingShareholdingPattern","nonnum:domainItemType",null,"xbrli:item",null,"duration","false","true",0]
["in-bse-shp","OtherIndianShareholdersMember","Other indian shareholders [Member]","Total  Others",7,5,"in-bse-shp_OtherIndianShareholdersMember","IndianMember","OtherIndianShareholdersMember","StatementshowingShareholdingPattern","OthersType",null,"xbrli:item",null,"duration","false","true",0]
["in-bse-shp","ForeignMember","Foreign [Member]",null,6,2,"in-bse-shp_ForeignMember","ShareholdingOfPromoterAndPromoterGroupMember","ForeignMember","StatementshowingShareholdingPattern","nonnum:domainItemType",null,"xbrli:item",null,"duration","false","true",0]
["in-bse-shp","NonResidentIndividualsOrForeignIndividualsMember","Non-resident individuals or foreign individuals [Member]","Non-resident individuals or foreign individuals ",7,1,"in-bse-shp_NonResidentIndividualsOrForeignIndividualsMember","ForeignMember","NonResidentIndividualsOrForeignIndividualsMember","StatementshowingShareholdingPattern","nonnum:domainItemType",null,"xbrli:item",null,"duration","false","true",0]
["in-bse-shp","ForeignBodiesCorporateMember","Foreign - bodies corporate [Member]","Bodies  corporate",7,2,"in-bse-shp_BodiesCorporateMember","ForeignMember","BodiesCorporateMember","StatementshowingShareholdingPattern","nonnum:domainItemType",null,"xbrli:item",null,"duration","false","true",0]
["in-bse-shp","ForeignInstitutionsMember","Foreign - institutions [Member]","Institutions ",7,3,"in-bse-shp_ForeignInstitutionsMember","ForeignMember","ForeignInstitutionsMember","StatementshowingShareholdingPattern","nonnum:domainItemType",null,"xbrli:item",null,"duration","false","true",0]
["in-bse-shp","QualifiedForeignInvestorMember","Qualified foreign investor [Member]","Qualified foreign investor",7,4,"in-bse-shp_QualifiedForeignInvestorMember","ForeignMember","QualifiedForeignInvestorMember","StatementshowingShareholdingPattern","nonnum:domainItemType",null,"xbrli:item",null,"duration","false","true",0]
["in-bse-shp","OtherForeignShareholdersMember","Other foreign shareholders [Member]","Total Others",7,5,"in-bse-shp_OtherForeignShareholdersMember","ForeignMember","OtherForeignShareholdersMember","StatementshowingShareholdingPattern","OthersType",null,"xbrli:item",null,"duration","false","true",0]
["in-bse-shp","PublicShareholdingMember","Public shareholding [Member]","TOTAL (A)+(B)",4,2,"in-bse-shp_PublicShareholdingMember","ShareholdingOfPromotersAndPublicMember","PublicShareholdingMember","StatementshowingShareholdingPattern","nonnum:domainItemType",null,"xbrli:item",null,"duration","false","true"]
["in-bse-shp","InstitutionsMember","Institutions [Member]","Sub Total (B) (1)",5,1,"in-bse-shp_InstitutionsMember","PublicShareholdingMember","InstitutionsMember","StatementshowingShareholdingPattern","nonnum:domainItemType",null,"xbrli:item",null,"duration","false","true",0]
["in-bse-shp","MutualFundsOrUtiMember","Mutual funds or uti [Member]","Mutual funds or UTI",6,1,"in-bse-shp_MutualFundsOrUtiMember","InstitutionsMember","MutualFundsOrUtiMember","StatementshowingShareholdingPattern","nonnum:domainItemType",null,"xbrli:item",null,"duration","false","true",0]
["in-bse-shp","InstitutionsFinancialInstitutionsOrBanksMember","Institutions - financial institutions or banks [Member]","Financial  institutions or Banks",7,2,"in-bse-shp_FinancialInstitutionsOrBanksMember","InstitutionsMember","FinancialInstitutionsOrBanksMember","StatementshowingShareholdingPattern","nonnum:domainItemType",null,"xbrli:item",null,"duration","false","true",0]
["in-bse-shp","InstitutionsCentralGovernmentOrStateGovernmentSMember","Institutions - central government or state government(s) [Member]","Central  government or State government(s)",7,3,"in-bse-shp_CentralGovernmentOrStateGovernmentSMember","InstitutionsMember","CentralGovernmentOrStateGovernmentSMember","StatementshowingShareholdingPattern","nonnum:domainItemType",null,"xbrli:item",null,"duration","false","true",0]
["in-bse-shp","VentureCapitalFundsMember","Venture capital funds [Member]","Venture capital funds",7,4,"in-bse-shp_VentureCapitalFundsMember","InstitutionsMember","VentureCapitalFundsMember","StatementshowingShareholdingPattern","nonnum:domainItemType",null,"xbrli:item",null,"duration","false","true",0]
["in-bse-shp","InsuranceCompaniesMember","Insurance companies [Member]","Insurance companies",7,5,"in-bse-shp_InsuranceCompaniesMember","InstitutionsMember","InsuranceCompaniesMember","StatementshowingShareholdingPattern","nonnum:domainItemType",null,"xbrli:item",null,"duration","false","true",0]
["in-bse-shp","ForeignInstitutionalInvestorsMember","Foreign institutional investors [Member]","Foreign institutional investors",7,6,"in-bse-shp_ForeignInstitutionalInvestorsMember","InstitutionsMember","ForeignInstitutionalInvestorsMember","StatementshowingShareholdingPattern","nonnum:domainItemType",null,"xbrli:item",null,"duration","false","true",0]
["in-bse-shp","ForeignVentureCapitalInvestorsMember","Foreign venture capital investors [Member]","Foreign venture capital investors",7,7,"in-bse-shp_ForeignVentureCapitalInvestorsMember","InstitutionsMember","ForeignVentureCapitalInvestorsMember","StatementshowingShareholdingPattern","nonnum:domainItemType",null,"xbrli:item",null,"duration","false","true",0]
["in-bse-shp","InstitutionsQualifiedForeignInvestorMember","Institutions - Qualified foreign investor [Member]","Qualified  foreign  investor",7,8,"in-bse-shp_QualifiedForeignInvestorMember","InstitutionsMember","QualifiedForeignInvestorMember","StatementshowingShareholdingPattern","nonnum:domainItemType",null,"xbrli:item",null,"duration","false","true",0]
["in-bse-shp","NominatedInvestorsMember","Nominated investors [Member]","Nominated investors"]
["in-bse-shp","MarketMakersMember","Market makers [Member]","Market makers"]
["in-bse-shp","OtherInstitutionsMember","Other institutions [Member]","Total Others",7,9,"in-bse-shp_OtherMutualFundsOrUtiMember","InstitutionsMember","OtherMutualFundsOrUtiMember","StatementshowingShareholdingPattern","OthersType",null,"xbrli:item",null,"duration","false","true",0]
["in-bse-shp","NonInstitutionsMember","Non-institutions [Member]","Sub-total (B) (2)",5,2,"in-bse-shp_NonInstitutionsMember","PublicShareholdingMember","NonInstitutionsMember","StatementshowingShareholdingPattern","nonnum:domainItemType",null,"xbrli:item",null,"duration","false","true",0]
["in-bse-shp","NonInstitutionsBodiesCorporateMember","Non-institutions - bodies corporate [Member]","Bodies   corporate",6,1,"in-bse-shp_BodiesCorporateMember","NonInstitutionsMember","BodiesCorporateMember","StatementshowingShareholdingPattern","nonnum:domainItemType",null,"xbrli:item",null,"duration","false","true",0]
["in-bse-shp","IndividualsMember","Individuals [Member]","Individuals",6,2,"in-bse-shp_IndividualsMember","NonInstitutionsMember","IndividualsMember","StatementshowingShareholdingPattern","nonnum:domainItemType",null,"xbrli:item",null,"duration","false","true",0]
["in-bse-shp","IndividualShareholdersHoldingNominalShareCapitalUpToRsOneLakhMember","Individual shareholders holding nominal share capital up to Rs one lakh [Member]","Individual shareholders holding nominal share capital up to Rs one lakh",7,1,"in-bse-shp_IndividualShareholdersHoldingNominalShareCapitalUpToRsOneLakhMember","IndividualsMember","IndividualShareholdersHoldingNominalShareCapitalUpToRsOneLakhMember","StatementshowingShareholdingPattern","nonnum:domainItemType",null,"xbrli:item",null,"duration","false","true",0]
["in-bse-shp","IndividualShareholdersHoldingNominalShareCapitalInExcessOfRsOneLakhMember","Individual shareholders holding nominal share capital in excess of Rs one lakh [Member]","Individual shareholders holding nominal share capital in excess of Rs one lakh",7,2,"in-bse-shp_IndividualShareholdersHoldingNominalShareCapitalInExcessOfRsOneLakhMember","IndividualsMember","IndividualShareholdersHoldingNominalShareCapitalInExcessOfRsOneLakhMember","StatementshowingShareholdingPattern","nonnum:domainItemType",null,"xbrli:item",null,"duration","false","true",0]
["in-bse-shp","NonInstitutionsQualifiedForeignInvestorMember","Non-institutions - qualified foreign investor [Member]","Qualified  foreign investor",6,3,"in-bse-shp_QualifiedForeignInvestorMember","NonInstitutionsMember","QualifiedForeignInvestorMember","StatementshowingShareholdingPattern","nonnum:domainItemType",null,"xbrli:item",null,"duration","false","true",0]
["in-bse-shp","OtherNonInstitutionsMember","Other non-institutions [Member]","Total Others",6,4,"in-bse-shp_OtherNonInstitutionsMember","NonInstitutionsMember","OtherNonInstitutionsMember","StatementshowingShareholdingPattern","OthersType",null,"xbrli:item",null,"duration","false","true",0]
["in-bse-shp","SharesHeldByCustodiansAndAgainstWhichDepositoryReceiptHaveBeenIssuedMember","Shares held by custodians and against which depository receipt have been issued [Member]",null,4,3,"in-bse-shp_SharesHeldByCustodiansAgainstWhichDepositoryReceiptHaveBeenIssuedMember","ShareholdingPatternMember","SharesHeldByCustodiansAgainstWhichDepositoryReceiptHaveBeenIssuedMember","StatementshowingShareholdingPattern","nonnum:domainItemType",null,"xbrli:item",null,"duration","false","true",0]
["in-bse-shp","PromoterSMember","Promoter(s) [Member]","Promoter and promoter group",5,1,"in-bse-shp_SharesHeldByPromoterAndPromoterGroupMember","SharesHeldByCustodiansAgainstWhichDepositoryReceiptHaveBeenIssuedMember","Promoter(s) [Member]","StatementshowingShareholdingPattern","nonnum:domainItemType",null,"xbrli:item",null,"duration","false","true",0]
["in-bse-shp","PublicMember","Public [Member]","Public ",5,2,"in-bse-shp_SharesHeldByPublicMember","SharesHeldByCustodiansAgainstWhichDepositoryReceiptHaveBeenIssuedMember","Public [Member]","StatementshowingShareholdingPattern","nonnum:domainItemType",null,"xbrli:item",null,"duration","false","true",0]
["in-bse-shp","DetailsOfFullyPaidUpSharesLineItems","Details of fully paid-up shares [Line items]",null,1,2,"in-bse-shp_DetailsOfFullyPaidUpSharesLineItems","DetailsOfFullyPaidupSharesAbstract","DetailsOfFullyPaidUpSharesLineItems","StatementshowingShareholdingPattern","xbrli:stringItemType",null,"xbrli:item",null,"duration","true","true",0]
["in-bse-shp","NumberOfShareholders","Number of shareholders","Number of shareholders              ",2,1,"in-bse-shp_NumberOfShareholders","DetailsOfFullyPaidUpSharesLineItems","NumberOfShareholders","StatementshowingShareholdingPattern","xbrli:decimalItemType",null,"xbrli:item",null,"instant","false","true",0]
["in-bse-shp","TotalNumberOfShares","Total number of shares","Total number of shares",2,2,"in-bse-shp_TotalNumberOfShares","DetailsOfFullyPaidUpSharesLineItems","TotalNumberOfShares","StatementshowingShareholdingPattern","xbrli:sharesItemType",null,"xbrli:item",null,"instant","false","true",0]
["in-bse-shp","NumberOfSharesHeldInDematerializedForm","Number of shares held in dematerialized form","Number of shares held in dematerialised form",2,3,"in-bse-shp_NumberOfSharesHeldInDematerializedForm","DetailsOfFullyPaidUpSharesLineItems","NumberOfSharesHeldInDematerializedForm","StatementshowingShareholdingPattern","xbrli:sharesItemType",null,"xbrli:item",null,"instant","false","true",0]
["in-bse-shp","TotalShareholdingAsAPercentageOfTotalNumberOfSharesAbstract","Total shareholding as a percentage of total number of shares [Abstract]",null,2,4,"in-bse-shp_TotalShareholdingAsAPercentageOfTotalNumberOfSharesAbstract","DetailsOfFullyPaidUpSharesLineItems","TotalShareholdingAsAPercentageOfTotalNumberOfSharesAbstract","StatementshowingShareholdingPattern","xbrli:stringItemType",null,"xbrli:item",null,"duration","true","true",0]
["in-bse-shp","ShareholdingAsAPercentageOfTotalNumberOfSharesHeldByPromoterSAndPublicShareholders","Shareholding as a percentage of total number of shares held by promoter(s) and public shareholders","As a percentage of (A+B)             ",3,1,"in-bse-shp_ShareholdingAsAPercentageOfTotalNumberOfSharesHeldByPromotersAndPublicShareholders","TotalShareholdingAsAPercentageOfTotalNumberOfSharesAbstract","ShareholdingAsAPercentageOfTotalNumberOfSharesHeldByPromotersAndPublicShareholders","StatementshowingShareholdingPattern","num:percentItemType",null,"xbrli:item",null,"instant","false","true",0]
["in-bse-shp","ShareholdingAsAPercentageOfTotalNumberOfSharesHeldByPromoterSPublicShareholdersAndCustodiansHavingDepositoryReceipts","Shareholding as a percentage of total number of shares held by promoter(s), public shareholders and custodians having depository receipts","As a percentage of (A+B+C)",3,2,"in-bse-shp_ShareholdingAsAPercentageOfTotalNumberOfSharesHeldByPromoterSPublicShareholdersAndCustodiansHavingDepositoryReceipts","TotalShareholdingAsAPercentageOfTotalNumberOfSharesAbstract","ShareholdingAsAPercentageOfTotalNumberOfSharesHeldByPromoterSPublicShareholdersAndCustodiansHavingDepositoryReceipts","StatementshowingShareholdingPattern","num:percentItemType",null,"xbrli:item",null,"instant","false","true",0]
["in-bse-shp","SharesPledgedOrOtherwiseEncumberedAbstract","Shares pledged or otherwise encumbered [Abstract]",null,2,5,"in-bse-shp_SharesPledgedOrOtherwiseEncumberedAbstract","DetailsOfFullyPaidUpSharesLineItems","SharesPledgedOrOtherwiseEncumberedAbstract","StatementshowingShareholdingPattern","xbrli:stringItemType",null,"xbrli:item",null,"duration","true","true",0]
["in-bse-shp","PledgedOrEncumberedNumberOfShares","Pledged or encumbered - Number of shares","Number            of                 shares",3,1,"in-bse-shp_PledgedOrEncumberedNumberOfShares","SharesPledgedOrOtherwiseEncumberedAbstract","PledgedOrEncumberedNumberOfShares","StatementshowingShareholdingPattern","xbrli:sharesItemType",null,"xbrli:item",null,"instant","false","true",0]
["in-bse-shp","PledgedOrEncumberedSharesHeldAsPercentageOfTotalNumberOfShares","Pledged or encumbered shares held as percentage of total number of shares","As   a  percentage ",3,2,"in-bse-shp_PledgedOrEncumberedSharesHeldAsPercentageOfTotalNumberOfShares","SharesPledgedOrOtherwiseEncumberedAbstract","PledgedOrEncumberedSharesHeldAsPercentageOfTotalNumberOfShares","StatementshowingShareholdingPattern","num:percentItemType",null,"xbrli:item",null,"instant","false","true",0]
["in-bse-shp","DisclosureOfNotesOnFullyPaidUpShares","Disclosure of notes on fully paid-up shares","Disclosure of notes on fully paid-up shares       ",1,6,"in-bse-shp_Disclosure of notes on fully paid-up shares",null,null,null,"xbrli:stringItemType",null,"xbrli:item",null,"instant","false","true"]
["in-bse-shp","DetailsOfShareholdingPatternOfIndianPromotersAbstract","Details of shareholding pattern of indian promoters [Abstract]",null,0,null,"in-bse-shp_DetailsOfShareholdingPatternOfIndianPromoterAndPromoterGroupAbstract",null,null,"ShareholdingPatternIndianPromoters","xbrli:stringItemType",null,"xbrli:item",null,"duration","true","true",0]
["in-bse-shp","DetailsOfShareholdingPatternOfIndianPromotersTable","Details of shareholding pattern of indian promoters [Table]",null,1,1,"in-bse-shp_DetailsOfShareholdingPatternOfIndianPromoterAndPromoterGroupTable","DetailsOfShareholdingPatternOfIndianPromotersAbstract","DetailsOfShareholdingPatternOfIndianPromotersTable","ShareholdingPatternIndianPromoters","xbrli:stringItemType",null,"xbrldt:hypercubeItem",null,"duration","true","true",0]
["in-bse-shp","DetailsofIndianShareholdersAxis","Details of indian shareholders [Axis]",null,2,1,"in-bse-shp_DetailsofIndianShareholdersAxis","DetailsOfShareholdingPatternOfIndianPromotersTable","DetailsofIndianShareholdersAxis","ShareholdingPatternIndianPromoters","xbrli:stringItemType",null,"xbrldt:dimensionItem",null,"duration","true","true",0]
["in-bse-shp","DetailsOfIndianShareholdersDomain","Details of indian shareholders domain",null,3,1,"in-bse-shp_DetailsOfIndianShareholdersDomain","DetailsofIndianShareholdersAxis","DetailsOfIndianShareholdersDomain","ShareholdingPatternIndianPromoters","nonnum:domainItemType",null,"xbrli:item",null,"duration","false","true",0]
["in-bse-shp","IndianShareholders1Member","Indian shareholders 1 [Member]","Indian shareholders 1",4,1,"in-bse-shp_IndianShareholders1Member","DetailsOfIndianShareholdersDomain","IndianShareholders1Member","ShareholdingPatternIndianPromoters","nonnum:domainItemType",null,"xbrli:item",null,"duration","false","true",0]
["in-bse-shp","IndianShareholders2Member","Indian shareholders 2 [Member]","Indian shareholders 2",4,2,"in-bse-shp_IndianShareholders2Member","DetailsOfIndianShareholdersDomain","IndianShareholders2Member","ShareholdingPatternIndianPromoters","nonnum:domainItemType",null,"xbrli:item",null,"duration","false","true",0]
["in-bse-shp","IndianShareholders3Member","Indian shareholders 3 [Member]","Indian shareholders 3",4,3,"in-bse-shp_IndianShareholders3Member","DetailsOfIndianShareholdersDomain","IndianShareholders3Member","ShareholdingPatternIndianPromoters","nonnum:domainItemType",null,"xbrli:item",null,"duration","false","true",0]
["in-bse-shp","IndianShareholders4Member","Indian shareholders 4 [Member]","Indian shareholders 4",4,4,"in-bse-shp_IndianShareholders4Member","DetailsOfIndianShareholdersDomain","IndianShareholders4Member","ShareholdingPatternIndianPromoters","nonnum:domainItemType",null,"xbrli:item",null,"duration","false","true",0]
["in-bse-shp","IndianShareholders5Member","Indian shareholders 5 [Member]","Indian shareholders 5",4,5,"in-bse-shp_IndianShareholders5Member","DetailsOfIndianShareholdersDomain","IndianShareholders5Member","ShareholdingPatternIndianPromoters","nonnum:domainItemType",null,"xbrli:item",null,"duration","false","true",0]
["in-bse-shp","IndianShareholders6Member","Indian shareholders 6 [Member]","Indian shareholders 6",6,"in-bse_IndianShareholders6Member","DetailsOfIndianShareholdersDomain","IndianShareholders6Member","ShareholdingPatternIndianPromoters",null,"domain-member",null,null,null,"true"]
["in-bse-shp","IndianShareholders7Member","Indian shareholders 7 [Member]","Indian shareholders 7",7,"in-bse_IndianShareholders7Member","DetailsOfIndianShareholdersDomain","IndianShareholders7Member","ShareholdingPatternIndianPromoters",null,"domain-member",null,null,null,"true"]
["in-bse-shp","IndianShareholders8Member","Indian shareholders 8 [Member]","Indian shareholders 8",8,"in-bse_IndianShareholders8Member","DetailsOfIndianShareholdersDomain","IndianShareholders8Member","ShareholdingPatternIndianPromoters",null,"domain-member",null,null,null,"true"]
["in-bse-shp","IndianShareholders9Member","Indian shareholders 9 [Member]","Indian shareholders 9",9,"in-bse_IndianShareholders9Member","DetailsOfIndianShareholdersDomain","IndianShareholders9Member","ShareholdingPatternIndianPromoters",null,"domain-member",null,null,null,"true"]
["in-bse-shp","IndianShareholders10Member","Indian shareholders 10 [Member]","Indian shareholders 10",10,"in-bse_IndianShareholders10Member","DetailsOfIndianShareholdersDomain","IndianShareholders10Member","ShareholdingPatternIndianPromoters",null,"domain-member",null,null,null,"true"]
["in-bse-shp","IndianShareholders11Member","Indian shareholders 11 [Member]","Indian shareholders 11",null,"in-bse_IndianShareholders11Member"]
["in-bse-shp","IndianShareholders12Member","Indian shareholders 12 [Member]","Indian shareholders 12",null,"in-bse_IndianShareholders12Member"]
["in-bse-shp","IndianShareholders13Member","Indian shareholders 13 [Member]","Indian shareholders 13",null,"in-bse_IndianShareholders13Member"]
["in-bse-shp","IndianShareholders14Member","Indian shareholders 14 [Member]","Indian shareholders 14",null,"in-bse_IndianShareholders14Member"]
["in-bse-shp","IndianShareholders15Member","Indian shareholders 15 [Member]","Indian shareholders 15",null,"in-bse_IndianShareholders15Member"]
["in-bse-shp","IndianShareholders16Member","Indian shareholders 16 [Member]","Indian shareholders 16",null,"in-bse_IndianShareholders16Member"]
["in-bse-shp","IndianShareholders17Member","Indian shareholders 17 [Member]","Indian shareholders 17",null,"in-bse_IndianShareholders17Member"]
["in-bse-shp","IndianShareholders18Member","Indian shareholders 18 [Member]","Indian shareholders 18",null,"in-bse_IndianShareholders18Member"]
["in-bse-shp","IndianShareholders19Member","Indian shareholders 19 [Member]","Indian shareholders 19",null,"in-bse_IndianShareholders19Member"]
["in-bse-shp","IndianShareholders20Member","Indian shareholders 20 [Member]","Indian shareholders 20",null,"in-bse_IndianShareholders20Member"]
["in-bse-shp","DetailsOfShareholdingPatternOfIndianPromotersLineItems","Details of shareholding pattern of indian promoters [Line items]",null,1,2,"in-bse-shp_DetailsOfShareholdingPatternOfIndianPromoterAndPromoterGroupLineItems","DetailsOfShareholdingPatternOfIndianPromotersAbstract","DetailsOfShareholdingPatternOfIndianPromotersLineItems","ShareholdingPatternIndianPromoters","xbrli:stringItemType",null,"xbrli:item",null,"duration","true","true",0]
["in-bse-shp","NameOfShareholder","Name Of Shareholder","Description of Shareholder",2,1,"in-bse-shp_NameOfShareholder","DetailsOfShareholdingPatternOfIndianPromotersLineItems","NameOfShareholder","ShareholdingPatternIndianPromoters","xbrli:stringItemType",null,"xbrli:item",null,"duration","false","true",0]
["in-bse-shp","NumberOfShareholders","Number of shareholders",null,2,1,"in-bse-shp_NumberOfShareholders","DetailsOfShareholdingPatternOfIndianPromotersLineItems","NumberOfShareholders","ShareholdingPatternIndianPromoters","xbrli:decimalItemType",null,"xbrli:item",null,"instant","false","true",0]
["in-bse-shp","TotalNumberOfShares","Total number of shares",null,2,2,"in-bse-shp_TotalNumberOfShares","DetailsOfShareholdingPatternOfIndianPromotersLineItems","TotalNumberOfShares","ShareholdingPatternIndianPromoters","xbrli:sharesItemType",null,"xbrli:item",null,"instant","false","true",0]
["in-bse-shp","NumberOfSharesHeldInDematerializedForm","Number of shares held in dematerialized form",null,2,3,"in-bse-shp_NumberOfSharesHeldInDematerializedForm","DetailsOfShareholdingPatternOfIndianPromotersLineItems","NumberOfSharesHeldInDematerializedForm","ShareholdingPatternIndianPromoters","xbrli:sharesItemType",null,"xbrli:item",null,"instant","false","true",0]
["in-bse-shp","TotalShareholdingAsAPercentageOfTotalNumberOfSharesAbstract","Total shareholding as a percentage of total number of shares [Abstract]",null,2,4,"in-bse-shp_TotalShareholdingAsAPercentageOfTotalNumberOfSharesAbstract","DetailsOfShareholdingPatternOfIndianPromotersLineItems","TotalShareholdingAsAPercentageOfTotalNumberOfSharesAbstract","ShareholdingPatternIndianPromoters","xbrli:stringItemType",null,"xbrli:item",null,"duration","true","true",0]
["in-bse-shp","ShareholdingAsAPercentageOfTotalNumberOfSharesHeldByPromoterSAndPublicShareholders","Shareholding as a percentage of total number of shares held by promoter(s) and public shareholders",null,3,1,"in-bse-shp_ShareholdingAsAPercentageOfTotalNumberOfSharesHeldByPromoterPromoterGroupAndPublicShareholders","TotalShareholdingAsAPercentageOfTotalNumberOfSharesAbstract","ShareholdingAsAPercentageOfTotalNumberOfSharesHeldByPromotersAndPublicShareholders","ShareholdingPatternIndianPromoters","num:percentItemType",null,"xbrli:item",null,"instant","false","true",0]
["in-bse-shp","ShareholdingAsAPercentageOfTotalNumberOfSharesHeldByPromoterSPublicShareholdersAndCustodiansHavingDepositoryReceipts","Shareholding as a percentage of total number of shares held by promoter(s), public shareholders and custodians having depository receipts",null,3,2,"in-bse-shp_ShareholdingAsAPercentageOfTotalNumberOfSharesHeldByPromoterSPublicShareholdersAndCustodiansHavingDepositoryReceipts","TotalShareholdingAsAPercentageOfTotalNumberOfSharesAbstract","ShareholdingAsAPercentageOfTotalNumberOfSharesHeldByPromoterSPublicShareholdersAndCustodiansHavingDepositoryReceipts","ShareholdingPatternIndianPromoters","num:percentItemType",null,"xbrli:item",null,"instant","false","true",0]
["in-bse-shp","SharesPledgedOrOtherwiseEncumberedAbstract","Shares pledged or otherwise encumbered [Abstract]",null,2,5,"in-bse-shp_SharesPledgedOrOtherwiseEncumberedAbstract","DetailsOfShareholdingPatternOfIndianPromotersLineItems","SharesPledgedOrOtherwiseEncumberedAbstract","ShareholdingPatternIndianPromoters","xbrli:stringItemType",null,"xbrli:item",null,"duration","true","true",0]
["in-bse-shp","PledgedOrEncumberedNumberOfShares","Pledged or encumbered - Number of shares",null,3,1,"in-bse-shp_PledgedOrEncumberedNumberOfShares","SharesPledgedOrOtherwiseEncumberedAbstract","PledgedOrEncumberedNumberOfShares","ShareholdingPatternIndianPromoters","xbrli:sharesItemType",null,"xbrli:item",null,"instant","false","true",0]
["in-bse-shp","PledgedOrEncumberedSharesHeldAsPercentageOfTotalNumberOfShares","Pledged or encumbered shares held as percentage of total number of shares",null,3,2,"in-bse-shp_PledgedOrEncumberedSharesHeldAsPercentageOfTotalNumberOfShares","SharesPledgedOrOtherwiseEncumberedAbstract","PledgedOrEncumberedSharesHeldAsPercentageOfTotalNumberOfShares","ShareholdingPatternIndianPromoters","num:percentItemType",null,"xbrli:item",null,"instant","false","true",0]
["in-bse-shp","DetailsOfShareholdingPatternOfForeignPromotersAbstract","Details of shareholding pattern of foreign promoters group [Abstract]",null,0,null,"in-bse-shp_DetailsOfShareholdingPatternOfForeignPromoterAndPromoterGroupAbstract",null,null,"ShareholdingPatternForeignPromoters","xbrli:stringItemType",null,"xbrli:item",null,"duration","true","true",0]
["in-bse-shp","DetailsOfShareholdingPatternOfForeignPromotersTable","Details of shareholding pattern of foreign promoters [Table]",null,1,1,"in-bse-shp_DetailsOfShareholdingPatternOfForeignPromoterAndPromoterGroupTable","DetailsOfShareholdingPatternOfForeignPromotersAbstract","DetailsOfShareholdingPatternOfForeignPromotersTable","ShareholdingPatternForeignPromoters","xbrli:stringItemType",null,"xbrldt:hypercubeItem",null,"duration","true","true",0]
["in-bse-shp","DetailsOfForeignShareholdersAxis","Details of foreign shareholders [Axis]",null,2,1,"in-bse-shp_DetailsOfForeignShareholdersAxis","DetailsOfShareholdingPatternOfForeignPromotersTable","DetailsOfForeignShareholdersAxis","ShareholdingPatternForeignPromoters","xbrli:stringItemType",null,"xbrldt:dimensionItem",null,"duration","true","true",0]
["in-bse-shp","DetailsOfForeignShareholdersDomain","Details of foreign shareholders domain",null,3,1,"in-bse-shp_DetailsOfForeignShareholdersDomain","DetailsOfForeignShareholdersAxis","DetailsOfForeignShareholdersDomain","ShareholdingPatternForeignPromoters","nonnum:domainItemType",null,"xbrli:item",null,"duration","false","true",0]
["in-bse-shp","ForeignShareholders1Member","Foreign shareholders 1 [Member]","Foreign shareholders 1",4,1,"in-bse-shp_ForeignShareholders1Member","DetailsOfForeignShareholdersDomain","ForeignShareholders1Member","ShareholdingPatternForeignPromoters","nonnum:domainItemType",null,"xbrli:item",null,"duration","false","true",0]
["in-bse-shp","ForeignShareholders2Member","Foreign shareholders 2 [Member]","Foreign shareholders 2",4,2,"in-bse-shp_ForeignShareholders2Member","DetailsOfForeignShareholdersDomain","ForeignShareholders2Member","ShareholdingPatternForeignPromoters","nonnum:domainItemType",null,"xbrli:item",null,"duration","false","true",0]
["in-bse-shp","ForeignShareholders3Member","Foreign shareholders 3 [Member]","Foreign shareholders 3",4,3,"in-bse-shp_ForeignShareholders3Member","DetailsOfForeignShareholdersDomain","ForeignShareholders3Member","ShareholdingPatternForeignPromoters","nonnum:domainItemType",null,"xbrli:item",null,"duration","false","true",0]
["in-bse-shp","ForeignShareholders4Member","Foreign shareholders 4 [Member]","Foreign shareholders 4",4,4,"in-bse-shp_ForeignShareholders4Member","DetailsOfForeignShareholdersDomain","ForeignShareholders4Member","ShareholdingPatternForeignPromoters","nonnum:domainItemType",null,"xbrli:item",null,"duration","false","true",0]
["in-bse-shp","ForeignShareholders5Member","Foreign shareholders 5 [Member]","Foreign shareholders 5",4,5,"in-bse-shp_ForeignShareholders5Member","DetailsOfForeignShareholdersDomain","ForeignShareholders5Member","ShareholdingPatternForeignPromoters","nonnum:domainItemType",null,"xbrli:item",null,"duration","false","true",0]
["in-bse-shp","ForeignShareholders6Member","Foreign shareholders 6 [Member]","Foreign shareholders 6",6,"in-bse_ForeignShareholders6Member","DetailsOfForeignShareholdersDomain","ForeignShareholders6Member","ShareholdingPatternForeignPromoters",null,"domain-member",null,null,null,"true"]
["in-bse-shp","ForeignShareholders7Member","Foreign shareholders 7 [Member]","Foreign shareholders 7",7,"in-bse_ForeignShareholders7Member","DetailsOfForeignShareholdersDomain","ForeignShareholders7Member","ShareholdingPatternForeignPromoters",null,"domain-member",null,null,null,"true"]
["in-bse-shp","ForeignShareholders8Member","Foreign shareholders 8 [Member]","Foreign shareholders 8",8,"in-bse_ForeignShareholders8Member","DetailsOfForeignShareholdersDomain","ForeignShareholders8Member","ShareholdingPatternForeignPromoters",null,"domain-member",null,null,null,"true"]
["in-bse-shp","ForeignShareholders9Member","Foreign shareholders 9 [Member]","Foreign shareholders 9",9,"in-bse_ForeignShareholders9Member","DetailsOfForeignShareholdersDomain","ForeignShareholders9Member","ShareholdingPatternForeignPromoters",null,"domain-member",null,null,null,"true"]
["in-bse-shp","ForeignShareholders10Member","Foreign shareholders 10 [Member]","Foreign shareholders 10",10,"in-bse_ForeignShareholders10Member","DetailsOfForeignShareholdersDomain","ForeignShareholders10Member","ShareholdingPatternForeignPromoters",null,"domain-member",null,null,null,"true"]
["in-bse-shp","ForeignShareholders11Member","Foreign shareholders 11 [Member]","Foreign shareholders 11",null,"in-bse_ForeignShareholders11Member"]
["in-bse-shp","ForeignShareholders12Member","Foreign shareholders 12 [Member]","Foreign shareholders 12",null,"in-bse_ForeignShareholders12Member"]
["in-bse-shp","ForeignShareholders13Member","Foreign shareholders 13 [Member]","Foreign shareholders 13",null,"in-bse_ForeignShareholders13Member"]
["in-bse-shp","ForeignShareholders14Member","Foreign shareholders 14 [Member]","Foreign shareholders 14",null,"in-bse_ForeignShareholders14Member"]
["in-bse-shp","ForeignShareholders15Member","Foreign shareholders 15 [Member]","Foreign shareholders 15",null,"in-bse_ForeignShareholders15Member"]
["in-bse-shp","ForeignShareholders16Member","Foreign shareholders 16 [Member]","Foreign shareholders 16",null,"in-bse_ForeignShareholders16Member"]
["in-bse-shp","ForeignShareholders17Member","Foreign shareholders 17 [Member]","Foreign shareholders 17",null,"in-bse_ForeignShareholders17Member"]
["in-bse-shp","ForeignShareholders18Member","Foreign shareholders 18 [Member]","Foreign shareholders 18",null,"in-bse_ForeignShareholders18Member"]
["in-bse-shp","ForeignShareholders19Member","Foreign shareholders 19 [Member]","Foreign shareholders 19",null,"in-bse_ForeignShareholders19Member"]
["in-bse-shp","ForeignShareholders20Member","Foreign shareholders 20 [Member]","Foreign shareholders 20",null,"in-bse_ForeignShareholders20Member"]
["in-bse-shp","DetailsOfShareholdingPatternOfForeignPromotersLineItems","Details of shareholding pattern of foreign promoters [Line items]",null,1,2,"in-bse-shp_DetailsOfShareholdingPatternOfForeignPromoterAndPromoterGroupLineItems","DetailsOfShareholdingPatternOfForeignPromotersAbstract","DetailsOfShareholdingPatternOfForeignPromotersLineItems","ShareholdingPatternForeignPromoters","xbrli:stringItemType",null,"xbrli:item",null,"duration","true","true",0]
["in-bse-shp","NameOfShareholder","Name Of Shareholder","Description of Shareholder",2,1,"in-bse-shp_NameOfShareholder","DetailsOfShareholdingPatternOfForeignPromotersLineItems","NameOfShareholder","ShareholdingPatternForeignPromoters","xbrli:stringItemType",null,"xbrli:item",null,"instant","false","true",0]
["in-bse-shp","NumberOfShareholders","Number of shareholders",null,2,1,"in-bse-shp_NumberOfShareholders","DetailsOfShareholdingPatternOfForeignPromotersLineItems","NumberOfShareholders","ShareholdingPatternForeignPromoters","xbrli:decimalItemType",null,"xbrli:item",null,"instant","false","true",0]
["in-bse-shp","TotalNumberOfShares","Total number of shares",null,2,2,"in-bse-shp_TotalNumberOfShares","DetailsOfShareholdingPatternOfForeignPromotersLineItems","TotalNumberOfShares","ShareholdingPatternForeignPromoters","xbrli:sharesItemType",null,"xbrli:item",null,"instant","false","true",0]
["in-bse-shp","NumberOfSharesHeldInDematerializedForm","Number of shares held in dematerialized form",null,2,3,"in-bse-shp_NumberOfSharesHeldInDematerializedForm","DetailsOfShareholdingPatternOfForeignPromotersLineItems","NumberOfSharesHeldInDematerializedForm","ShareholdingPatternForeignPromoters","xbrli:sharesItemType",null,"xbrli:item",null,"instant","false","true",0]
["in-bse-shp","TotalShareholdingAsAPercentageOfTotalNumberOfSharesAbstract","Total shareholding as a percentage of total number of shares [Abstract]",null,2,4,"in-bse-shp_TotalShareholdingAsAPercentageOfTotalNumberOfSharesAbstract","DetailsOfShareholdingPatternOfForeignPromotersLineItems","TotalShareholdingAsAPercentageOfTotalNumberOfSharesAbstract","ShareholdingPatternForeignPromoters","xbrli:stringItemType",null,"xbrli:item",null,"duration","true","true",0]
["in-bse-shp","ShareholdingAsAPercentageOfTotalNumberOfSharesHeldByPromotersAndPublicShareholders","Shareholding as a percentage of total number of shares held by promoter(s) and public shareholders",null,3,1,"in-bse-shp_ShareholdingAsAPercentageOfTotalNumberOfSharesHeldByPromoterPromoterGroupAndPublicShareholders","TotalShareholdingAsAPercentageOfTotalNumberOfSharesAbstract","ShareholdingAsAPercentageOfTotalNumberOfSharesHeldByPromotersAndPublicShareholders","ShareholdingPatternForeignPromoters","num:percentItemType",null,"xbrli:item",null,"instant","false","true",0]
["in-bse-shp","ShareholdingAsAPercentageOfTotalNumberOfSharesHeldByPromoterSPublicShareholdersAndCustodiansHavingDepositoryReceipts","Shareholding as a percentage of total number of shares held by promoter(s), public shareholders and custodians having depository receipts",null,3,2,"in-bse-shp_ShareholdingAsAPercentageOfTotalNumberOfSharesHeldByPromoterSPublicShareholdersAndCustodiansHavingDepositoryReceipts","TotalShareholdingAsAPercentageOfTotalNumberOfSharesAbstract","ShareholdingAsAPercentageOfTotalNumberOfSharesHeldByPromoterSPublicShareholdersAndCustodiansHavingDepositoryReceipts","ShareholdingPatternForeignPromoters","num:percentItemType",null,"xbrli:item",null,"instant","false","true",0]
["in-bse-shp","SharesPledgedOrOtherwiseEncumberedAbstract","Shares pledged or otherwise encumbered [Abstract]",null,2,5,"in-bse-shp_SharesPledgedOrOtherwiseEncumberedAbstract","DetailsOfShareholdingPatternOfForeignPromotersLineItems","SharesPledgedOrOtherwiseEncumberedAbstract","ShareholdingPatternForeignPromoters","xbrli:stringItemType",null,"xbrli:item",null,"duration","true","true",0]
["in-bse-shp","PledgedOrEncumberedNumberOfShares","Pledged or encumbered - Number of shares",null,3,1,"in-bse-shp_PledgedOrEncumberedNumberOfShares","SharesPledgedOrOtherwiseEncumberedAbstract","PledgedOrEncumberedNumberOfShares","ShareholdingPatternForeignPromoters","xbrli:sharesItemType",null,"xbrli:item",null,"instant","false","true",0]
["in-bse-shp","PledgedOrEncumberedSharesHeldAsPercentageOfTotalNumberOfShares","Pledged or encumbered shares held as percentage of total number of shares",null,3,2,"in-bse-shp_PledgedOrEncumberedSharesHeldAsPercentageOfTotalNumberOfShares","SharesPledgedOrOtherwiseEncumberedAbstract","PledgedOrEncumberedSharesHeldAsPercentageOfTotalNumberOfShares","ShareholdingPatternForeignPromoters","num:percentItemType",null,"xbrli:item",null,"instant","false","true",0]
["in-bse-shp","DetailsOfShareholdingPatternOfInstitutionsShareholdersAbstract","Details of shareholding pattern of institutions shareholders [Abstract]",null,0,null,"in-bse-shp_DetailsOfShareholdingPatternOfInstitutionsShareholdersAbstract",null,null,"ShareholdingPatternInstitutionsPromoters","xbrli:stringItemType",null,"xbrli:item",null,"duration","true","true",0]
["in-bse-shp","DetailsOfShareholdingPatternOfInstitutionsShareholdersTable","Details of shareholding pattern of institutions shareholders [Table]",null,1,1,"in-bse-shp_DetailsOfShareholdingPatternOfInstitutionsShareholdersTable","DetailsOfShareholdingPatternOfInstitutionsShareholdersAbstract","DetailsOfShareholdingPatternOfInstitutionsShareholdersTable","ShareholdingPatternInstitutionsPromoters","xbrli:stringItemType",null,"xbrldt:hypercubeItem",null,"duration","true","true",0]
["in-bse-shp","DetailsOfInstitutionsShareHoldersAxis","Details of Institutions shareholders [Axis]",null,2,1,"in-bse-shp_DetailsOfInstitutionsShareHoldersAxis","DetailsOfShareholdingPatternOfInstitutionsShareholdersTable","DetailsOfInstitutionsShareHoldersAxis","ShareholdingPatternInstitutionsPromoters","xbrli:stringItemType",null,"xbrldt:dimensionItem",null,"duration","true","true",0]
["in-bse-shp","DetailsOfInstitutionsShareHoldersDomain","Details of Institutions shareholders domain",null,3,1,"in-bse-shp_DetailsOfInstitutionsShareHoldersDomain","DetailsOfInstitutionsShareHoldersAxis","DetailsOfInstitutionsShareHoldersDomain","ShareholdingPatternInstitutionsPromoters","nonnum:domainItemType",null,"xbrli:item",null,"duration","false","true",0]
["in-bse-shp","InstitutionsShareHolders1Member","Institutions shareholders 1 [Member]","Institutions Shareholders 1",4,1,"in-bse-shp_InstitutionsShareHolders1Member","DetailsOfInstitutionsShareHoldersDomain","InstitutionsShareHolders1Member","ShareholdingPatternInstitutionsPromoters","nonnum:domainItemType",null,"xbrli:item",null,"duration","false","true",0]
["in-bse-shp","InstitutionsShareHolders2Member","Institutions shareholders 2 [Member]","Institutions Shareholders 2",4,2,"in-bse-shp_InstitutionsShareHolders2Member","DetailsOfInstitutionsShareHoldersDomain","InstitutionsShareHolders2Member","ShareholdingPatternInstitutionsPromoters","nonnum:domainItemType",null,"xbrli:item",null,"duration","false","true",0]
["in-bse-shp","InstitutionsShareHolders3Member","Institutions shareholders 3 [Member]","Institutions Shareholders 3",4,3,"in-bse-shp_InstitutionsShareHolders3Member","DetailsOfInstitutionsShareHoldersDomain","InstitutionsShareHolders3Member","ShareholdingPatternInstitutionsPromoters","nonnum:domainItemType",null,"xbrli:item",null,"duration","false","true",0]
["in-bse-shp","InstitutionsShareHolders4Member","Institutions shareholders 4 [Member]","Institutions Shareholders 4",4,4,"in-bse-shp_InstitutionsShareHolders4Member","DetailsOfInstitutionsShareHoldersDomain","InstitutionsShareHolders4Member","ShareholdingPatternInstitutionsPromoters","nonnum:domainItemType",null,"xbrli:item",null,"duration","false","true",0]
["in-bse-shp","InstitutionsShareHolders5Member","Institutions shareholders 5 [Member]","Institutions Shareholders 5",4,5,"in-bse-shp_InstitutionsShareHolders5Member","DetailsOfInstitutionsShareHoldersDomain","InstitutionsShareHolders5Member","ShareholdingPatternInstitutionsPromoters","nonnum:domainItemType",null,"xbrli:item",null,"duration","false","true",0]
["in-bse-shp","InstitutionsShareHolders6Member","Institutions shareholders 6 [Member]","Institutions Shareholders 6",6,"in-bse_InstitutionsShareHolders6Member","DetailsOfInstitutionsShareHoldersDomain","InstitutionsShareHolders6Member","ShareholdingPatternInstitutionsPromoters",null,"domain-member",null,null,null,"true"]
["in-bse-shp","InstitutionsShareHolders7Member","Institutions shareholders 7 [Member]","Institutions Shareholders 7",7,"in-bse_InstitutionsShareHolders7Member","DetailsOfInstitutionsShareHoldersDomain","InstitutionsShareHolders7Member","ShareholdingPatternInstitutionsPromoters",null,"domain-member",null,null,null,"true"]
["in-bse-shp","InstitutionsShareHolders8Member","Institutions shareholders 8 [Member]","Institutions Shareholders 8",8,"in-bse_InstitutionsShareHolders8Member","DetailsOfInstitutionsShareHoldersDomain","InstitutionsShareHolders8Member","ShareholdingPatternInstitutionsPromoters",null,"domain-member",null,null,null,"true"]
["in-bse-shp","InstitutionsShareHolders9Member","Institutions shareholders 9 [Member]","Institutions Shareholders 9",9,"in-bse_InstitutionsShareHolders9Member","DetailsOfInstitutionsShareHoldersDomain","InstitutionsShareHolders9Member","ShareholdingPatternInstitutionsPromoters",null,"domain-member",null,null,null,"true"]
["in-bse-shp","InstitutionsShareHolders10Member","Institutions shareholders 10 [Member]","Institutions Shareholders 10",10,"in-bse_InstitutionsShareHolders10Member","DetailsOfInstitutionsShareHoldersDomain","InstitutionsShareHolders10Member","ShareholdingPatternInstitutionsPromoters",null,"domain-member",null,null,null,"true"]
["in-bse-shp","InstitutionsShareHolders11Member","Institutions shareholders 11 [Member]","Institutions Shareholders 11",null,"in-bse_InstitutionsShareHolders11Member","DetailsOfInstitutionsShareHoldersDomain","InstitutionsShareHolders10Member","ShareholdingPatternInstitutionsPromoters",null,"domain-member"]
["in-bse-shp","InstitutionsShareHolders12Member","Institutions shareholders 12 [Member]","Institutions Shareholders 12",null,"in-bse_InstitutionsShareHolders12Member","DetailsOfInstitutionsShareHoldersDomain","InstitutionsShareHolders10Member","ShareholdingPatternInstitutionsPromoters",null,"domain-member"]
["in-bse-shp","InstitutionsShareHolders13Member","Institutions shareholders 13 [Member]","Institutions Shareholders 13",null,"in-bse_InstitutionsShareHolders13Member","DetailsOfInstitutionsShareHoldersDomain","InstitutionsShareHolders10Member","ShareholdingPatternInstitutionsPromoters",null,"domain-member"]
["in-bse-shp","InstitutionsShareHolders14Member","Institutions shareholders 14 [Member]","Institutions Shareholders 14",null,"in-bse_InstitutionsShareHolders14Member","DetailsOfInstitutionsShareHoldersDomain","InstitutionsShareHolders10Member","ShareholdingPatternInstitutionsPromoters",null,"domain-member"]
["in-bse-shp","InstitutionsShareHolders15Member","Institutions shareholders 15 [Member]","Institutions Shareholders 15",null,"in-bse_InstitutionsShareHolders15Member","DetailsOfInstitutionsShareHoldersDomain","InstitutionsShareHolders10Member","ShareholdingPatternInstitutionsPromoters",null,"domain-member"]
["in-bse-shp","InstitutionsShareHolders16Member","Institutions shareholders 16 [Member]","Institutions Shareholders 16",null,"in-bse_InstitutionsShareHolders16Member","DetailsOfInstitutionsShareHoldersDomain","InstitutionsShareHolders10Member","ShareholdingPatternInstitutionsPromoters",null,"domain-member"]
["in-bse-shp","InstitutionsShareHolders17Member","Institutions shareholders 17 [Member]","Institutions Shareholders 17",null,"in-bse_InstitutionsShareHolders17Member","DetailsOfInstitutionsShareHoldersDomain","InstitutionsShareHolders10Member","ShareholdingPatternInstitutionsPromoters",null,"domain-member"]
["in-bse-shp","InstitutionsShareHolders18Member","Institutions shareholders 18 [Member]","Institutions Shareholders 18",null,"in-bse_InstitutionsShareHolders18Member","DetailsOfInstitutionsShareHoldersDomain","InstitutionsShareHolders10Member","ShareholdingPatternInstitutionsPromoters",null,"domain-member"]
["in-bse-shp","InstitutionsShareHolders19Member","Institutions shareholders 19 [Member]","Institutions Shareholders 19",null,"in-bse_InstitutionsShareHolders19Member","DetailsOfInstitutionsShareHoldersDomain","InstitutionsShareHolders10Member","ShareholdingPatternInstitutionsPromoters",null,"domain-member"]
["in-bse-shp","InstitutionsShareHolders20Member","Institutions shareholders 20 [Member]","Institutions Shareholders 20",null,"in-bse_InstitutionsShareHolders20Member","DetailsOfInstitutionsShareHoldersDomain","InstitutionsShareHolders10Member","ShareholdingPatternInstitutionsPromoters",null,"domain-member"]
["in-bse-shp","DetailsOfShareholdingPatternOfInstitutionsShareholdersLineItems","Details of shareholding pattern of institutions shareholders [Line items]",null,1,2,"in-bse-shp_DetailsOfShareholdingPatternOfInstitutionsShareholdersLineItems","DetailsOfShareholdingPatternOfInstitutionsShareholdersAbstract","DetailsOfShareholdingPatternOfInstitutionsShareholdersLineItems","ShareholdingPatternInstitutionsPromoters","xbrli:stringItemType",null,"xbrli:item",null,"duration","true","true",0]
["in-bse-shp","NameOfShareholder","Name Of Shareholder",null,2,1,"in-bse-shp_NameOfShareholder","DetailsOfShareholdingPatternOfInstitutionsShareholdersLineItems","NameOfShareholder","ShareholdingPatternInstitutionsPromoters","xbrli:stringItemType",null,"xbrli:item",null,"instant","false","true",0]
["in-bse-shp","NumberOfShareholders","Number of shareholders",null,2,1,"in-bse-shp_NumberOfShareholders","DetailsOfShareholdingPatternOfInstitutionsShareholdersLineItems","NumberOfShareholders","ShareholdingPatternInstitutionsPromoters","xbrli:decimalItemType",null,"xbrli:item",null,"instant","false","true",0]
["in-bse-shp","TotalNumberOfShares","Total number of shares",null,2,2,"in-bse-shp_TotalNumberOfShares","DetailsOfShareholdingPatternOfInstitutionsShareholdersLineItems","TotalNumberOfShares","ShareholdingPatternInstitutionsPromoters","xbrli:sharesItemType",null,"xbrli:item",null,"instant","false","true",0]
["in-bse-shp","NumberOfSharesHeldInDematerializedForm","Number of shares held in dematerialized form",null,2,3,"in-bse-shp_NumberOfSharesHeldInDematerializedForm","DetailsOfShareholdingPatternOfInstitutionsShareholdersLineItems","NumberOfSharesHeldInDematerializedForm","ShareholdingPatternInstitutionsPromoters","xbrli:sharesItemType",null,"xbrli:item",null,"instant","false","true",0]
["in-bse-shp","TotalShareholdingAsAPercentageOfTotalNumberOfSharesAbstract","Total shareholding as a percentage of total number of shares [Abstract]",null,2,4,"in-bse-shp_TotalShareholdingAsAPercentageOfTotalNumberOfSharesAbstract","DetailsOfShareholdingPatternOfInstitutionsShareholdersLineItems","TotalShareholdingAsAPercentageOfTotalNumberOfSharesAbstract","ShareholdingPatternInstitutionsPromoters","xbrli:stringItemType",null,"xbrli:item",null,"duration","true","true",0]
["in-bse-shp","ShareholdingAsAPercentageOfTotalNumberOfSharesHeldByPromotersAndPublicShareholders","Shareholding as a percentage of total number of shares held by promoter(s) and public shareholders",null,3,1,"in-bse-shp_ShareholdingAsAPercentageOfTotalNumberOfSharesHeldByPromoterPromoterGroupAndPublicShareholders","TotalShareholdingAsAPercentageOfTotalNumberOfSharesAbstract","ShareholdingAsAPercentageOfTotalNumberOfSharesHeldByPromotersAndPublicShareholders","ShareholdingPatternInstitutionsPromoters","num:percentItemType",null,"xbrli:item",null,"instant","false","true",0]
["in-bse-shp","ShareholdingAsAPercentageOfTotalNumberOfSharesHeldByPromoterSPublicShareholdersAndCustodiansHavingDepositoryReceipts","Shareholding as a percentage of total number of shares held by promoter(s), public shareholders and custodians having depository receipts",null,3,2,"in-bse-shp_ShareholdingAsAPercentageOfTotalNumberOfSharesHeldByPromoterSPublicShareholdersAndCustodiansHavingDepositoryReceipts","TotalShareholdingAsAPercentageOfTotalNumberOfSharesAbstract","ShareholdingAsAPercentageOfTotalNumberOfSharesHeldByPromoterSPublicShareholdersAndCustodiansHavingDepositoryReceipts","ShareholdingPatternInstitutionsPromoters","num:percentItemType",null,"xbrli:item",null,"instant","false","true",0]
["in-bse-shp","SharesPledgedOrOtherwiseEncumberedAbstract","Shares pledged or otherwise encumbered [Abstract]",null,2,5,"in-bse-shp_SharesPledgedOrOtherwiseEncumberedAbstract","DetailsOfShareholdingPatternOfInstitutionsShareholdersLineItems","SharesPledgedOrOtherwiseEncumberedAbstract","ShareholdingPatternInstitutionsPromoters","xbrli:stringItemType",null,"xbrli:item",null,"duration","true","true",0]
["in-bse-shp","PledgedOrEncumberedNumberOfShares","Pledged or encumbered - Number of shares",null,3,1,"in-bse-shp_PledgedOrEncumberedNumberOfShares","SharesPledgedOrOtherwiseEncumberedAbstract","PledgedOrEncumberedNumberOfShares","ShareholdingPatternInstitutionsPromoters","xbrli:sharesItemType",null,"xbrli:item",null,"instant","false","true",0]
["in-bse-shp","PledgedOrEncumberedSharesHeldAsPercentageOfTotalNumberOfShares","Pledged or encumbered shares held as percentage of total number of shares",null,3,2,"in-bse-shp_PledgedOrEncumberedSharesHeldAsPercentageOfTotalNumberOfShares","SharesPledgedOrOtherwiseEncumberedAbstract","PledgedOrEncumberedSharesHeldAsPercentageOfTotalNumberOfShares","ShareholdingPatternInstitutionsPromoters","num:percentItemType",null,"xbrli:item",null,"instant","false","true",0]
["in-bse-shp","DetailsOfShareholdingPatternOfNonInstitutionsShareholdersAbstract","Details of shareholding pattern of non-institutions shareholders [Abstract]",null,1,0,"in-bse-shp_DetailsOfShareholdingPatternOfNonInstitutionsShareholdersAbstract",null,null,"ShareholdingPatternNonInstitutionalPromoters","xbrli:stringItemType",null,"xbrli:item",null,"duration","true","true",0]
["in-bse-shp","DetailsOfShareholdingPatternOfNonInstitutionsShareholdersTable","Details of shareholding pattern of non-institutions shareholders [Table]",null,1,1,"in-bse-shp_DetailsOfShareholdingPatternOfNonInstitutionsShareholdersTable","DetailsOfShareholdingPatternOfNonInstitutionsShareholdersAbstract","DetailsOfShareholdingPatternOfNonInstitutionsShareholdersTable","ShareholdingPatternNonInstitutionalPromoters","xbrli:stringItemType",null,"xbrldt:hypercubeItem",null,"duration","true","true",0]
["in-bse-shp","DetailsOfNonInstitutionsShareHoldersAxis","Details of non-Institutions shareholders [Axis]",null,2,1,"in-bse-shp_DetailsOfNonInstitutionsShareHoldersAxis","DetailsOfShareholdingPatternOfNonInstitutionsShareholdersTable","DetailsOfNonInstitutionsShareHoldersAxis","ShareholdingPatternNonInstitutionalPromoters","xbrli:stringItemType",null,"xbrldt:dimensionItem",null,"duration","true","true",0]
["in-bse-shp","DetailsOfNonInstitutionsShareHoldersDomain","Details of non-Institutions shareholders domain",null,3,1,"in-bse-shp_DetailsOfNonInstitutionsShareHoldersDomain","DetailsOfNonInstitutionsShareHoldersAxis","DetailsOfNonInstitutionsShareHoldersDomain","ShareholdingPatternNonInstitutionalPromoters","nonnum:domainItemType",null,"xbrli:item",null,"duration","false","true",0]
["in-bse-shp","NonInstitutionsShareHolders1Member","Non-Institutions shareholders 1 [Member]","Non-Institutions ShareHolders  1",4,1,"in-bse-shp_NonInstitutionsShareHolders1Member","DetailsOfNonInstitutionsShareHoldersDomain","NonInstitutionsShareHolders1Member","ShareholdingPatternNonInstitutionalPromoters","nonnum:domainItemType",null,"xbrli:item",null,"duration","false","true",0]
["in-bse-shp","NonInstitutionsShareHolders2Member","Non-Institutions shareholders 2 [Member]","Non-Institutions ShareHolders  2",4,2,"in-bse-shp_NonInstitutionsShareHolders2Member","DetailsOfNonInstitutionsShareHoldersDomain","NonInstitutionsShareHolders2Member","ShareholdingPatternNonInstitutionalPromoters","nonnum:domainItemType",null,"xbrli:item",null,"duration","false","true",0]
["in-bse-shp","NonInstitutionsShareHolders3Member","Non-Institutions shareholders 3 [Member]","Non-Institutions ShareHolders  3",4,3,"in-bse-shp_NonInstitutionsShareHolders3Member","DetailsOfNonInstitutionsShareHoldersDomain","NonInstitutionsShareHolders3Member","ShareholdingPatternNonInstitutionalPromoters","nonnum:domainItemType",null,"xbrli:item",null,"duration","false","true",0]
["in-bse-shp","NonInstitutionsShareHolders4Member","Non-Institutions shareholders 4 [Member]","Non-Institutions ShareHolders  4",4,4,"in-bse-shp_NonInstitutionsShareHolders4Member","DetailsOfNonInstitutionsShareHoldersDomain","NonInstitutionsShareHolders4Member","ShareholdingPatternNonInstitutionalPromoters","nonnum:domainItemType",null,"xbrli:item",null,"duration","false","true",0]
["in-bse-shp","NonInstitutionsShareHolders5Member","Non-Institutions shareholders 5 [Member]","Non-Institutions ShareHolders  5",4,5,"in-bse-shp_NonInstitutionsShareHolders5Member","DetailsOfNonInstitutionsShareHoldersDomain","NonInstitutionsShareHolders5Member","ShareholdingPatternNonInstitutionalPromoters","nonnum:domainItemType",null,"xbrli:item",null,"duration","false","true",0]
["in-bse-shp","NonInstitutionsShareHolders6Member","Non-institutions shareholders 6 [Member]","Non-Institutions ShareHolders  6",5,"in-bse_NonInstitutionsShareHolders6Member","DetailsOfNonInstitutionsShareHoldersDomain","NonInstitutionsShareHolders6Member","ShareholdingPatternNonInstitutionalPromoters",null,"domain-member",null,null,null,"true"]
["in-bse-shp","NonInstitutionsShareHolders7Member","Non-institutions shareholders 7 [Member]","Non-Institutions ShareHolders  7",5,"in-bse_NonInstitutionsShareHolders7Member","DetailsOfNonInstitutionsShareHoldersDomain","NonInstitutionsShareHolders7Member","ShareholdingPatternNonInstitutionalPromoters",null,"domain-member",null,null,null,"true"]
["in-bse-shp","NonInstitutionsShareHolders8Member","Non-institutions shareholders 8 [Member]","Non-Institutions ShareHolders  8",5,"in-bse_NonInstitutionsShareHolders8Member","DetailsOfNonInstitutionsShareHoldersDomain","NonInstitutionsShareHolders8Member","ShareholdingPatternNonInstitutionalPromoters",null,"domain-member",null,null,null,"true"]
["in-bse-shp","NonInstitutionsShareHolders9Member","Non-institutions shareholders 9 [Member]","Non-Institutions ShareHolders  9",5,"in-bse_NonInstitutionsShareHolders9Member","DetailsOfNonInstitutionsShareHoldersDomain","NonInstitutionsShareHolders9Member","ShareholdingPatternNonInstitutionalPromoters",null,"domain-member",null,null,null,"true"]
["in-bse-shp","NonInstitutionsShareHolders10Member","Non-institutions shareholders 10 [Member]","Non-Institutions ShareHolders  10",5,"in-bse_NonInstitutionsShareHolders10Member","DetailsOfNonInstitutionsShareHoldersDomain","NonInstitutionsShareHolders10Member","ShareholdingPatternNonInstitutionalPromoters",null,"domain-member",null,null,null,"true"]
["in-bse-shp","NonInstitutionsShareHolders11Member","Non-institutions shareholders 11 [Member]","Non-institutions shareholders  11",null,"in-bse_NonInstitutionsShareHolders11Member"]
["in-bse-shp","NonInstitutionsShareHolders12Member","Non-institutions shareholders 12 [Member]","Non-institutions shareholders  12",null,"in-bse_NonInstitutionsShareHolders12Member"]
["in-bse-shp","NonInstitutionsShareHolders13Member","Non-institutions shareholders 13 [Member]","Non-institutions shareholders  13",null,"in-bse_NonInstitutionsShareHolders13Member"]
["in-bse-shp","NonInstitutionsShareHolders14Member","Non-institutions shareholders 14 [Member]","Non-institutions shareholders  14",null,"in-bse_NonInstitutionsShareHolders14Member"]
["in-bse-shp","NonInstitutionsShareHolders15Member","Non-institutions shareholders 15 [Member]","Non-institutions shareholders  15",null,"in-bse_NonInstitutionsShareHolders15Member"]
["in-bse-shp","NonInstitutionsShareHolders16Member","Non-institutions shareholders 16 [Member]","Non-institutions shareholders  16",null,"in-bse_NonInstitutionsShareHolders16Member"]
["in-bse-shp","NonInstitutionsShareHolders17Member","Non-institutions shareholders 17 [Member]","Non-institutions shareholders  17",null,"in-bse_NonInstitutionsShareHolders17Member"]
["in-bse-shp","NonInstitutionsShareHolders18Member","Non-institutions shareholders 18 [Member]","Non-institutions shareholders  18",null,"in-bse_NonInstitutionsShareHolders18Member"]
["in-bse-shp","NonInstitutionsShareHolders19Member","Non-institutions shareholders 19 [Member]","Non-institutions shareholders  19",null,"in-bse_NonInstitutionsShareHolders19Member"]
["in-bse-shp","NonInstitutionsShareHolders20Member","Non-institutions shareholders 20 [Member]","Non-institutions shareholders  20",null,"in-bse_NonInstitutionsShareHolders20Member"]
["in-bse-shp","DetailsOfShareholdingPatternOfNonInstitutionsShareholdersLineItems","Details of shareholding pattern of non-Institutions shareholders [Line items]",null,1,2,"in-bse-shp_DetailsOfShareholdingPatternOfNonInstitutionsShareholdersLineItems","DetailsOfShareholdingPatternOfNonInstitutionsShareholdersAbstract","DetailsOfShareholdingPatternOfNonInstitutionsShareholdersLineItems","ShareholdingPatternNonInstitutionalPromoters","xbrli:stringItemType",null,"xbrli:item",null,"duration","true","true",0]
["in-bse-shp","NameOfShareholder","Name Of Shareholder",null,2,1,"in-bse-shp_NameOfShareholder","DetailsOfShareholdingPatternOfNonInstitutionsShareholdersLineItems","NameOfShareholder","ShareholdingPatternNonInstitutionalPromoters","xbrli:stringItemType",null,"xbrli:item",null,"instant","false","true",0]
["in-bse-shp","NumberOfShareholders","Number of shareholders",null,2,1,"in-bse-shp_NumberOfShareholders","DetailsOfShareholdingPatternOfNonInstitutionsShareholdersLineItems","NumberOfShareholders","ShareholdingPatternNonInstitutionalPromoters","xbrli:decimalItemType",null,"xbrli:item",null,"instant","false","true",0]
["in-bse-shp","TotalNumberOfShares","Total number of shares",null,2,2,"in-bse-shp_TotalNumberOfShares","DetailsOfShareholdingPatternOfNonInstitutionsShareholdersLineItems","TotalNumberOfShares","ShareholdingPatternNonInstitutionalPromoters","xbrli:sharesItemType",null,"xbrli:item",null,"instant","false","true",0]
["in-bse-shp","NumberOfSharesHeldInDematerializedForm","Number of shares held in dematerialized form",null,2,3,"in-bse-shp_NumberOfSharesHeldInDematerializedForm","DetailsOfShareholdingPatternOfNonInstitutionsShareholdersLineItems","NumberOfSharesHeldInDematerializedForm","ShareholdingPatternNonInstitutionalPromoters","xbrli:sharesItemType",null,"xbrli:item",null,"instant","false","true",0]
["in-bse-shp","TotalShareholdingAsAPercentageOfTotalNumberOfSharesAbstract","Total shareholding as a percentage of total number of shares [Abstract]",null,2,4,"in-bse-shp_TotalShareholdingAsAPercentageOfTotalNumberOfSharesAbstract","DetailsOfShareholdingPatternOfNonInstitutionsShareholdersLineItems","TotalShareholdingAsAPercentageOfTotalNumberOfSharesAbstract","ShareholdingPatternNonInstitutionalPromoters","xbrli:stringItemType",null,"xbrli:item",null,"duration","true","true",0]
["in-bse-shp","ShareholdingAsAPercentageOfTotalNumberOfSharesHeldByPromotersAndPublicShareholders","Shareholding as a percentage of total number of shares held by promoter(s) and public shareholders",null,3,1,"in-bse-shp_ShareholdingAsAPercentageOfTotalNumberOfSharesHeldByPromoterPromoterGroupAndPublicShareholders","TotalShareholdingAsAPercentageOfTotalNumberOfSharesAbstract","ShareholdingAsAPercentageOfTotalNumberOfSharesHeldByPromotersAndPublicShareholders","ShareholdingPatternNonInstitutionalPromoters","num:percentItemType",null,"xbrli:item",null,"instant","false","true",0]
["in-bse-shp","ShareholdingAsAPercentageOfTotalNumberOfSharesHeldByPromoterSPublicShareholdersAndCustodiansHavingDepositoryReceipts","Shareholding as a percentage of total number of shares held by promoter(s), public shareholders and custodians having depository receipts",null,3,2,"in-bse-shp_ShareholdingAsAPercentageOfTotalNumberOfSharesHeldByPromoterSPublicShareholdersAndCustodiansHavingDepositoryReceipts","TotalShareholdingAsAPercentageOfTotalNumberOfSharesAbstract","ShareholdingAsAPercentageOfTotalNumberOfSharesHeldByPromoterSPublicShareholdersAndCustodiansHavingDepositoryReceipts","ShareholdingPatternNonInstitutionalPromoters","num:percentItemType",null,"xbrli:item",null,"instant","false","true",0]
["in-bse-shp","SharesPledgedOrOtherwiseEncumberedAbstract","Shares pledged or otherwise encumbered [Abstract]",null,2,5,"in-bse-shp_SharesPledgedOrOtherwiseEncumberedAbstract","DetailsOfShareholdingPatternOfNonInstitutionsShareholdersLineItems","SharesPledgedOrOtherwiseEncumberedAbstract","ShareholdingPatternNonInstitutionalPromoters","xbrli:stringItemType",null,"xbrli:item",null,"duration","true","true",0]
["in-bse-shp","PledgedOrEncumberedNumberOfShares","Pledged or encumbered - Number of shares",null,3,1,"in-bse-shp_PledgedOrEncumberedNumberOfShares","SharesPledgedOrOtherwiseEncumberedAbstract","PledgedOrEncumberedNumberOfShares","ShareholdingPatternNonInstitutionalPromoters","xbrli:sharesItemType",null,"xbrli:item",null,"instant","false","true",0]
["in-bse-shp","PledgedOrEncumberedSharesHeldAsPercentageOfTotalNumberOfShares","Pledged or encumbered shares held as percentage of total number of shares",null,3,2,"in-bse-shp_PledgedOrEncumberedSharesHeldAsPercentageOfTotalNumberOfShares","SharesPledgedOrOtherwiseEncumberedAbstract","PledgedOrEncumberedSharesHeldAsPercentageOfTotalNumberOfShares","ShareholdingPatternNonInstitutionalPromoters","num:percentItemType",null,"xbrli:item",null,"instant","false","true",0]
["in-bse-shp","DetailsOfSecuritiesBelongingToPromoterAndPromoterGroupAbstract","Details of securities belonging to promoter and promoter Group [Abstract]",null,0,null,"in-bse-shp_DetailsOfSecuritiesBelongingToPromoterAndPromoterGroupAbstract",null,null,"StatementShowingHoldingOfSecuritiesByPromoterAndPromoterGroup","xbrli:stringItemType",null,"xbrli:item",null,"duration","true","true",0]
["in-bse-shp","DetailsOfSecuritiesBelongingToPromoterAndPromoterGroupTable","Details of securities belonging to promoter and promoter Group [Table]",null,1,1,"in-bse-shp_DetailsOfSecuritiesBelongingToPromoterAndPromoterGroupTable","DetailsOfSecuritiesBelongingToPromoterAndPromoterGroupAbstract","DetailsOfSecuritiesBelongingToPromoterAndPromoterGroupTable","StatementShowingHoldingOfSecuritiesByPromoterAndPromoterGroup","xbrli:stringItemType",null,"xbrldt:hypercubeItem",null,"duration","true","true",0]
["in-bse-shp","DetailsOfSecuritiesBelongingToPromoterAndPromoterGroupAxis","Details of securities belonging promoter and promoter Group [Axis]",null,2,1,"in-bse-shp_DetailsOfSecuritiesBelongingToPromoterAndPromoterGroupAxis","DetailsOfSecuritiesBelongingToPromoterAndPromoterGroupTable","DetailsOfSecuritiesBelongingToPromoterAndPromoterGroupAxis","StatementShowingHoldingOfSecuritiesByPromoterAndPromoterGroup","xbrli:stringItemType",null,"xbrldt:dimensionItem",null,"duration","true","true","DetailsOfSecuritiesBelongingToPromoterAndPromoterGroupDomain"]
["in-bse-shp","DetailsOfSecuritiesBelongingToPromoterAndPromoterGroupLineItems","Details of securities belonging to promoter and promoter Group [Line items]",null,1,2,"in-bse-shp_DetailsOfSecuritiesBelongingToPromoterAndPromoterGroupLineItems","DetailsOfSecuritiesBelongingToPromoterAndPromoterGroupAbstract","DetailsOfSecuritiesBelongingToPromoterAndPromoterGroupLineItems","StatementShowingHoldingOfSecuritiesByPromoterAndPromoterGroup","xbrli:stringItemType",null,"xbrli:item",null,"duration","false","true",0]
["in-bse-shp","NameOfTheShareholderBelongingToPromoterAndPromoterGroup","Name of the Shareholder","Name of the shareholder",2,1,"in-bse-shp_NameOfTheShareholderBelongingToPromoterAndPromoterGroup","DetailsOfSecuritiesBelongingToPromoterAndPromoterGroupLineItems","NameOfTheShareholderBelongingToPromoterAndPromoterGroup","StatementShowingHoldingOfSecuritiesByPromoterAndPromoterGroup","xbrli:stringItemType",null,"xbrli:item",null,"instant","false","true",0,"This is a mandatory field"]
["in-bse-shp","PANOfPromoter","PAN of promoter","PAN of Promoter",null,null,"in-bse-shp_PANOfPromoter","DetailsOfSecuritiesBelongingToPromoterAndPromoterGroupLineItems","PANOfPromoter",null,"in-bse-shp-types:PANNumber",null,"xbrli:item","","duration","false","true"]
["in-bse-shp","DetailsOfSharesHeldAbstract","Details of shares held [Abstract]",null,3,2,"in-bse-shp_DetailsOfSharesHeldAbstract","DetailsOfSecuritiesBelongingToPromoterAndPromoterGroupLineItems","DetailsOfSharesHeldAbstract","StatementShowingHoldingOfSecuritiesByPromoterAndPromoterGroup","xbrli:stringItemType",null,"xbrli:item",null,"duration","true","true",0]
["in-bse-shp","NumberOfTheSharesHeldByPromoterS","Number of the shares held","Number of the shares held",4,1,"in-bse-shp_NumberOfTheSharesHeld","DetailsOfSharesHeldAbstract","NumberOfTheSharesHeld","StatementShowingHoldingOfSecuritiesByPromoterAndPromoterGroup","xbrli:sharesItemType",null,"xbrli:item",null,"instant","false","true",0,"\"Number of the shares held\"   should be equal to value entered in \" Total Shareholding of Promoter and Promoter Group  (A) = (A)(1)+(A)(2)\"  in    Sheet -Table (I)(a)"]
["in-bse-shp","ShareholdingOfPromoterSAsAPercentageOfTotalNumberOfShares","Shareholding as a percentage of total number of shares","As a percentage of grand total                 (A) + (B) + (C)",4,2,"in-bse-shp_ShareholdingAsAPercentageOfTotalNumberOfSharesHeldByPromoterSPublicShareholdersAndCustodiansHavingDepositoryReceipts","DetailsOfSharesHeldAbstract","ShareholdingAsAPercentageOfTotalNumberOfSharesHeldByPromoterSPublicShareholdersAndCustodiansHavingDepositoryReceipts","StatementShowingHoldingOfSecuritiesByPromoterAndPromoterGroup","num:percentItemType",null,"xbrli:item",null,"instant","false","true",0,"Should be percentage of \"Total number  of shares held\" on GRAND TOTAL (A)+(B)+(C) in sheet \"Table(1)(a)\""]
["in-bse-shp","DetailsOfEncumberedSharesAbstract","Details of encumbered shares [Abstract]",null,3,3,"in-bse-shp_DetailsOfEncumberedSharesAbstract","DetailsOfSecuritiesBelongingToPromoterAndPromoterGroupLineItems","DetailsOfEncumberedSharesAbstract","StatementShowingHoldingOfSecuritiesByPromoterAndPromoterGroup","xbrli:stringItemType",null,"xbrli:item",null,"duration","true","true",0]
["in-bse-shp","EncumberedNumberOfSharesHeldByPromoterS","Encumbered - Number of shares","Encumbered  - number of shares",4,1,"in-bse-shp_EncumberedNumberOfShares","DetailsOfEncumberedSharesAbstract","EncumberedNumberOfShares","StatementShowingHoldingOfSecuritiesByPromoterAndPromoterGroup","xbrli:sharesItemType",null,"xbrli:item",null,"instant","false","true",0,"\"Number of encumbered shares\"   should be equal \" Total Number of encumbered shares  held by Promoter and Promoter Group  (A) = (A)(1)+(A)(2)\"  in    Sheet -Table (I)(a)"]
["in-bse-shp","EncumberedSharesHeldByPromoterSAsPercentageOfNumberOfSharesHeldByPromoterS","Encumbered shares held as percentage of number of shares","As  a  percentage",4,2,"in-bse-shp_EncumberedSharesHeldAsPercentageOfTotalNumberOfShares","DetailsOfEncumberedSharesAbstract","EncumberedSharesHeldAsPercentageOfTotalNumberOfShares","StatementShowingHoldingOfSecuritiesByPromoterAndPromoterGroup","num:percentItemType",null,"xbrli:item",null,"instant","false","true",0,"Encumbered - number of  shares as a percentage  of  \"Total encumbered number of shares held\"  by promoters."]
["in-bse-shp","EncumberedSharesHeldByPromoterSAsAPercentageOfTotalNumberOfShares","Encumbered shares held as a percentage of total number of shares","As a percentage of grand total (A) + (B) + (C) of clause (I)(a)",4,3,"in-bse-shp_EncumberedShareholdingAsAPercentageOfTotalNumberOfSharesHeldByPromoterSPublicShareholdersAndCustodiansHavingDepositoryReceiptsOfDepositoryReceipts","DetailsOfEncumberedSharesAbstract","Encumbered shares held as a percentage of total number of shares","StatementShowingHoldingOfSecuritiesByPromoterAndPromoterGroup","num:percentItemType",null,"xbrli:item",null,"instant","false","true",0,"Encumbered  -  number of shares as a percentage of \"Total number of shares held\" on GRAND TOTAL  (A)+(B)+(C) in sheet \"Table(1)(a)\"."]
["in-bse-shp","DetailsOfWarrantsAbstract","Details of warrant [Abstract]",null,3,4,"in-bse-shp_DetailsOfWarrantAbstract","DetailsOfSecuritiesBelongingToPromoterAndPromoterGroupLineItems","DetailsOfWarrantAbstract","StatementShowingHoldingOfSecuritiesByPromoterAndPromoterGroup","xbrli:stringItemType",null,"xbrli:item",null,"duration","true","true",0]
["in-bse-shp","NumberOfWarrantsHeldByPromoterS","Number of warrants","Number of  warrants held",4,1,"in-bse-shp_NumberOfWarrants","DetailsOfWarrantAbstract","NumberOfWarrants","StatementShowingHoldingOfSecuritiesByPromoterAndPromoterGroup","xbrli:sharesItemType",null,"xbrli:item",null,"instant","false","true",0,"\"Number of warrants\"   should be equal to value entered in   \"Number of warrants held by Promoters\" shown in  Sheet-Introductory sub-table (I)(a)"]
["in-bse-shp","WarrantsHeldByPromoterSAsAPercentageOfTotalNumbersOfWarrantsOfTheSameClass","Warrants held as a percentage of total numbers of warrants of the same class ","Warrants held as a percentage of total numbers of warrants of the same class ",4,2,"in-bse-shp_WarrantsHeldAsAPercentageOfTotalNumbersOfWarrantsOfTheSameClass","DetailsOfWarrantAbstract","WarrantsHeldAsAPercentageOfTotalNumbersOfWarrantsOfTheSameClass","StatementShowingHoldingOfSecuritiesByPromoterAndPromoterGroup","num:percentItemType",null,"xbrli:item",null,"instant","false","true",0,"Should be  percentage of total number of warrants"]
["in-bse-shp","DetailsOfConvertibleSecuritiesAbstract","Details of convertible securities [Abstract]",null,3,5,"in-bse-shp_DetailsOfConvertibleSecuritiesAbstract","DetailsOfSecuritiesBelongingToPromoterAndPromoterGroupLineItems","DetailsOfConvertibleSecuritiesAbstract","StatementShowingHoldingOfSecuritiesByPromoterAndPromoterGroup","xbrli:stringItemType",null,"xbrli:item",null,"duration","true","true",0]
["in-bse-shp","NumberOfConvertibleSecuritiesHeldByPromoterS","Number of convertible securities","Number of convertible securities held",4,1,"in-bse-shp_NumberOfConvertibleSecurities","DetailsOfConvertibleSecuritiesAbstract","NumberOfConvertibleSecurities","StatementShowingHoldingOfSecuritiesByPromoterAndPromoterGroup","xbrli:sharesItemType",null,"xbrli:item",null,"instant","false","true",0,"\"Number of convertible securities\"   should be equal to value entered in   \"Number of outstanding securities held by Promoter\" shown in  Sheet-Introductory sub-table (I)(a)"]
["in-bse-shp","ConvertibleSecuritiesHeldByPromoterSAsPercentageOfTotalNumbersOfConvertibleSecuritiesOfSameClass","Convertible securities as percentage of total numbers of convertible securities of same class ","Convertible securities as percentage of total numbers of convertible securities of same class ",4,2,"in-bse-shp_ConvertibleSecuritiesAsPercentageOfTotalNumbersOfConvertibleSecuritiesOfSameClass","DetailsOfConvertibleSecuritiesAbstract","ConvertibleSecuritiesAsPercentageOfTotalNumbersOfConvertibleSecuritiesOfSameClass","StatementShowingHoldingOfSecuritiesByPromoterAndPromoterGroup","num:percentItemType",null,"xbrli:item",null,"instant","false","true",0,"Should be percentage of total of convertible securities of same class"]
["in-bse-shp","TotalSharesHeldByPromoterSIncludingUnderlyingSharesAssumingFullConversionOfWarrantsAndConvertibleSecuritiesAsAPercentageOfDilutedShareCapital","Total shares (including underlying shares assuming full conversion of warrants and convertible securities) as a percentage of diluted share capital","Total shares (including underlying shares assuming full conversion of warrants and convertible securities) as a percentage of diluted share capital",4,6,"in-bse-shp_TotalSharesIncludingUnderlyingSharesAssumingFullConversionOfWarrantsAndConvertibleSecuritiesAsAPercentageOfDilutedShareCapital","DetailsOfSecuritiesBelongingToPromoterAndPromoterGroupLineItems","TotalSharesIncludingUnderlyingSharesAssumingFullConversionOfWarrantsAndConvertibleSecuritiesAsAPercentageOfDilutedShareCapital","StatementShowingHoldingOfSecuritiesByPromoterAndPromoterGroup","num:percentItemType",null,"xbrli:item",null,"instant","false","true",0,"\"Total shares\"  should be greater than  \"Shareholding as a percentage of total number of shares\""]
["in-bse-shp","DisclosureOfNotesOnSecuritiesBelongingToTheCategoryPromoterAndPromoterGroup","Disclosure of notes on securities belonging to the category \"Promoter and Promoter Group\"","Disclosure of notes on securities belonging to the category \"Promoter and Promoter Group\"         ",1,3,"in-bse-shp_DisclosureOfNotesOnSecuritiesBelongingToTheCategoryPromoterAndPromoterGroup","DetailsOfSecuritiesBelongingToPromoterAndPromoterGroupAbstract","DisclosureOfNotesOnSecuritiesBelongingToTheCategoryPromoterAndPromoterGroupTextBlock","StatementShowingHoldingOfSecuritiesByPromoterAndPromoterGroup","xbrli:stringItemType"]
["in-bse-shp","DetailsOfSecuritiesBelongingToPublicHoldingMoreThanOnePercentageOfTotalNumberOfSharesAbstract","Details of securities belonging to public holding more than one percentage of total number of shares [Abstract]",null,0,null,"in-bse-shp_DetailsOfSecuritiesBelongingToPublicHoldingMoreThanOnePercentageOfTotalNumberOfSharesAbstract",null,null,"StatementShowingHoldingOfSecuritiesByPublicHavingMoreThanOnePercentOfTotalNumberOfShares","xbrli:stringItemType",null,"xbrli:item",null,"duration","true","true",0]
["in-bse-shp","WhetherAnyOfSecurityHeldByPublicHavingMoreThanOnePercentageOfTotalNumberOfShares","Whether any of security held by public having more than one percentage of total number of shares","Whether any security held by public having more than one percentage of total number of shares      ",null,null,"in-bse-shp_WhetherAnyOfSecurityHeldByPublicHavingMoreThanOnePercentageOfTotalNumberOfShares",null,null,null,"xbrli:booleanItemType",null,"xbrli:item",null,"duration",false,true]
["in-bse-shp","DetailsOfSecuritiesBelongingToPublicHoldingMoreThanOnePercentageOfTotalNumberOfSharesTable","Details of securities belonging to public holding more than one percentage of total number of shares [Table]",null,1,1,"in-bse-shp_DetailsOfSecuritiesBelongingToPublicHoldingMoreThanOnePercentageOfTotalNumberOfSharesTable","DetailsOfSecuritiesBelongingToPublicHoldingMoreThanOnePercentageOfTotalNumberOfSharesAbstract","DetailsOfSecuritiesBelongingToPublicHoldingMoreThanOnePercentageOfTotalNumberOfSharesTable","StatementShowingHoldingOfSecuritiesByPublicHavingMoreThanOnePercentOfTotalNumberOfShares","xbrli:stringItemType",null,"xbrldt:hypercubeItem",null,"duration","true","true",0]
["in-bse-shp","DetailsOfPublicShareholdingHavingMoreThanOnePercentageOfTotalNumberOfSharesAxis","Details of public shareholding having more than one percentage of total number of shares [Axis]",null,1,1,"in-bse-shp_DetailsOfSecuritiesBelongingToPublicHoldingMoreThanOnePercentageOfTotalNumberOfSharesAxis","DetailsOfSecuritiesBelongingToPublicHoldingMoreThanOnePercentageOfTotalNumberOfSharesTable","DetailsOfPublicShareholdingHavingMoreThanOnePercentageOfTotalNumberOfSharesAxis","StatementShowingHoldingOfSecuritiesByPublicHavingMoreThanOnePercentOfTotalNumberOfShares","xbrli:stringItemType",null,"xbrldt:dimensionItem",null,"duration","true","true","DetailsOfSecuritiesBelongingToPublicHoldingMoreThanOnePercentageOfTotalNumberOfSharesDomain"]
["in-bse-shp","DetailsOfSecuritiesBelongingToPublicHoldingMoreThanOnePercentageOfTotalNumberOfSharesLineItems","Details of securities belonging to public holding more than one percentage of total number of shares [Line items]",null,1,2,"in-bse-shp_DetailsOfSecuritiesBelongingToPublicHoldingMoreThanOnePercentageOfTotalNumberOfSharesLineItems","DetailsOfSecuritiesBelongingToPublicHoldingMoreThanOnePercentageOfTotalNumberOfSharesAbstract","DetailsOfSecuritiesBelongingToPublicHoldingMoreThanOnePercentageOfTotalNumberOfSharesLineItems","StatementShowingHoldingOfSecuritiesByPublicHavingMoreThanOnePercentOfTotalNumberOfShares","xbrli:stringItemType",null,"xbrli:item",null,"duration","true","true",0]
["in-bse-shp","NameOfTheShareholderBelongingToPublicHoldingMoreThanOnePercentageOfTotalNumberOfShares","Name of the shareholder","Name  of  the  shareholder ",2,1,"in-bse-shp_NameOfTheShareholder","DetailsOfSecuritiesBelongingToPublicHoldingMoreThanOnePercentageOfTotalNumberOfSharesLineItems","NameOfTheShareholder","StatementShowingHoldingOfSecuritiesByPublicHavingMoreThanOnePercentOfTotalNumberOfShares","xbrli:stringItemType",null,"xbrli:item",null,"instant","false","true",0]
["in-bse-shp","PANOfPublicShreholderHoldingMoreThanOnePercentageOfTotalNumberOfShares","PAN of public shreholder holding more than one percentage of total number of shares","PAN  of   Shareholder",2,3,"in-bse-shp_PANOfPublicShreholderHoldingMoreThanOnePercentageOfTotalNumberOfShares","DetailsOfSecuritiesBelongingToPublicHoldingMoreThanOnePercentageOfTotalNumberOfSharesLineItems","PANOfPublicShreholderHoldingMoreThanOnePercentageOfTotalNumberOfShares","StatementShowingHoldingOfSecuritiesByPublicHavingMoreThanOnePercentageOfTotalNumberOfShares","in-bse-shp-types:PANNumber","","xbrli:item","","duration","false","true"]
["in-bse-shp","DetailsOfSharesHeldAbstract","Details of shares held [Abstract]",null,2,2,"in-bse-shp_DetailsOfSharesHeldAbstract","DetailsOfSecuritiesBelongingToPublicHoldingMoreThanOnePercentageOfTotalNumberOfSharesLineItems","DetailsOfSharesHeldAbstract","StatementShowingHoldingOfSecuritiesByPublicHavingMoreThanOnePercentOfTotalNumberOfShares","xbrli:stringItemType",null,"xbrli:item",null,"duration","true","true",0]
["in-bse-shp","NumberOfTheSharesHeldByPublicHavingMoreThanOnePercentageOfTotalNumberOfShares","Number of the shares held held by public having more than one percent of total number of shares","Number of the   shares  held ",3,1,"in-bse-shp_NumberOfTheSharesHeld","DetailsOfSharesHeldAbstract","NumberOfTheSharesHeld","StatementShowingHoldingOfSecuritiesByPublicHavingMoreThanOnePercentOfTotalNumberOfShares","xbrli:sharesItemType",null,"xbrli:item",null,"instant","false","true",0,"\"Number of the shares held\"   should be less than or equal to value entered in \" Total Public Shareholding (B) = (B)(1)+(B)(2)\"  in    Sheet -Table (I)(a)"]
["in-bse-shp","ShareholdingByPublicHavingMoreThanOnePercentageOfTotalNumberOfSharesAsAPercentageOfTotalNumberOfShares","Shareholding as a percentage of total number of shares held by promoter and promoter group, public shareholders and custodians having depository","Shares as percentage of total number of shares {i.e, Grand Total (A) + (B) + (C) indicated in statement at para (I) (a) above}",3,2,"in-bse-shp_ShareholdingAsAPercentageOfTotalNumberOfSharesHeldByPromoterSPublicShareholdersAndCustodiansHavingDepositoryReceipts","DetailsOfSharesHeldAbstract","ShareholdingAsAPercentageOfTotalNumberOfSharesHeldByPromoterSPublicShareholdersAndCustodiansHavingDepositoryReceipts","StatementShowingHoldingOfSecuritiesByPublicHavingMoreThanOnePercentOfTotalNumberOfShares","num:percentItemType",null,"xbrli:item",null,"instant","false","true",0,"As a percentage of \"Total number  of shares held\" mentioned on GRAND TOTAL (A)+(B)+(C) in sheet \"Table(1)(a)\""]
["in-bse-shp","DetailsOfWarrantsAbstract","Details of warrants [Abstract]",null,2,3,"in-bse-shp_DetailsOfWarrantAbstract","DetailsOfSecuritiesBelongingToPublicHoldingMoreThanOnePercentageOfTotalNumberOfSharesLineItems","DetailsOfWarrantAbstract","StatementShowingHoldingOfSecuritiesByPublicHavingMoreThanOnePercentOfTotalNumberOfShares","xbrli:stringItemType",null,"xbrli:item",null,"duration","true","true",0]
["in-bse-shp","NumberOfWarrantsHeldByPublicHavingMoreThanOnePercentageOfTotalNumberOfShares","Number of warrants","Number  of   warrants held",3,1,"in-bse-shp_NumberOfWarrants","DetailsOfWarrantAbstract","NumberOfWarrants","StatementShowingHoldingOfSecuritiesByPublicHavingMoreThanOnePercentOfTotalNumberOfShares","xbrli:sharesItemType",null,"xbrli:item",null,"instant","false","true",0,"\"Number of warrants\"   should less than or equal to value entered in   \"Number of warrants held by public\" shown in  Sheet-Introductory sub-table (I)(a)"]
["in-bse-shp","WarrantsHeldByPublicHavingMoreThanOnePercentageOfTotalNumberOfSharesAsAPercentageOfTotalNumbersOfWarrantsOfTheSameClass","Warrants held as a percentage of total numbers of warrants of the same class ","Warrants  held  as a percentage  of total numbers of warrants of  the same class ",3,2,"in-bse-shp_WarrantsHeldAsAPercentageOfTotalNumbersOfWarrantsOfTheSameClass","DetailsOfWarrantAbstract","WarrantsHeldAsAPercentageOfTotalNumbersOfWarrantsOfTheSameClass","StatementShowingHoldingOfSecuritiesByPublicHavingMoreThanOnePercentOfTotalNumberOfShares","num:percentItemType",null,"xbrli:item",null,"instant","false","true",0,"Should be  percentage of total number of warrants"]
["in-bse-shp","DetailsOfConvertibleSecuritiesAbstract","Details of convertible securities [Abstract]",null,2,4,"in-bse-shp_DetailsOfConvertibleSecuritiesAbstract","DetailsOfSecuritiesBelongingToPublicHoldingMoreThanOnePercentageOfTotalNumberOfSharesLineItems","DetailsOfConvertibleSecuritiesAbstract","StatementShowingHoldingOfSecuritiesByPublicHavingMoreThanOnePercentOfTotalNumberOfShares","xbrli:stringItemType",null,"xbrli:item",null,"duration","true","true",0]
["in-bse-shp","NumberOfConvertibleSecuritiesHeldByPublicHavingMoreThanOnePercentageOfTotalNumberOfShares","Number of convertible securities","Number  of     convertible      securities  held",3,1,"in-bse-shp_NumberOfConvertibleSecurities","DetailsOfConvertibleSecuritiesAbstract","NumberOfConvertibleSecurities","StatementShowingHoldingOfSecuritiesByPublicHavingMoreThanOnePercentOfTotalNumberOfShares","xbrli:sharesItemType",null,"xbrli:item",null,"instant","false","true",0,"Number of convertible securities   should be less than or equal to value entered in   \"Number of outstanding securities held by Public\" shown in  Sheet-Introductory sub-table (I)(a)"]
["in-bse-shp","ConvertibleSecuritiesHeldByPublicHavingMoreThanOnePercentageOfTotalNumberOfSharesAsPercentageOfTotalNumbersOfConvertibleSecuritiesOfSameClass","Convertible securities as percentage of total numbers of convertible securities of same class ","Convertible  securities  as  percentage of  total numbers of  convertible  securities of  same class ",3,2,"in-bse-shp_ConvertibleSecuritiesAsPercentageOfTotalNumbersOfConvertibleSecuritiesOfSameClass","DetailsOfConvertibleSecuritiesAbstract","ConvertibleSecuritiesAsPercentageOfTotalNumbersOfConvertibleSecuritiesOfSameClass","StatementShowingHoldingOfSecuritiesByPublicHavingMoreThanOnePercentOfTotalNumberOfShares","num:percentItemType",null,"xbrli:item",null,"instant","false","true",0,"Should be percentage of total of convertible securities of same class"]
["in-bse-shp","TotalSharesHeldByPublicHavingMoreThanOnePercentageOfTotalNumberOfSharesIncludingUnderlyingSharesAssumingFullConversionOfWarrantsAndConvertibleSecuritiesAsAPercentageOfDilutedShareCapital","Total shares (including underlying shares assuming full conversion of warrants and convertible securities) as a percentage of diluted share capital","Total shares (including  underlying shares assuming full  conversion of warrants and convertible  securities) as a percentage of diluted  share capital ",2,5,"in-bse-shp_TotalSharesIncludingUnderlyingSharesAssumingFullConversionOfWarrantsAndConvertibleSecuritiesAsAPercentageOfDilutedShareCapital","DetailsOfSecuritiesBelongingToPublicHoldingMoreThanOnePercentageOfTotalNumberOfSharesLineItems","TotalSharesIncludingUnderlyingSharesAssumingFullConversionOfWarrantsAndConvertibleSecuritiesAsAPercentageOfDilutedShareCapital","StatementShowingHoldingOfSecuritiesByPublicHavingMoreThanOnePercentOfTotalNumberOfShares","num:percentItemType",null,"xbrli:item",null,"instant","false","true",0,"\"Total shares\"  should be greater than  \"Shareholding as a percentage of total number of shares\""]
["in-bse-shp","DisclosureOfNotesOnHoldingOfSecuritiesOfPersonsBelongingToTheCategoryPublicAndHoldingMoreThanOnePercentageOfTheTotalNumberOfShares","Disclosure of notes on holding of securities of persons belonging to the category \"Public\" and holding more than one percentage of the total number of shares","Disclosure of notes on holding of securities of persons belonging to the category \"Public\" and holding more than one percentage of the total number of shares       "]
["in-bse-shp","DetailsOfSecuritiesBelongingToPublicHoldingMoreThanFivePercentageOfTotalNumberOfSharesAbstract","Details of securities belonging to public holding more than five percentage of total number of shares [Abstract]",null,0,null,"in-bse-shp_DetailsOfSecuritiesBelongingToPublicHoldingMoreThanFivePercentageOfTotalNumberOfSharesAbstract",null,null,"StatementShowingHoldingOfSecuritiesByPublicHavingMoreThanFivePercentOfTotalNumberOfShares","xbrli:stringItemType",null,"xbrli:item",null,"duration","true","true",0]
["in-bse-shp","WhetherAnyOfPersonsTogetherWithPacBelongingToCategoryPublicHoldingMoreThanFivePercentageOfTotalNumberOfShares","Whether any of persons together with PAC belonging to category public holding more than five percentage of total number of shares ","Whether any person together with PAC belonging to category Public holding more than five percentage of total number of shares       ",1,"in-bse-shp_WhetherAnyOfSecurityHeldByPublicHavingMoreThanOnePercentageOfTotalNumberOfShares","DetailsOfSecuritiesBelongingToPublicHoldingMoreThanFivePercentageOfTotalNumberOfSharesAbstract","WhetherAnyOfPersonsTogetherWithPacBelongingToCategoryPublicHoldingMoreThanFivePercentageOfTotalNumberOfShares","StatementShowingHoldingOfSecuritiesByPublicHavingMoreThanFivePercentageOfTotalNumberOfShares","xbrli:stringItemType","xbrli:booleanItemType","xbrli:item",null,"duration",true,true]
["in-bse-shp","DetailsOfSecuritiesBelongingToPublicHoldingMoreThanFivePercentageOfTotalNumberOfSharesTable","Details of securities belonging to public holding more than five percentage of total number of shares [Table]",null,1,1,"in-bse-shp_DetailsOfSecuritiesBelongingToPublicHoldingMoreThanFivePercentageOfTotalNumberOfSharesTable","DetailsOfSecuritiesBelongingToPublicHoldingMoreThanFivePercentageOfTotalNumberOfSharesAbstract","DetailsOfSecuritiesBelongingToPublicHoldingMoreThanFivePercentageOfTotalNumberOfSharesTable","StatementShowingHoldingOfSecuritiesByPublicHavingMoreThanFivePercentOfTotalNumberOfShares","xbrli:stringItemType",null,"xbrldt:hypercubeItem",null,"duration","true","true",0]
["in-bse-shp","DetailsOfPublicShareholdingHavingMoreThanFivePercentageOfTotalNumberOfSharesAxis","Details of public shareholding having more than five percentage of total number of shares [Axis]",null,1,1,"in-bse-shp_DetailsOfSecuritiesBelongingToPublicHoldingMoreThanFivePercentageOfTotalNumberOfSharesAxis","DetailsOfSecuritiesBelongingToPublicHoldingMoreThanFivePercentageOfTotalNumberOfSharesTable","DetailsOfPublicShareholdingHavingMoreThanFivePercentageOfTotalNumberOfSharesAxis","StatementShowingHoldingOfSecuritiesByPublicHavingMoreThanFivePercentOfTotalNumberOfShares","xbrli:stringItemType",null,"xbrldt:dimensionItem",null,"duration","true","true","DetailsOfSecuritiesBelongingToPublicHoldingMoreThanFivePercentageOfTotalNumberOfSharesDomain"]
["in-bse-shp","DetailsOfSecuritiesBelongingToPublicHoldingMoreThanFivePercentageOfTotalNumberOfSharesLineItems","Details of securities belonging to public holding more than five percentage of total number of shares [Line items]",null,1,2,"in-bse-shp_DetailsOfSecuritiesBelongingToPublicHoldingMoreThanFivePercentageOfTotalNumberOfSharesLineItems","DetailsOfSecuritiesBelongingToPublicHoldingMoreThanFivePercentageOfTotalNumberOfSharesAbstract","DetailsOfSecuritiesBelongingToPublicHoldingMoreThanFivePercentageOfTotalNumberOfSharesLineItems","StatementShowingHoldingOfSecuritiesByPublicHavingMoreThanFivePercentOfTotalNumberOfShares","xbrli:stringItemType",null,"xbrli:item",null,"duration","true","true",0]
["in-bse-shp","NameOfTheShareholderBelongingToPublicHoldingMoreThanFivePercentageOfTotalNumberOfShares","Name of the shareholder","Name  of  the shareholder",2,1,"in-bse-shp_NameOfTheShareholder","DetailsOfSecuritiesBelongingToPublicHoldingMoreThanFivePercentageOfTotalNumberOfSharesLineItems","NameOfTheShareholder","StatementShowingHoldingOfSecuritiesByPublicHavingMoreThanFivePercentOfTotalNumberOfShares","xbrli:stringItemType",null,"xbrli:item",null,"instant","false","true",0]
["in-bse-shp","PANOfPublicShreholderHoldingMoreThanFivePercentageOfTotalNumberOfShares","PAN of public shreholder holding more than five percentage of total number of shares","PAN  of  Shareholder ",null,2,"in-bse-shp_PANOfPublicShreholderHoldingMoreThanFivePercentageOfTotalNumberOfShares","DetailsOfSecuritiesBelongingToPublicHoldingMoreThanFivePercentageOfTotalNumberOfSharesLineItems","PANOfPublicShreholderHoldingMoreThanFivePercentageOfTotalNumberOfShares","StatementShowingHoldingOfSecuritiesByPublicHavingMoreThanFivePercentageOfTotalNumberOfShares","in-bse-shp-types:PANNumber",null,"xbrli:item","","duration","false","true"]
["in-bse-shp","DetailsOfSharesHeldAbstract","Details of shares held [Abstract]",null,2,2,"in-bse-shp_DetailsOfSharesHeldAbstract","DetailsOfSecuritiesBelongingToPublicHoldingMoreThanFivePercentageOfTotalNumberOfSharesLineItems","DetailsOfSharesHeldAbstract","StatementShowingHoldingOfSecuritiesByPublicHavingMoreThanFivePercentOfTotalNumberOfShares","xbrli:stringItemType",null,"xbrli:item",null,"duration","true","true",0]
["in-bse-shp","NumberOfTheSharesHeldByPublicHavingMoreThanFivePercentageOfTotalNumberOfShares","Number of the shares held held by public having more than five percent of total number of shares","  Number  of  the shares held",3,1,"in-bse-shp_NumberOfTheSharesHeld","DetailsOfSharesHeldAbstract","NumberOfTheSharesHeld","StatementShowingHoldingOfSecuritiesByPublicHavingMoreThanFivePercentOfTotalNumberOfShares","xbrli:sharesItemType",null,"xbrli:item",null,"instant","false","true",0,"\"Number of the shares held\"   should be less than or equal to value entered in \" Total Public Shareholding (B) = (B)(1)+(B)(2)\"  in    Sheet -Table (I)(a)"]
["in-bse-shp","ShareholdingByPublicHavingMoreThanFivePercentageOfTotalNumberOfSharesAsAPercentageOfTotalNumberOfShares","Shareholding as a percentage of total number of shares held by promoter and promoter group, public shareholders and custodians having depository","Shares as percentage of total number of shares {i.e, Grand Total (A)  +  (B)  +  (C) indicated in statement at para (I) (a) above}",3,2,"in-bse-shp_ShareholdingAsAPercentageOfTotalNumberOfSharesHeldByPromoterSPublicShareholdersAndCustodiansHavingDepositoryReceipts","DetailsOfSharesHeldAbstract","ShareholdingAsAPercentageOfTotalNumberOfSharesHeldByPromoterSPublicShareholdersAndCustodiansHavingDepositoryReceipts","StatementShowingHoldingOfSecuritiesByPublicHavingMoreThanFivePercentOfTotalNumberOfShares","num:percentItemType",null,"xbrli:item",null,"instant","false","true",0]
["in-bse-shp","DetailsOfWarrantsAbstract","Details of warrants [Abstract]",null,2,3,"in-bse-shp_DetailsOfWarrantAbstract","DetailsOfSecuritiesBelongingToPublicHoldingMoreThanFivePercentageOfTotalNumberOfSharesLineItems","DetailsOfWarrantAbstract","StatementShowingHoldingOfSecuritiesByPublicHavingMoreThanFivePercentOfTotalNumberOfShares","xbrli:stringItemType",null,"xbrli:item",null,"duration","true","true",0]
["in-bse-shp","NumberOfWarrantsHeldByPublicHavingMoreThanFivePercentageOfTotalNumberOfShares","Number of warrants","  Number of warrants          held",3,1,"in-bse-shp_NumberOfWarrants","DetailsOfWarrantAbstract","NumberOfWarrants","StatementShowingHoldingOfSecuritiesByPublicHavingMoreThanFivePercentOfTotalNumberOfShares","xbrli:sharesItemType",null,"xbrli:item",null,"instant","false","true",0,"\"Number of warrants\"   should less than or equal to value entered in   \"Number of warrants held by public\" shown in  Sheet-Introductory sub-table (I)(a)"]
["in-bse-shp","WarrantsHeldByPublicHavingMoreThanFivePercentageOfTotalNumberOfSharesAsAPercentageOfTotalNumbersOfWarrantsOfTheSameClass","Warrants held as a percentage of total numbers of warrants of the same class ","  Warrants held as a percentage  of  total numbers of warrants of the same class ",3,2,"in-bse-shp_WarrantsHeldAsAPercentageOfTotalNumbersOfWarrantsOfTheSameClass","DetailsOfWarrantAbstract","WarrantsHeldAsAPercentageOfTotalNumbersOfWarrantsOfTheSameClass","StatementShowingHoldingOfSecuritiesByPublicHavingMoreThanFivePercentOfTotalNumberOfShares","num:percentItemType",null,"xbrli:item",null,"instant","false","true",0]
["in-bse-shp","DetailsOfConvertibleSecuritiesAbstract","Details of convertible securities [Abstract]",null,2,4,"in-bse-shp_DetailsOfConvertibleSecuritiesAbstract","DetailsOfSecuritiesBelongingToPublicHoldingMoreThanFivePercentageOfTotalNumberOfSharesLineItems","DetailsOfConvertibleSecuritiesAbstract","StatementShowingHoldingOfSecuritiesByPublicHavingMoreThanFivePercentOfTotalNumberOfShares","xbrli:stringItemType",null,"xbrli:item",null,"duration","true","true",0]
["in-bse-shp","NumberOfConvertibleSecuritiesHeldByPublicHavingMoreThanFivePercentageOfTotalNumberOfShares","Number of convertible securities","  Number                    of convertible securities held",3,1,"in-bse-shp_NumberOfConvertibleSecurities","DetailsOfConvertibleSecuritiesAbstract","NumberOfConvertibleSecurities","StatementShowingHoldingOfSecuritiesByPublicHavingMoreThanFivePercentOfTotalNumberOfShares","xbrli:sharesItemType",null,"xbrli:item",null,"instant","false","true",0,"Number of convertible securities   should be less than or equal to value entered in   \"Number of outstanding securities held by Public\" shown in  Sheet-Introductory sub-table (I)(a)"]
["in-bse-shp","ConvertibleSecuritiesHeldByPublicHavingMoreThanFivePercentageOfTotalNumberOfSharesAsPercentageOfTotalNumbersOfConvertibleSecuritiesOfSameClass","Convertible securities as percentage of total numbers of convertible securities of same class ","  Convertible securities as percentage  of  total numbers of convertible securities of same class ",3,2,"in-bse-shp_ConvertibleSecuritiesAsPercentageOfTotalNumbersOfConvertibleSecuritiesOfSameClass","DetailsOfConvertibleSecuritiesAbstract","ConvertibleSecuritiesAsPercentageOfTotalNumbersOfConvertibleSecuritiesOfSameClass","StatementShowingHoldingOfSecuritiesByPublicHavingMoreThanFivePercentOfTotalNumberOfShares","num:percentItemType",null,"xbrli:item",null,"instant","false","true",0]
["in-bse-shp","TotalSharesHeldByPublicHavingMoreThanFivePercentageOfTotalNumberOfSharesIncludingUnderlyingSharesAssumingFullConversionOfWarrantsAndConvertibleSecuritiesAsAPercentageOfDilutedShareCapital","Total shares (including underlying shares assuming full conversion of warrants and convertible securities) as a percentage of diluted share capital","  Total shares  (including underlying shares assuming full conversion of warrants and convertible securities) as a percentage of diluted share capital",2,5,"in-bse-shp_TotalSharesIncludingUnderlyingSharesAssumingFullConversionOfWarrantsAndConvertibleSecuritiesAsAPercentageOfDilutedShareCapital","DetailsOfSecuritiesBelongingToPublicHoldingMoreThanFivePercentageOfTotalNumberOfSharesLineItems","TotalSharesIncludingUnderlyingSharesAssumingFullConversionOfWarrantsAndConvertibleSecuritiesAsAPercentageOfDilutedShareCapital","StatementShowingHoldingOfSecuritiesByPublicHavingMoreThanFivePercentOfTotalNumberOfShares","num:percentItemType",null,"xbrli:item",null,"instant","false","true",0,"\"Total shares\"  should be greater than  \"Shareholding as a percentage of total number of shares\""]
["in-bse-shp","DisclosureOfNotesOnHoldingOfSecuritiesOfPersonsTogetherWithPacBelongingToTheCategoryPublicAndHoldingMoreThanFivePercentageOfTheTotalNumberOfSharesOfTheCompany","Disclosure of notes on holding of securities of persons (together with PAC) belonging to the category \"Public\" and holding more than five percentage of the total number of shares of the company","Disclosure of notes on holding of securities of persons (together with PAC) belonging to the category \"Public\" and holding more than five percentage of the total number of shares of the company       ",1,2,"in-bse-shp_DisclosureOfNotesOnHoldingOfSecuritiesOfPersonsTogetherWithPacBelongingToTheCategoryPublicAndHoldingMoreThanFivePercentageOfTheTotalNumberOfSharesOfTheCompanyTextBlock","DetailsOfSecuritiesBelongingToPublicHoldingMoreThanFivePercentageOfTotalNumberOfSharesAbstract","DisclosureOfNotesOnHoldingOfSecuritiesOfPersonsTogetherWithPacBelongingToTheCategoryPublicAndHoldingMoreThanFivePercentageOfTheTotalNumberOfSharesOfTheCompanyTextBlock","StatementShowingHoldingOfSecuritiesByPublicHavingMoreThanFivePercentageOfTotalNumberOfShares"]
["in-bse-shp","StatementShowingDetailsOfLockedInSharesAbstract","Details of locked-in-shares [Abstract]",null,0,null,"in-bse-shp_StatementShowingDetailsOfLockedInSharesAbstract",null,null,"StatementShowingDetailsOfLockedInShares","xbrli:stringItemType",null,"xbrli:item",null,"duration","true","true",0]
["in-bse-shp","WhetherCompanyHasSharesLockedIn","Whether company has shares locked in","Whether company has shares locked in    ",null,null,"in-bse-shp_DetailsOfLockedInSharesAbstract",null,null,null,"xbrli:booleanItemType",null,"xbrli:item",null,"duration","false","true"]
["in-bse-shp","StatementShowingDetailsOfLockedInSharesTable","Details of locked-in-shares [Table]",null,1,1,"in-bse-shp_StatementShowingDetailsOfLockedInSharesTable","StatementShowingDetailsOfLockedInSharesAbstract","StatementShowingDetailsOfLockedInSharesTable","StatementShowingDetailsOfLockedInShares","xbrli:stringItemType",null,"xbrldt:hypercubeItem",null,"duration","true","true",0]
["in-bse-shp","LockedInShareholdersAxis","Locked-in-shareholders [Axis]",null,2,1,"in-bse-shp_LockedInShareholdersAxis","StatementShowingDetailsOfLockedInSharesTable","LockedInShareholdersAxis","StatementShowingDetailsOfLockedInShares","xbrli:stringItemType",null,"xbrldt:dimensionItem",null,"duration","true","true","LockedInShareholdersDomain"]
["in-bse-shp","StatementShowingDetailsOfLockedInSharesLineItems","Details of locked-in-shares [Line items]",null,1,2,"in-bse-shp_StatementShowingDetailsOfLockedInSharesLineItems","StatementShowingDetailsOfLockedInSharesAbstract","StatementShowingDetailsOfLockedInSharesLineItems","StatementShowingDetailsOfLockedInShares","xbrli:stringItemType",null,"xbrli:item",null,"duration","true","true",0]
["in-bse-shp","PANOfLockedinShareholder","PAN of locked in shareholder","PAN of Shareholder",null,3,"in-bse-shp_PANOfLockedinShareholder","DetailsOfLockedInSharesLineItems","PANOfLockedinShareholder","StatementShowingDetailsOfLockedInShares","in-bse-shp-types:PANNumber",null,"xbrli:item",null,"duration","false","true"]
["in-bse-shp","NameOfTheShareholderHavingLockedInShares","Name of the shareholder","Name  of the Shareholder",2,1,"in-bse-shp_NameOfTheShareholderHavingLockedInShares","StatementShowingDetailsOfLockedInSharesLineItems","NameOfTheShareholder","StatementShowingDetailsOfLockedInShares","xbrli:stringItemType",null,"xbrli:item",null,"instant","false","true",0]
["in-bse-shp","NumberOfTheLockedInShares","Number of the locked-in-shares ","Number of locked-in shares",2,2,"in-bse-shp_NumberOfTheLockedInShares","StatementShowingDetailsOfLockedInSharesLineItems","NumberOfTheLockedInShares","StatementShowingDetailsOfLockedInShares","xbrli:sharesItemType",null,"xbrli:item",null,"instant","false","true",0]
["in-bse-shp","LockedInSharesAsAPercentageOfTotalNumberOfSharesHeldByPromoterSPublicShareholdersAndCustodiansHavingDepositoryReceipts","Locked-in-shares as a percentage of total number of shares","Locked-in-shares as a percentage of total number of shares held by {i.e., Grand Total (A) + (B) + (C) indicated in Statement at para (I)(a) above}",2,3,"in-bse-shp_LockedInSharesAsAPercentageOfTotalNumberOfShares","StatementShowingDetailsOfLockedInSharesLineItems","LockedInSharesAsAPercentageOfTotalNumberOfShares","StatementShowingDetailsOfLockedInShares","num:percentItemType",null,"xbrli:item",null,"instant","false","true",null,"As a percentage of  \"Number of  locked in shares\" to  \"Total  number of shares held\" mentioned on GRAND TOTAL  (A)+(B)+(C) in sheet \"Table(1)(a)\""]
["in-bse-shp","PromoterPromoterGroupPublic","promoter / promoter group / public","Promoter / Promoter Group / Public",2,4,"in-bse-shp_PromoterPromoterGroupPublic","StatementShowingDetailsOfLockedInSharesLineItems","PromoterPromoterGroupPublic","StatementShowingDetailsOfLockedInShares","in-bse-shp-types:PPGPublic",null,"xbrli:item",null,"instant","false","true",0,"This is a mandatory field. Value shall be \"Promoter\" or \"Promoter group\" or \"Public\". Select from drop down list."]
["in-bse-shp","NumberOfTheLockedInShares","Number of the locked-in-shares ",null,null,null,"in-bse-shp_NumberOfTheLockedInShares","StatementShowingDetailsOfLockedInSharesAbstract","NumberOfTheLockedInShares",null,"xbrli:stringItemType",null,"xbrli:item",null,"instant","false","true",0]
["in-bse-shp","LockedInSharesAsAPercentageOfTotalNumberOfShares","Locked-in-shares as a percentage of total number of shares",null,null,null,"in-bse-shp_LockedInSharesAsAPercentageOfTotalNumberOfShares","StatementShowingDetailsOfLockedInSharesAbstract","LockedInSharesAsAPercentageOfTotalNumberOfShares",null,"num:percentItemType",null,"xbrli:item",null,"instant","false","true",0]
["in-bse-shp","DisclosureOfNotesOnLockedInShares","Disclosure of notes on locked-in shares","Disclosure of notes on locked-in shares   ",1,3,"in-bse-shp_DisclosureOfNotesOnLockedInSharesTextBlock","StatementShowingDetailsOfLockedInSharesAbstract","DisclosureOfNotesOnLockedInSharesTextBlock","StatementShowingDetailsOfLockedInShares"]
["in-bse-shp","DetailsOfDepositoryReceiptsDRsAbstract","Details of depository receipts (DRs) [Abstract]",null,0,null,"in-bse-shp_DetailsOfDepositoryReceiptsDRsAbstract",null,null,"StatementShowingDetailsOfDepositoryReceiptsDRs","xbrli:stringItemType",null,"xbrli:item",null,"duration","true","true",0]
["in-bse-shp","DetailsOfDepositoryReceiptsTable","Details of depository receipts [Table]",null,1,1,"in-bse-shp_DetailsOfDepositoryReceiptsTable","DetailsOfDepositoryReceiptsDRsAbstract","DetailsOfDepositoryReceiptsTable","StatementShowingDetailsOfDepositoryReceiptsDRs","xbrli:stringItemType",null,"xbrldt:hypercubeItem",null,"duration","true","true",0]
["in-bse-shp","DetailsofDepositoryReceiptsAxis","Details of depository receipts [Axis]",null,2,1,"in-bse-shp_DetailsofDepositoryReceiptsAxis","DetailsOfDepositoryReceiptsTable","DetailsofDepositoryReceiptsAxis","StatementShowingDetailsOfDepositoryReceiptsDRs","xbrli:stringItemType",null,"xbrldt:dimensionItem",null,"duration","true","true","DepositoryReceiptsDomain"]
["in-bse-shp","DetailsOfDepositoryReceiptsLineItems","Details of depository receipts [Line items]",null,1,2,"in-bse-shp_DetailsOfDepositoryReceiptsLineItems","DetailsOfDepositoryReceiptsDRsAbstract","DetailsOfDepositoryReceiptsLineItems","StatementShowingDetailsOfDepositoryReceiptsDRs","xbrli:stringItemType",null,"xbrli:item",null,"duration","true","true",0]
["in-bse-shp","TypeOfOutstandingDR","Type of outstanding DR","Type of outstanding  DRs",2,1,"in-bse-shp_TypeOfOutstandingDR","DetailsOfDepositoryReceiptsLineItems","TypeOfOutstandingDR","StatementShowingDetailsOfDepositoryReceiptsDRs","xbrli:stringItemType",null,"xbrli:item",null,"instant","false","true",0]
["in-bse-shp","NumberOfOutstandingDRs","Number of outstanding DRs","Number of outstanding DRs",2,2,"in-bse-shp_NumberOfOutstandingDRs","DetailsOfDepositoryReceiptsLineItems","NumberOfOutstandingDRs","StatementShowingDetailsOfDepositoryReceiptsDRs","xbrli:sharesItemType",null,"xbrli:item",null,"instant","false","true",0]
["in-bse-shp","NumberOfSharesUnderlyingOutstandingDRs","Number of shares underlying outstanding DRs","Number of shares underlying outstanding DRs",2,3,"in-bse-shp_NumberOfSharesUnderlyingOutstandingDRs","DetailsOfDepositoryReceiptsLineItems","NumberOfSharesUnderlyingOutstandingDRs","StatementShowingDetailsOfDepositoryReceiptsDRs","xbrli:sharesItemType",null,"xbrli:item",null,"instant","false","true",0,"This is a mandatory field. Must be equal to \"Total  number of shares held by custodian\" mentioned in sheet \"Table(1)(a)\""]
["in-bse-shp","SharesUnderlyingOutstandingDRsAsAPercentageOfTotalNumberOfSharesHeldByPromoterSPublicShareholdersAndCustodiansHavingDepositoryReceipts","Shares underlying outstanding DRs as a percentage total number of shares","Shares underlying outstanding DRs as a percentage of total number of shares {i.e., Grand Total (A) + (B) + (C) indicated in Statement at para (I)(a) above}",2,4,"in-bse-shp_SharesUnderlyingOutstandingDRsHoldersAsAPercentageTotalNumberSharesOfShares","DetailsOfDepositoryReceiptsLineItems","SharesUnderlyingOutstandingDRsHoldersAsAPercentageTotalNumberSharesOfShares","StatementShowingDetailsOfDepositoryReceiptsDRs","num:percentItemType",null,"xbrli:item",null,"instant","false","true",0]
["in-bse-shp","DisclosureOfNotesOnDepositoryReceiptsDRs","Disclosure of notes on depository receipts (DRs)","Disclosure of notes on depository receipts (DRs)   ",1,3,"in-bse-shp_DisclosureOfNotesOnDepositoryReceiptsDRsTextBlock","DetailsOfDepositoryReceiptsDRsAbstract","DisclosureOfNotesOnDepositoryReceiptsDRsTextBlock","StatementShowingDetailsOfDepositoryReceiptsDRs"]
["in-bse-shp","DetailsOfShareholdingOfDepositoryReceiptsDrHoldersWhereUnderlyingSharesHeldByPromoterpromoterGroupAreInExcessOfOnepercentageOfTheTotalNumberOfSharesAbstract","Details of shareholding of depository receipts  (dr holders) where underlying shares held by ‘promoterpromoter group’ are in excess of one percentage of the total number of shares [Abstract]",null,0,null,"in-bse-shp_DetailsOfShareholdingOfDepositoryReceiptsDrHoldersWhereUnderlyingSharesHeldByPromoterpromoterGroupAreInExcessOfOnepercentageOfTheTotalNumberOfSharesAbstract",null,"DetailsOfShareholdingOfDepositoryReceiptsDrHoldersWhereUnderlyingSharesHeldByPromoterpromoterGroupAreInExcessOfOnepercentageOfTheTotalNumberOfSharesAbstract","StatementShowingHoldingOfDepositoryReceiptsDRsWhereUnderlyingSharesHeldByPromoterPromoterGroupAreInExcessOfOnePercentageOfTheTotalNumberOfShares","xbrli:stringItemType",null,"xbrli:item",null,"duration","true","true",0]
["in-bse-shp","DetailsOfShareholdingOfDepositoryReceiptsDrHoldersWhereUnderlyingSharesHeldByPromoterpromoterGroupAreInExcessOfOnepercentageOfTheTotalNumberOfSharesTable","Details of shareholding of depository receipts  (dr holders) where underlying shares held by ‘promoterpromoter group’ are in excess of one percentage of the total number of shares [Table]",null,1,1,"in-bse-shp_DetailsOfShareholdingOfDepositoryReceiptsDrHoldersWhereUnderlyingSharesHeldByPromoterpromoterGroupAreInExcessOfOnepercentageOfTheTotalNumberOfSharesTable","DetailsOfShareholdingOfDepositoryReceiptsDrHoldersWhereUnderlyingSharesHeldByPromoterpromoterGroupAreInExcessOfOnepercentageOfTheTotalNumberOfSharesAbstract","DetailsOfShareholdingOfDepositoryReceiptsDrHoldersWhereUnderlyingSharesHeldByPromoterpromoterGroupAreInExcessOfOnepercentageOfTheTotalNumberOfSharesTable","StatementShowingHoldingOfDepositoryReceiptsDRsWhereUnderlyingSharesHeldByPromoterPromoterGroupAreInExcessOfOnePercentageOfTheTotalNumberOfShares","xbrli:stringItemType",null,"xbrldt:hypercubeItem",null,"duration","true","true",0]
["in-bse-shp","DepositoryReceiptsHoldersAxis","Depository receipts holders [Axis]",null,1,2,"in-bse-shp_DepositoryReceiptsHoldersAxis","DetailsOfShareholdingOfDepositoryReceiptsDrHoldersWhereUnderlyingSharesHeldByPromoterpromoterGroupAreInExcessOfOnepercentageOfTheTotalNumberOfSharesTable","DepositoryReceiptsHoldersAxis","StatementShowingHoldingOfDepositoryReceiptsDRsWhereUnderlyingSharesHeldByPromoterPromoterGroupAreInExcessOfOnePercentageOfTheTotalNumberOfShares","xbrli:stringItemType",null,"xbrldt:dimensionItem",null,"duration","true","true","DepositoryReceiptsHoldersDomain"]
["in-bse-shp","DetailsOfShareholdingOfDepositoryReceiptsDrHoldersWhereUnderlyingSharesHeldByPromoterpromoterGroupAreInExcessOfOnepercentageOfTheTotalNumberOfSharesLineItems","Details of shareholding  of  depository receipts  (dr holders) where  underlying shares  held by ‘promoterpromoter  group’  are in  excess  of  onepercentage of  the  total number of shares [Line items]",null,1,2,"in-bse-shp_DetailsOfShareholdingOfDepositoryReceiptsDrHoldersWhereUnderlyingSharesHeldByPromoterpromoterGroupAreInExcessOfOnepercentageOfTheTotalNumberOfSharesLineItems","DetailsOfShareholdingOfDepositoryReceiptsDrHoldersWhereUnderlyingSharesHeldByPromoterpromoterGroupAreInExcessOfOnepercentageOfTheTotalNumberOfSharesAbstract","DetailsOfShareholdingOfDepositoryReceiptsDrHoldersWhereUnderlyingSharesHeldByPromoterpromoterGroupAreInExcessOfOnepercentageOfTheTotalNumberOfSharesLineItems","StatementShowingHoldingOfDepositoryReceiptsDRsWhereUnderlyingSharesHeldByPromoterPromoterGroupAreInExcessOfOnePercentageOfTheTotalNumberOfShares","xbrli:stringItemType",null,"xbrli:item",null,"duration","true","true",0]
["in-bse-shp","NameOfTheDRHolder","Name of the dr holder","Name of the DR Holder",2,2,"in-bse-shp_NameOfTheDRHolder","DetailsOfShareholdingOfDepositoryReceiptsDrHoldersWhereUnderlyingSharesHeldByPromoterpromoterGroupAreInExcessOfOnepercentageOfTheTotalNumberOfSharesLineItems","NameOfTheDRHolder","StatementShowingHoldingOfDepositoryReceiptsDRsWhereUnderlyingSharesHeldByPromoterPromoterGroupAreInExcessOfOnePercentageOfTheTotalNumberOfShares","xbrli:stringItemType",null,"xbrli:item",null,"instant","false","true",0]
["in-bse-shp","TypeOfOutstandingDRWhereUnderlyingSharesHeldByHeldByPromoterOrPromoterGroupAreInExcessOfOnePercentageOfTheTotalNumberOfShares","Type of outstanding dr","Type of outstanding DR",3,2,"in-bse-shp_TypeOfOutstandingDR","DetailsOfShareholdingOfDepositoryReceiptsDrHoldersWhereUnderlyingSharesHeldByPromoterpromoterGroupAreInExcessOfOnepercentageOfTheTotalNumberOfSharesLineItems","TypeOfOutstandingDR","StatementShowingHoldingOfDepositoryReceiptsDRsWhereUnderlyingSharesHeldByPromoterPromoterGroupAreInExcessOfOnePercentageOfTheTotalNumberOfShares","xbrli:stringItemType",null,"xbrli:item",null,"instant","false","true"]
["in-bse-shp","NumberOfSharesUnderlyingOutstandingDRsHeldByPromoterOrPromoterGroupAreInExcessOfOnePercentageOfTheTotalNumberOfShares","Number of shares underlying outstanding DRs","Number of shares underlying outstanding   DRs",4,2,"in-bse-shp_NumberOfSharesUnderlyingOutstandingDRs","DetailsOfShareholdingOfDepositoryReceiptsDrHoldersWhereUnderlyingSharesHeldByPromoterpromoterGroupAreInExcessOfOnepercentageOfTheTotalNumberOfSharesLineItems","NumberOfSharesUnderlyingOutstandingDRs","StatementShowingHoldingOfDepositoryReceiptsDRsWhereUnderlyingSharesHeldByPromoterPromoterGroupAreInExcessOfOnePercentageOfTheTotalNumberOfShares","xbrli:sharesItemType",null,"xbrli:item",null,"instant","false","true",0]
["in-bse-shp","SharesUnderlyingOutstandingDRsHeldByPromoterOrPromoterGroupAreInExcessOfOnePercentageOfTheTotalNumberOfSharesAsAPercentageTotalNumberOfShares","Shares underlying outstanding DRs as a percentage total number of shares","Shares underlying outstanding  DRs  as  a percentage of total number  of  shares {i.e., Grand Total (A) + (B) + (C) indicated in Statement at para (I)(a) above}",2,3,"in-bse-shp_SharesUnderlyingOutstandingDRsHoldersAsAPercentageTotalNumberSharesOfShares","DetailsOfShareholdingOfDepositoryReceiptsDrHoldersWhereUnderlyingSharesHeldByPromoterpromoterGroupAreInExcessOfOnepercentageOfTheTotalNumberOfSharesLineItems","SharesUnderlyingOutstandingDRsHoldersAsAPercentageTotalNumberSharesOfShares","StatementShowingHoldingOfDepositoryReceiptsDRsWhereUnderlyingSharesHeldByPromoterPromoterGroupAreInExcessOfOnePercentageOfTheTotalNumberOfShares","num:percentItemType",null,"xbrli:item",null,"instant","false","true",0]
["in-bse-shp","NumberOfSharesUnderlyingOutstandingDRsHeldByPromoterOrPromoterGroupAreInExcessOfOnePercentageOfTheTotalNumberOfShares","Number of shares underlying outstanding DRs"]
["in-bse-shp","SharesUnderlyingOutstandingDRsHeldByPromoterOrPromoterGroupAreInExcessOfOnePercentageOfTheTotalNumberOfSharesAsAPercentageTotalNumberOfShares","Shares underlying outstanding DRs as a percentage total number of shares"]
["in-bse-shp","DisclosureOfNotesOfDepositoryReceiptsDRsWhereUnderlyingSharesHeldByPromoterOrPromoterGroupAreInExcessOfOnePercentageOfTheTotalNumberOfShares","Disclosure of notes of depository receipts (DRs), where underlying shares held by \"Promoter / Promoter Group\" are in excess of one percentage of the total number of shares [Text Block]","Disclosure of notes of depository receipts (DRs), where underlying shares held by \"Promoter / Promoter Group\" are in excess of one percentage of the total number of shares   ",1,3,"in-bse-shp_DisclosureOfNotesOfDepositoryReceiptsDrsWhereUnderlyingSharesHeldByPromoterPromoterGroupAreInExcessOfOnePercentageOfTheTotalNumberOfSharesTextBlock","DetailsOfShareholdingOfDepositoryReceiptsDrHoldersWhereUnderlyingSharesHeldByPromoterpromoterGroupAreInExcessOfOnepercentageOfTheTotalNumberOfSharesAbstract","DisclosureOfNotesOfDepositoryReceiptsDrsWhereUnderlyingSharesHeldByPromoterPromoterGroupAreInExcessOfOnePercentageOfTheTotalNumberOfSharesTextBlock","StatementShowingHoldingOfDepositoryReceiptsDRsWhereUnderlyingSharesHeldByPromoterPromoterGroupAreInExcessOfOnePercentageOfTheTotalNumberOfShares"]
["in-bse-shp","StatementShowingTheVotingPatternOfShareholdersAbstract","Statement showing the voting pattern of shareholders [Abstract]",null,0,null,"in-bse-shp_StatementShowingTheVotingPatternOfShareholdersAbstract",null,null,"StatementShowingTheVotingPatternOfShareholders","xbrli:stringItemType",null,"xbrli:item",null,"duration","true","true",0]
["in-bse-shp","DetailDescriptionOfVotingRightsForEachClassOfSharesOrSecuritiesAbstract","Detail description of voting rights for each class of shares or securities [Abstract]",null,1,1,"in-bse-shp_DetailDescriptionOfVotingRightsForEachClassOfSharesOrSecuritiesAbstract","StatementShowingTheVotingPatternOfShareholdersAbstract","DetailDescriptionOfVotingRightsForEachClassOfSharesOrSecuritiesAbstract","StatementShowingTheVotingPatternOfShareholders","xbrli:stringItemType",null,"xbrli:item",null,"duration","true","true",0]
["in-bse-shp","DetailDescriptionOfVotingRightsForEachClassOfSharesOrSecuritiesTable","Detail description of voting rights for each class of shares or securities [Table]",null,2,1,"in-bse-shp_DetailDescriptionOfVotingRightsForEachClassOfSharesOrSecuritiesTable","DetailDescriptionOfVotingRightsForEachClassOfSharesOrSecuritiesAbstract","DetailDescriptionOfVotingRightsForEachClassOfSharesOrSecuritiesTable","StatementShowingTheVotingPatternOfShareholders","xbrli:stringItemType",null,"xbrldt:hypercubeItem",null,"duration","true","true",0]
["in-bse-shp","ClassesOfSecuritiesAxis","Classes of securities [Axis]",null,3,1,"in-bse-shp_ClassesOfSecuritiesAxis","DetailDescriptionOfVotingRightsForEachClassOfSharesOrSecuritiesTable","ClassesOfSecuritiesAxis","StatementShowingTheVotingPatternOfShareholders","xbrli:stringItemType",null,"xbrldt:dimensionItem",null,"duration","true","true",0]
["in-bse-shp","DetailsOfSecuritiesMember","Details of Securities [Member]",null,4,1,"in-bse-shp_DetailsOfSecuritiesMember","ClassesOfSecuritiesAxis","DetailsOfSecuritiesMember","StatementShowingTheVotingPatternOfShareholders","nonnum:domainItemType",null,"xbrli:item",null,"duration","false","true",0]
["in-bse-shp","ClassOfSecurity1Member","Class of security 1 [Member]","Class X",5,1,"in-bse-shp_ClassOfSecurity1Member","DetailsOfSecuritiesMember","ClassOfSecurity1Member","StatementShowingTheVotingPatternOfShareholders","nonnum:domainItemType",null,"xbrli:item",null,"duration","false","true",0]
["in-bse-shp","ClassOfSecurity2Member","Class of security 2 [Member]","Class Y",5,2,"in-bse-shp_ClassOfSecurity2Member","DetailsOfSecuritiesMember","ClassOfSecurity2Member","StatementShowingTheVotingPatternOfShareholders","nonnum:domainItemType",null,"xbrli:item",null,"duration","false","true",0]
["in-bse-shp","ClassOfSecurity3Member","Class of security 3 [Member]","Class Z",5,3,"in-bse-shp_ClassOfSecurity3Member","DetailsOfSecuritiesMember","ClassOfSecurity3Member","StatementShowingTheVotingPatternOfShareholders","nonnum:domainItemType",null,"xbrli:item",null,"duration","false","true",0]
["in-bse-shp","ClassOfSecurity4Member","Class of security 4 [Member]",null,5,4,"in-bse-shp_ClassOfSecurity4Member","DetailsOfSecuritiesMember","ClassOfSecurity4Member","StatementShowingTheVotingPatternOfShareholders","nonnum:domainItemType",null,"xbrli:item",null,"duration","false","true",0]
["in-bse-shp","ClassOfSecurity5Member","Class of security 5 [Member]",null,5,5,"in-bse-shp_ClassOfSecurity5Member","DetailsOfSecuritiesMember","ClassOfSecurity5Member","StatementShowingTheVotingPatternOfShareholders","nonnum:domainItemType",null,"xbrli:item",null,"duration","false","true",0]
["in-bse-shp","DetailDescriptionOfVotingRightsForEachClassOfSharesOrSecuritiesLineItems","Detail description of voting rights for each class of shares or securities [Line items]",null,2,2,"in-bse-shp_DetailDescriptionOfVotingRightsForEachClassOfSharesOrSecuritiesLineItems","DetailDescriptionOfVotingRightsForEachClassOfSharesOrSecuritiesAbstract","DetailDescriptionOfVotingRightsForEachClassOfSharesOrSecuritiesLineItems","StatementShowingTheVotingPatternOfShareholders","xbrli:stringItemType",null,"xbrli:item",null,"duration","true","true",0]
["in-bse-shp","TypeOfSecurity","Type of security","Type of security",1,1,"in-bse-shp_TypeOfSecurity","DetailDescriptionOfVotingRightsForEachClassOfSharesOrSecuritiesLineItems","TypeOfSecurity","StatementShowingTheVotingPatternOfShareholders","xbrli:stringItemType",null,"xbrli:item",null,"duration","false","true",0]
["in-bse-shp","ScripCodeOfSecurity","Scrip Code Of Security","Scrip  code",2,2,"in-bse-shp_ScripCode","DetailDescriptionOfVotingRightsForEachClassOfSharesOrSecuritiesLineItems","ScripName","StatementShowingTheVotingPatternOfShareholders","in-bse-shp:ScripCode",null,"xbrli:item",null,"duration","false","true",0]
["in-bse-shp","NumberOfSharesPerVotingRights","Number of shares per voting rights","Number of shares per voting rights",3,3,"in-bse-shp_NumberOfSharesPerVotingRights",null,null,"StatementShowingTheVotingPatternOfShareholders","xbrli:sharesItemType",null,"xbrli:item",null,"instant","false","true",0]
["in-bse-shp","DetailsOfNumberOfVotingRightsForEachClassOfSecurityHavingMoreThanOneClassOfSharesOrSecuritiesAbstract","Details of number of voting rights for each class of security having more than one class of shares or securities [Abstract]",null,1,2,"in-bse-shp_DetailsOfNumberOfVotingRightsForEachClassOfSecurityHavingMoreThanOneClassOfSharesOrSecuritiesAbstract","StatementShowingTheVotingPatternOfShareholdersAbstract","DetailsOfNumberOfVotingRightsForEachClassOfSecurityHavingMoreThanOneClassOfSharesOrSecuritiesAbstract","StatementShowingTheVotingPatternOfShareholders","xbrli:stringItemType",null,"xbrli:item",null,"duration","true","true",0]
["in-bse-shp","DetailsOfNumberOfVotingRightsForEachClassOfSecurityHavingMoreThanOneClassOfSharesOrSecuritiesTable","Details of number of voting rights for each class of security having more than one class of shares or securities [Table]",null,2,1,"in-bse-shp_DetailsOfNumberOfVotingRightsForEachClassOfSecurityHavingMoreThanOneClassOfSharesOrSecuritiesTable","DetailsOfNumberOfVotingRightsForEachClassOfSecurityHavingMoreThanOneClassOfSharesOrSecuritiesAbstract","DetailsOfNumberOfVotingRightsForEachClassOfSecurityHavingMoreThanOneClassOfSharesOrSecuritiesTable","StatementShowingTheVotingPatternOfShareholders","xbrli:stringItemType",null,"xbrldt:hypercubeItem",null,"duration","true","true",0]
["in-bse-shp","ClassesOfSecuritiesAxis_1","Classes of securities [Axis]",null,3,1,"in-bse-shp_ClassesOfSecuritiesAxis","DetailsOfNumberOfVotingRightsForEachClassOfSecurityHavingMoreThanOneClassOfSharesOrSecuritiesTable","ClassesOfSecuritiesAxis_1","StatementShowingTheVotingPatternOfShareholders","xbrli:stringItemType",null,"xbrldt:dimensionItem",null,"duration","true","true",{"$error":"#N/A"}]
["in-bse-shp","DetailsOfSecuritiesMember_1","Details of Securities [Member]",null,4,1,"in-bse-shp_DetailsOfSecuritiesMember","ClassesOfSecuritiesAxis_1","DetailsOfSecuritiesMember_1","StatementShowingTheVotingPatternOfShareholders","nonnum:domainItemType",null,"xbrli:item",null,"duration","false","true",{"$error":"#N/A"}]
["in-bse-shp","ClassOfSecurity1Member_1","Class of security 1 [Member]","Class X",5,1,"in-bse-shp_ClassOfSecurity1Member","DetailsOfSecuritiesMember_1","ClassOfSecurity1Member_1","StatementShowingTheVotingPatternOfShareholders","nonnum:domainItemType",null,"xbrli:item",null,"duration","false","true",{"$error":"#N/A"}]
["in-bse-shp","ClassOfSecurity2Member_1","Class of security 2 [Member]","Class Y",5,2,"in-bse-shp_ClassOfSecurity2Member","DetailsOfSecuritiesMember_1","ClassOfSecurity2Member_1","StatementShowingTheVotingPatternOfShareholders","nonnum:domainItemType",null,"xbrli:item",null,"duration","false","true",{"$error":"#N/A"}]
["in-bse-shp","ClassOfSecurity3Member_1","Class of security 3 [Member]","Class Z",5,3,"in-bse-shp_ClassOfSecurity3Member","DetailsOfSecuritiesMember_1","ClassOfSecurity3Member_1","StatementShowingTheVotingPatternOfShareholders","nonnum:domainItemType",null,"xbrli:item",null,"duration","false","true",{"$error":"#N/A"}]
["in-bse-shp","ClassOfSecurity4Member_1","Class of security 4 [Member]",null,5,4,"in-bse-shp_ClassOfSecurity4Member","DetailsOfSecuritiesMember_1","ClassOfSecurity4Member_1","StatementShowingTheVotingPatternOfShareholders","nonnum:domainItemType",null,"xbrli:item",null,"duration","false","true",{"$error":"#N/A"}]
["in-bse-shp","ClassOfSecurity5Member_1","Class of security 5 [Member]",null,5,5,"in-bse-shp_ClassOfSecurity5Member","DetailsOfSecuritiesMember_1","ClassOfSecurity5Member_1","StatementShowingTheVotingPatternOfShareholders","nonnum:domainItemType",null,"xbrli:item",null,"duration","false","true",{"$error":"#N/A"}]
["in-bse-shp","CategoryOfShareholdersAxis_2","Category of shareholders [Axis]",null,2,2,"in-bse-shp_CategoryOfShareholdersAxis","DetailsOfNumberOfVotingRightsForEachClassOfSecurityHavingMoreThanOneClassOfSharesOrSecuritiesTable","CategoryOfShareholdersAxis_2","StatementShowingTheVotingPatternOfShareholders","xbrli:stringItemType",null,"xbrldt:dimensionItem",null,"duration","true","true",{"$error":"#N/A"}]
["in-bse-shp","ShareholdingPatternMember_2","Shareholding pattern [Member]",null,3,1,"in-bse-shp_ShareholdingPatternMember","CategoryOfShareholdersAxis_2","ShareholdingPatternMember_2","StatementShowingTheVotingPatternOfShareholders","nonnum:domainItemType",null,"xbrli:item",null,"duration","false","true",{"$error":"#N/A"}]
["in-bse-shp","ShareholdingOfPromotersAndPublicMember_2","Shareholding of promoters and public [Member]",null,4,1,"in-bse-shp_ShareholdingOfPromoterPromoterGroupAndPublicMember","ShareholdingPatternMember_2","ShareholdingOfPromotersAndPublicMember_2","StatementShowingTheVotingPatternOfShareholders","nonnum:domainItemType",null,"xbrli:item",null,"duration","false","true",{"$error":"#N/A"}]
["in-bse-shp","ShareholdingOfPromoterAndPromoterGroupMember_2","Shareholding of promoter and promoter group [Member]",null,5,1,"in-bse-shp_ShareholdingOfPromoterAndPromoterGroupMember","ShareholdingOfPromotersAndPublicMember_2","ShareholdingOfPromoterAndPromoterGroupMember_2","StatementShowingTheVotingPatternOfShareholders","nonnum:domainItemType",null,"xbrli:item",null,"duration","false","true",{"$error":"#N/A"}]
["in-bse-shp","IndianMember_2","Indian [Member]",null,5,1,"in-bse-shp_IndianMember","ShareholdingOfPromoterAndPromoterGroupMember_2","IndianMember_2","StatementShowingTheVotingPatternOfShareholders","nonnum:domainItemType",null,"xbrli:item",null,"duration","false","true",{"$error":"#N/A"}]
["in-bse-shp","IndividualsOrHinduUndividedFamilyMember_2","Individuals or Hindu undivided family [Member]",null,6,1,"in-bse-shp_IndividualsOrHinduUndividedFamilyMember","IndianMember_2","IndividualsOrHinduUndividedFamilyMember_2","StatementShowingTheVotingPatternOfShareholders","nonnum:domainItemType",null,"xbrli:item",null,"duration","false","true",{"$error":"#N/A"}]
["in-bse-shp","CentralGovernmentOrStateGovernmentSMember_2","Central government or state government(s) [Member]",null,6,2,"in-bse-shp_CentralGovernmentOrStateGovernmentSMember","IndianMember_2","CentralGovernmentOrStateGovernmentSMember_2","StatementShowingTheVotingPatternOfShareholders","nonnum:domainItemType",null,"xbrli:item",null,"duration","false","true",{"$error":"#N/A"}]
["in-bse-shp","BodiesCorporateMember_2","Bodies corporate [Member]",null,6,3,"in-bse-shp_BodiesCorporateMember","IndianMember_2","BodiesCorporateMember_2","StatementShowingTheVotingPatternOfShareholders","nonnum:domainItemType",null,"xbrli:item",null,"duration","false","true",{"$error":"#N/A"}]
["in-bse-shp","FinancialInstitutionsOrBanksMember_2","Financial institutions or banks [Member]",null,6,4,"in-bse-shp_FinancialInstitutionsOrBanksMember","IndianMember_2","FinancialInstitutionsOrBanksMember_2","StatementShowingTheVotingPatternOfShareholders","nonnum:domainItemType",null,"xbrli:item",null,"duration","false","true",{"$error":"#N/A"}]
["in-bse-shp","OtherIndianShareholdersMember_2","Other indian shareholders [Member]",null,6,5,"in-bse-shp_OtherIndianShareholdersMember","IndianMember_2","OtherIndianShareholdersMember_2","StatementShowingTheVotingPatternOfShareholders","nonnum:domainItemType",null,"xbrli:item",null,"duration","false","true",{"$error":"#N/A"}]
["in-bse-shp","ForeignMember_2","Foreign [Member]",null,5,2,"in-bse-shp_ForeignMember","ShareholdingOfPromoterAndPromoterGroupMember_2","ForeignMember_2","StatementShowingTheVotingPatternOfShareholders","nonnum:domainItemType",null,"xbrli:item",null,"duration","false","true",{"$error":"#N/A"}]
["in-bse-shp","NonResidentIndividualsOrForeignIndividualsMember_2","Non-resident individuals or foreign individuals [Member]",null,6,1,"in-bse-shp_NonResidentIndividualsOrForeignIndividualsMember","ForeignMember_2","NonResidentIndividualsOrForeignIndividualsMember_2","StatementShowingTheVotingPatternOfShareholders","nonnum:domainItemType",null,"xbrli:item",null,"duration","false","true",{"$error":"#N/A"}]
["in-bse-shp","BodiesCorporateMember_2","Bodies corporate [Member]",null,6,2,"in-bse-shp_BodiesCorporateMember","ForeignMember_2","BodiesCorporateMember_2","StatementShowingTheVotingPatternOfShareholders","nonnum:domainItemType",null,"xbrli:item",null,"duration","false","true",{"$error":"#N/A"}]
["in-bse-shp","ForeignInstitutionsMember_2","Foreign institutions [Member]",null,6,3,"in-bse-shp_ForeignInstitutionsMember","ForeignMember_2","ForeignInstitutionsMember_2","StatementShowingTheVotingPatternOfShareholders","nonnum:domainItemType",null,"xbrli:item",null,"duration","false","true",{"$error":"#N/A"}]
["in-bse-shp","QualifiedForeignInvestorMember_2","Qualified foreign investor [Member]",null,6,4,"in-bse-shp_QualifiedForeignInvestorMember","ForeignMember_2","QualifiedForeignInvestorMember_2","StatementShowingTheVotingPatternOfShareholders","nonnum:domainItemType",null,"xbrli:item",null,"duration","false","true",{"$error":"#N/A"}]
["in-bse-shp","OtherForeignShareholdersMember_2","Other foreign shareholders [Member]",null,6,5,"in-bse-shp_OtherForeignShareholdersMember","ForeignMember_2","OtherForeignShareholdersMember_2","StatementShowingTheVotingPatternOfShareholders","nonnum:domainItemType",null,"xbrli:item",null,"duration","false","true",{"$error":"#N/A"}]
["in-bse-shp","PublicShareholdingMember_2","Public shareholding [Member]",null,3,2,"in-bse-shp_PublicShareholdingMember","ShareholdingOfPromotersAndPublicMember_2","PublicShareholdingMember_2","StatementShowingTheVotingPatternOfShareholders","nonnum:domainItemType",null,"xbrli:item",null,"duration","false","true",{"$error":"#N/A"}]
["in-bse-shp","InstitutionsMember_2","Institutions [Member]",null,4,1,"in-bse-shp_InstitutionsMember","PublicShareholdingMember_2","InstitutionsMember_2","StatementShowingTheVotingPatternOfShareholders","nonnum:domainItemType",null,"xbrli:item",null,"duration","false","true",{"$error":"#N/A"}]
["in-bse-shp","MutualFundsOrUtiMember_2","Mutual funds or uti [Member]",null,5,1,"in-bse-shp_MutualFundsOrUtiMember","InstitutionsMember_2","MutualFundsOrUtiMember_2","StatementShowingTheVotingPatternOfShareholders","nonnum:domainItemType",null,"xbrli:item",null,"duration","false","true",{"$error":"#N/A"}]
["in-bse-shp","FinancialInstitutionsOrBanksMember_2","Financial institutions or banks [Member]",null,5,2,"in-bse-shp_FinancialInstitutionsOrBanksMember","InstitutionsMember_2","FinancialInstitutionsOrBanksMember_2","StatementShowingTheVotingPatternOfShareholders","nonnum:domainItemType",null,"xbrli:item",null,"duration","false","true",{"$error":"#N/A"}]
["in-bse-shp","CentralGovernmentOrStateGovernmentSMember_2","Central government or state government(s) [Member]",null,5,3,"in-bse-shp_CentralGovernmentOrStateGovernmentSMember","InstitutionsMember_2","CentralGovernmentOrStateGovernmentSMember_2","StatementShowingTheVotingPatternOfShareholders","nonnum:domainItemType",null,"xbrli:item",null,"duration","false","true",{"$error":"#N/A"}]
["in-bse-shp","VentureCapitalFundsMember_2","Venture capital funds [Member]",null,5,4,"in-bse-shp_VentureCapitalFundsMember","InstitutionsMember_2","VentureCapitalFundsMember_2","StatementShowingTheVotingPatternOfShareholders","nonnum:domainItemType",null,"xbrli:item",null,"duration","false","true",{"$error":"#N/A"}]
["in-bse-shp","InsuranceCompaniesMember_2","Insurance companies [Member]",null,5,5,"in-bse-shp_InsuranceCompaniesMember","InstitutionsMember_2","InsuranceCompaniesMember_2","StatementShowingTheVotingPatternOfShareholders","nonnum:domainItemType",null,"xbrli:item",null,"duration","false","true",{"$error":"#N/A"}]
["in-bse-shp","ForeignInstitutionalInvestorsMember_2","Foreign institutional investors [Member]",null,5,6,"in-bse-shp_ForeignInstitutionalInvestorsMember","InstitutionsMember_2","ForeignInstitutionalInvestorsMember_2","StatementShowingTheVotingPatternOfShareholders","nonnum:domainItemType",null,"xbrli:item",null,"duration","false","true",{"$error":"#N/A"}]
["in-bse-shp","ForeignVentureCapitalInvestorsMember_2","Foreign venture capital investors [Member]",null,5,7,"in-bse-shp_ForeignVentureCapitalInvestorsMember","InstitutionsMember_2","ForeignVentureCapitalInvestorsMember_2","StatementShowingTheVotingPatternOfShareholders","nonnum:domainItemType",null,"xbrli:item",null,"duration","false","true",{"$error":"#N/A"}]
["in-bse-shp","QualifiedForeignInvestorMember_2","Qualified foreign investor [Member]",null,5,8,"in-bse-shp_QualifiedForeignInvestorMember","InstitutionsMember_2","QualifiedForeignInvestorMember_2","StatementShowingTheVotingPatternOfShareholders","nonnum:domainItemType",null,"xbrli:item",null,"duration","false","true",{"$error":"#N/A"}]
["in-bse-shp","OtherMutualFundsOrUtiMember_2","Other mutual funds or uti [Member]",null,5,9,"in-bse-shp_OtherMutualFundsOrUtiMember","InstitutionsMember_2","OtherMutualFundsOrUtiMember_2","StatementShowingTheVotingPatternOfShareholders","nonnum:domainItemType",null,"xbrli:item",null,"duration","false","true",{"$error":"#N/A"}]
["in-bse-shp","NonInstitutionsMember_2","Non-institutions [Member]",null,4,2,"in-bse-shp_NonInstitutionsMember","PublicShareholdingMember_2","NonInstitutionsMember_2","StatementShowingTheVotingPatternOfShareholders","nonnum:domainItemType",null,"xbrli:item",null,"duration","false","true",{"$error":"#N/A"}]
["in-bse-shp","BodiesCorporateMember_2","Bodies corporate [Member]",null,5,1,"in-bse-shp_BodiesCorporateMember","NonInstitutionsMember_2","BodiesCorporateMember_2","StatementShowingTheVotingPatternOfShareholders","nonnum:domainItemType",null,"xbrli:item",null,"duration","false","true",{"$error":"#N/A"}]
["in-bse-shp","IndividualsMember_2","Individuals [Member]",null,5,2,"in-bse-shp_IndividualsMember","NonInstitutionsMember_2","IndividualsMember_2","StatementShowingTheVotingPatternOfShareholders","nonnum:domainItemType",null,"xbrli:item",null,"duration","false","true",{"$error":"#N/A"}]
["in-bse-shp","IndividualShareholdersHoldingNominalShareCapitalUpToRsOneLakhMember_2","Individual shareholders holding nominal share capital up to Rs one lakh [Member]",null,6,1,"in-bse-shp_IndividualShareholdersHoldingNominalShareCapitalUpToRsOneLakhMember","IndividualsMember_2","IndividualShareholdersHoldingNominalShareCapitalUpToRsOneLakhMember_2","StatementShowingTheVotingPatternOfShareholders","nonnum:domainItemType",null,"xbrli:item",null,"duration","false","true",{"$error":"#N/A"}]
["in-bse-shp","IndividualShareholdersHoldingNominalShareCapitalInExcessOfRsOneLakhMember_2","Individual shareholders holding nominal share capital in excess of Rs one lakh [Member]",null,6,2,"in-bse-shp_IndividualShareholdersHoldingNominalShareCapitalInExcessOfRsOneLakhMember","IndividualsMember_2","IndividualShareholdersHoldingNominalShareCapitalInExcessOfRsOneLakhMember_2","StatementShowingTheVotingPatternOfShareholders","nonnum:domainItemType",null,"xbrli:item",null,"duration","false","true",{"$error":"#N/A"}]
["in-bse-shp","QualifiedForeignInvestorMember_2","Qualified foreign investor [Member]",null,5,3,"in-bse-shp_QualifiedForeignInvestorMember","NonInstitutionsMember_2","QualifiedForeignInvestorMember_2","StatementShowingTheVotingPatternOfShareholders","nonnum:domainItemType",null,"xbrli:item",null,"duration","false","true",{"$error":"#N/A"}]
["in-bse-shp","OtherNonInstitutionsMember_2","Other non-institutions [Member]",null,5,4,"in-bse-shp_OtherNonInstitutionsMember","NonInstitutionsMember_2","OtherNonInstitutionsMember_2","StatementShowingTheVotingPatternOfShareholders","nonnum:domainItemType",null,"xbrli:item",null,"duration","false","true",{"$error":"#N/A"}]
["in-bse-shp","SharesHeldByCustodiansAgainstWhichDepositoryReceiptHaveBeenIssuedMember_2","Shares held by custodians and against which depository receipt have been issued [Member]",null,4,3,"in-bse-shp_SharesHeldByCustodiansAgainstWhichDepositoryReceiptHaveBeenIssuedMember","ShareholdingPatternMember_2","SharesHeldByCustodiansAgainstWhichDepositoryReceiptHaveBeenIssuedMember_2","StatementShowingTheVotingPatternOfShareholders","nonnum:domainItemType",null,"xbrli:item",null,"duration","false","true",{"$error":"#N/A"}]
["in-bse-shp","SharesHeldByPromoterAndPromoterGroupMember_2","Shares held by promoter and promoter group [Member]",null,4,1,"in-bse-shp_SharesHeldByPromoterAndPromoterGroupMember","SharesHeldByCustodiansAgainstWhichDepositoryReceiptHaveBeenIssuedMember_2","SharesHeldByPromoterAndPromoterGroupMember_2","StatementShowingTheVotingPatternOfShareholders","nonnum:domainItemType",null,"xbrli:item",null,"duration","false","true",{"$error":"#N/A"}]
["in-bse-shp","SharesHeldByPublicMember_2","Shares held by public [Member]",null,4,2,"in-bse-shp_SharesHeldByPublicMember","SharesHeldByCustodiansAgainstWhichDepositoryReceiptHaveBeenIssuedMember_2","SharesHeldByPublicMember_2","StatementShowingTheVotingPatternOfShareholders","nonnum:domainItemType",null,"xbrli:item",null,"duration","false","true",{"$error":"#N/A"}]
["in-bse-shp","NumberOfVotingRightsForEachClassOfSecurityHavingMoreThanOneClassOfSharesLineItems","Number of voting rights for each class of security having more than one class of shares [Line items]",null,2,2,"in-bse-shp_NumberOfVotingRightsForEachClassOfSecurityHavingMoreThanOneClassOfSharesLineItems","DetailsOfNumberOfVotingRightsForEachClassOfSecurityHavingMoreThanOneClassOfSharesOrSecuritiesAbstract","NumberOfVotingRightsForEachClassOfSecurityHavingMoreThanOneClassOfSharesLineItems","StatementShowingTheVotingPatternOfShareholders","xbrli:stringItemType",null,"xbrli:item",null,"duration","true","true",0]
["in-bse-shp","NumberOfVotingRights","Number of Voting Rights","Number of Voting Rights held",3,1,"in-bse-shp_NumberOfVotingRights","NumberOfVotingRightsForEachClassOfSecurityHavingMoreThanOneClassOfSharesLineItems","NumberOfVotingRights","StatementShowingTheVotingPatternOfShareholders","xbrli:decimalItemType",null,"xbrli:item",null,"instant","false","true",0]
["in-bse-shp","DetailsOfVotingRightsForEachClassOfSecurityHavingMoreThanOneClassOfSharesAbstract","Details of voting rights for each class of security having more than one class of shares [Abstract]",null,null,3,"in-bse-shp_DetailsOfVotingRightsForEachClassOfSecurityHavingMoreThanOneClassOfSharesAbstract","StatementShowingTheVotingPatternOfShareholdersAbstract","DetailsOfVotingRightsForEachClassOfSecurityHavingMoreThanOneClassOfSharesAbstract","StatementShowingTheVotingPatternOfShareholders","xbrli:stringItemType",null,"xbrli:item",null,"duration","true","true",0]
["in-bse-shp","DetailsOfVotingRightsForEachClassOfSecurityHavingMoreThanOneClassOfSharesTable","Details of voting rights for each class of security having more than one class of shares [Table]",null,null,1,"in-bse-shp_DetailsOfVotingRightsForEachClassOfSecurityHavingMoreThanOneClassOfSharesTable","DetailsOfVotingRightsForEachClassOfSecurityHavingMoreThanOneClassOfSharesAbstract","DetailsOfVotingRightsForEachClassOfSecurityHavingMoreThanOneClassOfSharesTable","StatementShowingTheVotingPatternOfShareholders","xbrli:stringItemType",null,"xbrldt:hypercubeItem",null,"duration","true","true",0]
["in-bse-shp","ClassesOfSecuritiesAxis_3","Classes of securities [Axis]",null,null,1,"in-bse-shp_ClassesOfSecuritiesAxis","DetailsOfVotingRightsForEachClassOfSecurityHavingMoreThanOneClassOfSharesTable","ClassesOfSecuritiesAxis_3","StatementShowingTheVotingPatternOfShareholders","xbrli:stringItemType",null,"xbrldt:dimensionItem",null,"duration","true","true",{"$error":"#N/A"}]
["in-bse-shp","DetailsOfSecuritiesMember_3","Details of Securities [Member]",null,null,1,"in-bse-shp_DetailsOfSecuritiesMember","ClassesOfSecuritiesAxis_3","DetailsOfSecuritiesMember_3","StatementShowingTheVotingPatternOfShareholders","nonnum:domainItemType",null,"xbrli:item",null,"duration","false","true",{"$error":"#N/A"}]
["in-bse-shp","ClassOfSecurity1Member_3","Class of security 1 [Member]","Class X",null,1,"in-bse-shp_ClassOfSecurity1Member","DetailsOfSecuritiesMember_3","ClassOfSecurity1Member_3","StatementShowingTheVotingPatternOfShareholders","nonnum:domainItemType",null,"xbrli:item",null,"duration","false","true",{"$error":"#N/A"}]
["in-bse-shp","ClassOfSecurity2Member_3","Class of security 2 [Member]","Class Y",null,2,"in-bse-shp_ClassOfSecurity2Member","DetailsOfSecuritiesMember_3","ClassOfSecurity2Member_3","StatementShowingTheVotingPatternOfShareholders","nonnum:domainItemType",null,"xbrli:item",null,"duration","false","true",{"$error":"#N/A"}]
["in-bse-shp","ClassOfSecurity3Member_3","Class of security 3 [Member]","Class Z",null,3,"in-bse-shp_ClassOfSecurity3Member","DetailsOfSecuritiesMember_3","ClassOfSecurity3Member_3","StatementShowingTheVotingPatternOfShareholders","nonnum:domainItemType",null,"xbrli:item",null,"duration","false","true",{"$error":"#N/A"}]
["in-bse-shp","ClassOfSecurity4Member_3","Class of security 4 [Member]",null,null,4,"in-bse-shp_ClassOfSecurity4Member","DetailsOfSecuritiesMember_3","ClassOfSecurity4Member_3","StatementShowingTheVotingPatternOfShareholders","nonnum:domainItemType",null,"xbrli:item",null,"duration","false","true",{"$error":"#N/A"}]
["in-bse-shp","ClassOfSecurity5Member_3","Class of security 5 [Member]",null,null,5,"in-bse-shp_ClassOfSecurity5Member","DetailsOfSecuritiesMember_3","ClassOfSecurity5Member_3","StatementShowingTheVotingPatternOfShareholders","nonnum:domainItemType",null,"xbrli:item",null,"duration","false","true",{"$error":"#N/A"}]
["in-bse-shp","CategoryOfShareholdersAxis_3","Category of shareholders [Axis]",null,2,2,"in-bse-shp_CategoryOfShareholdersAxis","DetailsOfVotingRightsForEachClassOfSecurityHavingMoreThanOneClassOfSharesTable","CategoryOfShareholdersAxis_3","StatementShowingTheVotingPatternOfShareholders","xbrli:stringItemType",null,"xbrldt:dimensionItem",null,"duration","true","true",{"$error":"#N/A"}]
["in-bse-shp","ShareholdingPatternMember_3","Shareholding pattern [Member]",null,3,1,"in-bse-shp_ShareholdingPatternMember","CategoryOfShareholdersAxis_3","ShareholdingPatternMember_3","StatementShowingTheVotingPatternOfShareholders","nonnum:domainItemType",null,"xbrli:item",null,"duration","false","true",{"$error":"#N/A"}]
["in-bse-shp","ShareholdingOfPromotersAndPublicMember_3","Shareholding of promoters and public [Member]",null,4,2,"in-bse-shp_ShareholdingOfPromoterPromoterGroupAndPublicMember","ShareholdingPatternMember_3","ShareholdingOfPromotersAndPublicMember_3","StatementShowingTheVotingPatternOfShareholders","nonnum:domainItemType",null,"xbrli:item",null,"duration","false","true",{"$error":"#N/A"}]
["in-bse-shp","ShareholdingOfPromoterAndPromoterGroupMember_3","Shareholding of promoter and promoter group [Member]",null,5,1,"in-bse-shp_ShareholdingOfPromoterAndPromoterGroupMember","ShareholdingOfPromotersAndPublicMember_3","ShareholdingOfPromoterAndPromoterGroupMember_3","StatementShowingTheVotingPatternOfShareholders","nonnum:domainItemType",null,"xbrli:item",null,"duration","false","true",{"$error":"#N/A"}]
["in-bse-shp","IndianMember_3","Indian [Member]",null,5,1,"in-bse-shp_IndianMember","ShareholdingOfPromoterAndPromoterGroupMember_3","IndianMember_3","StatementShowingTheVotingPatternOfShareholders","nonnum:domainItemType",null,"xbrli:item",null,"duration","false","true",{"$error":"#N/A"}]
["in-bse-shp","IndividualsOrHinduUndividedFamilyMember_3","Individuals or Hindu undivided family [Member]",null,6,1,"in-bse-shp_IndividualsOrHinduUndividedFamilyMember","IndianMember_3","IndividualsOrHinduUndividedFamilyMember_3","StatementShowingTheVotingPatternOfShareholders","nonnum:domainItemType",null,"xbrli:item",null,"duration","false","true",{"$error":"#N/A"}]
["in-bse-shp","CentralGovernmentOrStateGovernmentSMember_3","Central government or state government(s) [Member]",null,6,2,"in-bse-shp_CentralGovernmentOrStateGovernmentSMember","IndianMember_3","CentralGovernmentOrStateGovernmentSMember_3","StatementShowingTheVotingPatternOfShareholders","nonnum:domainItemType",null,"xbrli:item",null,"duration","false","true",{"$error":"#N/A"}]
["in-bse-shp","BodiesCorporateMember_3","Bodies corporate [Member]",null,6,3,"in-bse-shp_BodiesCorporateMember","IndianMember_3","BodiesCorporateMember_3","StatementShowingTheVotingPatternOfShareholders","nonnum:domainItemType",null,"xbrli:item",null,"duration","false","true",{"$error":"#N/A"}]
["in-bse-shp","FinancialInstitutionsOrBanksMember_3","Financial institutions or banks [Member]",null,6,4,"in-bse-shp_FinancialInstitutionsOrBanksMember","IndianMember_3","FinancialInstitutionsOrBanksMember_3","StatementShowingTheVotingPatternOfShareholders","nonnum:domainItemType",null,"xbrli:item",null,"duration","false","true",{"$error":"#N/A"}]
["in-bse-shp","OtherIndianShareholdersMember_3","Other indian shareholders [Member]",null,6,5,"in-bse-shp_OtherIndianShareholdersMember","IndianMember_3","OtherIndianShareholdersMember_3","StatementShowingTheVotingPatternOfShareholders","nonnum:domainItemType",null,"xbrli:item",null,"duration","false","true",{"$error":"#N/A"}]
["in-bse-shp","ForeignMember_3","Foreign [Member]",null,5,2,"in-bse-shp_ForeignMember","ShareholdingOfPromoterAndPromoterGroupMember_3","ForeignMember_3","StatementShowingTheVotingPatternOfShareholders","nonnum:domainItemType",null,"xbrli:item",null,"duration","false","true",{"$error":"#N/A"}]
["in-bse-shp","NonResidentIndividualsOrForeignIndividualsMember_3","Non-resident individuals or foreign individuals [Member]",null,6,1,"in-bse-shp_NonResidentIndividualsOrForeignIndividualsMember","ForeignMember_3","NonResidentIndividualsOrForeignIndividualsMember_3","StatementShowingTheVotingPatternOfShareholders","nonnum:domainItemType",null,"xbrli:item",null,"duration","false","true",{"$error":"#N/A"}]
["in-bse-shp","BodiesCorporateMember_3","Bodies corporate [Member]",null,6,2,"in-bse-shp_BodiesCorporateMember","ForeignMember_3","BodiesCorporateMember_3","StatementShowingTheVotingPatternOfShareholders","nonnum:domainItemType",null,"xbrli:item",null,"duration","false","true",{"$error":"#N/A"}]
["in-bse-shp","ForeignInstitutionsMember_3","Foreign institutions [Member]",null,6,3,"in-bse-shp_ForeignInstitutionsMember","ForeignMember_3","ForeignInstitutionsMember_3","StatementShowingTheVotingPatternOfShareholders","nonnum:domainItemType",null,"xbrli:item",null,"duration","false","true",{"$error":"#N/A"}]
["in-bse-shp","QualifiedForeignInvestorMember_3","Qualified foreign investor [Member]",null,6,4,"in-bse-shp_QualifiedForeignInvestorMember","ForeignMember_3","QualifiedForeignInvestorMember_3","StatementShowingTheVotingPatternOfShareholders","nonnum:domainItemType",null,"xbrli:item",null,"duration","false","true",{"$error":"#N/A"}]
["in-bse-shp","OtherForeignShareholdersMember_3","Other foreign shareholders [Member]",null,6,5,"in-bse-shp_OtherForeignShareholdersMember","ForeignMember_3","OtherForeignShareholdersMember_3","StatementShowingTheVotingPatternOfShareholders","nonnum:domainItemType",null,"xbrli:item",null,"duration","false","true",{"$error":"#N/A"}]
["in-bse-shp","PublicShareholdingMember_3","Public shareholding [Member]",null,3,2,"in-bse-shp_PublicShareholdingMember","ShareholdingOfPromotersAndPublicMember_3","PublicShareholdingMember_3","StatementShowingTheVotingPatternOfShareholders","nonnum:domainItemType",null,"xbrli:item",null,"duration","false","true",{"$error":"#N/A"}]
["in-bse-shp","InstitutionsMember_3","Institutions [Member]",null,4,1,"in-bse-shp_InstitutionsMember","PublicShareholdingMember_3","InstitutionsMember_3","StatementShowingTheVotingPatternOfShareholders","nonnum:domainItemType",null,"xbrli:item",null,"duration","false","true",{"$error":"#N/A"}]
["in-bse-shp","MutualFundsOrUtiMember_3","Mutual funds or uti [Member]",null,5,1,"in-bse-shp_MutualFundsOrUtiMember","InstitutionsMember_3","MutualFundsOrUtiMember_3","StatementShowingTheVotingPatternOfShareholders","nonnum:domainItemType",null,"xbrli:item",null,"duration","false","true",{"$error":"#N/A"}]
["in-bse-shp","FinancialInstitutionsOrBanksMember_3","Financial institutions or banks [Member]",null,5,2,"in-bse-shp_FinancialInstitutionsOrBanksMember","InstitutionsMember_3","FinancialInstitutionsOrBanksMember_3","StatementShowingTheVotingPatternOfShareholders","nonnum:domainItemType",null,"xbrli:item",null,"duration","false","true",{"$error":"#N/A"}]
["in-bse-shp","CentralGovernmentOrStateGovernmentSMember_3","Central government or state government(s) [Member]",null,5,3,"in-bse-shp_CentralGovernmentOrStateGovernmentSMember","InstitutionsMember_3","CentralGovernmentOrStateGovernmentSMember_3","StatementShowingTheVotingPatternOfShareholders","nonnum:domainItemType",null,"xbrli:item",null,"duration","false","true",{"$error":"#N/A"}]
["in-bse-shp","VentureCapitalFundsMember_3","Venture capital funds [Member]",null,5,4,"in-bse-shp_VentureCapitalFundsMember","InstitutionsMember_3","VentureCapitalFundsMember_3","StatementShowingTheVotingPatternOfShareholders","nonnum:domainItemType",null,"xbrli:item",null,"duration","false","true",{"$error":"#N/A"}]
["in-bse-shp","InsuranceCompaniesMember_3","Insurance companies [Member]",null,5,5,"in-bse-shp_InsuranceCompaniesMember","InstitutionsMember_3","InsuranceCompaniesMember_3","StatementShowingTheVotingPatternOfShareholders","nonnum:domainItemType",null,"xbrli:item",null,"duration","false","true",{"$error":"#N/A"}]
["in-bse-shp","ForeignInstitutionalInvestorsMember_3","Foreign institutional investors [Member]",null,5,6,"in-bse-shp_ForeignInstitutionalInvestorsMember","InstitutionsMember_3","ForeignInstitutionalInvestorsMember_3","StatementShowingTheVotingPatternOfShareholders","nonnum:domainItemType",null,"xbrli:item",null,"duration","false","true",{"$error":"#N/A"}]
["in-bse-shp","ForeignVentureCapitalInvestorsMember_3","Foreign venture capital investors [Member]",null,5,7,"in-bse-shp_ForeignVentureCapitalInvestorsMember","InstitutionsMember_3","ForeignVentureCapitalInvestorsMember_3","StatementShowingTheVotingPatternOfShareholders","nonnum:domainItemType",null,"xbrli:item",null,"duration","false","true",{"$error":"#N/A"}]
["in-bse-shp","QualifiedForeignInvestorMember_3","Qualified foreign investor [Member]",null,5,8,"in-bse-shp_QualifiedForeignInvestorMember","InstitutionsMember_3","QualifiedForeignInvestorMember_3","StatementShowingTheVotingPatternOfShareholders","nonnum:domainItemType",null,"xbrli:item",null,"duration","false","true",{"$error":"#N/A"}]
["in-bse-shp","NominatedInvestorsMember_3","Nominated investors [Member]"]
["in-bse-shp","MarketMakersMember_3","Market makers [Member]"]
["in-bse-shp","OtherMutualFundsOrUtiMember_3","Other mutual funds or uti [Member]",null,5,9,"in-bse-shp_OtherMutualFundsOrUtiMember","InstitutionsMember_3","OtherMutualFundsOrUtiMember_3","StatementShowingTheVotingPatternOfShareholders","nonnum:domainItemType",null,"xbrli:item",null,"duration","false","true",{"$error":"#N/A"}]
["in-bse-shp","NonInstitutionsMember_3","Non-institutions [Member]",null,4,2,"in-bse-shp_NonInstitutionsMember","PublicShareholdingMember_3","NonInstitutionsMember_3","StatementShowingTheVotingPatternOfShareholders","nonnum:domainItemType",null,"xbrli:item",null,"duration","false","true",{"$error":"#N/A"}]
["in-bse-shp","BodiesCorporateMember_3","Bodies corporate [Member]",null,5,1,"in-bse-shp_BodiesCorporateMember","NonInstitutionsMember_3","BodiesCorporateMember_3","StatementShowingTheVotingPatternOfShareholders","nonnum:domainItemType",null,"xbrli:item",null,"duration","false","true",{"$error":"#N/A"}]
["in-bse-shp","IndividualsMember_3","Individuals [Member]",null,5,2,"in-bse-shp_IndividualsMember","NonInstitutionsMember_3","IndividualsMember_3","StatementShowingTheVotingPatternOfShareholders","nonnum:domainItemType",null,"xbrli:item",null,"duration","false","true",{"$error":"#N/A"}]
["in-bse-shp","IndividualShareholdersHoldingNominalShareCapitalUpToRsOneLakhMember_3","Individual shareholders holding nominal share capital up to Rs one lakh [Member]",null,6,1,"in-bse-shp_IndividualShareholdersHoldingNominalShareCapitalUpToRsOneLakhMember","IndividualsMember_3","IndividualShareholdersHoldingNominalShareCapitalUpToRsOneLakhMember_3","StatementShowingTheVotingPatternOfShareholders","nonnum:domainItemType",null,"xbrli:item",null,"duration","false","true",{"$error":"#N/A"}]
["in-bse-shp","IndividualShareholdersHoldingNominalShareCapitalInExcessOfRsOneLakhMember_3","Individual shareholders holding nominal share capital in excess of Rs one lakh [Member]",null,6,2,"in-bse-shp_IndividualShareholdersHoldingNominalShareCapitalInExcessOfRsOneLakhMember","IndividualsMember_3","IndividualShareholdersHoldingNominalShareCapitalInExcessOfRsOneLakhMember_3","StatementShowingTheVotingPatternOfShareholders","nonnum:domainItemType",null,"xbrli:item",null,"duration","false","true",{"$error":"#N/A"}]
["in-bse-shp","QualifiedForeignInvestorMember_3","Qualified foreign investor [Member]",null,5,3,"in-bse-shp_QualifiedForeignInvestorMember","NonInstitutionsMember_3","QualifiedForeignInvestorMember_3","StatementShowingTheVotingPatternOfShareholders","nonnum:domainItemType",null,"xbrli:item",null,"duration","false","true",{"$error":"#N/A"}]
["in-bse-shp","OtherNonInstitutionsMember_3","Other non-institutions [Member]",null,5,4,"in-bse-shp_OtherNonInstitutionsMember","NonInstitutionsMember_3","OtherNonInstitutionsMember_3","StatementShowingTheVotingPatternOfShareholders","nonnum:domainItemType",null,"xbrli:item",null,"duration","false","true",{"$error":"#N/A"}]
["in-bse-shp","SharesHeldByCustodiansAgainstWhichDepositoryReceiptHaveBeenIssuedMember_3","Shares held by custodians and against which depository receipt have been issued [Member]",null,4,3,"in-bse-shp_SharesHeldByCustodiansAgainstWhichDepositoryReceiptHaveBeenIssuedMember","ShareholdingPatternMember_3","SharesHeldByCustodiansAgainstWhichDepositoryReceiptHaveBeenIssuedMember_3","StatementShowingTheVotingPatternOfShareholders","nonnum:domainItemType",null,"xbrli:item",null,"duration","false","true",{"$error":"#N/A"}]
["in-bse-shp","SharesHeldByPromoterAndPromoterGroupMember_3","Shares held by promoter and promoter group [Member]",null,4,1,"in-bse-shp_SharesHeldByPromoterAndPromoterGroupMember","SharesHeldByCustodiansAgainstWhichDepositoryReceiptHaveBeenIssuedMember_3","SharesHeldByPromoterAndPromoterGroupMember_3","StatementShowingTheVotingPatternOfShareholders","nonnum:domainItemType",null,"xbrli:item",null,"duration","false","true",{"$error":"#N/A"}]
["in-bse-shp","SharesHeldByPublicMember_3","Shares held by public [Member]",null,4,2,"in-bse-shp_SharesHeldByPublicMember","SharesHeldByCustodiansAgainstWhichDepositoryReceiptHaveBeenIssuedMember_3","SharesHeldByPublicMember_3","StatementShowingTheVotingPatternOfShareholders","nonnum:domainItemType",null,"xbrli:item",null,"duration","false","true",{"$error":"#N/A"}]
["in-bse-shp","DetailsOfVotingRightsForEachClassOfSecurityHavingMoreThanOneClassOfSharesLineItems","Details of voting rights for each class of security having more than one class of shares [Line items]",null,null,1,"in-bse-shp_DetailsOfVotingRightsForEachClassOfSecurityHavingMoreThanOneClassOfSharesLineItems","DetailsOfVotingRightsForEachClassOfSecurityHavingMoreThanOneClassOfSharesAbstract","DetailsOfVotingRightsForEachClassOfSecurityHavingMoreThanOneClassOfSharesLineItems","StatementShowingTheVotingPatternOfShareholders","xbrli:stringItemType",null,"xbrli:item",null,"duration","true","true",0]
["in-bse-shp","TotalVotingRightsOfSecurities","Total Voting Rights of securities","Total Voting Rights (III+IV+V)",2,1,"in-bse-shp_TotalVotingRightsOfSecurities","DetailsOfVotingRightsForEachClassOfSecurityHavingMoreThanOneClassOfSharesLineItems","TotalVotingRightsOfSecurities","StatementShowingTheVotingPatternOfShareholders","xbrli:decimalItemType",null,"xbrli:item",null,"instant","false","true",0]
["in-bse-shp","TotalVotingRightsAbstract","Total Voting Rights [Abstract]"," (III+IV+V)",null,2,"in-bse-shp_TotalVotingRightsAbstract","DetailsOfVotingRightsForEachClassOfSecurityHavingMoreThanOneClassOfSharesLineItems","TotalVotingRightsAbstract","StatementShowingTheVotingPatternOfShareholders","xbrli:stringItemType",null,"xbrli:item",null,"duration","true","true",0]
["in-bse-shp","VotingRightsOfSecuritiesAsAPercentageOfVotingRightsHeldByPromoterSAndPublicShareholders","Voting rights of securities as a percentage of voting rights held by promoter(s) and public shareholders","Voting rights of securities as a percentage of voting rights held by promoter(s) and public shareholders",null,1,"in-bse-shp_VotingRightsOfSecuritiesAsAPercentageOfVotingRightsHeldByPromoterPromoterGroupAndPublicShareholders","TotalVotingRightsAbstract","VotingRightsOfSecuritiesAsAPercentageOfVotingRightsHeldByPromoterPromoterGroupAndPublicShareholders","StatementShowingTheVotingPatternOfShareholders","num:percentItemType",null,"xbrli:item",null,"instant","false","true",0]
["in-bse-shp","VotingRightsOfSecuritiesAsAPercentageOfVotingRightsHeldByPromoterSPublicShareholdersAndCustodiansOfDepositoryReceipts","Voting rights of securities as a percentage of voting rights held by promoter(s), public shareholders and custodians of depository receipts","Voting rights of securities as a percentage of voting rights held by promoter(s), public shareholders and custodians of depository receipts",null,2,"in-bse-shp_VotingRightsOfSecuritiesAsAPercentageOfVotingRightsHeldByPromoterPromoterGroupAndPublicShareholdersAndCustodiansOfDepositoryReceipts","TotalVotingRightsAbstract","VotingRightsOfSecuritiesAsAPercentageOfVotingRightsHeldByPromoterPromoterGroupAndPublicShareholdersAndCustodiansOfDepositoryReceipts","StatementShowingTheVotingPatternOfShareholders","num:percentItemType",null,"xbrli:item",null,"instant","false","true",0]
["in-bse-shp","DetailsOfNumberOfVotingRightsHeldByIndianShareholdersAbstract","Details of number of voting rights held by indian shareholders [Abstract]",null,0,3,"in-bse-shp_DetailsOfNumberOfVotingRightsHeldByIndianShareholdersAbstract","StatementShowingTheVotingPatternOfShareholdersAbstract","DetailsOfNumberOfVotingRightsHeldByIndianShareholdersAbstract","StatementShowingTheVotingPatternOfShareholders","xbrli:stringItemType",null,"xbrli:item",null,"duration","true","true",0]
["in-bse-shp","DetailsOfNumberOfVotingRightsHeldByIndianShareholdersTable","Details of number of voting rights held by indian shareholders [Table]",null,1,1,"in-bse-shp_DetailsOfNumberOfVotingRightsHeldByIndianShareholdersTable","DetailsOfNumberOfVotingRightsHeldByIndianShareholdersAbstract","DetailsOfNumberOfVotingRightsHeldByIndianShareholdersTable","StatementShowingTheVotingPatternOfShareholders","xbrli:stringItemType",null,"xbrldt:hypercubeItem",null,"duration","true","true",0]
["in-bse-shp","DetailsofIndianShareholdersAxis_2","Details of indian shareholders [Axis]",null,2,1,"in-bse-shp_DetailsofIndianShareholdersAxis","DetailsOfNumberOfVotingRightsHeldByIndianShareholdersTable","DetailsofIndianShareholdersAxis_2","StatementShowingTheVotingPatternOfShareholders","xbrli:stringItemType",null,"xbrldt:dimensionItem",null,"duration","true","true",{"$error":"#N/A"}]
["in-bse-shp","DetailsOfIndianShareholdersDomain_2","Details of indian shareholders domain",null,3,1,"in-bse-shp_DetailsOfIndianShareholdersDomain","DetailsofIndianShareholdersAxis_2","DetailsOfIndianShareholdersDomain_2","StatementShowingTheVotingPatternOfShareholders","nonnum:domainItemType",null,"xbrli:item",null,"duration","false","true",{"$error":"#N/A"}]
["in-bse-shp","IndianShareholders1Member_2","Indian shareholders 1 [Member]",null,4,1,"in-bse-shp_IndianShareholders1Member","DetailsOfIndianShareholdersDomain_2","IndianShareholders1Member_2","StatementShowingTheVotingPatternOfShareholders","nonnum:domainItemType",null,"xbrli:item",null,"duration","false","true",{"$error":"#N/A"}]
["in-bse-shp","IndianShareholders2Member_2","Indian shareholders 2 [Member]",null,4,2,"in-bse-shp_IndianShareholders2Member","DetailsOfIndianShareholdersDomain_2","IndianShareholders2Member_2","StatementShowingTheVotingPatternOfShareholders","nonnum:domainItemType",null,"xbrli:item",null,"duration","false","true",{"$error":"#N/A"}]
["in-bse-shp","IndianShareholders3Member_2","Indian shareholders 3 [Member]",null,4,3,"in-bse-shp_IndianShareholders3Member","DetailsOfIndianShareholdersDomain_2","IndianShareholders3Member_2","StatementShowingTheVotingPatternOfShareholders","nonnum:domainItemType",null,"xbrli:item",null,"duration","false","true",{"$error":"#N/A"}]
["in-bse-shp","IndianShareholders4Member_2","Indian shareholders 4 [Member]",null,4,4,"in-bse-shp_IndianShareholders4Member","DetailsOfIndianShareholdersDomain_2","IndianShareholders4Member_2","StatementShowingTheVotingPatternOfShareholders","nonnum:domainItemType",null,"xbrli:item",null,"duration","false","true",{"$error":"#N/A"}]
["in-bse-shp","IndianShareholders5Member_2","Indian shareholders 5 [Member]",null,4,5,"in-bse-shp_IndianShareholders5Member","DetailsOfIndianShareholdersDomain_2","IndianShareholders5Member_2","StatementShowingTheVotingPatternOfShareholders","nonnum:domainItemType",null,"xbrli:item",null,"duration","false","true",{"$error":"#N/A"}]
["in-bse-shp","DetailsOfNumberOfVotingRightsHeldByIndianShareholdersLineItems","Details of number of voting rights held by indian shareholders [Line Items]",null,1,2,"in-bse-shp_DetailsOfNumberOfVotingRightsHeldByIndianShareholdersLineItems","DetailsOfNumberOfVotingRightsHeldByIndianShareholdersAbstract","DetailsOfNumberOfVotingRightsHeldByIndianShareholdersLineItems","StatementShowingTheVotingPatternOfShareholders","xbrli:stringItemType",null,"xbrli:item",null,"duration","true","true",0]
["in-bse-shp","NumberOfVotingRights","Number of Voting Rights","Number of Voting Rights held",2,1,"in-bse-shp_NumberOfVotingRights","DetailsOfNumberOfVotingRightsHeldByIndianShareholdersLineItems","NumberOfVotingRights","StatementShowingTheVotingPatternOfShareholders","xbrli:decimalItemType",null,"xbrli:item",null,"instant","false","true",0]
["in-bse-shp","DetailsOfNumberOfVotingRightsHeldByForeignShareholdersAbstract","Details of number of voting rights held by foreign shareholders [Abstract]",null,0,4,"in-bse-shp_DetailsOfNumberOfVotingRightsHeldByForeignShareholdersAbstract","StatementShowingTheVotingPatternOfShareholdersAbstract","DetailsOfNumberOfVotingRightsHeldByForeignShareholdersAbstract","StatementShowingTheVotingPatternOfShareholders","xbrli:stringItemType",null,"xbrli:item",null,"duration","true","true",0]
["in-bse-shp","DetailsOfNumberOfVotingRightsHeldByForeignShareholdersTable","Details of number of voting rights held by foreign shareholders [Table]",null,1,1,"in-bse-shp_DetailsOfNumberOfVotingRightsHeldByForeignShareholdersTable","DetailsOfNumberOfVotingRightsHeldByForeignShareholdersAbstract","DetailsOfNumberOfVotingRightsHeldByForeignShareholdersTable","StatementShowingTheVotingPatternOfShareholders","xbrli:stringItemType",null,"xbrldt:hypercubeItem",null,"duration","true","true",0]
["in-bse-shp","DetailsOfForeignShareholdersAxis_2","Details of foreign shareholders [Axis]",null,2,1,"in-bse-shp_DetailsOfForeignShareholdersAxis","DetailsOfNumberOfVotingRightsHeldByForeignShareholdersTable","DetailsOfForeignShareholdersAxis_2","StatementShowingTheVotingPatternOfShareholders","xbrli:stringItemType",null,"xbrldt:dimensionItem",null,"duration","true","true",{"$error":"#N/A"}]
["in-bse-shp","DetailsOfForeignShareholdersDomain_2","Details of foreign shareholders domain",null,3,1,"in-bse-shp_DetailsOfForeignShareholdersDomain","DetailsOfForeignShareholdersAxis_2","DetailsOfForeignShareholdersDomain_2","StatementShowingTheVotingPatternOfShareholders","nonnum:domainItemType",null,"xbrli:item",null,"duration","false","true",{"$error":"#N/A"}]
["in-bse-shp","ForeignShareholders1Member_2","Foreign shareholders 1 [Member]",null,4,1,"in-bse-shp_ForeignShareholders1Member","DetailsOfForeignShareholdersDomain_2","ForeignShareholders1Member_2","StatementShowingTheVotingPatternOfShareholders","nonnum:domainItemType",null,"xbrli:item",null,"duration","false","true",{"$error":"#N/A"}]
["in-bse-shp","ForeignShareholders2Member_2","Foreign shareholders 2 [Member]",null,4,2,"in-bse-shp_ForeignShareholders2Member","DetailsOfForeignShareholdersDomain_2","ForeignShareholders2Member_2","StatementShowingTheVotingPatternOfShareholders","nonnum:domainItemType",null,"xbrli:item",null,"duration","false","true",{"$error":"#N/A"}]
["in-bse-shp","ForeignShareholders3Member_2","Foreign shareholders 3 [Member]",null,4,3,"in-bse-shp_ForeignShareholders3Member","DetailsOfForeignShareholdersDomain_2","ForeignShareholders3Member_2","StatementShowingTheVotingPatternOfShareholders","nonnum:domainItemType",null,"xbrli:item",null,"duration","false","true",{"$error":"#N/A"}]
["in-bse-shp","ForeignShareholders4Member_2","Foreign shareholders 4 [Member]",null,4,4,"in-bse-shp_ForeignShareholders4Member","DetailsOfForeignShareholdersDomain_2","ForeignShareholders4Member_2","StatementShowingTheVotingPatternOfShareholders","nonnum:domainItemType",null,"xbrli:item",null,"duration","false","true",{"$error":"#N/A"}]
["in-bse-shp","ForeignShareholders5Member_2","Foreign shareholders 5 [Member]",null,4,5,"in-bse-shp_ForeignShareholders5Member","DetailsOfForeignShareholdersDomain_2","ForeignShareholders5Member_2","StatementShowingTheVotingPatternOfShareholders","nonnum:domainItemType",null,"xbrli:item",null,"duration","false","true",{"$error":"#N/A"}]
["in-bse-shp","DetailsOfNumberOfVotingRightsHeldByForeignShareholdersLineItems","Details of number of voting rights held by foreign shareholders [Line Items]",null,1,2,"in-bse-shp_DetailsOfNumberOfVotingRightsHeldByForeignShareholdersLineItems","DetailsOfNumberOfVotingRightsHeldByForeignShareholdersAbstract","DetailsOfNumberOfVotingRightsHeldByForeignShareholdersLineItems","StatementShowingTheVotingPatternOfShareholders","xbrli:stringItemType",null,"xbrli:item",null,"duration","true","true",0]
["in-bse-shp","NumberOfVotingRights","Number of Voting Rights","Number of Voting Rights held",2,1,"in-bse-shp_NumberOfVotingRights","DetailsOfNumberOfVotingRightsHeldByForeignShareholdersLineItems","NumberOfVotingRights","StatementShowingTheVotingPatternOfShareholders","xbrli:decimalItemType",null,"xbrli:item",null,"instant","false","true",0]
["in-bse-shp","DetailsOfNumberOfVotingRightsHeldByInstitutionsShareholdersAbstract","Details of number of voting rights held by institutions shareholders [Abstract]",null,0,5,"in-bse-shp_DetailsOfNumberOfVotingRightsHeldByInstitutionsShareholdersAbstract","StatementShowingTheVotingPatternOfShareholdersAbstract","DetailsOfNumberOfVotingRightsHeldByInstitutionsShareholdersAbstract","StatementShowingTheVotingPatternOfShareholders","xbrli:stringItemType",null,"xbrli:item",null,"duration","true","true",0]
["in-bse-shp","DetailsOfNumberOfVotingRightsHeldByInstitutionsShareholdersTable","Details of number of voting rights held by institutions shareholders [Table]",null,1,1,"in-bse-shp_DetailsOfNumberOfVotingRightsHeldByInstitutionsShareholdersTable","DetailsOfNumberOfVotingRightsHeldByInstitutionsShareholdersAbstract","DetailsOfNumberOfVotingRightsHeldByInstitutionsShareholdersTable","StatementShowingTheVotingPatternOfShareholders","xbrli:stringItemType",null,"xbrldt:hypercubeItem",null,"duration","true","true",0]
["in-bse-shp","DetailsOfInstitutionsShareHoldersAxis_2","Details of institutions shareholders [Axis]",null,2,1,"in-bse-shp_DetailsOfInstitutionsShareHoldersAxis","DetailsOfNumberOfVotingRightsHeldByInstitutionsShareholdersTable","DetailsOfInstitutionsShareHoldersAxis_2","StatementShowingTheVotingPatternOfShareholders","xbrli:stringItemType",null,"xbrldt:dimensionItem",null,"duration","true","true",{"$error":"#N/A"}]
["in-bse-shp","DetailsOfInstitutionsShareHoldersDomain_2","Details of institutions shareholders domain",null,3,1,"in-bse-shp_DetailsOfInstitutionsShareHoldersDomain","DetailsOfInstitutionsShareHoldersAxis_2","DetailsOfInstitutionsShareHoldersDomain_2","StatementShowingTheVotingPatternOfShareholders","nonnum:domainItemType",null,"xbrli:item",null,"duration","false","true",{"$error":"#N/A"}]
["in-bse-shp","InstitutionsShareHolders1Member_2","Institutions shareholders 1 [Member]",null,4,1,"in-bse-shp_InstitutionsShareHolders1Member","DetailsOfInstitutionsShareHoldersDomain_2","InstitutionsShareHolders1Member_2","StatementShowingTheVotingPatternOfShareholders","nonnum:domainItemType",null,"xbrli:item",null,"duration","false","true",{"$error":"#N/A"}]
["in-bse-shp","InstitutionsShareHolders2Member_2","Institutions shareholders 2 [Member]",null,4,2,"in-bse-shp_InstitutionsShareHolders2Member","DetailsOfInstitutionsShareHoldersDomain_2","InstitutionsShareHolders2Member_2","StatementShowingTheVotingPatternOfShareholders","nonnum:domainItemType",null,"xbrli:item",null,"duration","false","true",{"$error":"#N/A"}]
["in-bse-shp","InstitutionsShareHolders3Member_2","Institutions shareholders 3 [Member]",null,4,3,"in-bse-shp_InstitutionsShareHolders3Member","DetailsOfInstitutionsShareHoldersDomain_2","InstitutionsShareHolders3Member_2","StatementShowingTheVotingPatternOfShareholders","nonnum:domainItemType",null,"xbrli:item",null,"duration","false","true",{"$error":"#N/A"}]
["in-bse-shp","InstitutionsShareHolders4Member_2","Institutions shareholders 4 [Member]",null,4,4,"in-bse-shp_InstitutionsShareHolders4Member","DetailsOfInstitutionsShareHoldersDomain_2","InstitutionsShareHolders4Member_2","StatementShowingTheVotingPatternOfShareholders","nonnum:domainItemType",null,"xbrli:item",null,"duration","false","true",{"$error":"#N/A"}]
["in-bse-shp","InstitutionsShareHolders5Member_2","Institutions shareholders 5 [Member]",null,4,5,"in-bse-shp_InstitutionsShareHolders5Member","DetailsOfInstitutionsShareHoldersDomain_2","InstitutionsShareHolders5Member_2","StatementShowingTheVotingPatternOfShareholders","nonnum:domainItemType",null,"xbrli:item",null,"duration","false","true",{"$error":"#N/A"}]
["in-bse-shp","DetailsOfNumberOfVotingRightsHeldByInstitutionsShareholdersLineItems","Details of number of voting rights held by institutions shareholders [Line Items]",null,1,2,"in-bse-shp_DetailsOfNumberOfVotingRightsHeldByInstitutionsShareholdersLineItems","DetailsOfNumberOfVotingRightsHeldByInstitutionsShareholdersAbstract","DetailsOfNumberOfVotingRightsHeldByInstitutionsShareholdersLineItems","StatementShowingTheVotingPatternOfShareholders","xbrli:stringItemType",null,"xbrli:item",null,"duration","true","true",0]
["in-bse-shp","NumberOfVotingRights","Number of Voting Rights","Number of Voting Rights",2,1,"in-bse-shp_NumberOfVotingRights","DetailsOfNumberOfVotingRightsHeldByInstitutionsShareholdersLineItems","NumberOfVotingRights","StatementShowingTheVotingPatternOfShareholders","xbrli:decimalItemType",null,"xbrli:item",null,"instant","false","true",0]
["in-bse-shp","DetailsOfNumberOfVotingRightsHeldByNonInstitutionsShareholdersAbstract","Details of number of voting rights held by non-Institutions shareholders [Abstract]",null,1,6,"in-bse-shp_DetailsOfNumberOfVotingRightsHeldByNonInstitutionsShareholdersAbstract","StatementShowingTheVotingPatternOfShareholdersAbstract","DetailsOfNumberOfVotingRightsHeldByNonInstitutionsShareholdersAbstract","StatementShowingTheVotingPatternOfShareholders","xbrli:stringItemType",null,"xbrli:item",null,"duration","true","true",0]
["in-bse-shp","DetailsOfNumberOfVotingRightsHeldByNonInstitutionsShareholdersTable","Details of number of voting rights held by non-Institutions shareholders [Table]",null,1,1,"in-bse-shp_DetailsOfNumberOfVotingRightsHeldByNonInstitutionsShareholdersTable","DetailsOfNumberOfVotingRightsHeldByNonInstitutionsShareholdersAbstract","DetailsOfNumberOfVotingRightsHeldByNonInstitutionsShareholdersTable","StatementShowingTheVotingPatternOfShareholders","xbrli:stringItemType",null,"xbrldt:hypercubeItem",null,"duration","true","true",0]
["in-bse-shp","DetailsOfNonInstitutionsShareHoldersAxis_2","Details of non-Institutions shareholders [Axis]",null,2,1,"in-bse-shp_DetailsOfNonInstitutionsShareHoldersAxis","DetailsOfNumberOfVotingRightsHeldByNonInstitutionsShareholdersTable","DetailsOfNonInstitutionsShareHoldersAxis_2","StatementShowingTheVotingPatternOfShareholders","xbrli:stringItemType",null,"xbrldt:dimensionItem",null,"duration","true","true",{"$error":"#N/A"}]
["in-bse-shp","DetailsOfNonInstitutionsShareHoldersDomain_2","Details of non-Institutions shareholders domain",null,3,1,"in-bse-shp_DetailsOfNonInstitutionsShareHoldersDomain","DetailsOfNonInstitutionsShareHoldersAxis_2","DetailsOfNonInstitutionsShareHoldersDomain_2","StatementShowingTheVotingPatternOfShareholders","nonnum:domainItemType",null,"xbrli:item",null,"duration","false","true",{"$error":"#N/A"}]
["in-bse-shp","NonInstitutionsShareHolders1Member_2","Non-Institutions shareholders 1 [Member]",null,4,1,"in-bse-shp_NonInstitutionsShareHolders1Member","DetailsOfNonInstitutionsShareHoldersDomain_2","NonInstitutionsShareHolders1Member_2","StatementShowingTheVotingPatternOfShareholders","nonnum:domainItemType",null,"xbrli:item",null,"duration","false","true",{"$error":"#N/A"}]
["in-bse-shp","NonInstitutionsShareHolders2Member_2","Non-Institutions shareholders 2 [Member]",null,4,2,"in-bse-shp_NonInstitutionsShareHolders2Member","DetailsOfNonInstitutionsShareHoldersDomain_2","NonInstitutionsShareHolders2Member_2","StatementShowingTheVotingPatternOfShareholders","nonnum:domainItemType",null,"xbrli:item",null,"duration","false","true",{"$error":"#N/A"}]
["in-bse-shp","NonInstitutionsShareHolders3Member_2","Non-Institutions shareholders 3 [Member]",null,4,3,"in-bse-shp_NonInstitutionsShareHolders3Member","DetailsOfNonInstitutionsShareHoldersDomain_2","NonInstitutionsShareHolders3Member_2","StatementShowingTheVotingPatternOfShareholders","nonnum:domainItemType",null,"xbrli:item",null,"duration","false","true",{"$error":"#N/A"}]
["in-bse-shp","NonInstitutionsShareHolders4Member_2","Non-Institutions shareholders 4 [Member]",null,4,4,"in-bse-shp_NonInstitutionsShareHolders4Member","DetailsOfNonInstitutionsShareHoldersDomain_2","NonInstitutionsShareHolders4Member_2","StatementShowingTheVotingPatternOfShareholders","nonnum:domainItemType",null,"xbrli:item",null,"duration","false","true",{"$error":"#N/A"}]
["in-bse-shp","NonInstitutionsShareHolders5Member_2","Non-Institutions shareholders 5 [Member]",null,4,5,"in-bse-shp_NonInstitutionsShareHolders5Member","DetailsOfNonInstitutionsShareHoldersDomain_2","NonInstitutionsShareHolders5Member_2","StatementShowingTheVotingPatternOfShareholders","nonnum:domainItemType",null,"xbrli:item",null,"duration","false","true",{"$error":"#N/A"}]
["in-bse-shp","DetailsOfNumberOfVotingRightsHeldByNonInstitutionsShareholdersLineItems","Details of number of voting rights held by non-Institutions shareholders [Line Items]",null,1,2,"in-bse-shp_DetailsOfNumberOfVotingRightsHeldByNonInstitutionsShareholdersLineItems","DetailsOfNumberOfVotingRightsHeldByNonInstitutionsShareholdersAbstract","DetailsOfNumberOfVotingRightsHeldByNonInstitutionsShareholdersLineItems","StatementShowingTheVotingPatternOfShareholders","xbrli:stringItemType",null,"xbrli:item",null,"duration","true","true",0]
["in-bse-shp","NumberOfVotingRights","Number of Voting Rights","Number of Voting Rights",2,1,"in-bse-shp_NumberOfVotingRights","DetailsOfNumberOfVotingRightsHeldByNonInstitutionsShareholdersLineItems","NumberOfVotingRights","StatementShowingTheVotingPatternOfShareholders","xbrli:decimalItemType",null,"xbrli:item",null,"instant","false","true",0]
["in-bse-shp","DetailsOfVotingRightsHeldByIndianShareholdersAbstract","Details of voting rights held by indian shareholders [Abstract]",null,0,7,"in-bse-shp_DetailsOfVotingRightsHeldByIndianShareholdersAbstract","StatementShowingTheVotingPatternOfShareholdersAbstract","Details of voting rights held by indian shareholders [Abstract]","StatementShowingTheVotingPatternOfShareholders","xbrli:stringItemType",null,"xbrli:item",null,"duration","true","true",0]
["in-bse-shp","DetailsOfVotingRightsHeldByIndianShareholdersTable","Details of voting rights held by indian shareholders [Table]",null,1,1,"in-bse-shp_DetailsOfVotingRightsHeldByIndianShareholdersTable","DetailsOfVotingRightsHeldByIndianShareholdersAbstract","Details of voting rights held by indian shareholders [Table]","StatementShowingTheVotingPatternOfShareholders","xbrli:stringItemType",null,"xbrldt:hypercubeItem",null,"duration","true","true",0]
["in-bse-shp","DetailsofIndianShareholdersAxis_3","Details of indian shareholders [Axis]",null,2,1,"in-bse-shp_DetailsofIndianShareholdersAxis","DetailsOfVotingRightsHeldByIndianShareholdersTable","Details of indian shareholders [Axis]","StatementShowingTheVotingPatternOfShareholders","xbrli:stringItemType",null,"xbrldt:dimensionItem",null,"duration","true","true",{"$error":"#N/A"}]
["in-bse-shp","DetailsOfIndianShareholdersDomain_3","Details of indian shareholders domain",null,3,1,"in-bse-shp_DetailsOfIndianShareholdersDomain","DetailsofIndianShareholdersAxis_3","Details of indian shareholders domain","StatementShowingTheVotingPatternOfShareholders","nonnum:domainItemType",null,"xbrli:item",null,"duration","false","true",{"$error":"#N/A"}]
["in-bse-shp","IndianShareholders1Member_3","Indian shareholders 1 [Member]",null,4,1,"in-bse-shp_IndianShareholders1Member","DetailsOfIndianShareholdersDomain_3","Indian shareholders 1 [Member]","StatementShowingTheVotingPatternOfShareholders","nonnum:domainItemType",null,"xbrli:item",null,"duration","false","true",{"$error":"#N/A"}]
["in-bse-shp","IndianShareholders2Member_3","Indian shareholders 2 [Member]",null,4,2,"in-bse-shp_IndianShareholders2Member","DetailsOfIndianShareholdersDomain_3","Indian shareholders 2 [Member]","StatementShowingTheVotingPatternOfShareholders","nonnum:domainItemType",null,"xbrli:item",null,"duration","false","true",{"$error":"#N/A"}]
["in-bse-shp","IndianShareholders3Member_3","Indian shareholders 3 [Member]",null,4,3,"in-bse-shp_IndianShareholders3Member","DetailsOfIndianShareholdersDomain_3","Indian shareholders 3 [Member]","StatementShowingTheVotingPatternOfShareholders","nonnum:domainItemType",null,"xbrli:item",null,"duration","false","true",{"$error":"#N/A"}]
["in-bse-shp","IndianShareholders4Member_3","Indian shareholders 4 [Member]",null,4,4,"in-bse-shp_IndianShareholders4Member","DetailsOfIndianShareholdersDomain_3","Indian shareholders 4 [Member]","StatementShowingTheVotingPatternOfShareholders","nonnum:domainItemType",null,"xbrli:item",null,"duration","false","true",{"$error":"#N/A"}]
["in-bse-shp","IndianShareholders5Member_3","Indian shareholders 5 [Member]",null,4,5,"in-bse-shp_IndianShareholders5Member","DetailsOfIndianShareholdersDomain_3","Indian shareholders 5 [Member]","StatementShowingTheVotingPatternOfShareholders","nonnum:domainItemType",null,"xbrli:item",null,"duration","false","true",{"$error":"#N/A"}]
["in-bse-shp","DetailsOfVotingRightsHeldByIndianShareholdersLineItems","Details of voting rights held by indian shareholders [Line Items]",null,1,2,"in-bse-shp_DetailsOfVotingRightsHeldByIndianShareholdersLineItems","DetailsOfVotingRightsHeldByIndianShareholdersAbstract","Details of voting rights held by indian shareholders [Line Items]","StatementShowingTheVotingPatternOfShareholders","xbrli:stringItemType",null,"xbrli:item",null,"duration","true","true",0]
["in-bse-shp","TotalVotingRightsOfSecurities","Total Voting Rights of securities","Total Voting Rights (III+IV+V)",2,1,"in-bse-shp_TotalVotingRightsOfSecurities","DetailsOfVotingRightsHeldByIndianShareholdersLineItems","Total Voting Rights of securities","StatementShowingTheVotingPatternOfShareholders","xbrli:decimalItemType",null,"xbrli:item",null,"instant","false","true",0]
["in-bse-shp","TotalVotingRightsAbstract_1","Total Voting Rights [Abstract]",null,2,2,"in-bse-shp_TotalVotingRightsAbstract","DetailsOfVotingRightsHeldByIndianShareholdersLineItems","Total Voting Rights [Abstract]","StatementShowingTheVotingPatternOfShareholders","xbrli:stringItemType",null,"xbrli:item",null,"duration","true","true",0]
["in-bse-shp","VotingRightsOfSecuritiesAsAPercentageOfVotingRightsHeldByPromoterPromoterGroupAndPublicShareholders_1","Voting rights of securities as a percentage of voting rights held by promoter, promoter group and public shareholders","Voting rights of securities as a percentage of voting rights held by promoter, promoter group and public shareholders",2,1,"in-bse-shp_VotingRightsOfSecuritiesAsAPercentageOfVotingRightsHeldByPromoterPromoterGroupAndPublicShareholders","TotalVotingRightsAbstract_1","VotingRightsOfSecuritiesAsAPercentageOfVotingRightsHeldByPromoterPromoterGroupAndPublicShareholders_1","StatementShowingTheVotingPatternOfShareholders","num:percentItemType",null,"xbrli:item",null,"instant","false","true",0]
["in-bse-shp","VotingRightsOfSecuritiesAsAPercentageOfVotingRightsHeldByPromoterPromoterGroupAndPublicShareholdersAndCustodiansOfDepositoryReceipts_1","Voting rights of securities as a percentage of voting rights held by promoter, promoter group and public shareholders and custodians of depository Receipts","Voting rights of securities as a percentage of voting rights held by promoter, promoter group and public shareholders and custodians of depository Receipts",2,2,"in-bse-shp_VotingRightsOfSecuritiesAsAPercentageOfVotingRightsHeldByPromoterPromoterGroupAndPublicShareholdersAndCustodiansOfDepositoryReceipts","TotalVotingRightsAbstract_1","VotingRightsOfSecuritiesAsAPercentageOfVotingRightsHeldByPromoterPromoterGroupAndPublicShareholdersAndCustodiansOfDepositoryReceipts_1","StatementShowingTheVotingPatternOfShareholders","num:percentItemType",null,"xbrli:item",null,"instant","false","true",0]
["in-bse-shp","DetailsOfVotingRightsHeldByForeignShareholdersAbstract","Details of voting rights held by foreign shareholders [Abstract]",null,0,8,"in-bse-shp_DetailsOfVotingRightsHeldByForeignShareholdersAbstract","StatementShowingTheVotingPatternOfShareholdersAbstract","DetailsOfVotingRightsHeldByForeignShareholdersAbstract","StatementShowingTheVotingPatternOfShareholders","xbrli:stringItemType",null,"xbrli:item",null,"duration","true","true",0]
["in-bse-shp","DetailsOfVotingRightsHeldByForeignShareholdersTable","Details of voting rights held by foreign shareholders [Table]",null,1,1,"in-bse-shp_DetailsOfVotingRightsHeldByForeignShareholdersTable","DetailsOfVotingRightsHeldByForeignShareholdersAbstract","DetailsOfVotingRightsHeldByForeignShareholdersTable","StatementShowingTheVotingPatternOfShareholders","xbrli:stringItemType",null,"xbrldt:hypercubeItem",null,"duration","true","true",0]
["in-bse-shp","DetailsOfForeignShareholdersAxis_1","Details of foreign shareholders [Axis]",null,2,1,"in-bse-shp_DetailsOfForeignShareholdersAxis","DetailsOfVotingRightsHeldByForeignShareholdersTable","DetailsOfForeignShareholdersAxis_1","StatementShowingTheVotingPatternOfShareholders","xbrli:stringItemType",null,"xbrldt:dimensionItem",null,"duration","true","true",{"$error":"#N/A"}]
["in-bse-shp","DetailsOfForeignShareholdersDomain_1","Details of foreign shareholders domain",null,3,1,"in-bse-shp_DetailsOfForeignShareholdersDomain","DetailsOfForeignShareholdersAxis_1","DetailsOfForeignShareholdersDomain_1","StatementShowingTheVotingPatternOfShareholders","nonnum:domainItemType",null,"xbrli:item",null,"duration","false","true",{"$error":"#N/A"}]
["in-bse-shp","ForeignShareholders1Member_1","Foreign shareholders 1 [Member]",null,4,1,"in-bse-shp_ForeignShareholders1Member","DetailsOfForeignShareholdersDomain_1","ForeignShareholders1Member_1","StatementShowingTheVotingPatternOfShareholders","nonnum:domainItemType",null,"xbrli:item",null,"duration","false","true",{"$error":"#N/A"}]
["in-bse-shp","ForeignShareholders2Member_1","Foreign shareholders 2 [Member]",null,4,2,"in-bse-shp_ForeignShareholders2Member","DetailsOfForeignShareholdersDomain_1","ForeignShareholders2Member_1","StatementShowingTheVotingPatternOfShareholders","nonnum:domainItemType",null,"xbrli:item",null,"duration","false","true",{"$error":"#N/A"}]
["in-bse-shp","ForeignShareholders3Member_1","Foreign shareholders 3 [Member]",null,4,3,"in-bse-shp_ForeignShareholders3Member","DetailsOfForeignShareholdersDomain_1","ForeignShareholders3Member_1","StatementShowingTheVotingPatternOfShareholders","nonnum:domainItemType",null,"xbrli:item",null,"duration","false","true",{"$error":"#N/A"}]
["in-bse-shp","ForeignShareholders4Member_1","Foreign shareholders 4 [Member]",null,4,4,"in-bse-shp_ForeignShareholders4Member","DetailsOfForeignShareholdersDomain_1","ForeignShareholders4Member_1","StatementShowingTheVotingPatternOfShareholders","nonnum:domainItemType",null,"xbrli:item",null,"duration","false","true",{"$error":"#N/A"}]
["in-bse-shp","ForeignShareholders5Member_1","Foreign shareholders 5 [Member]",null,4,5,"in-bse-shp_ForeignShareholders5Member","DetailsOfForeignShareholdersDomain_1","ForeignShareholders5Member_1","StatementShowingTheVotingPatternOfShareholders","nonnum:domainItemType",null,"xbrli:item",null,"duration","false","true",{"$error":"#N/A"}]
["in-bse-shp","DetailsOfVotingRightsHeldByForeignShareholdersLineItems","Details of voting rights held by foreign shareholders [Line Items]",null,1,2,"in-bse-shp_DetailsOfVotingRightsHeldByForeignShareholdersLineItems","DetailsOfVotingRightsHeldByForeignShareholdersAbstract","DetailsOfVotingRightsHeldByForeignShareholdersLineItems","StatementShowingTheVotingPatternOfShareholders","xbrli:stringItemType",null,"xbrli:item",null,"duration","true","true",0]
["in-bse-shp","TotalVotingRightsOfSecurities","Total Voting Rights of securities","Total Voting Rights (III+IV+V)",2,1,"in-bse-shp_TotalVotingRightsOfSecurities","Details of voting rights held by foreign shareholders [Line Items]","Total Voting Rights of securities","StatementShowingTheVotingPatternOfShareholders","xbrli:decimalItemType",null,"xbrli:item",null,"instant","false","true",0]
["in-bse-shp","TotalVotingRightsAbstract_3","Total Voting Rights [Abstract]",null,2,2,"in-bse-shp_TotalVotingRightsAbstract","Details of voting rights held by foreign shareholders [Line Items]","Total Voting Rights [Abstract]","StatementShowingTheVotingPatternOfShareholders","xbrli:stringItemType",null,"xbrli:item",null,"duration","true","true",0]
["in-bse-shp","VotingRightsOfSecuritiesAsAPercentageOfVotingRightsHeldByPromoterSAndPublicShareholders","Voting rights of securities as a percentage of voting rights held by promoter, promoter group and public shareholders","As  a \npercentage  of \n(A+B)",2,1,"in-bse-shp_VotingRightsOfSecuritiesAsAPercentageOfVotingRightsHeldByPromoterPromoterGroupAndPublicShareholders","TotalVotingRightsAbstract_3","VotingRightsOfSecuritiesAsAPercentageOfVotingRightsHeldByPromoterPromoterGroupAndPublicShareholders_3","StatementShowingTheVotingPatternOfShareholders","num:percentItemType",null,"xbrli:item",null,"instant","false","true",0]
["in-bse-shp","VotingRightsOfSecuritiesAsAPercentageOfVotingRightsHeldByPromoterSPublicShareholdersAndCustodiansOfDepositoryReceipts","Voting rights of securities as a percentage of voting rights held by promoter, promoter group and public shareholders and custodians of depository Receipts","As  a \npercentage  of \n(A+B+C)",2,2,"in-bse-shp_VotingRightsOfSecuritiesAsAPercentageOfVotingRightsHeldByPromoterPromoterGroupAndPublicShareholdersAndCustodiansOfDepositoryReceipts","TotalVotingRightsAbstract_3","VotingRightsOfSecuritiesAsAPercentageOfVotingRightsHeldByPromoterPromoterGroupAndPublicShareholdersAndCustodiansOfDepositoryReceipts_3","StatementShowingTheVotingPatternOfShareholders","num:percentItemType",null,"xbrli:item",null,"instant","false","true",0]
["in-bse-shp","DetailsOfVotingRightsHeldByInstitutionsShareholdersAbstract","Details of voting rights held by institutions shareholders [Abstract]",null,0,9,"in-bse-shp_DetailsOfVotingRightsHeldByInstitutionsShareholdersAbstract","StatementShowingTheVotingPatternOfShareholdersAbstract","DetailsOfVotingRightsHeldByInstitutionsShareholdersAbstract","StatementShowingTheVotingPatternOfShareholders","xbrli:stringItemType",null,"xbrli:item",null,"duration","true","true",0]
["in-bse-shp","DetailsOfVotingRightsHeldByInstitutionsShareholdersTable","Details of voting rights held by institutions shareholders [Table]",null,1,1,"in-bse-shp_DetailsOfVotingRightsHeldByInstitutionsShareholdersTable","Details of voting rights held by institutions shareholders [Abstract]","DetailsOfVotingRightsHeldByInstitutionsShareholdersTable","StatementShowingTheVotingPatternOfShareholders","xbrli:stringItemType",null,"xbrldt:hypercubeItem",null,"duration","true","true",0]
["in-bse-shp","DetailsOfInstitutionsShareHoldersAxis_3","Details of institutions shareholders [Axis]",null,2,1,"in-bse-shp_DetailsOfInstitutionsShareHoldersAxis","Details of voting rights held by institutions shareholders [Table]","DetailsOfInstitutionsShareHoldersAxis_3","StatementShowingTheVotingPatternOfShareholders","xbrli:stringItemType",null,"xbrldt:dimensionItem",null,"duration","true","true",{"$error":"#N/A"}]
["in-bse-shp","DetailsOfInstitutionsShareHoldersDomain_2","Details of institutions shareholders domain",null,3,1,"in-bse-shp_DetailsOfInstitutionsShareHoldersDomain","Details of institutions shareholders [Axis]","DetailsOfInstitutionsShareHoldersDomain_2","StatementShowingTheVotingPatternOfShareholders","nonnum:domainItemType",null,"xbrli:item",null,"duration","false","true",{"$error":"#N/A"}]
["in-bse-shp","InstitutionsShareHolders1Member_3","Institutions shareholders 1 [Member]",null,4,1,"in-bse-shp_InstitutionsShareHolders1Member","DetailsOfInstitutionsShareHoldersDomain_2","InstitutionsShareHolders1Member_3","StatementShowingTheVotingPatternOfShareholders","nonnum:domainItemType",null,"xbrli:item",null,"duration","false","true",{"$error":"#N/A"}]
["in-bse-shp","InstitutionsShareHolders2Member_3","Institutions shareholders 2 [Member]",null,4,2,"in-bse-shp_InstitutionsShareHolders2Member","DetailsOfInstitutionsShareHoldersDomain_2","InstitutionsShareHolders2Member_3","StatementShowingTheVotingPatternOfShareholders","nonnum:domainItemType",null,"xbrli:item",null,"duration","false","true",{"$error":"#N/A"}]
["in-bse-shp","InstitutionsShareHolders3Member_3","Institutions shareholders 3 [Member]",null,4,3,"in-bse-shp_InstitutionsShareHolders3Member","DetailsOfInstitutionsShareHoldersDomain_2","InstitutionsShareHolders3Member_3","StatementShowingTheVotingPatternOfShareholders","nonnum:domainItemType",null,"xbrli:item",null,"duration","false","true",{"$error":"#N/A"}]
["in-bse-shp","InstitutionsShareHolders4Member_3","Institutions shareholders 4 [Member]",null,4,4,"in-bse-shp_InstitutionsShareHolders4Member","DetailsOfInstitutionsShareHoldersDomain_2","InstitutionsShareHolders4Member_3","StatementShowingTheVotingPatternOfShareholders","nonnum:domainItemType",null,"xbrli:item",null,"duration","false","true",{"$error":"#N/A"}]
["in-bse-shp","InstitutionsShareHolders5Member_3","Institutions shareholders 5 [Member]",null,4,5,"in-bse-shp_InstitutionsShareHolders5Member","DetailsOfInstitutionsShareHoldersDomain_2","InstitutionsShareHolders5Member_3","StatementShowingTheVotingPatternOfShareholders","nonnum:domainItemType",null,"xbrli:item",null,"duration","false","true",{"$error":"#N/A"}]
["in-bse-shp","DetailsOfVotingRightsHeldByInstitutionsShareholdersLineItems","Details of voting rights held by institutions shareholders [Line Items]",null,1,2,"in-bse-shp_DetailsOfVotingRightsHeldByInstitutionsShareholdersLineItems","DetailsOfVotingRightsHeldByInstitutionsShareholdersAbstract","DetailsOfVotingRightsHeldByInstitutionsShareholdersLineItems","StatementShowingTheVotingPatternOfShareholders","xbrli:stringItemType",null,"xbrli:item",null,"duration","true","true",0]
["in-bse-shp","TotalVotingRightsOfSecurities","Total Voting Rights of securities","Total Voting Rights (III+IV+V)",2,1,"in-bse-shp_TotalVotingRightsOfSecurities","DetailsOfVotingRightsHeldByInstitutionsShareholdersLineItems","TotalVotingRightsOfSecurities","StatementShowingTheVotingPatternOfShareholders","xbrli:decimalItemType",null,"xbrli:item",null,"instant","false","true",0]
["in-bse-shp","TotalVotingRightsAbstract_4","Total Voting Rights [Abstract]",null,2,2,"in-bse-shp_TotalVotingRightsAbstract","DetailsOfVotingRightsHeldByInstitutionsShareholdersLineItems","TotalVotingRightsAbstract_3","StatementShowingTheVotingPatternOfShareholders","xbrli:stringItemType",null,"xbrli:item",null,"duration","true","true",0]
["in-bse-shp","VotingRightsOfSecuritiesAsAPercentageOfVotingRightsHeldByPromoterPromoterGroupAndPublicShareholders_3","Voting rights of securities as a percentage of voting rights held by promoter, promoter group and public shareholders","Voting rights of securities as a percentage of voting rights held by promoter, promoter group and public shareholders",2,1,"in-bse-shp_VotingRightsOfSecuritiesAsAPercentageOfVotingRightsHeldByPromoterPromoterGroupAndPublicShareholders","TotalVotingRightsAbstract_4","VotingRightsOfSecuritiesAsAPercentageOfVotingRightsHeldByPromoterPromoterGroupAndPublicShareholders_3","StatementShowingTheVotingPatternOfShareholders","num:percentItemType",null,"xbrli:item",null,"instant","false","true",0]
["in-bse-shp","VotingRightsOfSecuritiesAsAPercentageOfVotingRightsHeldByPromoterPromoterGroupAndPublicShareholdersAndCustodiansOfDepositoryReceipts_3","Voting rights of securities as a percentage of voting rights held by promoter, promoter group and public shareholders and custodians of depository Receipts","Voting rights of securities as a percentage of voting rights held by promoter, promoter group and public shareholders and custodians of depository Receipts",2,2,"in-bse-shp_VotingRightsOfSecuritiesAsAPercentageOfVotingRightsHeldByPromoterPromoterGroupAndPublicShareholdersAndCustodiansOfDepositoryReceipts","TotalVotingRightsAbstract_4","VotingRightsOfSecuritiesAsAPercentageOfVotingRightsHeldByPromoterPromoterGroupAndPublicShareholdersAndCustodiansOfDepositoryReceipts_3","StatementShowingTheVotingPatternOfShareholders","num:percentItemType",null,"xbrli:item",null,"instant","false","true",0]
["in-bse-shp","DetailsOfVotingRightsHeldByNonInstitutionsShareholdersAbstract","Details of voting rights held by non-Institutions shareholders [Abstract]",null,1,10,"in-bse-shp_DetailsOfVotingRightsHeldByNonInstitutionsShareholdersAbstract","StatementShowingTheVotingPatternOfShareholdersAbstract","DetailsOfVotingRightsHeldByNonInstitutionsShareholdersAbstract","StatementShowingTheVotingPatternOfShareholders","xbrli:stringItemType",null,"xbrli:item",null,"duration","true","true",0]
["in-bse-shp","DetailsOfVotingRightsHeldByNonInstitutionsShareholdersTable","Details of voting rights held by non-Institutions shareholders [Table]",null,1,1,"in-bse-shp_DetailsOfVotingRightsHeldByNonInstitutionsShareholdersTable","DetailsOfVotingRightsHeldByNonInstitutionsShareholdersAbstract","DetailsOfVotingRightsHeldByNonInstitutionsShareholdersTable","StatementShowingTheVotingPatternOfShareholders","xbrli:stringItemType",null,"xbrldt:hypercubeItem",null,"duration","true","true",0]
["in-bse-shp","DetailsOfNonInstitutionsShareHoldersAxis_3","Details of non-Institutions shareholders [Axis]",null,2,1,"in-bse-shp_DetailsOfNonInstitutionsShareHoldersAxis","DetailsOfVotingRightsHeldByNonInstitutionsShareholdersTable","DetailsOfNonInstitutionsShareHoldersAxis_3","StatementShowingTheVotingPatternOfShareholders","xbrli:stringItemType",null,"xbrldt:dimensionItem",null,"duration","true","true",{"$error":"#N/A"}]
["in-bse-shp","DetailsOfNonInstitutionsShareHoldersDomain_3","Details of non-Institutions shareholders domain",null,3,1,"in-bse-shp_DetailsOfNonInstitutionsShareHoldersDomain","DetailsOfNonInstitutionsShareHoldersAxis_3","DetailsOfNonInstitutionsShareHoldersDomain_3","StatementShowingTheVotingPatternOfShareholders","nonnum:domainItemType",null,"xbrli:item",null,"duration","false","true",{"$error":"#N/A"}]
["in-bse-shp","NonInstitutionsShareHolders1Member_3","Non-Institutions shareholders 1 [Member]",null,4,1,"in-bse-shp_NonInstitutionsShareHolders1Member","DetailsOfNonInstitutionsShareHoldersDomain_3","NonInstitutionsShareHolders1Member_3","StatementShowingTheVotingPatternOfShareholders","nonnum:domainItemType",null,"xbrli:item",null,"duration","false","true",{"$error":"#N/A"}]
["in-bse-shp","NonInstitutionsShareHolders2Member_3","Non-Institutions shareholders 2 [Member]",null,4,2,"in-bse-shp_NonInstitutionsShareHolders2Member","DetailsOfNonInstitutionsShareHoldersDomain_3","NonInstitutionsShareHolders2Member_3","StatementShowingTheVotingPatternOfShareholders","nonnum:domainItemType",null,"xbrli:item",null,"duration","false","true",{"$error":"#N/A"}]
["in-bse-shp","NonInstitutionsShareHolders3Member_3","Non-Institutions shareholders 3 [Member]",null,4,3,"in-bse-shp_NonInstitutionsShareHolders3Member","DetailsOfNonInstitutionsShareHoldersDomain_3","NonInstitutionsShareHolders3Member_3","StatementShowingTheVotingPatternOfShareholders","nonnum:domainItemType",null,"xbrli:item",null,"duration","false","true",{"$error":"#N/A"}]
["in-bse-shp","NonInstitutionsShareHolders4Member_3","Non-Institutions shareholders 4 [Member]",null,4,4,"in-bse-shp_NonInstitutionsShareHolders4Member","DetailsOfNonInstitutionsShareHoldersDomain_3","NonInstitutionsShareHolders4Member_3","StatementShowingTheVotingPatternOfShareholders","nonnum:domainItemType",null,"xbrli:item",null,"duration","false","true",{"$error":"#N/A"}]
["in-bse-shp","NonInstitutionsShareHolders5Member_3","Non-Institutions shareholders 5 [Member]",null,4,5,"in-bse-shp_NonInstitutionsShareHolders5Member","DetailsOfNonInstitutionsShareHoldersDomain_3","NonInstitutionsShareHolders5Member_3","StatementShowingTheVotingPatternOfShareholders","nonnum:domainItemType",null,"xbrli:item",null,"duration","false","true",{"$error":"#N/A"}]
["in-bse-shp","DetailsOfVotingRightsHeldByNonInstitutionsShareholdersLineItems","Details of voting rights held by non-Institutions shareholders [Line Items]",null,1,2,"in-bse-shp_DetailsOfVotingRightsHeldByNonInstitutionsShareholdersLineItems","DetailsOfVotingRightsHeldByNonInstitutionsShareholdersAbstract","DetailsOfVotingRightsHeldByNonInstitutionsShareholdersLineItems","StatementShowingTheVotingPatternOfShareholders","xbrli:stringItemType",null,"xbrli:item",null,"duration","true","true",0]
["in-bse-shp","TotalVotingRightsOfSecurities","Total Voting Rights of securities","Total Voting Rights (III+IV+V)",2,1,"in-bse-shp_TotalVotingRightsOfSecurities","DetailsOfVotingRightsHeldByNonInstitutionsShareholdersLineItems","TotalVotingRightsOfSecurities","StatementShowingTheVotingPatternOfShareholders","xbrli:decimalItemType",null,"xbrli:item",null,"instant","false","true",0]
["in-bse-shp","TotalVotingRightsAbstract_5","Total Voting Rights [Abstract]",null,2,2,"in-bse-shp_TotalVotingRightsAbstract","DetailsOfVotingRightsHeldByNonInstitutionsShareholdersLineItems","TotalVotingRightsAbstract_5","StatementShowingTheVotingPatternOfShareholders","xbrli:stringItemType",null,"xbrli:item",null,"duration","true","true",0]
["in-bse-shp","VotingRightsOfSecuritiesAsAPercentageOfVotingRightsHeldByPromoterPromoterGroupAndPublicShareholders_3","Voting rights of securities as a percentage of voting rights held by promoter, promoter group and public shareholders","Voting rights of securities as a percentage of voting rights held by promoter, promoter group and public shareholders",2,1,"in-bse-shp_VotingRightsOfSecuritiesAsAPercentageOfVotingRightsHeldByPromoterPromoterGroupAndPublicShareholders","TotalVotingRightsAbstract_5","VotingRightsOfSecuritiesAsAPercentageOfVotingRightsHeldByPromoterPromoterGroupAndPublicShareholders_3","StatementShowingTheVotingPatternOfShareholders","num:percentItemType",null,"xbrli:item",null,"instant","false","true",0]
["in-bse-shp","VotingRightsOfSecuritiesAsAPercentageOfVotingRightsHeldByPromoterPromoterGroupAndPublicShareholdersAndCustodiansOfDepositoryReceipts_3","Voting rights of securities as a percentage of voting rights held by promoter, promoter group and public shareholders and custodians of depository Receipts","Voting rights of securities as a percentage of voting rights held by promoter, promoter group and public shareholders and custodians of depository Receipts",2,2,"in-bse-shp_VotingRightsOfSecuritiesAsAPercentageOfVotingRightsHeldByPromoterPromoterGroupAndPublicShareholdersAndCustodiansOfDepositoryReceipts","TotalVotingRightsAbstract_5","VotingRightsOfSecuritiesAsAPercentageOfVotingRightsHeldByPromoterPromoterGroupAndPublicShareholdersAndCustodiansOfDepositoryReceipts_3","StatementShowingTheVotingPatternOfShareholders","num:percentItemType",null,"xbrli:item",null,"instant","false","true",0]
["in-bse-shp","DisclosureOfNotesOnVotingPatternOfShareholdersIfMoreThanOneClassOfSharesOrSecuritiesIsIssuedByTheIssue","Disclosure of notes on voting pattern of shareholders, if more than one class of shares or securities is issued by the issuer","Disclosure of notes on voting pattern of Shareholders, if more than one class of shares or securities is issued by the issuer       ",2,3,"in-bse-shp_DisclosureOfNotesOnVotingPatternOfShareholdersIfMoreThanOneClassOfSharesOrSecuritiesIsIssuedByTheIssuer",null,null,null,"xbrli:stringItemType"]
[null,null,null,"$G$11",null,null,null,null,null,null,null,null,null,null,null,null,null,null,"This is a mandatory field"]
[null,null,null,"$G$12"]
[null,null,null,"$G$13"]
[null,null,null,"$G$14"]
[null,null,null,"$G$15"]
[null,null,null,"$G$16"]
[null,null,null,"$G$17"]
[null,null,null,"$G$18"]
[null,null,null,"$G$19"]
[null,null,null,"$G$20"]
[null,null,null,"$G$21"]
[null,null,null,"$G$22"]
[null,null,null,"$G$23"]
[null,null,null,"$G$24"]
[null,null,null,"$G$25"]
[null,null,null,"$G$26"]
[null,null,null,"$G$27"]
[null,null,null,"$G$28"]
[null,null,null,"$G$29"]
[null,null,null,"$G$30"]
[null,null,null,"$G$31"]
[null,null,null,"$G$32"]
[null,null,null,"$G$33"]
[null,null,null,"$G$34"]
[null,null,null,"$G$35"]
[null,null,null,"$G$36"]
[null,null,null,"$G$37"]
[null,null,null,"$G$38"]
[null,null,null,"$G$39"]
[null,null,null,"$G$40"]
[null,null,null,"$G$41"]
[null,null,null,"$G$42"]
[null,null,null,"$G$43"]
[null,null,null,"$G$44"]
[null,null,null,"$G$45"]
[null,null,null,"$G$46"]
[null,null,null,"$G$47"]
[null,null,null,"$G$48"]
[null,null,null,"$G$49"]
[null,null,null,"$G$50"]
[null,null,null,"$G$51"]
[null,null,null,"$G$52"]
[null,null,null,"$G$53"]
[null,null,null,"$G$54"]
[null,null,null,"$G$55"]
[null,null,null,"$G$56"]
[null,null,null,"$G$57"]
[null,null,null,"$G$58"]
[null,null,null,"$G$59"]
[null,null,null,"$G$60"]
[null,null,null,"$G$61"]
[null,null,null,"$G$62"]
[null,null,null,"$G$63"]
[null,null,null,"$G$64"]
[null,null,null,"$G$65"]
[null,null,null,"$G$66"]
[null,null,null,"$G$67"]
[null,null,null,"$G$68"]
[null,null,null,"$G$69"]
[null,null,null,"$G$70"]
[null,null,null,"$G$71"]
[null,null,null,"$G$72"]
[null,null,null,"$G$73"]
[null,null,null,"$G$74"]
[null,null,null,"$G$75"]
[null,null,null,"$H$11",null,null,null,null,null,null,null,null,null,null,null,null,null,null,"This is a mandatory field"]
[null,null,null,"$H$12",null,null,null,null,null,null,null,null,null,null,null,null,null,null,"This is a mandatory field"]
[null,null,null,"$H$13",null,null,null,null,null,null,null,null,null,null,null,null,null,null,"This is a mandatory field"]
[null,null,null,"$H$14",null,null,null,null,null,null,null,null,null,null,null,null,null,null,"This is a mandatory field"]
[null,null,null,"$H$15",null,null,null,null,null,null,null,null,null,null,null,null,null,null,"This is a mandatory field"]
[null,null,null,"$H$16",null,null,null,null,null,null,null,null,null,null,null,null,null,null,"This is a mandatory field"]
[null,null,null,"$H$17",null,null,null,null,null,null,null,null,null,null,null,null,null,null,"This is a mandatory field"]
[null,null,null,"$H$18",null,null,null,null,null,null,null,null,null,null,null,null,null,null,"This is a mandatory field"]
[null,null,null,"$H$19",null,null,null,null,null,null,null,null,null,null,null,null,null,null,"This is a mandatory field"]
[null,null,null,"$H$20",null,null,null,null,null,null,null,null,null,null,null,null,null,null,"This is a mandatory field"]
[null,null,null,"$H$21",null,null,null,null,null,null,null,null,null,null,null,null,null,null,"This is a mandatory field"]
[null,null,null,"$H$22",null,null,null,null,null,null,null,null,null,null,null,null,null,null,"This is a mandatory field"]
[null,null,null,"$H$23",null,null,null,null,null,null,null,null,null,null,null,null,null,null,"This is a mandatory field"]
[null,null,null,"$H$24",null,null,null,null,null,null,null,null,null,null,null,null,null,null,"This is a mandatory field"]
[null,null,null,"$H$25",null,null,null,null,null,null,null,null,null,null,null,null,null,null,"This is a mandatory field"]
[null,null,null,"$H$26",null,null,null,null,null,null,null,null,null,null,null,null,null,null,"This is a mandatory field"]
[null,null,null,"$H$27",null,null,null,null,null,null,null,null,null,null,null,null,null,null,"This is a mandatory field"]
[null,null,null,"$H$28",null,null,null,null,null,null,null,null,null,null,null,null,null,null,"This is a mandatory field"]
[null,null,null,"$H$29",null,null,null,null,null,null,null,null,null,null,null,null,null,null,"This is a mandatory field"]
[null,null,null,"$H$30",null,null,null,null,null,null,null,null,null,null,null,null,null,null,"This is a mandatory field"]
[null,null,null,"$H$31",null,null,null,null,null,null,null,null,null,null,null,null,null,null,"This is a mandatory field"]
[null,null,null,"$H$32",null,null,null,null,null,null,null,null,null,null,null,null,null,null,"This is a mandatory field"]
[null,null,null,"$H$33",null,null,null,null,null,null,null,null,null,null,null,null,null,null,"This is a mandatory field"]
[null,null,null,"$H$34",null,null,null,null,null,null,null,null,null,null,null,null,null,null,"This is a mandatory field"]
[null,null,null,"$H$35",null,null,null,null,null,null,null,null,null,null,null,null,null,null,"This is a mandatory field"]
[null,null,null,"$H$36",null,null,null,null,null,null,null,null,null,null,null,null,null,null,"This is a mandatory field.  Total Shareholding of Promoter and Promoter Group (A)   should be equal to  \"Number of shares held\" in sheet- Promoter & Promter Group(I)(b)"]
[null,null,null,"$H$37",null,null,null,null,null,null,null,null,null,null,null,null,null,null,"This is a mandatory field"]
[null,null,null,"$H$38",null,null,null,null,null,null,null,null,null,null,null,null,null,null,"This is a mandatory field"]
[null,null,null,"$H$39",null,null,null,null,null,null,null,null,null,null,null,null,null,null,"This is a mandatory field"]
[null,null,null,"$H$40",null,null,null,null,null,null,null,null,null,null,null,null,null,null,"This is a mandatory field"]
[null,null,null,"$H$41",null,null,null,null,null,null,null,null,null,null,null,null,null,null,"This is a mandatory field"]
[null,null,null,"$H$42",null,null,null,null,null,null,null,null,null,null,null,null,null,null,"This is a mandatory field"]
[null,null,null,"$H$43",null,null,null,null,null,null,null,null,null,null,null,null,null,null,"This is a mandatory field"]
[null,null,null,"$H$44",null,null,null,null,null,null,null,null,null,null,null,null,null,null,"This is a mandatory field"]
[null,null,null,"$H$45",null,null,null,null,null,null,null,null,null,null,null,null,null,null,"This is a mandatory field"]
[null,null,null,"$H$46",null,null,null,null,null,null,null,null,null,null,null,null,null,null,"This is a mandatory field"]
[null,null,null,"$H$47",null,null,null,null,null,null,null,null,null,null,null,null,null,null,"This is a mandatory field"]
[null,null,null,"$H$48",null,null,null,null,null,null,null,null,null,null,null,null,null,null,"This is a mandatory field"]
[null,null,null,"$H$49",null,null,null,null,null,null,null,null,null,null,null,null,null,null,"This is a mandatory field"]
[null,null,null,"$H$50",null,null,null,null,null,null,null,null,null,null,null,null,null,null,"This is a mandatory field"]
[null,null,null,"$H$51",null,null,null,null,null,null,null,null,null,null,null,null,null,null,"This is a mandatory field"]
[null,null,null,"$H$52",null,null,null,null,null,null,null,null,null,null,null,null,null,null,"This is a mandatory field"]
[null,null,null,"$H$53",null,null,null,null,null,null,null,null,null,null,null,null,null,null,"This is a mandatory field"]
[null,null,null,"$H$54",null,null,null,null,null,null,null,null,null,null,null,null,null,null,"This is a mandatory field"]
[null,null,null,"$H$55",null,null,null,null,null,null,null,null,null,null,null,null,null,null,"This is a mandatory field"]
[null,null,null,"$H$56",null,null,null,null,null,null,null,null,null,null,null,null,null,null,"This is a mandatory field"]
[null,null,null,"$H$57",null,null,null,null,null,null,null,null,null,null,null,null,null,null,"This is a mandatory field"]
[null,null,null,"$H$58",null,null,null,null,null,null,null,null,null,null,null,null,null,null,"This is a mandatory field"]
[null,null,null,"$H$59",null,null,null,null,null,null,null,null,null,null,null,null,null,null,"This is a mandatory field"]
[null,null,null,"$H$60",null,null,null,null,null,null,null,null,null,null,null,null,null,null,"This is a mandatory field"]
[null,null,null,"$H$61",null,null,null,null,null,null,null,null,null,null,null,null,null,null,"This is a mandatory field"]
[null,null,null,"$H$62",null,null,null,null,null,null,null,null,null,null,null,null,null,null,"This is a mandatory field"]
[null,null,null,"$H$63",null,null,null,null,null,null,null,null,null,null,null,null,null,null,"This is a mandatory field"]
[null,null,null,"$H$64",null,null,null,null,null,null,null,null,null,null,null,null,null,null,"This is a mandatory field"]
[null,null,null,"$H$65",null,null,null,null,null,null,null,null,null,null,null,null,null,null,"This is a mandatory field"]
[null,null,null,"$H$66",null,null,null,null,null,null,null,null,null,null,null,null,null,null,"This is a mandatory field.  Total Shareholding of Promoter and Promoter Group (A)   should be equal to  \"Number of shares held\" in sheet- Promoter & Promter Group(I)(b)"]
[null,null,null,"$H$67",null,null,null,null,null,null,null,null,null,null,null,null,null,null,"This is a mandatory field"]
[null,null,null,"$H$68",null,null,null,null,null,null,null,null,null,null,null,null,null,null,"This is a mandatory field"]
[null,null,null,"$H$69",null,null,null,null,null,null,null,null,null,null,null,null,null,null,"\"Total number of shares held\" by Public should be greater than or equal to \"Total number of shares held\" by Public having more than 1% share holding  or more than 5% of share holding"]
[null,null,null,"$H$70",null,null,null,null,null,null,null,null,null,null,null,null,null,null,"This is a mandatory field"]
[null,null,null,"$H$71",null,null,null,null,null,null,null,null,null,null,null,null,null,null,"This is a mandatory field"]
[null,null,null,"$H$72",null,null,null,null,null,null,null,null,null,null,null,null,null,null,"This is a mandatory field"]
[null,null,null,"$H$73",null,null,null,null,null,null,null,null,null,null,null,null,null,null,"This is a mandatory field"]
[null,null,null,"$H$74",null,null,null,null,null,null,null,null,null,null,null,null,null,null,"This is a mandatory field"]
[null,null,null,"$H$75",null,null,null,null,null,null,null,null,null,null,null,null,null,null,"This is a mandatory field"]
[null,null,null,"$I$11",null,null,null,null,null,null,null,null,null,null,null,null,null,null,"This is a mandatory field.  Or   Value entered in \"Number of shares held in dematerialised form\" should be less than value entered in \"Total number of shares\"."]
[null,null,null,"$I$12",null,null,null,null,null,null,null,null,null,null,null,null,null,null,"This is a mandatory field.  Or   Value entered in \"Number of shares held in dematerialised form\" should be less than value entered in \"Total number of shares\"."]
[null,null,null,"$I$13",null,null,null,null,null,null,null,null,null,null,null,null,null,null,"This is a mandatory field.  Or   Value entered in \"Number of shares held in dematerialised form\" should be less than value entered in \"Total number of shares\"."]
[null,null,null,"$I$14",null,null,null,null,null,null,null,null,null,null,null,null,null,null,"This is a mandatory field.  Or   Value entered in \"Number of shares held in dematerialised form\" should be less than value entered in \"Total number of shares\"."]
[null,null,null,"$I$15",null,null,null,null,null,null,null,null,null,null,null,null,null,null,"This is a mandatory field.  Or   Value entered in \"Number of shares held in dematerialised form\" should be less than value entered in \"Total number of shares\"."]
[null,null,null,"$I$16",null,null,null,null,null,null,null,null,null,null,null,null,null,null,"This is a mandatory field.  Or   Value entered in \"Number of shares held in dematerialised form\" should be less than value entered in \"Total number of shares\"."]
[null,null,null,"$I$17",null,null,null,null,null,null,null,null,null,null,null,null,null,null,"This is a mandatory field.  Or   Value entered in \"Number of shares held in dematerialised form\" should be less than value entered in \"Total number of shares\"."]
[null,null,null,"$I$18",null,null,null,null,null,null,null,null,null,null,null,null,null,null,"This is a mandatory field.  Or   Value entered in \"Number of shares held in dematerialised form\" should be less than value entered in \"Total number of shares\"."]
[null,null,null,"$I$19",null,null,null,null,null,null,null,null,null,null,null,null,null,null,"This is a mandatory field.  Or   Value entered in \"Number of shares held in dematerialised form\" should be less than value entered in \"Total number of shares\"."]
[null,null,null,"$I$20",null,null,null,null,null,null,null,null,null,null,null,null,null,null,"This is a mandatory field.  Or   Value entered in \"Number of shares held in dematerialised form\" should be less than value entered in \"Total number of shares\"."]
[null,null,null,"$I$21",null,null,null,null,null,null,null,null,null,null,null,null,null,null,"This is a mandatory field.  Or   Value entered in \"Number of shares held in dematerialised form\" should be less than value entered in \"Total number of shares\"."]
[null,null,null,"$I$22",null,null,null,null,null,null,null,null,null,null,null,null,null,null,"This is a mandatory field.  Or   Value entered in \"Number of shares held in dematerialised form\" should be less than value entered in \"Total number of shares\"."]
[null,null,null,"$I$23",null,null,null,null,null,null,null,null,null,null,null,null,null,null,"This is a mandatory field.  Or   Value entered in \"Number of shares held in dematerialised form\" should be less than value entered in \"Total number of shares\"."]
[null,null,null,"$I$24",null,null,null,null,null,null,null,null,null,null,null,null,null,null,"This is a mandatory field.  Or   Value entered in \"Number of shares held in dematerialised form\" should be less than value entered in \"Total number of shares\"."]
[null,null,null,"$I$25",null,null,null,null,null,null,null,null,null,null,null,null,null,null,"This is a mandatory field.  Or   Value entered in \"Number of shares held in dematerialised form\" should be less than value entered in \"Total number of shares\"."]
[null,null,null,"$I$26",null,null,null,null,null,null,null,null,null,null,null,null,null,null,"This is a mandatory field.  Or   Value entered in \"Number of shares held in dematerialised form\" should be less than value entered in \"Total number of shares\"."]
[null,null,null,"$I$27",null,null,null,null,null,null,null,null,null,null,null,null,null,null,"This is a mandatory field.  Or   Value entered in \"Number of shares held in dematerialised form\" should be less than value entered in \"Total number of shares\"."]
[null,null,null,"$I$28",null,null,null,null,null,null,null,null,null,null,null,null,null,null,"This is a mandatory field.  Or   Value entered in \"Number of shares held in dematerialised form\" should be less than value entered in \"Total number of shares\"."]
[null,null,null,"$I$29",null,null,null,null,null,null,null,null,null,null,null,null,null,null,"This is a mandatory field.  Or   Value entered in \"Number of shares held in dematerialised form\" should be less than value entered in \"Total number of shares\"."]
[null,null,null,"$I$30",null,null,null,null,null,null,null,null,null,null,null,null,null,null,"This is a mandatory field.  Or   Value entered in \"Number of shares held in dematerialised form\" should be less than value entered in \"Total number of shares\"."]
[null,null,null,"$I$31",null,null,null,null,null,null,null,null,null,null,null,null,null,null,"This is a mandatory field.  Or   Value entered in \"Number of shares held in dematerialised form\" should be less than value entered in \"Total number of shares\"."]
[null,null,null,"$I$32",null,null,null,null,null,null,null,null,null,null,null,null,null,null,"This is a mandatory field.  Or   Value entered in \"Number of shares held in dematerialised form\" should be less than value entered in \"Total number of shares\"."]
[null,null,null,"$I$33",null,null,null,null,null,null,null,null,null,null,null,null,null,null,"This is a mandatory field.  Or   Value entered in \"Number of shares held in dematerialised form\" should be less than value entered in \"Total number of shares\"."]
[null,null,null,"$I$34",null,null,null,null,null,null,null,null,null,null,null,null,null,null,"This is a mandatory field.  Or   Value entered in \"Number of shares held in dematerialised form\" should be less than value entered in \"Total number of shares\"."]
[null,null,null,"$I$35",null,null,null,null,null,null,null,null,null,null,null,null,null,null,"This is a mandatory field.  Or   Value entered in \"Number of shares held in dematerialised form\" should be less than value entered in \"Total number of shares\"."]
[null,null,null,"$I$36",null,null,null,null,null,null,null,null,null,null,null,null,null,null,"This is a mandatory field.  Or   Value entered in \"Number of shares held in dematerialised form\" should be less than value entered in \"Total number of shares\"."]
[null,null,null,"$I$37",null,null,null,null,null,null,null,null,null,null,null,null,null,null,"This is a mandatory field.  Or   Value entered in \"Number of shares held in dematerialised form\" should be less than value entered in \"Total number of shares\"."]
[null,null,null,"$I$38",null,null,null,null,null,null,null,null,null,null,null,null,null,null,"This is a mandatory field.  Or   Value entered in \"Number of shares held in dematerialised form\" should be less than value entered in \"Total number of shares\"."]
[null,null,null,"$I$39",null,null,null,null,null,null,null,null,null,null,null,null,null,null,"This is a mandatory field.  Or   Value entered in \"Number of shares held in dematerialised form\" should be less than value entered in \"Total number of shares\"."]
[null,null,null,"$I$40",null,null,null,null,null,null,null,null,null,null,null,null,null,null,"This is a mandatory field.  Or   Value entered in \"Number of shares held in dematerialised form\" should be less than value entered in \"Total number of shares\"."]
[null,null,null,"$I$41",null,null,null,null,null,null,null,null,null,null,null,null,null,null,"This is a mandatory field.  Or   Value entered in \"Number of shares held in dematerialised form\" should be less than value entered in \"Total number of shares\"."]
[null,null,null,"$I$42",null,null,null,null,null,null,null,null,null,null,null,null,null,null,"This is a mandatory field.  Or   Value entered in \"Number of shares held in dematerialised form\" should be less than value entered in \"Total number of shares\"."]
[null,null,null,"$I$43",null,null,null,null,null,null,null,null,null,null,null,null,null,null,"This is a mandatory field.  Or   Value entered in \"Number of shares held in dematerialised form\" should be less than value entered in \"Total number of shares\"."]
[null,null,null,"$I$44",null,null,null,null,null,null,null,null,null,null,null,null,null,null,"This is a mandatory field.  Or   Value entered in \"Number of shares held in dematerialised form\" should be less than value entered in \"Total number of shares\"."]
[null,null,null,"$I$45",null,null,null,null,null,null,null,null,null,null,null,null,null,null,"This is a mandatory field.  Or   Value entered in \"Number of shares held in dematerialised form\" should be less than value entered in \"Total number of shares\"."]
[null,null,null,"$I$46",null,null,null,null,null,null,null,null,null,null,null,null,null,null,"This is a mandatory field.  Or   Value entered in \"Number of shares held in dematerialised form\" should be less than value entered in \"Total number of shares\"."]
[null,null,null,"$I$47",null,null,null,null,null,null,null,null,null,null,null,null,null,null,"This is a mandatory field.  Or   Value entered in \"Number of shares held in dematerialised form\" should be less than value entered in \"Total number of shares\"."]
[null,null,null,"$I$48",null,null,null,null,null,null,null,null,null,null,null,null,null,null,"This is a mandatory field.  Or   Value entered in \"Number of shares held in dematerialised form\" should be less than value entered in \"Total number of shares\"."]
[null,null,null,"$I$49",null,null,null,null,null,null,null,null,null,null,null,null,null,null,"This is a mandatory field.  Or   Value entered in \"Number of shares held in dematerialised form\" should be less than value entered in \"Total number of shares\"."]
[null,null,null,"$I$50",null,null,null,null,null,null,null,null,null,null,null,null,null,null,"This is a mandatory field.  Or   Value entered in \"Number of shares held in dematerialised form\" should be less than value entered in \"Total number of shares\"."]
[null,null,null,"$I$51",null,null,null,null,null,null,null,null,null,null,null,null,null,null,"This is a mandatory field.  Or   Value entered in \"Number of shares held in dematerialised form\" should be less than value entered in \"Total number of shares\"."]
[null,null,null,"$I$52",null,null,null,null,null,null,null,null,null,null,null,null,null,null,"This is a mandatory field.  Or   Value entered in \"Number of shares held in dematerialised form\" should be less than value entered in \"Total number of shares\"."]
[null,null,null,"$I$53",null,null,null,null,null,null,null,null,null,null,null,null,null,null,"This is a mandatory field.  Or   Value entered in \"Number of shares held in dematerialised form\" should be less than value entered in \"Total number of shares\"."]
[null,null,null,"$I$54",null,null,null,null,null,null,null,null,null,null,null,null,null,null,"This is a mandatory field.  Or   Value entered in \"Number of shares held in dematerialised form\" should be less than value entered in \"Total number of shares\"."]
[null,null,null,"$I$55",null,null,null,null,null,null,null,null,null,null,null,null,null,null,"This is a mandatory field.  Or   Value entered in \"Number of shares held in dematerialised form\" should be less than value entered in \"Total number of shares\"."]
[null,null,null,"$I$56",null,null,null,null,null,null,null,null,null,null,null,null,null,null,"This is a mandatory field.  Or   Value entered in \"Number of shares held in dematerialised form\" should be less than value entered in \"Total number of shares\"."]
[null,null,null,"$I$57",null,null,null,null,null,null,null,null,null,null,null,null,null,null,"This is a mandatory field.  Or   Value entered in \"Number of shares held in dematerialised form\" should be less than value entered in \"Total number of shares\"."]
[null,null,null,"$I$58",null,null,null,null,null,null,null,null,null,null,null,null,null,null,"This is a mandatory field.  Or   Value entered in \"Number of shares held in dematerialised form\" should be less than value entered in \"Total number of shares\"."]
[null,null,null,"$I$59",null,null,null,null,null,null,null,null,null,null,null,null,null,null,"This is a mandatory field.  Or   Value entered in \"Number of shares held in dematerialised form\" should be less than value entered in \"Total number of shares\"."]
[null,null,null,"$I$60",null,null,null,null,null,null,null,null,null,null,null,null,null,null,"This is a mandatory field.  Or   Value entered in \"Number of shares held in dematerialised form\" should be less than value entered in \"Total number of shares\"."]
[null,null,null,"$I$61",null,null,null,null,null,null,null,null,null,null,null,null,null,null,"This is a mandatory field.  Or   Value entered in \"Number of shares held in dematerialised form\" should be less than value entered in \"Total number of shares\"."]
[null,null,null,"$I$62",null,null,null,null,null,null,null,null,null,null,null,null,null,null,"This is a mandatory field.  Or   Value entered in \"Number of shares held in dematerialised form\" should be less than value entered in \"Total number of shares\"."]
[null,null,null,"$I$63",null,null,null,null,null,null,null,null,null,null,null,null,null,null,"This is a mandatory field.  Or   Value entered in \"Number of shares held in dematerialised form\" should be less than value entered in \"Total number of shares\"."]
[null,null,null,"$I$64",null,null,null,null,null,null,null,null,null,null,null,null,null,null,"This is a mandatory field.  Or   Value entered in \"Number of shares held in dematerialised form\" should be less than value entered in \"Total number of shares\"."]
[null,null,null,"$I$65",null,null,null,null,null,null,null,null,null,null,null,null,null,null,"This is a mandatory field.  Or   Value entered in \"Number of shares held in dematerialised form\" should be less than value entered in \"Total number of shares\"."]
[null,null,null,"$I$66",null,null,null,null,null,null,null,null,null,null,null,null,null,null,"This is a mandatory field.  Or   Value entered in \"Number of shares held in dematerialised form\" should be less than value entered in \"Total number of shares\"."]
[null,null,null,"$I$67",null,null,null,null,null,null,null,null,null,null,null,null,null,null,"This is a mandatory field.  Or   Value entered in \"Number of shares held in dematerialised form\" should be less than value entered in \"Total number of shares\"."]
[null,null,null,"$I$68",null,null,null,null,null,null,null,null,null,null,null,null,null,null,"This is a mandatory field.  Or   Value entered in \"Number of shares held in dematerialised form\" should be less than value entered in \"Total number of shares\"."]
[null,null,null,"$I$69",null,null,null,null,null,null,null,null,null,null,null,null,null,null,"This is a mandatory field.  Or   Value entered in \"Number of shares held in dematerialised form\" should be less than value entered in \"Total number of shares\"."]
[null,null,null,"$I$70",null,null,null,null,null,null,null,null,null,null,null,null,null,null,"This is a mandatory field.  Or   Value entered in \"Number of shares held in dematerialised form\" should be less than value entered in \"Total number of shares\"."]
[null,null,null,"$I$71",null,null,null,null,null,null,null,null,null,null,null,null,null,null,"This is a mandatory field.  Or   Value entered in \"Number of shares held in dematerialised form\" should be less than value entered in \"Total number of shares\"."]
[null,null,null,"$I$72",null,null,null,null,null,null,null,null,null,null,null,null,null,null,"This is a mandatory field.  Or   Value entered in \"Number of shares held in dematerialised form\" should be less than value entered in \"Total number of shares\"."]
[null,null,null,"$I$73",null,null,null,null,null,null,null,null,null,null,null,null,null,null,"This is a mandatory field.  Or   Value entered in \"Number of shares held in dematerialised form\" should be less than value entered in \"Total number of shares\"."]
[null,null,null,"$I$74",null,null,null,null,null,null,null,null,null,null,null,null,null,null,"This is a mandatory field.  Or   Value entered in \"Number of shares held in dematerialised form\" should be less than value entered in \"Total number of shares\"."]
[null,null,null,"$I$75",null,null,null,null,null,null,null,null,null,null,null,null,null,null,"This is a mandatory field.  Or   Value entered in \"Number of shares held in dematerialised form\" should be less than value entered in \"Total number of shares\"."]
[null,null,null,"$K$11",null,null,null,null,null,null,null,null,null,null,null,null,null,null,"This is a mandatory field"]
[null,null,null,"$K$12",null,null,null,null,null,null,null,null,null,null,null,null,null,null,"This is a mandatory field"]
[null,null,null,"$K$13",null,null,null,null,null,null,null,null,null,null,null,null,null,null,"This is a mandatory field"]
[null,null,null,"$K$14",null,null,null,null,null,null,null,null,null,null,null,null,null,null,"This is a mandatory field"]
[null,null,null,"$K$15",null,null,null,null,null,null,null,null,null,null,null,null,null,null,"This is a mandatory field"]
[null,null,null,"$K$16",null,null,null,null,null,null,null,null,null,null,null,null,null,null,"This is a mandatory field"]
[null,null,null,"$K$17",null,null,null,null,null,null,null,null,null,null,null,null,null,null,"This is a mandatory field"]
[null,null,null,"$K$18",null,null,null,null,null,null,null,null,null,null,null,null,null,null,"This is a mandatory field"]
[null,null,null,"$K$19",null,null,null,null,null,null,null,null,null,null,null,null,null,null,"This is a mandatory field"]
[null,null,null,"$K$20",null,null,null,null,null,null,null,null,null,null,null,null,null,null,"This is a mandatory field"]
[null,null,null,"$K$21",null,null,null,null,null,null,null,null,null,null,null,null,null,null,"This is a mandatory field"]
[null,null,null,"$K$22",null,null,null,null,null,null,null,null,null,null,null,null,null,null,"This is a mandatory field"]
[null,null,null,"$K$23",null,null,null,null,null,null,null,null,null,null,null,null,null,null,"This is a mandatory field"]
[null,null,null,"$K$24",null,null,null,null,null,null,null,null,null,null,null,null,null,null,"This is a mandatory field"]
[null,null,null,"$K$25",null,null,null,null,null,null,null,null,null,null,null,null,null,null,"This is a mandatory field"]
[null,null,null,"$K$26",null,null,null,null,null,null,null,null,null,null,null,null,null,null,"This is a mandatory field"]
[null,null,null,"$K$27",null,null,null,null,null,null,null,null,null,null,null,null,null,null,"This is a mandatory field"]
[null,null,null,"$K$28",null,null,null,null,null,null,null,null,null,null,null,null,null,null,"This is a mandatory field"]
[null,null,null,"$K$29",null,null,null,null,null,null,null,null,null,null,null,null,null,null,"This is a mandatory field"]
[null,null,null,"$K$30",null,null,null,null,null,null,null,null,null,null,null,null,null,null,"This is a mandatory field"]
[null,null,null,"$K$31",null,null,null,null,null,null,null,null,null,null,null,null,null,null,"This is a mandatory field"]
[null,null,null,"$K$32",null,null,null,null,null,null,null,null,null,null,null,null,null,null,"This is a mandatory field"]
[null,null,null,"$K$33",null,null,null,null,null,null,null,null,null,null,null,null,null,null,"This is a mandatory field"]
[null,null,null,"$K$34",null,null,null,null,null,null,null,null,null,null,null,null,null,null,"This is a mandatory field"]
[null,null,null,"$K$35",null,null,null,null,null,null,null,null,null,null,null,null,null,null,"This is a mandatory field"]
[null,null,null,"$K$36",null,null,null,null,null,null,null,null,null,null,null,null,null,null,"This is a mandatory field"]
[null,null,null,"$K$37",null,null,null,null,null,null,null,null,null,null,null,null,null,null,"This is a mandatory field"]
[null,null,null,"$K$38",null,null,null,null,null,null,null,null,null,null,null,null,null,null,"This is a mandatory field"]
[null,null,null,"$K$39",null,null,null,null,null,null,null,null,null,null,null,null,null,null,"This is a mandatory field"]
[null,null,null,"$K$40",null,null,null,null,null,null,null,null,null,null,null,null,null,null,"This is a mandatory field"]
[null,null,null,"$K$41",null,null,null,null,null,null,null,null,null,null,null,null,null,null,"This is a mandatory field"]
[null,null,null,"$K$42",null,null,null,null,null,null,null,null,null,null,null,null,null,null,"This is a mandatory field"]
[null,null,null,"$K$43",null,null,null,null,null,null,null,null,null,null,null,null,null,null,"This is a mandatory field"]
[null,null,null,"$K$44",null,null,null,null,null,null,null,null,null,null,null,null,null,null,"This is a mandatory field"]
[null,null,null,"$K$45",null,null,null,null,null,null,null,null,null,null,null,null,null,null,"This is a mandatory field"]
[null,null,null,"$K$46",null,null,null,null,null,null,null,null,null,null,null,null,null,null,"This is a mandatory field"]
[null,null,null,"$K$47",null,null,null,null,null,null,null,null,null,null,null,null,null,null,"This is a mandatory field"]
[null,null,null,"$K$48",null,null,null,null,null,null,null,null,null,null,null,null,null,null,"This is a mandatory field"]
[null,null,null,"$K$49",null,null,null,null,null,null,null,null,null,null,null,null,null,null,"This is a mandatory field"]
[null,null,null,"$K$50",null,null,null,null,null,null,null,null,null,null,null,null,null,null,"This is a mandatory field"]
[null,null,null,"$K$51",null,null,null,null,null,null,null,null,null,null,null,null,null,null,"This is a mandatory field"]
[null,null,null,"$K$52",null,null,null,null,null,null,null,null,null,null,null,null,null,null,"This is a mandatory field"]
[null,null,null,"$K$53",null,null,null,null,null,null,null,null,null,null,null,null,null,null,"This is a mandatory field"]
[null,null,null,"$K$54",null,null,null,null,null,null,null,null,null,null,null,null,null,null,"This is a mandatory field"]
[null,null,null,"$K$55",null,null,null,null,null,null,null,null,null,null,null,null,null,null,"This is a mandatory field"]
[null,null,null,"$K$56",null,null,null,null,null,null,null,null,null,null,null,null,null,null,"This is a mandatory field"]
[null,null,null,"$K$57",null,null,null,null,null,null,null,null,null,null,null,null,null,null,"This is a mandatory field"]
[null,null,null,"$K$58",null,null,null,null,null,null,null,null,null,null,null,null,null,null,"This is a mandatory field"]
[null,null,null,"$K$59",null,null,null,null,null,null,null,null,null,null,null,null,null,null,"This is a mandatory field"]
[null,null,null,"$K$60",null,null,null,null,null,null,null,null,null,null,null,null,null,null,"This is a mandatory field"]
[null,null,null,"$K$61",null,null,null,null,null,null,null,null,null,null,null,null,null,null,"This is a mandatory field"]
[null,null,null,"$K$62",null,null,null,null,null,null,null,null,null,null,null,null,null,null,"This is a mandatory field"]
[null,null,null,"$K$63",null,null,null,null,null,null,null,null,null,null,null,null,null,null,"This is a mandatory field"]
[null,null,null,"$K$64",null,null,null,null,null,null,null,null,null,null,null,null,null,null,"This is a mandatory field"]
[null,null,null,"$K$65",null,null,null,null,null,null,null,null,null,null,null,null,null,null,"This is a mandatory field"]
[null,null,null,"$K$66",null,null,null,null,null,null,null,null,null,null,null,null,null,null,"This is a mandatory field"]
[null,null,null,"$K$67",null,null,null,null,null,null,null,null,null,null,null,null,null,null,"This is a mandatory field"]
[null,null,null,"$K$68",null,null,null,null,null,null,null,null,null,null,null,null,null,null,"This is a mandatory field"]
[null,null,null,"$K$69",null,null,null,null,null,null,null,null,null,null,null,null,null,null,"This is a mandatory field"]
[null,null,null,"$K$70",null,null,null,null,null,null,null,null,null,null,null,null,null,null,"This is a mandatory field"]
[null,null,null,"$K$71",null,null,null,null,null,null,null,null,null,null,null,null,null,null,"This is a mandatory field"]
[null,null,null,"$K$72",null,null,null,null,null,null,null,null,null,null,null,null,null,null,"This is a mandatory field"]
[null,null,null,"$K$73",null,null,null,null,null,null,null,null,null,null,null,null,null,null,"This is a mandatory field"]
[null,null,null,"$K$74",null,null,null,null,null,null,null,null,null,null,null,null,null,null,"This is a mandatory field"]
[null,null,null,"$K$75",null,null,null,null,null,null,null,null,null,null,null,null,null,null,"This is a mandatory field"]
[null,null,null,"$L$11",null,null,null,null,null,null,null,null,null,null,null,null,null,null,"This is a mandatory field.  or   Pledged or encumbered - number of shares should less than or equal to Number of shares held\n"]
[null,null,null,"$L$12",null,null,null,null,null,null,null,null,null,null,null,null,null,null,"This is a mandatory field.  or   Pledged or encumbered - number of shares should less than or equal to Number of shares held\n"]
[null,null,null,"$L$13",null,null,null,null,null,null,null,null,null,null,null,null,null,null,"This is a mandatory field.  or   Pledged or encumbered - number of shares should less than or equal to Number of shares held\n"]
[null,null,null,"$L$14",null,null,null,null,null,null,null,null,null,null,null,null,null,null,"This is a mandatory field.  or   Pledged or encumbered - number of shares should less than or equal to Number of shares held\n"]
[null,null,null,"$L$15",null,null,null,null,null,null,null,null,null,null,null,null,null,null,"This is a mandatory field.  or   Pledged or encumbered - number of shares should less than or equal to Number of shares held\n"]
[null,null,null,"$L$16",null,null,null,null,null,null,null,null,null,null,null,null,null,null,"This is a mandatory field.  or   Pledged or encumbered - number of shares should less than or equal to Number of shares held\n"]
[null,null,null,"$L$17",null,null,null,null,null,null,null,null,null,null,null,null,null,null,"This is a mandatory field.  or   Pledged or encumbered - number of shares should less than or equal to Number of shares held\n"]
[null,null,null,"$L$18",null,null,null,null,null,null,null,null,null,null,null,null,null,null,"This is a mandatory field.  or   Pledged or encumbered - number of shares should less than or equal to Number of shares held\n"]
[null,null,null,"$L$19",null,null,null,null,null,null,null,null,null,null,null,null,null,null,"This is a mandatory field.  or   Pledged or encumbered - number of shares should less than or equal to Number of shares held\n"]
[null,null,null,"$L$20",null,null,null,null,null,null,null,null,null,null,null,null,null,null,"This is a mandatory field.  or   Pledged or encumbered - number of shares should less than or equal to Number of shares held\n"]
[null,null,null,"$L$21",null,null,null,null,null,null,null,null,null,null,null,null,null,null,"This is a mandatory field.  or   Pledged or encumbered - number of shares should less than or equal to Number of shares held\n"]
[null,null,null,"$L$22",null,null,null,null,null,null,null,null,null,null,null,null,null,null,"This is a mandatory field.  or   Pledged or encumbered - number of shares should less than or equal to Number of shares held\n"]
[null,null,null,"$L$23",null,null,null,null,null,null,null,null,null,null,null,null,null,null,"This is a mandatory field.  or   Pledged or encumbered - number of shares should less than or equal to Number of shares held\n"]
[null,null,null,"$L$24",null,null,null,null,null,null,null,null,null,null,null,null,null,null,"This is a mandatory field.  or   Pledged or encumbered - number of shares should less than or equal to Number of shares held\n"]
[null,null,null,"$L$25",null,null,null,null,null,null,null,null,null,null,null,null,null,null,"This is a mandatory field.  or   Pledged or encumbered - number of shares should less than or equal to Number of shares held\n"]
[null,null,null,"$L$26",null,null,null,null,null,null,null,null,null,null,null,null,null,null,"This is a mandatory field.  or   Pledged or encumbered - number of shares should less than or equal to Number of shares held\n"]
[null,null,null,"$L$27",null,null,null,null,null,null,null,null,null,null,null,null,null,null,"This is a mandatory field.  or   Pledged or encumbered - number of shares should less than or equal to Number of shares held\n"]
[null,null,null,"$L$28",null,null,null,null,null,null,null,null,null,null,null,null,null,null,"This is a mandatory field.  or   Pledged or encumbered - number of shares should less than or equal to Number of shares held\n"]
[null,null,null,"$L$29",null,null,null,null,null,null,null,null,null,null,null,null,null,null,"This is a mandatory field.  or   Pledged or encumbered - number of shares should less than or equal to Number of shares held\n"]
[null,null,null,"$L$30",null,null,null,null,null,null,null,null,null,null,null,null,null,null,"This is a mandatory field.  or   Pledged or encumbered - number of shares should less than or equal to Number of shares held\n"]
[null,null,null,"$L$31",null,null,null,null,null,null,null,null,null,null,null,null,null,null,"This is a mandatory field.  or   Pledged or encumbered - number of shares should less than or equal to Number of shares held\n"]
[null,null,null,"$L$32",null,null,null,null,null,null,null,null,null,null,null,null,null,null,"This is a mandatory field.  or   Pledged or encumbered - number of shares should less than or equal to Number of shares held\n"]
[null,null,null,"$L$33",null,null,null,null,null,null,null,null,null,null,null,null,null,null,"This is a mandatory field.  or   Pledged or encumbered - number of shares should less than or equal to Number of shares held\n"]
[null,null,null,"$L$34",null,null,null,null,null,null,null,null,null,null,null,null,null,null,"This is a mandatory field.  or   Pledged or encumbered - number of shares should less than or equal to Number of shares held\n"]
[null,null,null,"$L$35",null,null,null,null,null,null,null,null,null,null,null,null,null,null,"This is a mandatory field.  or   Pledged or encumbered - number of shares should less than or equal to Number of shares held\n"]
[null,null,null,"$L$36",null,null,null,null,null,null,null,null,null,null,null,null,null,null,"This is a mandatory field.  Total Pledge/Enucumbered - Number of shares of  Promoter and Promoter Group (A)   should be equal to  \"Number of encumbered shares\"  in sheet- Promoter & Promter Group(I)(b)"]
[null,null,null,"$L$37",null,null,null,null,null,null,null,null,null,null,null,null,null,null,"This is a mandatory field.  or   Pledged or encumbered - number of shares should less than or equal to Number of shares held\n"]
[null,null,null,"$L$38",null,null,null,null,null,null,null,null,null,null,null,null,null,null,"This is a mandatory field.  or   Pledged or encumbered - number of shares should less than or equal to Number of shares held\n"]
[null,null,null,"$L$39",null,null,null,null,null,null,null,null,null,null,null,null,null,null,"This is a mandatory field.  or   Pledged or encumbered - number of shares should less than or equal to Number of shares held\n"]
[null,null,null,"$L$40",null,null,null,null,null,null,null,null,null,null,null,null,null,null,"This is a mandatory field.  or   Pledged or encumbered - number of shares should less than or equal to Number of shares held\n"]
[null,null,null,"$L$41",null,null,null,null,null,null,null,null,null,null,null,null,null,null,"This is a mandatory field.  or   Pledged or encumbered - number of shares should less than or equal to Number of shares held\n"]
[null,null,null,"$L$42",null,null,null,null,null,null,null,null,null,null,null,null,null,null,"This is a mandatory field.  or   Pledged or encumbered - number of shares should less than or equal to Number of shares held\n"]
[null,null,null,"$L$43",null,null,null,null,null,null,null,null,null,null,null,null,null,null,"This is a mandatory field.  or   Pledged or encumbered - number of shares should less than or equal to Number of shares held\n"]
[null,null,null,"$L$44",null,null,null,null,null,null,null,null,null,null,null,null,null,null,"This is a mandatory field.  or   Pledged or encumbered - number of shares should less than or equal to Number of shares held\n"]
[null,null,null,"$L$45",null,null,null,null,null,null,null,null,null,null,null,null,null,null,"This is a mandatory field.  or   Pledged or encumbered - number of shares should less than or equal to Number of shares held\n"]
[null,null,null,"$L$46",null,null,null,null,null,null,null,null,null,null,null,null,null,null,"This is a mandatory field.  or   Pledged or encumbered - number of shares should less than or equal to Number of shares held\n"]
[null,null,null,"$L$47",null,null,null,null,null,null,null,null,null,null,null,null,null,null,"This is a mandatory field.  or   Pledged or encumbered - number of shares should less than or equal to Number of shares held\n"]
[null,null,null,"$L$48",null,null,null,null,null,null,null,null,null,null,null,null,null,null,"This is a mandatory field.  or   Pledged or encumbered - number of shares should less than or equal to Number of shares held\n"]
[null,null,null,"$L$49",null,null,null,null,null,null,null,null,null,null,null,null,null,null,"This is a mandatory field.  or   Pledged or encumbered - number of shares should less than or equal to Number of shares held\n"]
[null,null,null,"$L$50",null,null,null,null,null,null,null,null,null,null,null,null,null,null,"This is a mandatory field.  or   Pledged or encumbered - number of shares should less than or equal to Number of shares held\n"]
[null,null,null,"$L$51",null,null,null,null,null,null,null,null,null,null,null,null,null,null,"This is a mandatory field.  or   Pledged or encumbered - number of shares should less than or equal to Number of shares held\n"]
[null,null,null,"$L$52",null,null,null,null,null,null,null,null,null,null,null,null,null,null,"This is a mandatory field.  or   Pledged or encumbered - number of shares should less than or equal to Number of shares held\n"]
[null,null,null,"$L$53",null,null,null,null,null,null,null,null,null,null,null,null,null,null,"This is a mandatory field.  or   Pledged or encumbered - number of shares should less than or equal to Number of shares held\n"]
[null,null,null,"$L$54",null,null,null,null,null,null,null,null,null,null,null,null,null,null,"This is a mandatory field.  or   Pledged or encumbered - number of shares should less than or equal to Number of shares held\n"]
[null,null,null,"$L$55",null,null,null,null,null,null,null,null,null,null,null,null,null,null,"This is a mandatory field.  or   Pledged or encumbered - number of shares should less than or equal to Number of shares held\n"]
[null,null,null,"$L$56",null,null,null,null,null,null,null,null,null,null,null,null,null,null,"This is a mandatory field.  or   Pledged or encumbered - number of shares should less than or equal to Number of shares held\n"]
[null,null,null,"$L$57",null,null,null,null,null,null,null,null,null,null,null,null,null,null,"This is a mandatory field.  or   Pledged or encumbered - number of shares should less than or equal to Number of shares held\n"]
[null,null,null,"$L$58",null,null,null,null,null,null,null,null,null,null,null,null,null,null,"This is a mandatory field.  or   Pledged or encumbered - number of shares should less than or equal to Number of shares held\n"]
[null,null,null,"$L$59",null,null,null,null,null,null,null,null,null,null,null,null,null,null,"This is a mandatory field.  or   Pledged or encumbered - number of shares should less than or equal to Number of shares held\n"]
[null,null,null,"$L$60",null,null,null,null,null,null,null,null,null,null,null,null,null,null,"This is a mandatory field.  or   Pledged or encumbered - number of shares should less than or equal to Number of shares held\n"]
[null,null,null,"$L$61",null,null,null,null,null,null,null,null,null,null,null,null,null,null,"This is a mandatory field.  or   Pledged or encumbered - number of shares should less than or equal to Number of shares held\n"]
[null,null,null,"$L$62",null,null,null,null,null,null,null,null,null,null,null,null,null,null,"This is a mandatory field.  or   Pledged or encumbered - number of shares should less than or equal to Number of shares held\n"]
[null,null,null,"$L$63",null,null,null,null,null,null,null,null,null,null,null,null,null,null,"This is a mandatory field.  or   Pledged or encumbered - number of shares should less than or equal to Number of shares held\n"]
[null,null,null,"$L$64",null,null,null,null,null,null,null,null,null,null,null,null,null,null,"This is a mandatory field.  or   Pledged or encumbered - number of shares should less than or equal to Number of shares held\n"]
[null,null,null,"$L$65",null,null,null,null,null,null,null,null,null,null,null,null,null,null,"This is a mandatory field.  or   Pledged or encumbered - number of shares should less than or equal to Number of shares held\n"]
[null,null,null,"$L$66",null,null,null,null,null,null,null,null,null,null,null,null,null,null,"This is a mandatory field.  or   Pledged or encumbered - number of shares should less than or equal to Number of shares held\n"]
[null,null,null,"$L$67",null,null,null,null,null,null,null,null,null,null,null,null,null,null,"This is a mandatory field.  or   Pledged or encumbered - number of shares should less than or equal to Number of shares held\n"]
[null,null,null,"$L$68",null,null,null,null,null,null,null,null,null,null,null,null,null,null,"This is a mandatory field.  or   Pledged or encumbered - number of shares should less than or equal to Number of shares held\n"]
[null,null,null,"$L$69",null,null,null,null,null,null,null,null,null,null,null,null,null,null,"This is a mandatory field"]
[null,null,null,"$L$70",null,null,null,null,null,null,null,null,null,null,null,null,null,null,"This is a mandatory field"]
[null,null,null,"$L$71",null,null,null,null,null,null,null,null,null,null,null,null,null,null,"This is a mandatory field"]
[null,null,null,"$L$72",null,null,null,null,null,null,null,null,null,null,null,null,null,null,"This is a mandatory field"]
[null,null,null,"$L$73",null,null,null,null,null,null,null,null,null,null,null,null,null,null,"This is a mandatory field"]
[null,null,null,"$L$74",null,null,null,null,null,null,null,null,null,null,null,null,null,null,"This is a mandatory field"]
[null,null,null,"$M$75",null,null,null,null,null,null,null,null,null,null,null,null,null,null,"This is a mandatory field"]
[null,null,null,"$M$11",null,null,null,null,null,null,null,null,null,null,null,null,null,null,"This is a mandatory field"]
[null,null,null,"$M$12",null,null,null,null,null,null,null,null,null,null,null,null,null,null,"This is a mandatory field"]
[null,null,null,"$M$13",null,null,null,null,null,null,null,null,null,null,null,null,null,null,"This is a mandatory field"]
[null,null,null,"$M$14",null,null,null,null,null,null,null,null,null,null,null,null,null,null,"This is a mandatory field"]
[null,null,null,"$M$15",null,null,null,null,null,null,null,null,null,null,null,null,null,null,"This is a mandatory field"]
[null,null,null,"$M$16",null,null,null,null,null,null,null,null,null,null,null,null,null,null,"This is a mandatory field"]
[null,null,null,"$M$17",null,null,null,null,null,null,null,null,null,null,null,null,null,null,"This is a mandatory field"]
[null,null,null,"$M$18",null,null,null,null,null,null,null,null,null,null,null,null,null,null,"This is a mandatory field"]
[null,null,null,"$M$19",null,null,null,null,null,null,null,null,null,null,null,null,null,null,"This is a mandatory field"]
[null,null,null,"$M$20",null,null,null,null,null,null,null,null,null,null,null,null,null,null,"This is a mandatory field"]
[null,null,null,"$M$21",null,null,null,null,null,null,null,null,null,null,null,null,null,null,"This is a mandatory field"]
[null,null,null,"$M$22",null,null,null,null,null,null,null,null,null,null,null,null,null,null,"This is a mandatory field"]
[null,null,null,"$M$23",null,null,null,null,null,null,null,null,null,null,null,null,null,null,"This is a mandatory field"]
[null,null,null,"$M$24",null,null,null,null,null,null,null,null,null,null,null,null,null,null,"This is a mandatory field"]
[null,null,null,"$M$25",null,null,null,null,null,null,null,null,null,null,null,null,null,null,"This is a mandatory field"]
[null,null,null,"$M$26",null,null,null,null,null,null,null,null,null,null,null,null,null,null,"This is a mandatory field"]
[null,null,null,"$M$27",null,null,null,null,null,null,null,null,null,null,null,null,null,null,"This is a mandatory field"]
[null,null,null,"$M$28",null,null,null,null,null,null,null,null,null,null,null,null,null,null,"This is a mandatory field"]
[null,null,null,"$M$29",null,null,null,null,null,null,null,null,null,null,null,null,null,null,"This is a mandatory field"]
[null,null,null,"$M$30",null,null,null,null,null,null,null,null,null,null,null,null,null,null,"This is a mandatory field"]
[null,null,null,"$M$31",null,null,null,null,null,null,null,null,null,null,null,null,null,null,"This is a mandatory field"]
[null,null,null,"$M$32",null,null,null,null,null,null,null,null,null,null,null,null,null,null,"This is a mandatory field"]
[null,null,null,"$M$33",null,null,null,null,null,null,null,null,null,null,null,null,null,null,"This is a mandatory field"]
[null,null,null,"$M$34",null,null,null,null,null,null,null,null,null,null,null,null,null,null,"This is a mandatory field"]
[null,null,null,"$M$35",null,null,null,null,null,null,null,null,null,null,null,null,null,null,"This is a mandatory field"]
[null,null,null,"$M$36",null,null,null,null,null,null,null,null,null,null,null,null,null,null,"This is a mandatory field"]
[null,null,null,"$M$37",null,null,null,null,null,null,null,null,null,null,null,null,null,null,"This is a mandatory field"]
[null,null,null,"$M$38",null,null,null,null,null,null,null,null,null,null,null,null,null,null,"This is a mandatory field"]
[null,null,null,"$M$39",null,null,null,null,null,null,null,null,null,null,null,null,null,null,"This is a mandatory field"]
[null,null,null,"$M$40",null,null,null,null,null,null,null,null,null,null,null,null,null,null,"This is a mandatory field"]
[null,null,null,"$M$41",null,null,null,null,null,null,null,null,null,null,null,null,null,null,"This is a mandatory field"]
[null,null,null,"$M$42",null,null,null,null,null,null,null,null,null,null,null,null,null,null,"This is a mandatory field"]
[null,null,null,"$M$43",null,null,null,null,null,null,null,null,null,null,null,null,null,null,"This is a mandatory field"]
[null,null,null,"$M$44",null,null,null,null,null,null,null,null,null,null,null,null,null,null,"This is a mandatory field"]
[null,null,null,"$M$45",null,null,null,null,null,null,null,null,null,null,null,null,null,null,"This is a mandatory field"]
[null,null,null,"$M$46",null,null,null,null,null,null,null,null,null,null,null,null,null,null,"This is a mandatory field"]
[null,null,null,"$M$47",null,null,null,null,null,null,null,null,null,null,null,null,null,null,"This is a mandatory field"]
[null,null,null,"$M$48",null,null,null,null,null,null,null,null,null,null,null,null,null,null,"This is a mandatory field"]
[null,null,null,"$M$49",null,null,null,null,null,null,null,null,null,null,null,null,null,null,"This is a mandatory field"]
[null,null,null,"$M$50",null,null,null,null,null,null,null,null,null,null,null,null,null,null,"This is a mandatory field"]
[null,null,null,"$M$51",null,null,null,null,null,null,null,null,null,null,null,null,null,null,"This is a mandatory field"]
[null,null,null,"$M$52",null,null,null,null,null,null,null,null,null,null,null,null,null,null,"This is a mandatory field"]
[null,null,null,"$M$53",null,null,null,null,null,null,null,null,null,null,null,null,null,null,"This is a mandatory field"]
[null,null,null,"$M$54",null,null,null,null,null,null,null,null,null,null,null,null,null,null,"This is a mandatory field"]
[null,null,null,"$M$55",null,null,null,null,null,null,null,null,null,null,null,null,null,null,"This is a mandatory field"]
[null,null,null,"$M$56",null,null,null,null,null,null,null,null,null,null,null,null,null,null,"This is a mandatory field"]
[null,null,null,"$M$57",null,null,null,null,null,null,null,null,null,null,null,null,null,null,"This is a mandatory field"]
[null,null,null,"$M$58",null,null,null,null,null,null,null,null,null,null,null,null,null,null,"This is a mandatory field"]
[null,null,null,"$M$59",null,null,null,null,null,null,null,null,null,null,null,null,null,null,"This is a mandatory field"]
[null,null,null,"$M$60",null,null,null,null,null,null,null,null,null,null,null,null,null,null,"This is a mandatory field"]
[null,null,null,"$M$61",null,null,null,null,null,null,null,null,null,null,null,null,null,null,"This is a mandatory field"]
[null,null,null,"$M$62",null,null,null,null,null,null,null,null,null,null,null,null,null,null,"This is a mandatory field"]
[null,null,null,"$M$63",null,null,null,null,null,null,null,null,null,null,null,null,null,null,"This is a mandatory field"]
[null,null,null,"$M$64",null,null,null,null,null,null,null,null,null,null,null,null,null,null,"This is a mandatory field"]
[null,null,null,"$M$65",null,null,null,null,null,null,null,null,null,null,null,null,null,null,"This is a mandatory field"]
[null,null,null,"$M$66",null,null,null,null,null,null,null,null,null,null,null,null,null,null,"This is a mandatory field"]
[null,null,null,"$M$67",null,null,null,null,null,null,null,null,null,null,null,null,null,null,"This is a mandatory field"]
[null,null,null,"$M$68",null,null,null,null,null,null,null,null,null,null,null,null,null,null,"This is a mandatory field"]
[null,null,null,"$M$69",null,null,null,null,null,null,null,null,null,null,null,null,null,null,"This is a mandatory field"]
[null,null,null,"$M$70",null,null,null,null,null,null,null,null,null,null,null,null,null,null,"This is a mandatory field"]
[null,null,null,"$M$71",null,null,null,null,null,null,null,null,null,null,null,null,null,null,"This is a mandatory field"]
[null,null,null,"$M$72",null,null,null,null,null,null,null,null,null,null,null,null,null,null,"This is a mandatory field"]
[null,null,null,"$M$73",null,null,null,null,null,null,null,null,null,null,null,null,null,null,"This is a mandatory field"]
[null,null,null,"$M$74",null,null,null,null,null,null,null,null,null,null,null,null,null,null,"This is a mandatory field"]
[null,null,null,"$M$75",null,null,null,null,null,null,null,null,null,null,null,null,null,null,"This is a mandatory field"]
[null,null,null,"$D$69",null,null,null,null,null,null,null,null,null,null,null,null,null,null,"At least one information about public shareholding required"]
[null,null,null,"$D$74",null,null,null,null,null,null,null,null,null,null,null,null,null,null,"This is a mandatory field as values in  DR(II)(a) & DRs(II)(b) is present"]
[null,null,null,"$J$11",null,null,null,null,null,null,null,null,null,null,null,null,null,null,"This is a mandatory field or Enter valid percentage"]
[null,null,null,"$J$12",null,null,null,null,null,null,null,null,null,null,null,null,null,null,"This is a mandatory field or Enter valid percentage"]
[null,null,null,"$J$13",null,null,null,null,null,null,null,null,null,null,null,null,null,null,"This is a mandatory field or Enter valid percentage"]
[null,null,null,"$J$14",null,null,null,null,null,null,null,null,null,null,null,null,null,null,"This is a mandatory field or Enter valid percentage"]
[null,null,null,"$J$15",null,null,null,null,null,null,null,null,null,null,null,null,null,null,"This is a mandatory field or Enter valid percentage"]
[null,null,null,"$J$16",null,null,null,null,null,null,null,null,null,null,null,null,null,null,"This is a mandatory field or Enter valid percentage"]
[null,null,null,"$J$17",null,null,null,null,null,null,null,null,null,null,null,null,null,null,"This is a mandatory field or Enter valid percentage"]
[null,null,null,"$J$18",null,null,null,null,null,null,null,null,null,null,null,null,null,null,"This is a mandatory field or Enter valid percentage"]
[null,null,null,"$J$19",null,null,null,null,null,null,null,null,null,null,null,null,null,null,"This is a mandatory field or Enter valid percentage"]
[null,null,null,"$J$20",null,null,null,null,null,null,null,null,null,null,null,null,null,null,"This is a mandatory field or Enter valid percentage"]
[null,null,null,"$J$21",null,null,null,null,null,null,null,null,null,null,null,null,null,null,"This is a mandatory field or Enter valid percentage"]
[null,null,null,"$J$22",null,null,null,null,null,null,null,null,null,null,null,null,null,null,"This is a mandatory field or Enter valid percentage"]
[null,null,null,"$J$23",null,null,null,null,null,null,null,null,null,null,null,null,null,null,"This is a mandatory field or Enter valid percentage"]
[null,null,null,"$J$24",null,null,null,null,null,null,null,null,null,null,null,null,null,null,"This is a mandatory field or Enter valid percentage"]
[null,null,null,"$J$25",null,null,null,null,null,null,null,null,null,null,null,null,null,null,"This is a mandatory field or Enter valid percentage"]
[null,null,null,"$J$26",null,null,null,null,null,null,null,null,null,null,null,null,null,null,"This is a mandatory field or Enter valid percentage"]
[null,null,null,"$J$27",null,null,null,null,null,null,null,null,null,null,null,null,null,null,"This is a mandatory field or Enter valid percentage"]
[null,null,null,"$J$28",null,null,null,null,null,null,null,null,null,null,null,null,null,null,"This is a mandatory field or Enter valid percentage"]
[null,null,null,"$J$29",null,null,null,null,null,null,null,null,null,null,null,null,null,null,"This is a mandatory field or Enter valid percentage"]
[null,null,null,"$J$30",null,null,null,null,null,null,null,null,null,null,null,null,null,null,"This is a mandatory field or Enter valid percentage"]
[null,null,null,"$J$31",null,null,null,null,null,null,null,null,null,null,null,null,null,null,"This is a mandatory field or Enter valid percentage"]
[null,null,null,"$J$32",null,null,null,null,null,null,null,null,null,null,null,null,null,null,"This is a mandatory field or Enter valid percentage"]
[null,null,null,"$J$33",null,null,null,null,null,null,null,null,null,null,null,null,null,null,"This is a mandatory field or Enter valid percentage"]
[null,null,null,"$J$34",null,null,null,null,null,null,null,null,null,null,null,null,null,null,"This is a mandatory field or Enter valid percentage"]
[null,null,null,"$J$35",null,null,null,null,null,null,null,null,null,null,null,null,null,null,"This is a mandatory field or Enter valid percentage"]
[null,null,null,"$J$36",null,null,null,null,null,null,null,null,null,null,null,null,null,null,"This is a mandatory field or Enter valid percentage"]
[null,null,null,"$J$37",null,null,null,null,null,null,null,null,null,null,null,null,null,null,"This is a mandatory field or Enter valid percentage"]
[null,null,null,"$J$38",null,null,null,null,null,null,null,null,null,null,null,null,null,null,"This is a mandatory field or Enter valid percentage"]
[null,null,null,"$J$39",null,null,null,null,null,null,null,null,null,null,null,null,null,null,"This is a mandatory field or Enter valid percentage"]
[null,null,null,"$J$40",null,null,null,null,null,null,null,null,null,null,null,null,null,null,"This is a mandatory field or Enter valid percentage"]
[null,null,null,"$J$41",null,null,null,null,null,null,null,null,null,null,null,null,null,null,"This is a mandatory field or Enter valid percentage"]
[null,null,null,"$J$42",null,null,null,null,null,null,null,null,null,null,null,null,null,null,"This is a mandatory field or Enter valid percentage"]
[null,null,null,"$J$43",null,null,null,null,null,null,null,null,null,null,null,null,null,null,"This is a mandatory field or Enter valid percentage"]
[null,null,null,"$J$44",null,null,null,null,null,null,null,null,null,null,null,null,null,null,"This is a mandatory field or Enter valid percentage"]
[null,null,null,"$J$45",null,null,null,null,null,null,null,null,null,null,null,null,null,null,"This is a mandatory field or Enter valid percentage"]
[null,null,null,"$J$46",null,null,null,null,null,null,null,null,null,null,null,null,null,null,"This is a mandatory field or Enter valid percentage"]
[null,null,null,"$J$47",null,null,null,null,null,null,null,null,null,null,null,null,null,null,"This is a mandatory field or Enter valid percentage"]
[null,null,null,"$J$48",null,null,null,null,null,null,null,null,null,null,null,null,null,null,"This is a mandatory field or Enter valid percentage"]
[null,null,null,"$J$49",null,null,null,null,null,null,null,null,null,null,null,null,null,null,"This is a mandatory field or Enter valid percentage"]
[null,null,null,"$J$50",null,null,null,null,null,null,null,null,null,null,null,null,null,null,"This is a mandatory field or Enter valid percentage"]
[null,null,null,"$J$51",null,null,null,null,null,null,null,null,null,null,null,null,null,null,"This is a mandatory field or Enter valid percentage"]
[null,null,null,"$J$52",null,null,null,null,null,null,null,null,null,null,null,null,null,null,"This is a mandatory field or Enter valid percentage"]
[null,null,null,"$J$53",null,null,null,null,null,null,null,null,null,null,null,null,null,null,"This is a mandatory field or Enter valid percentage"]
[null,null,null,"$J$54",null,null,null,null,null,null,null,null,null,null,null,null,null,null,"This is a mandatory field or Enter valid percentage"]
[null,null,null,"$J$55",null,null,null,null,null,null,null,null,null,null,null,null,null,null,"This is a mandatory field or Enter valid percentage"]
[null,null,null,"$J$56",null,null,null,null,null,null,null,null,null,null,null,null,null,null,"This is a mandatory field or Enter valid percentage"]
[null,null,null,"$J$57",null,null,null,null,null,null,null,null,null,null,null,null,null,null,"This is a mandatory field or Enter valid percentage"]
[null,null,null,"$J$58",null,null,null,null,null,null,null,null,null,null,null,null,null,null,"This is a mandatory field or Enter valid percentage"]
[null,null,null,"$J$59",null,null,null,null,null,null,null,null,null,null,null,null,null,null,"This is a mandatory field or Enter valid percentage"]
[null,null,null,"$J$60",null,null,null,null,null,null,null,null,null,null,null,null,null,null,"This is a mandatory field or Enter valid percentage"]
[null,null,null,"$J$61",null,null,null,null,null,null,null,null,null,null,null,null,null,null,"This is a mandatory field or Enter valid percentage"]
[null,null,null,"$J$62",null,null,null,null,null,null,null,null,null,null,null,null,null,null,"This is a mandatory field or Enter valid percentage"]
[null,null,null,"$J$63",null,null,null,null,null,null,null,null,null,null,null,null,null,null,"This is a mandatory field or Enter valid percentage"]
[null,null,null,"$J$64",null,null,null,null,null,null,null,null,null,null,null,null,null,null,"This is a mandatory field or Enter valid percentage"]
[null,null,null,"$J$65",null,null,null,null,null,null,null,null,null,null,null,null,null,null,"This is a mandatory field or Enter valid percentage"]
[null,null,null,"$J$66",null,null,null,null,null,null,null,null,null,null,null,null,null,null,"This is a mandatory field or Enter valid percentage"]
[null,null,null,"$J$67",null,null,null,null,null,null,null,null,null,null,null,null,null,null,"This is a mandatory field or Enter valid percentage"]
[null,null,null,"$J$68",null,null,null,null,null,null,null,null,null,null,null,null,null,null,"This is a mandatory field or Enter valid percentage"]
[null,null,null,"$J$69",null,null,null,null,null,null,null,null,null,null,null,null,null,null,"This is a mandatory field or Enter valid percentage"]
[null,null,null,"$J$70",null,null,null,null,null,null,null,null,null,null,null,null,null,null,"This is a mandatory field or Enter valid percentage"]
[null,null,null,"$J$71",null,null,null,null,null,null,null,null,null,null,null,null,null,null,"This is a mandatory field or Enter valid percentage"]
[null,null,null,"$J$72",null,null,null,null,null,null,null,null,null,null,null,null,null,null,"This is a mandatory field or Enter valid percentage"]
[null,null,null,"$J$73",null,null,null,null,null,null,null,null,null,null,null,null,null,null,"This is a mandatory field or Enter valid percentage"]
[null,null,null,"$J$74",null,null,null,null,null,null,null,null,null,null,null,null,null,null,"This is a mandatory field or Enter valid percentage"]
[null,null,null,"$J$75",null,null,null,null,null,null,null,null,null,null,null,null,null,null,"This is a mandatory field or Enter valid percentage"]
[null,null,null,"$J$76",null,null,null,null,null,null,null,null,null,null,null,null,null,null,"This is a mandatory field or Enter valid percentage"]
[null,null,null,"$J$77",null,null,null,null,null,null,null,null,null,null,null,null,null,null,"This is a mandatory field or Enter valid percentage"]
[null,null,null,"$J$78",null,null,null,null,null,null,null,null,null,null,null,null,null,null,"This is a mandatory field or Enter valid percentage"]
[null,null,null,"$J$79",null,null,null,null,null,null,null,null,null,null,null,null,null,null,"This is a mandatory field or Enter valid percentage"]
[null,null,null,"$J$80",null,null,null,null,null,null,null,null,null,null,null,null,null,null,"This is a mandatory field or Enter valid percentage"]
[null,null,null,"$J$81",null,null,null,null,null,null,null,null,null,null,null,null,null,null,"This is a mandatory field or Enter valid percentage"]
[null,null,null,"$J$82",null,null,null,null,null,null,null,null,null,null,null,null,null,null,"This is a mandatory field or Enter valid percentage"]
[null,null,null,"$J$83",null,null,null,null,null,null,null,null,null,null,null,null,null,null,"This is a mandatory field or Enter valid percentage"]
[null,null,null,"$J$84",null,null,null,null,null,null,null,null,null,null,null,null,null,null,"This is a mandatory field or Enter valid percentage"]
[null,null,null,"$J$85",null,null,null,null,null,null,null,null,null,null,null,null,null,null,"This is a mandatory field or Enter valid percentage"]
[null,null,null,"$J$86",null,null,null,null,null,null,null,null,null,null,null,null,null,null,"This is a mandatory field or Enter valid percentage"]
[null,null,null,"$J$87",null,null,null,null,null,null,null,null,null,null,null,null,null,null,"This is a mandatory field or Enter valid percentage"]
[null,null,null,"$J$88",null,null,null,null,null,null,null,null,null,null,null,null,null,null,"This is a mandatory field or Enter valid percentage"]
[null,null,null,"$J$89",null,null,null,null,null,null,null,null,null,null,null,null,null,null,"This is a mandatory field or Enter valid percentage"]
[null,null,null,"$J$90",null,null,null,null,null,null,null,null,null,null,null,null,null,null,"This is a mandatory field or Enter valid percentage"]
[null,null,null,"$J$91",null,null,null,null,null,null,null,null,null,null,null,null,null,null,"This is a mandatory field or Enter valid percentage"]
[null,null,null,"$J$92",null,null,null,null,null,null,null,null,null,null,null,null,null,null,"This is a mandatory field or Enter valid percentage"]
[null,null,null,"$J$93",null,null,null,null,null,null,null,null,null,null,null,null,null,null,"This is a mandatory field or Enter valid percentage"]
[null,null,null,"$J$94",null,null,null,null,null,null,null,null,null,null,null,null,null,null,"This is a mandatory field or Enter valid percentage"]
[null,null,null,"$J$95",null,null,null,null,null,null,null,null,null,null,null,null,null,null,"This is a mandatory field or Enter valid percentage"]
[null,null,null,"$J$96",null,null,null,null,null,null,null,null,null,null,null,null,null,null,"This is a mandatory field or Enter valid percentage"]
[null,null,null,"$J$97",null,null,null,null,null,null,null,null,null,null,null,null,null,null,"This is a mandatory field or Enter valid percentage"]
[null,null,null,"$J$98",null,null,null,null,null,null,null,null,null,null,null,null,null,null,"This is a mandatory field or Enter valid percentage"]
[null,null,null,"$J$99",null,null,null,null,null,null,null,null,null,null,null,null,null,null,"This is a mandatory field or Enter valid percentage"]
[null,null,null,"$J$100",null,null,null,null,null,null,null,null,null,null,null,null,null,null,"This is a mandatory field or Enter valid percentage"]
[null,null,null,"$J$101",null,null,null,null,null,null,null,null,null,null,null,null,null,null,"This is a mandatory field or Enter valid percentage"]
[null,null,null,"$J$102",null,null,null,null,null,null,null,null,null,null,null,null,null,null,"This is a mandatory field or Enter valid percentage"]
[null,null,null,"$J$103",null,null,null,null,null,null,null,null,null,null,null,null,null,null,"This is a mandatory field or Enter valid percentage"]
[null,null,null,"$J$104",null,null,null,null,null,null,null,null,null,null,null,null,null,null,"This is a mandatory field or Enter valid percentage"]
[null,null,null,"$J$105",null,null,null,null,null,null,null,null,null,null,null,null,null,null,"This is a mandatory field or Enter valid percentage"]
[null,null,null,"$J$106",null,null,null,null,null,null,null,null,null,null,null,null,null,null,"This is a mandatory field or Enter valid percentage"]
[null,null,null,"$J$107",null,null,null,null,null,null,null,null,null,null,null,null,null,null,"This is a mandatory field or Enter valid percentage"]
[null,null,null,"$J$108",null,null,null,null,null,null,null,null,null,null,null,null,null,null,"This is a mandatory field or Enter valid percentage"]
[null,null,null,"$J$109",null,null,null,null,null,null,null,null,null,null,null,null,null,null,"This is a mandatory field or Enter valid percentage"]
[null,null,null,"$J$110",null,null,null,null,null,null,null,null,null,null,null,null,null,null,"This is a mandatory field or Enter valid percentage"]
[null,null,null,"$J$111",null,null,null,null,null,null,null,null,null,null,null,null,null,null,"This is a mandatory field or Enter valid percentage"]
[null,null,null,"$J$112",null,null,null,null,null,null,null,null,null,null,null,null,null,null,"This is a mandatory field or Enter valid percentage"]
[null,null,null,"$J$113",null,null,null,null,null,null,null,null,null,null,null,null,null,null,"This is a mandatory field or Enter valid percentage"]
[null,null,null,"$J$114",null,null,null,null,null,null,null,null,null,null,null,null,null,null,"This is a mandatory field or Enter valid percentage"]
[null,null,null,"$J$115",null,null,null,null,null,null,null,null,null,null,null,null,null,null,"This is a mandatory field or Enter valid percentage"]
[null,null,null,"$J$116",null,null,null,null,null,null,null,null,null,null,null,null,null,null,"This is a mandatory field or Enter valid percentage"]
[null,null,null,"$J$117",null,null,null,null,null,null,null,null,null,null,null,null,null,null,"This is a mandatory field or Enter valid percentage"]
[null,null,null,"$J$118",null,null,null,null,null,null,null,null,null,null,null,null,null,null,"This is a mandatory field or Enter valid percentage"]
[null,null,null,"$J$119",null,null,null,null,null,null,null,null,null,null,null,null,null,null,"This is a mandatory field or Enter valid percentage"]
[null,null,null,"$J$120",null,null,null,null,null,null,null,null,null,null,null,null,null,null,"This is a mandatory field or Enter valid percentage"]
[null,null,null,"$J$121",null,null,null,null,null,null,null,null,null,null,null,null,null,null,"This is a mandatory field or Enter valid percentage"]
[null,null,null,"$J$122",null,null,null,null,null,null,null,null,null,null,null,null,null,null,"This is a mandatory field or Enter valid percentage"]
[null,null,null,"$J$123",null,null,null,null,null,null,null,null,null,null,null,null,null,null,"This is a mandatory field or Enter valid percentage"]
[null,null,null,"$J$124",null,null,null,null,null,null,null,null,null,null,null,null,null,null,"This is a mandatory field or Enter valid percentage"]
[null,null,null,"$J$125",null,null,null,null,null,null,null,null,null,null,null,null,null,null,"This is a mandatory field or Enter valid percentage"]
[null,null,null,"$J$126",null,null,null,null,null,null,null,null,null,null,null,null,null,null,"This is a mandatory field or Enter valid percentage"]
[null,null,null,"$J$127",null,null,null,null,null,null,null,null,null,null,null,null,null,null,"This is a mandatory field or Enter valid percentage"]
[null,null,null,"$J$128",null,null,null,null,null,null,null,null,null,null,null,null,null,null,"This is a mandatory field or Enter valid percentage"]
[null,null,null,"$J$129",null,null,null,null,null,null,null,null,null,null,null,null,null,null,"This is a mandatory field or Enter valid percentage"]
[null,null,null,"$J$130",null,null,null,null,null,null,null,null,null,null,null,null,null,null,"This is a mandatory field or Enter valid percentage"]
[null,null,null,"$J$131"]
[null,null,null,"$J$132",null,null,null,null,null,null,null,null,null,null,null,null,null,null,"This is a mandatory field or Enter valid percentage"]
[null,null,null,"$J$133",null,null,null,null,null,null,null,null,null,null,null,null,null,null,"This is a mandatory field or Enter valid percentage"]
[null,null,null,"$J$134",null,null,null,null,null,null,null,null,null,null,null,null,null,null,"This is a mandatory field or Enter valid percentage"]
[null,null,null,"$J$135",null,null,null,null,null,null,null,null,null,null,null,null,null,null,"This is a mandatory field or Enter valid percentage"]
[null,null,null,"$J$136",null,null,null,null,null,null,null,null,null,null,null,null,null,null,"This is a mandatory field or Enter valid percentage"]
[null,null,null,"$J$137",null,null,null,null,null,null,null,null,null,null,null,null,null,null,"This is a mandatory field or Enter valid percentage"]
[null,null,null,"$D$131",null,null,null,null,null,null,null,null,null,null,null,null,null,null,"At least one public shareholding information required"]
[null,null,null,"$F$16",null,null,null,null,null,null,null,null,null,null,null,null,null,null,"This is a mandatory field or You can not select same decription once again"]
[null,null,null,"$F$17",null,null,null,null,null,null,null,null,null,null,null,null,null,null,"This is a mandatory field or You can not select same decription once again"]
[null,null,null,"$F$18",null,null,null,null,null,null,null,null,null,null,null,null,null,null,"This is a mandatory field or You can not select same decription once again"]
[null,null,null,"$F$19",null,null,null,null,null,null,null,null,null,null,null,null,null,null,"This is a mandatory field or You can not select same decription once again"]
[null,null,null,"$F$20",null,null,null,null,null,null,null,null,null,null,null,null,null,null,"This is a mandatory field or You can not select same decription once again"]
[null,null,null,"$F$21",null,null,null,null,null,null,null,null,null,null,null,null,null,null,"This is a mandatory field or You can not select same decription once again"]
[null,null,null,"$F$22",null,null,null,null,null,null,null,null,null,null,null,null,null,null,"This is a mandatory field or You can not select same decription once again"]
[null,null,null,"$F$23",null,null,null,null,null,null,null,null,null,null,null,null,null,null,"This is a mandatory field or You can not select same decription once again"]
[null,null,null,"$F$24",null,null,null,null,null,null,null,null,null,null,null,null,null,null,"This is a mandatory field or You can not select same decription once again"]
[null,null,null,"$F$25",null,null,null,null,null,null,null,null,null,null,null,null,null,null,"This is a mandatory field or You can not select same decription once again"]
[null,null,null,"$F$26",null,null,null,null,null,null,null,null,null,null,null,null,null,null,"This is a mandatory field or You can not select same decription once again"]
[null,null,null,"$F$27",null,null,null,null,null,null,null,null,null,null,null,null,null,null,"This is a mandatory field or You can not select same decription once again"]
[null,null,null,"$F$28",null,null,null,null,null,null,null,null,null,null,null,null,null,null,"This is a mandatory field or You can not select same decription once again"]
[null,null,null,"$F$29",null,null,null,null,null,null,null,null,null,null,null,null,null,null,"This is a mandatory field or You can not select same decription once again"]
[null,null,null,"$F$30",null,null,null,null,null,null,null,null,null,null,null,null,null,null,"This is a mandatory field or You can not select same decription once again"]
[null,null,null,"$F$31",null,null,null,null,null,null,null,null,null,null,null,null,null,null,"This is a mandatory field or You can not select same decription once again"]
[null,null,null,"$F$32",null,null,null,null,null,null,null,null,null,null,null,null,null,null,"This is a mandatory field or You can not select same decription once again"]
[null,null,null,"$F$33",null,null,null,null,null,null,null,null,null,null,null,null,null,null,"This is a mandatory field or You can not select same decription once again"]
[null,null,null,"$F$34",null,null,null,null,null,null,null,null,null,null,null,null,null,null,"This is a mandatory field or You can not select same decription once again"]
[null,null,null,"$F$35",null,null,null,null,null,null,null,null,null,null,null,null,null,null,"This is a mandatory field or You can not select same decription once again"]
[null,null,null,"$F$36",null,null,null,null,null,null,null,null,null,null,null,null,null,null,"This is a mandatory field or You can not select same decription once again"]
[null,null,null,"$F$44",null,null,null,null,null,null,null,null,null,null,null,null,null,null,"This is a mandatory field or Enter valid percentage"]
[null,null,null,"$F$45",null,null,null,null,null,null,null,null,null,null,null,null,null,null,"This is a mandatory field or Enter valid percentage"]
[null,null,null,"$F$46",null,null,null,null,null,null,null,null,null,null,null,null,null,null,"This is a mandatory field or Enter valid percentage"]
[null,null,null,"$F$47",null,null,null,null,null,null,null,null,null,null,null,null,null,null,"This is a mandatory field or Enter valid percentage"]
[null,null,null,"$F$48",null,null,null,null,null,null,null,null,null,null,null,null,null,null,"This is a mandatory field or Enter valid percentage"]
[null,null,null,"$F$49",null,null,null,null,null,null,null,null,null,null,null,null,null,null,"This is a mandatory field or Enter valid percentage"]
[null,null,null,"$F$50",null,null,null,null,null,null,null,null,null,null,null,null,null,null,"This is a mandatory field or Enter valid percentage"]
[null,null,null,"$F$51",null,null,null,null,null,null,null,null,null,null,null,null,null,null,"This is a mandatory field or Enter valid percentage"]
[null,null,null,"$F$52",null,null,null,null,null,null,null,null,null,null,null,null,null,null,"This is a mandatory field or Enter valid percentage"]
[null,null,null,"$F$53",null,null,null,null,null,null,null,null,null,null,null,null,null,null,"This is a mandatory field or Enter valid percentage"]
[null,null,null,"$F$54",null,null,null,null,null,null,null,null,null,null,null,null,null,null,"This is a mandatory field or Enter valid percentage"]
[null,null,null,"$F$55",null,null,null,null,null,null,null,null,null,null,null,null,null,null,"This is a mandatory field or Enter valid percentage"]
[null,null,null,"$F$56",null,null,null,null,null,null,null,null,null,null,null,null,null,null,"This is a mandatory field or Enter valid percentage"]
[null,null,null,"$F$57",null,null,null,null,null,null,null,null,null,null,null,null,null,null,"This is a mandatory field or Enter valid percentage"]
[null,null,null,"$F$58",null,null,null,null,null,null,null,null,null,null,null,null,null,null,"This is a mandatory field or Enter valid percentage"]
[null,null,null,"$F$59",null,null,null,null,null,null,null,null,null,null,null,null,null,null,"This is a mandatory field or Enter valid percentage"]
[null,null,null,"$F$60",null,null,null,null,null,null,null,null,null,null,null,null,null,null,"This is a mandatory field or Enter valid percentage"]
[null,null,null,"$F$61",null,null,null,null,null,null,null,null,null,null,null,null,null,null,"This is a mandatory field or Enter valid percentage"]
[null,null,null,"$F$62",null,null,null,null,null,null,null,null,null,null,null,null,null,null,"This is a mandatory field or Enter valid percentage"]
[null,null,null,"$F$63",null,null,null,null,null,null,null,null,null,null,null,null,null,null,"This is a mandatory field or Enter valid percentage"]
[null,null,null,"$F$80",null,null,null,null,null,null,null,null,null,null,null,null,null,null,"This is a mandatory field or Enter valid percentage"]
[null,null,null,"$F$81",null,null,null,null,null,null,null,null,null,null,null,null,null,null,"This is a mandatory field or Enter valid percentage"]
[null,null,null,"$F$82",null,null,null,null,null,null,null,null,null,null,null,null,null,null,"This is a mandatory field or Enter valid percentage"]
[null,null,null,"$F$83",null,null,null,null,null,null,null,null,null,null,null,null,null,null,"This is a mandatory field or Enter valid percentage"]
[null,null,null,"$F$84",null,null,null,null,null,null,null,null,null,null,null,null,null,null,"This is a mandatory field or Enter valid percentage"]
[null,null,null,"$F$85",null,null,null,null,null,null,null,null,null,null,null,null,null,null,"This is a mandatory field or Enter valid percentage"]
[null,null,null,"$F$86",null,null,null,null,null,null,null,null,null,null,null,null,null,null,"This is a mandatory field or Enter valid percentage"]
[null,null,null,"$F$87",null,null,null,null,null,null,null,null,null,null,null,null,null,null,"This is a mandatory field or Enter valid percentage"]
[null,null,null,"$F$88",null,null,null,null,null,null,null,null,null,null,null,null,null,null,"This is a mandatory field or Enter valid percentage"]
[null,null,null,"$F$89",null,null,null,null,null,null,null,null,null,null,null,null,null,null,"This is a mandatory field or Enter valid percentage"]
[null,null,null,"$F$90",null,null,null,null,null,null,null,null,null,null,null,null,null,null,"This is a mandatory field or Enter valid percentage"]
[null,null,null,"$F$91",null,null,null,null,null,null,null,null,null,null,null,null,null,null,"This is a mandatory field or Enter valid percentage"]
[null,null,null,"$F$92",null,null,null,null,null,null,null,null,null,null,null,null,null,null,"This is a mandatory field or Enter valid percentage"]
[null,null,null,"$F$93",null,null,null,null,null,null,null,null,null,null,null,null,null,null,"This is a mandatory field or Enter valid percentage"]
[null,null,null,"$F$94",null,null,null,null,null,null,null,null,null,null,null,null,null,null,"This is a mandatory field or Enter valid percentage"]
[null,null,null,"$F$95",null,null,null,null,null,null,null,null,null,null,null,null,null,null,"This is a mandatory field or Enter valid percentage"]
[null,null,null,"$F$96",null,null,null,null,null,null,null,null,null,null,null,null,null,null,"This is a mandatory field or Enter valid percentage"]
[null,null,null,"$F$97",null,null,null,null,null,null,null,null,null,null,null,null,null,null,"This is a mandatory field or Enter valid percentage"]
[null,null,null,"$F$98",null,null,null,null,null,null,null,null,null,null,null,null,null,null,"This is a mandatory field or Enter valid percentage"]
[null,null,null,"$F$99",null,null,null,null,null,null,null,null,null,null,null,null,null,null,"This is a mandatory field or Enter valid percentage"]
[null,null,null,"$F$109",null,null,null,null,null,null,null,null,null,null,null,null,null,null,"This is a mandatory field or Enter valid percentage"]
[null,null,null,"$F$110",null,null,null,null,null,null,null,null,null,null,null,null,null,null,"This is a mandatory field or Enter valid percentage"]
[null,null,null,"$F$111",null,null,null,null,null,null,null,null,null,null,null,null,null,null,"This is a mandatory field or Enter valid percentage"]
[null,null,null,"$F$112",null,null,null,null,null,null,null,null,null,null,null,null,null,null,"This is a mandatory field or Enter valid percentage"]
[null,null,null,"$F$113",null,null,null,null,null,null,null,null,null,null,null,null,null,null,"This is a mandatory field or Enter valid percentage"]
[null,null,null,"$F$114",null,null,null,null,null,null,null,null,null,null,null,null,null,null,"This is a mandatory field or Enter valid percentage"]
[null,null,null,"$F$115",null,null,null,null,null,null,null,null,null,null,null,null,null,null,"This is a mandatory field or Enter valid percentage"]
[null,null,null,"$F$116",null,null,null,null,null,null,null,null,null,null,null,null,null,null,"This is a mandatory field or Enter valid percentage"]
[null,null,null,"$F$117",null,null,null,null,null,null,null,null,null,null,null,null,null,null,"This is a mandatory field or Enter valid percentage"]
[null,null,null,"$F$118",null,null,null,null,null,null,null,null,null,null,null,null,null,null,"This is a mandatory field or Enter valid percentage"]
[null,null,null,"$F$119",null,null,null,null,null,null,null,null,null,null,null,null,null,null,"This is a mandatory field or Enter valid percentage"]
[null,null,null,"$F$120",null,null,null,null,null,null,null,null,null,null,null,null,null,null,"This is a mandatory field or Enter valid percentage"]
[null,null,null,"$F$121",null,null,null,null,null,null,null,null,null,null,null,null,null,null,"This is a mandatory field or Enter valid percentage"]
[null,null,null,"$F$122",null,null,null,null,null,null,null,null,null,null,null,null,null,null,"This is a mandatory field or Enter valid percentage"]
[null,null,null,"$F$123",null,null,null,null,null,null,null,null,null,null,null,null,null,null,"This is a mandatory field or Enter valid percentage"]
[null,null,null,"$F$124",null,null,null,null,null,null,null,null,null,null,null,null,null,null,"This is a mandatory field or Enter valid percentage"]
[null,null,null,"$F$125",null,null,null,null,null,null,null,null,null,null,null,null,null,null,"This is a mandatory field or Enter valid percentage"]
[null,null,null,"$F$126",null,null,null,null,null,null,null,null,null,null,null,null,null,null,"This is a mandatory field or Enter valid percentage"]
[null,null,null,"$F$127",null,null,null,null,null,null,null,null,null,null,null,null,null,null,"This is a mandatory field or Enter valid percentage"]
[null,null,null,"$F$128",null,null,null,null,null,null,null,null,null,null,null,null,null,null,"This is a mandatory field or Enter valid percentage"]

{"sheet":"Sheet2","index":13,"n_rows":0,"n_cols":0,"rows_kept":0,"cut":false,"hidden":true,"merged":[]}